Workbook

Sheet 取扱説明
B1: 【ローテーション赤／黒組 取扱説明】
L2: ver.2.6改 | M2: by：にんにん
B3: ◆ | C3: 概要設定 | M3: ayayagogo7@gmail.com
C4: まずはじめに、名前、よみがな、ハンデ者には"-"を事前に入力します。（５０人まで対応） | M4: バグ等が有りましたら、その状態で保存しメールお願いします。
C5: 基準点、ハンデ点を自由に設定でき、プルダウンメニューから選んでください。 | M5: 出来る範囲で対応します。
C6: 開催日、対抗戦名を入力し、ルール（基準点）、会場名をプルダウンメニューから選んでください。
C7: 注）同姓同名の場合は違う名前にして登録お願いします。（よみがな は同じでも良いです。） | M7: 概要設定以外を全クリアします。
C8: 例） 山田太郎A 山田太郎B | M8: （サンプルデーターが入っています。見終わったら全クリアして下さい。）
C9: 並べ替え： | D9: 選手を追加した場合、よみがな順にリストを並べ替えます。
B11: ◆ | C11: list
C12: ラウンドテーブル表を設定します。（３人～１７人に対応） | H12: 16人・17人は新◯ｐの協力ｗ
B14: ◆ | C14: 赤／黒
C15: 名前をプルダウンメニューから選択し「よみがな」が表示されます。（３人～１７人に対応、絶対に赤／黒に同じ名前を選択しないで下さい。）
C16: 女子のハンデにも対応しハンデ点数が表示され、ハンデ変更で細かくハンデ点数を設定できます。
C17: （ハンデ変更については、TP、Rに影響が出ます。基準点より小さく設定するばTPが増え、大きくすれば減ります。）
C18: 勝者は半角小文字"w"、敗者は得点を入力。（全角および大文字で入力しても自動で"w"に変換されます。）
C20: 新たにA・B・C、HRを入力出来る様にし、結果表に反映されます。（半角小文字で入力しても自動で"A""B""C"に変換されます。HRは３６０点以下まで対応。）
C21: HRの個人およびトップHR表示については、下記を優先表示しております。
C22: "A"（マスワリ１番～基準点） ＞ "B"（裏マス１番～基準点） ＞ "C"（左記以外１番～基準点） ＞ ""（１００点以上）の順番とします。
C23: ※上記の理由から、ハンデ者は基準点まで撞けないので、ABCハイランは存在しません。
C24: 実際には有りませんが、この順番で表示およびトップHRを決めています。（"A"１８０ ＞ "B"１８１ ＞ "C"１８２ ＞ ""１８３）
C26: 「入力アシスト機能」
C27: 負けスコア入力後”w”が自動表示、「Ctrl+q」は自分相手クリア、「Ctrl+f」は全てクリア、「Ctrl+k」は対戦マス目のみクリア
C28: 印刷する時はマス目以外の所でクリック（A1セル）、対戦相手のマゼンダ色が表示されるからです。
B30: ◆ | C30: RT（出場選手人数により、ラウンドテーブル表を元に対戦相手を節毎に表示します。）
C31: RT作成ボタンで対戦相手が表示されラベルも同時に作成し、スコア入力後、赤／黒へ反映ボタンで赤／黒にスコアが反映されます。
C32: 入力手順： | D32: RTクリア ＞ 赤／黒で選手を選択 ＞ 何節まで：表示させる節数を入力 ＞ RT作成 ＞ スコア入力 ＞ 赤／黒へ反映
C33: RTクリア： | D33: 赤／黒RT、赤／黒ラベルが初期化されます。（前回入力したゴミが残っている場合があります。）
C34: 人数は： | D34: 人数が自動表示されます。（3人～17人対応。人数の入力は出来ません。）
C35: 何節まで： | D35: 節数を入力しRT作成ボタンを押すと、入力節まで表示されます。 （”９９”と入力すると全節が表示され”０”だと全節クリアされます。）
D36: １節、３節、５節の試合を行い場合は、”９９”で奇数節だけ入力して下さい。
C37: RT作成： | D37: 何節まで：を入力後、赤／黒RT、赤／黒ラベルが自動で作成されます。（赤／黒で出場選手を選択して下さい。赤／黒RT、赤／黒で入力したスコアは消えます。）
C38: スコア： | D38: スコア、A・B・C、HRの入力ができます。（敗者側のスコアを入力すると相手側に”ｗ”が自動表示されます。）
C39: 赤／黒へ反映： | D39: 全てのスコア入力後、赤／黒にスコアが反映されます。 （赤／黒で入力したスコアは消えます。）
C40: 赤／黒および、赤／黒RT画面からスコアを入力する場合はどちらか一方のみにして下さい。 （結果表はどちらで入力しても同じです。）
C41: 赤／黒から赤／黒RTへの反映は出来ません。
B43: ◆ | C43: ラベル（運営カード）
C44: 運営カードシートで運営カードを印刷してください。（印刷設定で1頁～試合数頁を指定して下さい。）
C45: A6またはハガキサイズで印刷されます。（Excel2007以降に対応）
B47: ◆ | C47: 順位戦
C48: 順位結果を入力し、対抗戦番手をプルダウンメニューより変更お願いします。（その他の項目は自動表示されます。）
C49: 赤／黒合計人数が奇数の場合は、最下位の人は試合が有りません。（順位戦でのHRは対象外）
B51: ◆ | C51: 結果
C52: 順位、名前、総合W数、総合L数、総合TP、LP、HRが集計されます。
C53: HR者の最高得点者には点数に色が表示されます。（ただしA・B・C優先、順位戦でのHRは対象外）
C54: 「順位判定」
C55: W数多い＞TP多い（ハンデに対応）＞総失点少ない(”w”を除いた合計、又失点のハンデは未対応)＞HR多い（ABC優先）
C57: 女子のハンデにも対応しました。（１組および、結果のＴＰの内訳は、横合計＊180/140 "w"はハンデ点とします。）
C58: 例）
C59: 花子 - | D59: （ハンデ者） | E59: w 100 | F59: w 50 | G59: → | H59: （140＋100＋140＋50）＊180/140＝552点 （小数点以下切り捨て）
C60: 太郎 | E60: w 100 | F60: w 50 | G60: → | H60: （180＋100＋180＋50）＊180/180＝510点 （小数点以下切り捨て）
B62: ◆ | C62: シートの保護／解除
C63: 保護を解除したい時は リボン＞校閲＞変更の シートの解除（一部シートを解除してもマクロを使用している為、自動で保護されてしまいます。）
B65: ◆ | C65: 緑色の小さな▲が出る場合
C66: excelのオプション＞数式＞エラーチェック＞バックグラウンドでエラーチェックを行う チェック外す
B68: ◆ | C68: マクロを使用しています。マクロを有効にして下さい。
C69: 左上側に セキュリティーの警告 マクロが無効にされました オプション をクリック
D70: このコンテンツを有効にする にチェックを入れる
C71: 毎回マクロを有効にするのが手間ならば（このファイルがある場所がディスクトップの場合）
C72: excelのオプション＞セキュリティセンター＞セキュリティセンターの設定＞信頼できる場所＞新しい場所の追加＞参照＞ディスクトップ OK＞OK
B74: ◆ | D74: 色とスコア項目以外は基本的に入力や選択は出来ません。また項目を消す時はスペースキーでなく、Deleteキーを使用して下さい。

Sheet 概要設定
J1: 名 前 | K1: よみがな | L1: ハンデ | N1: 基準点数 | O1: ハンデ点数
A2: 開催日 | B2: 2016 | C2: 年 | D2: 9 | E2: 月 | F2: 11 | G2: 日 | J2: 岩本 剛 | K2: いわもと つよし | N2: 120 | O2: 100
J3: 植田 慎也 | K3: うえだ しんや | N3: 160 | O3: 120
A4: 試合名 | B4: 和奈対抗戦 | J4: 金澤 茂昌 | K4: かなざわ しげまさ | N4: 180 | O4: 140
J5: 吉向 翔平 | K5: きっこう しょうへい | N5: 240 | O5: 200
A6: ルール | B6: 180 | C6: 点 | D6: コールショット | J6: 近藤 拓馬 | K6: こんどう たくま | N6: 360 | O6: 300
A7: （基準点） | J7: 斉藤 大輔 | K7: さいとう だいすけ
A8: 会場名 | B8: トップガン | J8: 斉藤 裕児 | K8: さいとう ゆうじ
J9: 白戸 玲人 | K9: しらと れいにん | O9: ←名前順に並べ替え
J10: 谷野 晋平 | K10: たにの しんぺい
B11: 会 場 | J11: 長谷川 進 | K11: はせがわ すすむ
B12: トップガン | J12: 水田 賢宏 | K12: みずた よしひろ
B13: キングスポット | J13: 峯山 崇史 | K13: みねやま たかし
B14: プールギャング | J14: 宮野 早織 | K14: みやの さおり | L14: -
J15: 山田 晋之 | K15: やまだ くにゆき
J16: 山田 晃司 | K16: やまだ こうじ
J17: 鷲尾 隆杜 | K17: わしお りゅうと
J18: 佐藤 循一 | K18: さとう じゅんいち
J19: 白戸 恭子 | K19: しらと きょうこ | L19: -

Sheet list
B1: 3 | C1: 人 | G1: 4 | H1: 人 | L1: 5 | M1: 人 | Q1: 6 | R1: 人 | V1: 7 | W1: 人 | AA1: 8 | AB1: 人 | AF1: 9 | AG1: 人 | AK1: 10 | AL1: 人 | AP1: 11 | AQ1: 人 | AU1: 12 | AV1: 人 | AZ1: 13 | BA1: 人 | BE1: 14 | BF1: 人 | BJ1: 15 | BK1: 人 | BO1: 16 | BP1: 人 | BT1: 17 | BU1: 人
A2: 1 | B2: =A2+1 -> 2 | C2: =B2+1 -> 3 | D2: =C2+1 -> 4 | E2: 5 | F2: 6 | G2: 7 | H2: 8 | I2: 9 | J2: 10 | K2: 11 | L2: 12 | M2: 13 | N2: 14 | O2: 15 | P2: 16 | Q2: 17 | R2: 18 | S2: 19 | T2: 20 | U2: 21 | V2: 22 | W2: 23 | X2: 24 | Y2: 25 | Z2: 26 | AA2: 27 | AB2: 28 | AC2: 29 | AD2: 30 | AE2: 31 | AF2: 32 | AG2: 33 | AH2: 34 | AI2: 35 | AJ2: 36 | AK2: 37 | AL2: 38 | AM2: 39 | AN2: 40 | AO2: 41 | AP2: 42 | AQ2: 43 | AR2: 44 | AS2: 45 | AT2: 46 | AU2: 47 | AV2: 48 | AW2: 49 | AX2: 50 | AY2: 51 | AZ2: 52 | BA2: 53 | BB2: 54 | BC2: 55 | BD2: 56 | BE2: 57 | BF2: 58 | BG2: 59 | BH2: 60 | BI2: 61 | BJ2: 62 | BK2: 63 | BL2: 64 | BM2: 65 | BN2: 66 | BO2: 67 | BP2: =BO2+1 -> 68 | BQ2: 69 | BR2: 70 | BS2: 71 | BT2: 72 | BU2: 73 | BV2: 74 | BW2: 75
B3: 一節 | E3: 1 | G3: 一節 | J3: 1 | L3: 一節 | O3: 1 | Q3: 一節 | T3: 1 | V3: 一節 | Y3: 1 | AA3: 一節 | AD3: 1 | AF3: 一節 | AI3: 1 | AK3: 一節 | AN3: 1 | AP3: 一節 | AS3: 1 | AU3: 一節 | AX3: 1 | AZ3: 一節 | BC3: 1 | BE3: 一節 | BH3: 1 | BJ3: 一節 | BM3: 1 | BO3: 一節 | BR3: 1 | BT3: 一節 | BW3: 1
A4: 1 | B4: 2 | C4: - | D4: 3 | E4: 1 | F4: 1 | G4: 2 | H4: - | I4: 3 | J4: 1 | K4: 1 | L4: 2 | M4: - | N4: 5 | O4: 1 | P4: 1 | Q4: 3 | R4: - | S4: 4 | T4: 1 | U4: 1 | V4: 2 | W4: - | X4: 4 | Y4: 1 | Z4: 1 | AA4: 4 | AB4: - | AC4: 5 | AD4: 1 | AE4: 1 | AF4: 2 | AG4: - | AH4: 4 | AI4: 1 | AJ4: 1 | AK4: 5 | AL4: - | AM4: 6 | AN4: 1 | AO4: 1 | AP4: 2 | AQ4: - | AR4: 4 | AS4: 1 | AT4: 1 | AU4: 6 | AV4: - | AW4: 7 | AX4: 1 | AY4: 1 | AZ4: 2 | BA4: - | BB4: 4 | BC4: 1 | BD4: 1 | BE4: 7 | BF4: - | BG4: 8 | BH4: 1 | BI4: 1 | BJ4: 2 | BK4: - | BL4: 4 | BM4: 1 | BN4: 1 | BO4: 8 | BP4: - | BQ4: 9 | BR4: 1 | BS4: 1 | BT4: 2 | BU4: - | BV4: 4 | BW4: 1
A5: =A4+1 -> 2 | B5: 1 | C5: - | D5: 3 | E5: 1 | F5: =F4+1 -> 2 | G5: 1 | H5: - | I5: 4 | J5: 1 | K5: =K4+1 -> 2 | L5: 3 | M5: - | N5: 4 | O5: 1 | P5: 2 | Q5: 2 | R5: - | S5: 5 | T5: 1 | U5: 2 | V5: 3 | W5: - | X5: 6 | Y5: 1 | Z5: 2 | AA5: 3 | AB5: - | AC5: 6 | AD5: 1 | AE5: 2 | AF5: 3 | AG5: - | AH5: 6 | AI5: 1 | AJ5: 2 | AK5: 4 | AL5: - | AM5: 7 | AN5: 1 | AO5: 2 | AP5: 3 | AQ5: - | AR5: 6 | AS5: 1 | AT5: 2 | AU5: 5 | AV5: - | AW5: 8 | AX5: 1 | AY5: 2 | AZ5: 3 | BA5: - | BB5: 6 | BC5: 1 | BD5: 2 | BE5: 6 | BF5: - | BG5: 9 | BH5: 1 | BI5: 2 | BJ5: 3 | BK5: - | BL5: 6 | BM5: 1 | BN5: 2 | BO5: 7 | BP5: - | BQ5: 10 | BR5: 1 | BS5: 2 | BT5: 3 | BU5: - | BV5: 6 | BW5: 1
A6: =A5+1 -> 3 | B6: 1 | C6: - | D6: 2 | E6: 1 | F6: =F5+1 -> 3 | G6: 4 | H6: - | I6: 2 | J6: 1 | K6: =K5+1 -> 3 | L6: 1 | M6: - | N6: 5 | O6: 1 | P6: 3 | Q6: 1 | R6: - | S6: 6 | T6: 1 | U6: 3 | V6: 5 | W6: - | X6: 7 | Y6: 1 | Z6: 3 | AA6: 2 | AB6: - | AC6: 7 | AD6: 1 | AE6: 3 | AF6: 5 | AG6: - | AH6: 8 | AI6: 1 | AJ6: 3 | AK6: 3 | AL6: - | AM6: 8 | AN6: 1 | AO6: 3 | AP6: 5 | AQ6: - | AR6: 8 | AS6: 1 | AT6: 3 | AU6: 4 | AV6: - | AW6: 9 | AX6: 1 | AY6: 3 | AZ6: 5 | BA6: - | BB6: 8 | BC6: 1 | BD6: 3 | BE6: 5 | BF6: - | BG6: 10 | BH6: 1 | BI6: 3 | BJ6: 5 | BK6: - | BL6: 8 | BM6: 1 | BN6: 3 | BO6: 6 | BP6: - | BQ6: 11 | BR6: 1 | BS6: 3 | BT6: 5 | BU6: - | BV6: 8 | BW6: 1
F7: 4 | G7: 1 | H7: - | I7: 3 | J7: 1 | K7: 4 | L7: 3 | M7: - | N7: 2 | O7: 1 | Q7: 二節 | T7: 2 | U7: 4 | V7: 4 | W7: - | X7: 1 | Y7: 1 | Z7: 4 | AA7: 1 | AB7: - | AC7: 8 | AD7: 1 | AE7: 4 | AF7: 7 | AG7: - | AH7: 9 | AI7: 1 | AJ7: 4 | AK7: 2 | AL7: - | AM7: 9 | AN7: 1 | AO7: 4 | AP7: 7 | AQ7: - | AR7: 10 | AS7: 1 | AT7: 4 | AU7: 3 | AV7: - | AW7: 10 | AX7: 1 | AY7: 4 | AZ7: 7 | BA7: - | BB7: 10 | BC7: 1 | BD7: 4 | BE7: 4 | BF7: - | BG7: 11 | BH7: 1 | BI7: 4 | BJ7: 7 | BK7: - | BL7: 10 | BM7: 1 | BN7: 4 | BO7: 5 | BP7: - | BQ7: 12 | BR7: 1 | BS7: 4 | BT7: 7 | BU7: - | BV7: 10 | BW7: 1
F8: 5 | G8: 3 | H8: - | I8: 4 | J8: 1 | K8: 5 | L8: 1 | M8: - | N8: 4 | O8: 1 | P8: 4 | Q8: 2 | R8: - | S8: 3 | T8: 2 | U8: 5 | V8: 2 | W8: - | X8: 6 | Y8: 1 | AA8: 二節 | AD8: 2 | AE8: 5 | AF8: 4 | AG8: - | AH8: 1 | AI8: 1 | AJ8: 5 | AK8: 1 | AL8: - | AM8: 10 | AN8: 1 | AO8: 5 | AP8: 9 | AQ8: - | AR8: 11 | AS8: 1 | AT8: 5 | AU8: 2 | AV8: - | AW8: 11 | AX8: 1 | AY8: 5 | AZ8: 9 | BA8: - | BB8: 12 | BC8: 1 | BD8: 5 | BE8: 3 | BF8: - | BG8: 12 | BH8: 1 | BI8: 5 | BJ8: 9 | BK8: - | BL8: 12 | BM8: 1 | BN8: 5 | BO8: 4 | BP8: - | BQ8: 13 | BR8: 1 | BS8: 5 | BT8: 9 | BU8: - | BV8: 12 | BW8: 1
F9: 6 | G9: 1 | H9: - | I9: 2 | J9: 1 | K9: 6 | L9: 3 | M9: - | N9: 5 | O9: 1 | P9: 5 | Q9: 6 | R9: - | S9: 4 | T9: 2 | U9: 6 | V9: 3 | W9: - | X9: 7 | Y9: 1 | Z9: 5 | AA9: 3 | AB9: - | AC9: 4 | AD9: 2 | AE9: 6 | AF9: 2 | AG9: - | AH9: 6 | AI9: 1 | AK9: 二節 | AN9: 2 | AO9: 6 | AP9: 4 | AQ9: - | AR9: 1 | AS9: 1 | AT9: 6 | AU9: 1 | AV9: - | AW9: 12 | AX9: 1 | AY9: 6 | AZ9: 11 | BA9: - | BB9: 13 | BC9: 1 | BD9: 6 | BE9: 2 | BF9: - | BG9: 13 | BH9: 1 | BI9: 6 | BJ9: 11 | BK9: - | BL9: 14 | BM9: 1 | BN9: 6 | BO9: 3 | BP9: - | BQ9: 14 | BR9: 1 | BS9: 6 | BT9: 11 | BU9: - | BV9: 14 | BW9: 1
K10: 7 | L10: 4 | M10: - | N10: 2 | O10: 1 | P10: 6 | Q10: 1 | R10: - | S10: 5 | T10: 2 | U10: 7 | V10: 1 | W10: - | X10: 5 | Y10: 1 | Z10: 6 | AA10: 2 | AB10: - | AC10: 5 | AD10: 2 | AE10: 7 | AF10: 3 | AG10: - | AH10: 8 | AI10: 1 | AJ10: 6 | AK10: 4 | AL10: - | AM10: 5 | AN10: 2 | AO10: 7 | AP10: 2 | AQ10: - | AR10: 6 | AS10: 1 | AU10: 二節 | AX10: 2 | AY10: 7 | AZ10: 4 | BA10: - | BB10: 1 | BC10: 1 | BD10: 7 | BE10: 1 | BF10: - | BG10: 14 | BH10: 1 | BI10: 7 | BJ10: 13 | BK10: - | BL10: 15 | BM10: 1 | BN10: 7 | BO10: 2 | BP10: - | BQ10: 15 | BR10: 1 | BS10: 7 | BT10: 13 | BU10: - | BV10: 16 | BW10: 1
K11: 8 | L11: 3 | M11: - | N11: 1 | O11: 1 | Q11: 三節 | T11: 3 | V11: 二節 | Y11: 2 | Z11: 7 | AA11: 8 | AB11: - | AC11: 6 | AD11: 2 | AE11: 8 | AF11: 5 | AG11: - | AH11: 9 | AI11: 1 | AJ11: 7 | AK11: 3 | AL11: - | AM11: 6 | AN11: 2 | AO11: 8 | AP11: 3 | AQ11: - | AR11: 8 | AS11: 1 | AT11: 7 | AU11: 5 | AV11: - | AW11: 6 | AX11: 2 | AY11: 8 | AZ11: 2 | BA11: - | BB11: 6 | BC11: 1 | BE11: 二節 | BH11: 2 | BI11: 8 | BJ11: 4 | BK11: - | BL11: 1 | BM11: 1 | BN11: 8 | BO11: 1 | BP11: - | BQ11: 16 | BR11: 1 | BS11: 8 | BT11: 15 | BU11: - | BV11: 17 | BW11: 1
K12: 9 | L12: 4 | M12: - | N12: 5 | O12: 1 | P12: 7 | Q12: 6 | R12: - | S12: 2 | T12: 3 | U12: 8 | V12: 4 | W12: - | X12: 6 | Y12: 2 | Z12: 8 | AA12: 1 | AB12: - | AC12: 7 | AD12: 2 | AE12: 9 | AF12: 1 | AG12: - | AH12: 7 | AI12: 1 | AJ12: 8 | AK12: 2 | AL12: - | AM12: 7 | AN12: 2 | AO12: 9 | AP12: 5 | AQ12: - | AR12: 10 | AS12: 1 | AT12: 8 | AU12: 4 | AV12: - | AW12: 7 | AX12: 2 | AY12: 9 | AZ12: 3 | BA12: - | BB12: 8 | BC12: 1 | BD12: 8 | BE12: 6 | BF12: - | BG12: 7 | BH12: 2 | BI12: 9 | BJ12: 2 | BK12: - | BL12: 6 | BM12: 1 | BO12: 二節 | BR12: 2 | BS12: 9 | BT12: 4 | BU12: - | BV12: 1 | BW12: 1
K13: 10 | L13: 1 | M13: - | N13: 2 | O13: 1 | P13: 8 | Q13: 5 | R13: - | S13: 3 | T13: 3 | U13: 9 | V13: 2 | W13: - | X13: 7 | Y13: 2 | AA13: 三節 | AD13: 3 | AF13: 二節 | AI13: 2 | AJ13: 9 | AK13: 10 | AL13: - | AM13: 8 | AN13: 2 | AO13: 10 | AP13: 7 | AQ13: - | AR13: 11 | AS13: 1 | AT13: 9 | AU13: 3 | AV13: - | AW13: 8 | AX13: 2 | AY13: 10 | AZ13: 5 | BA13: - | BB13: 10 | BC13: 1 | BD13: 9 | BE13: 5 | BF13: - | BG13: 8 | BH13: 2 | BI13: 10 | BJ13: 3 | BK13: - | BL13: 8 | BM13: 1 | BN13: 9 | BO13: 7 | BP13: - | BQ13: 8 | BR13: 2 | BS13: 10 | BT13: 2 | BU13: - | BV13: 6 | BW13: 1
P14: 9 | Q14: 1 | R14: - | S14: 4 | T14: 3 | U14: 10 | V14: 3 | W14: - | X14: 5 | Y14: 2 | Z14: 9 | AA14: 2 | AB14: - | AC14: 3 | AD14: 3 | AE14: 10 | AF14: 4 | AG14: - | AH14: 6 | AI14: 2 | AJ14: 10 | AK14: 1 | AL14: - | AM14: 9 | AN14: 2 | AO14: 11 | AP14: 1 | AQ14: - | AR14: 9 | AS14: 1 | AT14: 10 | AU14: 2 | AV14: - | AW14: 9 | AX14: 2 | AY14: 11 | AZ14: 7 | BA14: - | BB14: 12 | BC14: 1 | BD14: 10 | BE14: 4 | BF14: - | BG14: 9 | BH14: 2 | BI14: 11 | BJ14: 5 | BK14: - | BL14: 10 | BM14: 1 | BN14: 10 | BO14: 6 | BP14: - | BQ14: 9 | BR14: 2 | BS14: 11 | BT14: 3 | BU14: - | BV14: 8 | BW14: 1
Q15: 四節 | T15: 4 | U15: 11 | V15: 6 | W15: - | X15: 1 | Y15: 2 | Z15: 10 | AA15: 8 | AB15: - | AC15: 4 | AD15: 3 | AE15: 11 | AF15: 2 | AG15: - | AH15: 8 | AI15: 2 | AK15: 三節 | AN15: 3 | AP15: 二節 | AS15: 2 | AT15: 11 | AU15: 12 | AV15: - | AW15: 10 | AX15: 2 | AY15: 12 | AZ15: 9 | BA15: - | BB15: 13 | BC15: 1 | BD15: 11 | BE15: 3 | BF15: - | BG15: 10 | BH15: 2 | BI15: 12 | BJ15: 7 | BK15: - | BL15: 12 | BM15: 1 | BN15: 11 | BO15: 5 | BP15: - | BQ15: 10 | BR15: 2 | BS15: 12 | BT15: 5 | BU15: - | BV15: 10 | BW15: 1
P16: 10 | Q16: 5 | R16: - | S16: 6 | T16: 4 | U16: 12 | V16: 4 | W16: - | X16: 7 | Y16: 2 | Z16: 11 | AA16: 7 | AB16: - | AC16: 5 | AD16: 3 | AE16: 12 | AF16: 3 | AG16: - | AH16: 9 | AI16: 2 | AJ16: 11 | AK16: 3 | AL16: - | AM16: 4 | AN16: 3 | AO16: 12 | AP16: 4 | AQ16: - | AR16: 6 | AS16: 2 | AT16: 12 | AU16: 1 | AV16: - | AW16: 11 | AX16: 2 | AY16: 13 | AZ16: 1 | BA16: - | BB16: 11 | BC16: 1 | BD16: 12 | BE16: 2 | BF16: - | BG16: 11 | BH16: 2 | BI16: 13 | BJ16: 9 | BK16: - | BL16: 14 | BM16: 1 | BN16: 12 | BO16: 4 | BP16: - | BQ16: 11 | BR16: 2 | BS16: 13 | BT16: 7 | BU16: - | BV16: 12 | BW16: 1
P17: 11 | Q17: 4 | R17: - | S17: 2 | T17: 4 | U17: 13 | V17: 2 | W17: - | X17: 5 | Y17: 2 | Z17: 12 | AA17: 1 | AB17: - | AC17: 6 | AD17: 3 | AE17: 13 | AF17: 5 | AG17: - | AH17: 7 | AI17: 2 | AJ17: 12 | AK17: 2 | AL17: - | AM17: 5 | AN17: 3 | AO17: 13 | AP17: 2 | AQ17: - | AR17: 8 | AS17: 2 | AU17: 三節 | AX17: 3 | AZ17: 二節 | BC17: 2 | BD17: 13 | BE17: 14 | BF17: - | BG17: 12 | BH17: 2 | BI17: 14 | BJ17: 11 | BK17: - | BL17: 15 | BM17: 1 | BN17: 13 | BO17: 3 | BP17: - | BQ17: 12 | BR17: 2 | BS17: 14 | BT17: 9 | BU17: - | BV17: 14 | BW17: 1
P18: 12 | Q18: 1 | R18: - | S18: 3 | T18: 4 | U18: 14 | V18: 1 | W18: - | X18: 3 | Y18: 2 | AA18: 四節 | AD18: 4 | AE18: 14 | AF18: 6 | AG18: - | AH18: 1 | AI18: 2 | AJ18: 13 | AK18: 10 | AL18: - | AM18: 6 | AN18: 3 | AO18: 14 | AP18: 3 | AQ18: - | AR18: 10 | AS18: 2 | AT18: 13 | AU18: 4 | AV18: - | AW18: 5 | AX18: 3 | AY18: 14 | AZ18: 4 | BA18: - | BB18: 6 | BC18: 2 | BD18: 14 | BE18: 1 | BF18: - | BG18: 13 | BH18: 2 | BI18: 15 | BJ18: 1 | BK18: - | BL18: 13 | BM18: 1 | BN18: 14 | BO18: 2 | BP18: - | BQ18: 13 | BR18: 2 | BS18: 15 | BT18: 11 | BU18: - | BV18: 16 | BW18: 1
Q19: 五節 | T19: 5 | V19: 三節 | Y19: 3 | Z19: 13 | AA19: 8 | AB19: - | AC19: 2 | AD19: 4 | AE19: 15 | AF19: 4 | AG19: - | AH19: 8 | AI19: 2 | AJ19: 14 | AK19: 9 | AL19: - | AM19: 7 | AN19: 3 | AO19: 15 | AP19: 5 | AQ19: - | AR19: 11 | AS19: 2 | AT19: 14 | AU19: 3 | AV19: - | AW19: 6 | AX19: 3 | AY19: 15 | AZ19: 2 | BA19: - | BB19: 8 | BC19: 2 | BE19: 三節 | BH19: 3 | BJ19: 二節 | BM19: 2 | BN19: 15 | BO19: 16 | BP19: - | BQ19: 14 | BR19: 2 | BS19: 16 | BT19: 13 | BU19: - | BV19: 17 | BW19: 1
P20: 13 | Q20: 4 | R20: - | S20: 5 | T20: 5 | U20: 15 | V20: 6 | W20: - | X20: 7 | Y20: 3 | Z20: 14 | AA20: 7 | AB20: - | AC20: 3 | AD20: 4 | AE20: 16 | AF20: 2 | AG20: - | AH20: 9 | AI20: 2 | AJ20: 15 | AK20: 1 | AL20: - | AM20: 8 | AN20: 3 | AO20: 16 | AP20: 7 | AQ20: - | AR20: 9 | AS20: 2 | AT20: 15 | AU20: 2 | AV20: - | AW20: 7 | AX20: 3 | AY20: 16 | AZ20: 3 | BA20: - | BB20: 10 | BC20: 2 | BD20: 15 | BE20: 5 | BF20: - | BG20: 6 | BH20: 3 | BI20: 16 | BJ20: 4 | BK20: - | BL20: 6 | BM20: 2 | BN20: 16 | BO20: 1 | BP20: - | BQ20: 15 | BR20: 2 | BS20: 17 | BT20: 1 | BU20: - | BV20: 15 | BW20: 1
P21: 14 | Q21: 3 | R21: - | S21: 6 | T21: 5 | U21: 16 | V21: 4 | W21: - | X21: 5 | Y21: 3 | Z21: 15 | AA21: 6 | AB21: - | AC21: 4 | AD21: 4 | AE21: 17 | AF21: 3 | AG21: - | AH21: 7 | AI21: 2 | AK21: 四節 | AN21: 4 | AO21: 17 | AP21: 6 | AQ21: - | AR21: 1 | AS21: 2 | AT21: 16 | AU21: 12 | AV21: - | AW21: 8 | AX21: 3 | AY21: 17 | AZ21: 5 | BA21: - | BB21: 12 | BC21: 2 | BD21: 16 | BE21: 4 | BF21: - | BG21: 7 | BH21: 3 | BI21: 17 | BJ21: 2 | BK21: - | BL21: 8 | BM21: 2 | BO21: 三節 | BR21: 3 | BT21: 二節 | BW21: 2
P22: 15 | Q22: 1 | R22: - | S22: 2 | T22: 5 | U22: 17 | V22: 2 | W22: - | X22: 3 | Y22: 3 | Z22: 16 | AA22: 1 | AB22: - | AC22: 5 | AD22: 4 | AE22: 18 | AF22: 1 | AG22: - | AH22: 5 | AI22: 2 | AJ22: 16 | AK22: 2 | AL22: - | AM22: 3 | AN22: 4 | AO22: 18 | AP22: 4 | AQ22: - | AR22: 8 | AS22: 2 | AT22: 17 | AU22: 11 | AV22: - | AW22: 9 | AX22: 3 | AY22: 18 | AZ22: 7 | BA22: - | BB22: 13 | BC22: 2 | BD22: 17 | BE22: 3 | BF22: - | BG22: 8 | BH22: 3 | BI22: 18 | BJ22: 3 | BK22: - | BL22: 10 | BM22: 2 | BN22: 17 | BO22: 6 | BP22: - | BQ22: 7 | BR22: 3 | BS22: 18 | BT22: 4 | BU22: - | BV22: 6 | BW22: 2
U23: 18 | V23: 1 | W23: - | X23: 7 | Y23: 3 | AA23: 五節 | AD23: 5 | AF23: 三節 | AI23: 3 | AJ23: 17 | AK23: 10 | AL23: - | AM23: 4 | AN23: 4 | AO23: 19 | AP23: 2 | AQ23: - | AR23: 10 | AS23: 2 | AT23: 18 | AU23: 1 | AV23: - | AW23: 10 | AX23: 3 | AY23: 19 | AZ23: 9 | BA23: - | BB23: 11 | BC23: 2 | BD23: 18 | BE23: 2 | BF23: - | BG23: 9 | BH23: 3 | BI23: 19 | BJ23: 5 | BK23: - | BL23: 12 | BM23: 2 | BN23: 18 | BO23: 5 | BP23: - | BQ23: 8 | BR23: 3 | BS23: 19 | BT23: 2 | BU23: - | BV23: 8 | BW23: 2
U24: 19 | V24: 5 | W24: - | X24: 6 | Y24: 3 | Z24: 17 | AA24: 7 | AB24: - | AC24: 8 | AD24: 5 | AE24: 19 | AF24: 6 | AG24: - | AH24: 8 | AI24: 3 | AJ24: 18 | AK24: 9 | AL24: - | AM24: 5 | AN24: 4 | AO24: 20 | AP24: 3 | AQ24: - | AR24: 11 | AS24: 2 | AU24: 四節 | AX24: 4 | AY24: 20 | AZ24: 6 | BA24: - | BB24: 1 | BC24: 2 | BD24: 19 | BE24: 14 | BF24: - | BG24: 10 | BH24: 3 | BI24: 20 | BJ24: 7 | BK24: - | BL24: 14 | BM24: 2 | BN24: 19 | BO24: 4 | BP24: - | BQ24: 9 | BR24: 3 | BS24: 20 | BT24: 3 | BU24: - | BV24: 10 | BW24: 2
U25: 20 | V25: 3 | W25: - | X25: 4 | Y25: 3 | Z25: 18 | AA25: 6 | AB25: - | AC25: 2 | AD25: 5 | AE25: 20 | AF25: 4 | AG25: - | AH25: 9 | AI25: 3 | AJ25: 19 | AK25: 8 | AL25: - | AM25: 6 | AN25: 4 | AO25: 21 | AP25: 5 | AQ25: - | AR25: 9 | AS25: 2 | AT25: 19 | AU25: 3 | AV25: - | AW25: 4 | AX25: 4 | AY25: 21 | AZ25: 4 | BA25: - | BB25: 8 | BC25: 2 | BD25: 20 | BE25: 13 | BF25: - | BG25: 11 | BH25: 3 | BI25: 21 | BJ25: 9 | BK25: - | BL25: 15 | BM25: 2 | BN25: 20 | BO25: 3 | BP25: - | BQ25: 10 | BR25: 3 | BS25: 21 | BT25: 5 | BU25: - | BV25: 12 | BW25: 2
A26: ラウンドテーブル表 | U26: 21 | V26: 1 | W26: - | X26: 2 | Y26: 3 | Z26: 19 | AA26: 5 | AB26: - | AC26: 3 | AD26: 5 | AE26: 21 | AF26: 2 | AG26: - | AH26: 7 | AI26: 3 | AJ26: 20 | AK26: 1 | AL26: - | AM26: 7 | AN26: 4 | AO26: 22 | AP26: 1 | AQ26: - | AR26: 7 | AS26: 2 | AT26: 20 | AU26: 2 | AV26: - | AW26: 5 | AX26: 4 | AY26: 22 | AZ26: 2 | BA26: - | BB26: 10 | BC26: 2 | BD26: 21 | BE26: 1 | BF26: - | BG26: 12 | BH26: 3 | BI26: 22 | BJ26: 11 | BK26: - | BL26: 13 | BM26: 2 | BN26: 21 | BO26: 2 | BP26: - | BQ26: 11 | BR26: 3 | BS26: 22 | BT26: 7 | BU26: - | BV26: 14 | BW26: 2
B27: 人 | C27: 数 | Z27: 20 | AA27: 1 | AB27: - | AC27: 4 | AD27: 5 | AE27: 22 | AF27: 3 | AG27: - | AH27: 5 | AI27: 3 | AK27: 五節 | AN27: 5 | AP27: 三節 | AS27: 3 | AT27: 21 | AU27: 12 | AV27: - | AW27: 6 | AX27: 4 | AY27: 23 | AZ27: 3 | BA27: - | BB27: 12 | BC27: 2 | BE27: 四節 | BH27: 4 | BI27: 23 | BJ27: 6 | BK27: - | BL27: 1 | BM27: 2 | BN27: 22 | BO27: 16 | BP27: - | BQ27: 12 | BR27: 3 | BS27: 23 | BT27: 9 | BU27: - | BV27: 16 | BW27: 2
B28: 列セル数 | AA28: 六節 | AD28: 6 | AE28: 23 | AF28: 8 | AG28: - | AH28: 1 | AI28: 3 | AJ28: 21 | AK28: 10 | AL28: - | AM28: 2 | AN28: 5 | AO28: 23 | AP28: 6 | AQ28: - | AR28: 8 | AS28: 3 | AT28: 22 | AU28: 11 | AV28: - | AW28: 7 | AX28: 4 | AY28: 24 | AZ28: 5 | BA28: - | BB28: 13 | BC28: 2 | BD28: 22 | BE28: 4 | BF28: - | BG28: 5 | BH28: 4 | BI28: 24 | BJ28: 4 | BK28: - | BL28: 8 | BM28: 2 | BN28: 23 | BO28: 15 | BP28: - | BQ28: 13 | BR28: 3 | BS28: 24 | BT28: 11 | BU28: - | BV28: 17 | BW28: 2
B29: 節タイトル | Z29: 21 | AA29: 6 | AB29: - | AC29: 7 | AD29: 6 | AE29: 24 | AF29: 6 | AG29: - | AH29: 9 | AI29: 3 | AJ29: 22 | AK29: 9 | AL29: - | AM29: 3 | AN29: 5 | AO29: 24 | AP29: 4 | AQ29: - | AR29: 10 | AS29: 3 | AT29: 23 | AU29: 10 | AV29: - | AW29: 8 | AX29: 4 | AY29: 25 | AZ29: 7 | BA29: - | BB29: 11 | BC29: 2 | BD29: 23 | BE29: 3 | BF29: - | BG29: 6 | BH29: 4 | BI29: 25 | BJ29: 2 | BK29: - | BL29: 10 | BM29: 2 | BN29: 24 | BO29: 1 | BP29: - | BQ29: 14 | BR29: 3 | BS29: 25 | BT29: 13 | BU29: - | BV29: 15 | BW29: 2
A30: 試合数 | B30: 左Ｎｏ | C30: - | D30: 右Ｎｏ | E30: 節 数 | Z30: 22 | AA30: 5 | AB30: - | AC30: 8 | AD30: 6 | AE30: 25 | AF30: 4 | AG30: - | AH30: 7 | AI30: 3 | AJ30: 23 | AK30: 8 | AL30: - | AM30: 4 | AN30: 5 | AO30: 25 | AP30: 2 | AQ30: - | AR30: 11 | AS30: 3 | AT30: 24 | AU30: 1 | AV30: - | AW30: 9 | AX30: 4 | AY30: 26 | AZ30: 1 | BA30: - | BB30: 9 | BC30: 2 | BD30: 24 | BE30: 2 | BF30: - | BG30: 7 | BH30: 4 | BI30: 26 | BJ30: 3 | BK30: - | BL30: 12 | BM30: 2 | BO30: 四節 | BR30: 4 | BS30: 26 | BT30: 6 | BU30: - | BV30: 1 | BW30: 2
Z31: 23 | AA31: 4 | AB31: - | AC31: 2 | AD31: 6 | AE31: 26 | AF31: 2 | AG31: - | AH31: 5 | AI31: 3 | AJ31: 24 | AK31: 7 | AL31: - | AM31: 5 | AN31: 5 | AO31: 26 | AP31: 3 | AQ31: - | AR31: 9 | AS31: 3 | AU31: 五節 | AX31: 5 | AZ31: 三節 | BC31: 3 | BD31: 25 | BE31: 14 | BF31: - | BG31: 8 | BH31: 4 | BI31: 27 | BJ31: 5 | BK31: - | BL31: 14 | BM31: 2 | BN31: 25 | BO31: 5 | BP31: - | BQ31: 6 | BR31: 4 | BS31: 27 | BT31: 4 | BU31: - | BV31: 8 | BW31: 2
Z32: 24 | AA32: 1 | AB32: - | AC32: 3 | AD32: 6 | AE32: 27 | AF32: 1 | AG32: - | AH32: 3 | AI32: 3 | AJ32: 25 | AK32: 1 | AL32: - | AM32: 6 | AN32: 5 | AO32: 27 | AP32: 5 | AQ32: - | AR32: 7 | AS32: 3 | AT32: 25 | AU32: 2 | AV32: - | AW32: 3 | AX32: 5 | AY32: 27 | AZ32: 6 | BA32: - | BB32: 8 | BC32: 3 | BD32: 26 | BE32: 13 | BF32: - | BG32: 9 | BH32: 4 | BI32: 28 | BJ32: 7 | BK32: - | BL32: 15 | BM32: 2 | BN32: 26 | BO32: 4 | BP32: - | BQ32: 7 | BR32: 4 | BS32: 28 | BT32: 2 | BU32: - | BV32: 10 | BW32: 2
AA33: 七節 | AD33: 7 | AF33: 四節 | AI33: 4 | AK33: 六節 | AN33: 6 | AO33: 28 | AP33: 8 | AQ33: - | AR33: 1 | AS33: 3 | AT33: 26 | AU33: 12 | AV33: - | AW33: 4 | AX33: 5 | AY33: 28 | AZ33: 4 | BA33: - | BB33: 10 | BC33: 3 | BD33: 27 | BE33: 12 | BF33: - | BG33: 10 | BH33: 4 | BI33: 29 | BJ33: 9 | BK33: - | BL33: 13 | BM33: 2 | BN33: 27 | BO33: 3 | BP33: - | BQ33: 8 | BR33: 4 | BS33: 29 | BT33: 3 | BU33: - | BV33: 12 | BW33: 2
Z34: 25 | AA34: 5 | AB34: - | AC34: 6 | AD34: 7 | AE34: 28 | AF34: 8 | AG34: - | AH34: 9 | AI34: 4 | AJ34: 26 | AK34: 9 | AL34: - | AM34: 10 | AN34: 6 | AO34: 29 | AP34: 6 | AQ34: - | AR34: 10 | AS34: 3 | AT34: 27 | AU34: 11 | AV34: - | AW34: 5 | AX34: 5 | AY34: 29 | AZ34: 2 | BA34: - | BB34: 12 | BC34: 3 | BD34: 28 | BE34: 1 | BF34: - | BG34: 11 | BH34: 4 | BI34: 30 | BJ34: 1 | BK34: - | BL34: 11 | BM34: 2 | BN34: 28 | BO34: 2 | BP34: - | BQ34: 9 | BR34: 4 | BS34: 30 | BT34: 5 | BU34: - | BV34: 14 | BW34: 2
A35: 出場人員＊（出場人員－１）／２＝総試合数 | Z35: 26 | AA35: 4 | AB35: - | AC35: 7 | AD35: 7 | AE35: 29 | AF35: 6 | AG35: - | AH35: 7 | AI35: 4 | AJ35: 27 | AK35: 8 | AL35: - | AM35: 2 | AN35: 6 | AO35: 30 | AP35: 4 | AQ35: - | AR35: 11 | AS35: 3 | AT35: 28 | AU35: 10 | AV35: - | AW35: 6 | AX35: 5 | AY35: 30 | AZ35: 3 | BA35: - | BB35: 13 | BC35: 3 | BE35: 五節 | BH35: 5 | BJ35: 三節 | BM35: 3 | BN35: 29 | BO35: 16 | BP35: - | BQ35: 10 | BR35: 4 | BS35: 31 | BT35: 7 | BU35: - | BV35: 16 | BW35: 2
A36: 奇数の場合：節を抜く毎に２ゲームずつ減る | Z36: 27 | AA36: 3 | AB36: - | AC36: 8 | AD36: 7 | AE36: 30 | AF36: 4 | AG36: - | AH36: 5 | AI36: 4 | AJ36: 28 | AK36: 7 | AL36: - | AM36: 3 | AN36: 6 | AO36: 31 | AP36: 2 | AQ36: - | AR36: 9 | AS36: 3 | AT36: 29 | AU36: 9 | AV36: - | AW36: 7 | AX36: 5 | AY36: 31 | AZ36: 5 | BA36: - | BB36: 11 | BC36: 3 | BD36: 29 | BE36: 3 | BF36: - | BG36: 4 | BH36: 5 | BI36: 31 | BJ36: 6 | BK36: - | BL36: 8 | BM36: 3 | BN36: 30 | BO36: 15 | BP36: - | BQ36: 11 | BR36: 4 | BS36: 32 | BT36: 9 | BU36: - | BV36: 17 | BW36: 2
A37: 偶数の場合：節を抜く毎に１ゲームずつ減る | Z37: 28 | AA37: 1 | AB37: - | AC37: 2 | AD37: 7 | AE37: 31 | AF37: 2 | AG37: - | AH37: 3 | AI37: 4 | AJ37: 29 | AK37: 6 | AL37: - | AM37: 4 | AN37: 6 | AO37: 32 | AP37: 3 | AQ37: - | AR37: 7 | AS37: 3 | AT37: 30 | AU37: 1 | AV37: - | AW37: 8 | AX37: 5 | AY37: 32 | AZ37: 7 | BA37: - | BB37: 9 | BC37: 3 | BD37: 30 | BE37: 2 | BF37: - | BG37: 5 | BH37: 5 | BI37: 32 | BJ37: 4 | BK37: - | BL37: 10 | BM37: 3 | BN37: 31 | BO37: 14 | BP37: - | BQ37: 12 | BR37: 4 | BS37: 33 | BT37: 11 | BU37: - | BV37: 15 | BW37: 2
AE38: 32 | AF38: 9 | AG38: - | AH38: 1 | AI38: 4 | AJ38: 30 | AK38: 1 | AL38: - | AM38: 5 | AN38: 6 | AO38: 33 | AP38: 1 | AQ38: - | AR38: 5 | AS38: 3 | AU38: 六節 | AX38: 6 | AY38: 33 | AZ38: 8 | BA38: - | BB38: 1 | BC38: 3 | BD38: 31 | BE38: 14 | BF38: - | BG38: 6 | BH38: 5 | BI38: 33 | BJ38: 2 | BK38: - | BL38: 12 | BM38: 3 | BN38: 32 | BO38: 1 | BP38: - | BQ38: 13 | BR38: 4 | BS38: 34 | BT38: 1 | BU38: - | BV38: 13 | BW38: 2
A39: 例）出場人員が７人の場合（奇数人） | AE39: 33 | AF39: 7 | AG39: - | AH39: 8 | AI39: 4 | AK39: 七節 | AN39: 7 | AP39: 四節 | AS39: 4 | AT39: 31 | AU39: 12 | AV39: - | AW39: 2 | AX39: 6 | AY39: 34 | AZ39: 6 | BA39: - | BB39: 10 | BC39: 3 | BD39: 32 | BE39: 13 | BF39: - | BG39: 7 | BH39: 5 | BI39: 34 | BJ39: 3 | BK39: - | BL39: 14 | BM39: 3 | BO39: 五節 | BR39: 5 | BT39: 三節 | BW39: 3
A40: ７人＊（７人－１人）／２＝全２１試合 | AE40: 34 | AF40: 5 | AG40: - | AH40: 6 | AI40: 4 | AJ40: 31 | AK40: 8 | AL40: - | AM40: 9 | AN40: 7 | AO40: 34 | AP40: 8 | AQ40: - | AR40: 10 | AS40: 4 | AT40: 32 | AU40: 11 | AV40: - | AW40: 3 | AX40: 6 | AY40: 35 | AZ40: 4 | BA40: - | BB40: 12 | BC40: 3 | BD40: 33 | BE40: 12 | BF40: - | BG40: 8 | BH40: 5 | BI40: 35 | BJ40: 5 | BK40: - | BL40: 15 | BM40: 3 | BN40: 33 | BO40: 4 | BP40: - | BQ40: 5 | BR40: 5 | BS40: 35 | BT40: 6 | BU40: - | BV40: 8 | BW40: 3
A41: ７人で三節を１つ抜くと全節一人に対して６ゲームですが、４ゲームとなる | AE41: 35 | AF41: 3 | AG41: - | AH41: 4 | AI41: 4 | AJ41: 32 | AK41: 7 | AL41: - | AM41: 10 | AN41: 7 | AO41: 35 | AP41: 6 | AQ41: - | AR41: 11 | AS41: 4 | AT41: 33 | AU41: 10 | AV41: - | AW41: 4 | AX41: 6 | AY41: 36 | AZ41: 2 | BA41: - | BB41: 13 | BC41: 3 | BD41: 34 | BE41: 11 | BF41: - | BG41: 9 | BH41: 5 | BI41: 36 | BJ41: 7 | BK41: - | BL41: 13 | BM41: 3 | BN41: 34 | BO41: 3 | BP41: - | BQ41: 6 | BR41: 5 | BS41: 36 | BT41: 4 | BU41: - | BV41: 10 | BW41: 3
A42: 例）出場人員が８人の場合（偶数人） | AE42: 36 | AF42: 1 | AG42: - | AH42: 2 | AI42: 4 | AJ42: 33 | AK42: 6 | AL42: - | AM42: 2 | AN42: 7 | AO42: 36 | AP42: 4 | AQ42: - | AR42: 9 | AS42: 4 | AT42: 34 | AU42: 9 | AV42: - | AW42: 5 | AX42: 6 | AY42: 37 | AZ42: 3 | BA42: - | BB42: 11 | BC42: 3 | BD42: 35 | BE42: 1 | BF42: - | BG42: 10 | BH42: 5 | BI42: 37 | BJ42: 9 | BK42: - | BL42: 11 | BM42: 3 | BN42: 35 | BO42: 2 | BP42: - | BQ42: 7 | BR42: 5 | BS42: 37 | BT42: 2 | BU42: - | BV42: 12 | BW42: 3
A43: ８人＊（８人－１人）／２＝全２８試合 | AJ43: 34 | AK43: 5 | AL43: - | AM43: 3 | AN43: 7 | AO43: 37 | AP43: 2 | AQ43: - | AR43: 7 | AS43: 4 | AT43: 35 | AU43: 8 | AV43: - | AW43: 6 | AX43: 6 | AY43: 38 | AZ43: 5 | BA43: - | BB43: 9 | BC43: 3 | BE43: 六節 | BH43: 6 | BI43: 38 | BJ43: 8 | BK43: - | BL43: 1 | BM43: 3 | BN43: 36 | BO43: 16 | BP43: - | BQ43: 8 | BR43: 5 | BS43: 38 | BT43: 3 | BU43: - | BV43: 14 | BW43: 3
A44: ８人で六・七節を２つ抜くと全節一人に対して７ゲームですが、５ゲームとなる | AJ44: 35 | AK44: 1 | AL44: - | AM44: 4 | AN44: 7 | AO44: 38 | AP44: 3 | AQ44: - | AR44: 5 | AS44: 4 | AT44: 36 | AU44: 1 | AV44: - | AW44: 7 | AX44: 6 | AY44: 39 | AZ44: 1 | BA44: - | BB44: 7 | BC44: 3 | BD44: 36 | BE44: 2 | BF44: - | BG44: 3 | BH44: 6 | BI44: 39 | BJ44: 6 | BK44: - | BL44: 10 | BM44: 3 | BN44: 37 | BO44: 15 | BP44: - | BQ44: 9 | BR44: 5 | BS44: 39 | BT44: 5 | BU44: - | BV44: 16 | BW44: 3
AK45: 八節 | AN45: 8 | AO45: 39 | AP45: 10 | AQ45: - | AR45: 1 | AS45: 4 | AU45: 七節 | AX45: 7 | AZ45: 四節 | BC45: 4 | BD45: 37 | BE45: 14 | BF45: - | BG45: 4 | BH45: 6 | BI45: 40 | BJ45: 4 | BK45: - | BL45: 12 | BM45: 3 | BN45: 38 | BO45: 14 | BP45: - | BQ45: 10 | BR45: 5 | BS45: 40 | BT45: 7 | BU45: - | BV45: 17 | BW45: 3
AJ46: 36 | AK46: 7 | AL46: - | AM46: 8 | AN46: 8 | AO46: 40 | AP46: 8 | AQ46: - | AR46: 11 | AS46: 4 | AT46: 37 | AU46: 11 | AV46: - | AW46: 12 | AX46: 7 | AY46: 40 | AZ46: 8 | BA46: - | BB46: 10 | BC46: 4 | BD46: 38 | BE46: 13 | BF46: - | BG46: 5 | BH46: 6 | BI46: 41 | BJ46: 2 | BK46: - | BL46: 14 | BM46: 3 | BN46: 39 | BO46: 13 | BP46: - | BQ46: 11 | BR46: 5 | BS46: 41 | BT46: 9 | BU46: - | BV46: 15 | BW46: 3
AJ47: 37 | AK47: 6 | AL47: - | AM47: 9 | AN47: 8 | AO47: 41 | AP47: 6 | AQ47: - | AR47: 9 | AS47: 4 | AT47: 38 | AU47: 10 | AV47: - | AW47: 2 | AX47: 7 | AY47: 41 | AZ47: 6 | BA47: - | BB47: 12 | BC47: 4 | BD47: 39 | BE47: 12 | BF47: - | BG47: 6 | BH47: 6 | BI47: 42 | BJ47: 3 | BK47: - | BL47: 15 | BM47: 3 | BN47: 40 | BO47: 1 | BP47: - | BQ47: 12 | BR47: 5 | BS47: 42 | BT47: 11 | BU47: - | BV47: 13 | BW47: 3
AJ48: 38 | AK48: 5 | AL48: - | AM48: 10 | AN48: 8 | AO48: 42 | AP48: 4 | AQ48: - | AR48: 7 | AS48: 4 | AT48: 39 | AU48: 9 | AV48: - | AW48: 3 | AX48: 7 | AY48: 42 | AZ48: 4 | BA48: - | BB48: 13 | BC48: 4 | BD48: 40 | BE48: 11 | BF48: - | BG48: 7 | BH48: 6 | BI48: 43 | BJ48: 5 | BK48: - | BL48: 13 | BM48: 3 | BO48: 六節 | BR48: 6 | BS48: 43 | BT48: 8 | BU48: - | BV48: 1 | BW48: 3
AJ49: 39 | AK49: 4 | AL49: - | AM49: 2 | AN49: 8 | AO49: 43 | AP49: 2 | AQ49: - | AR49: 5 | AS49: 4 | AT49: 40 | AU49: 8 | AV49: - | AW49: 4 | AX49: 7 | AY49: 43 | AZ49: 2 | BA49: - | BB49: 11 | BC49: 4 | BD49: 41 | BE49: 10 | BF49: - | BG49: 8 | BH49: 6 | BI49: 44 | BJ49: 7 | BK49: - | BL49: 11 | BM49: 3 | BN49: 41 | BO49: 3 | BP49: - | BQ49: 4 | BR49: 6 | BS49: 44 | BT49: 6 | BU49: - | BV49: 10 | BW49: 3
AJ50: 40 | AK50: 1 | AL50: - | AM50: 3 | AN50: 8 | AO50: 44 | AP50: 1 | AQ50: - | AR50: 3 | AS50: 4 | AT50: 41 | AU50: 7 | AV50: - | AW50: 5 | AX50: 7 | AY50: 44 | AZ50: 3 | BA50: - | BB50: 9 | BC50: 4 | BD50: 42 | BE50: 1 | BF50: - | BG50: 9 | BH50: 6 | BI50: 45 | BJ50: 1 | BK50: - | BL50: 9 | BM50: 3 | BN50: 42 | BO50: 2 | BP50: - | BQ50: 5 | BR50: 6 | BS50: 45 | BT50: 4 | BU50: - | BV50: 12 | BW50: 3
AK51: 九節 | AN51: 9 | AP51: 五節 | AS51: 5 | AT51: 42 | AU51: 1 | AV51: - | AW51: 6 | AX51: 7 | AY51: 45 | AZ51: 5 | BA51: - | BB51: 7 | BC51: 4 | BE51: 七節 | BH51: 7 | BJ51: 四節 | BM51: 4 | BN51: 43 | BO51: 16 | BP51: - | BQ51: 6 | BR51: 6 | BS51: 46 | BT51: 2 | BU51: - | BV51: 14 | BW51: 3
AJ52: 41 | AK52: 6 | AL52: - | AM52: 7 | AN52: 9 | AO52: 45 | AP52: 10 | AQ52: - | AR52: 11 | AS52: 5 | AU52: 八節 | AX52: 8 | AY52: 46 | AZ52: 10 | BA52: - | BB52: 1 | BC52: 4 | BD52: 43 | BE52: 14 | BF52: - | BG52: 2 | BH52: 7 | BI52: 46 | BJ52: 8 | BK52: - | BL52: 10 | BM52: 4 | BN52: 44 | BO52: 15 | BP52: - | BQ52: 7 | BR52: 6 | BS52: 47 | BT52: 3 | BU52: - | BV52: 16 | BW52: 3
AJ53: 42 | AK53: 5 | AL53: - | AM53: 8 | AN53: 9 | AO53: 46 | AP53: 8 | AQ53: - | AR53: 9 | AS53: 5 | AT53: 43 | AU53: 10 | AV53: - | AW53: 11 | AX53: 8 | AY53: 47 | AZ53: 8 | BA53: - | BB53: 12 | BC53: 4 | BD53: 44 | BE53: 13 | BF53: - | BG53: 3 | BH53: 7 | BI53: 47 | BJ53: 6 | BK53: - | BL53: 12 | BM53: 4 | BN53: 45 | BO53: 14 | BP53: - | BQ53: 8 | BR53: 6 | BS53: 48 | BT53: 5 | BU53: - | BV53: 17 | BW53: 3
AJ54: 43 | AK54: 4 | AL54: - | AM54: 9 | AN54: 9 | AO54: 47 | AP54: 6 | AQ54: - | AR54: 7 | AS54: 5 | AT54: 44 | AU54: 9 | AV54: - | AW54: 12 | AX54: 8 | AY54: 48 | AZ54: 6 | BA54: - | BB54: 13 | BC54: 4 | BD54: 45 | BE54: 12 | BF54: - | BG54: 4 | BH54: 7 | BI54: 48 | BJ54: 4 | BK54: - | BL54: 14 | BM54: 4 | BN54: 46 | BO54: 13 | BP54: - | BQ54: 9 | BR54: 6 | BS54: 49 | BT54: 7 | BU54: - | BV54: 15 | BW54: 3
AJ55: 44 | AK55: 3 | AL55: - | AM55: 10 | AN55: 9 | AO55: 48 | AP55: 4 | AQ55: - | AR55: 5 | AS55: 5 | AT55: 45 | AU55: 8 | AV55: - | AW55: 2 | AX55: 8 | AY55: 49 | AZ55: 4 | BA55: - | BB55: 11 | BC55: 4 | BD55: 46 | BE55: 11 | BF55: - | BG55: 5 | BH55: 7 | BI55: 49 | BJ55: 2 | BK55: - | BL55: 15 | BM55: 4 | BN55: 47 | BO55: 12 | BP55: - | BQ55: 10 | BR55: 6 | BS55: 50 | BT55: 9 | BU55: - | BV55: 13 | BW55: 3
AJ56: 45 | AK56: 1 | AL56: - | AM56: 2 | AN56: 9 | AO56: 49 | AP56: 2 | AQ56: - | AR56: 3 | AS56: 5 | AT56: 46 | AU56: 7 | AV56: - | AW56: 3 | AX56: 8 | AY56: 50 | AZ56: 2 | BA56: - | BB56: 9 | BC56: 4 | BD56: 47 | BE56: 10 | BF56: - | BG56: 6 | BH56: 7 | BI56: 50 | BJ56: 3 | BK56: - | BL56: 13 | BM56: 4 | BN56: 48 | BO56: 1 | BP56: - | BQ56: 11 | BR56: 6 | BS56: 51 | BT56: 1 | BU56: - | BV56: 11 | BW56: 3
AO57: 50 | AP57: 11 | AQ57: - | AR57: 1 | AS57: 5 | AT57: 47 | AU57: 6 | AV57: - | AW57: 4 | AX57: 8 | AY57: 51 | AZ57: 3 | BA57: - | BB57: 7 | BC57: 4 | BD57: 48 | BE57: 9 | BF57: - | BG57: 7 | BH57: 7 | BI57: 51 | BJ57: 5 | BK57: - | BL57: 11 | BM57: 4 | BO57: 七節 | BR57: 7 | BT57: 四節 | BW57: 4
AO58: 51 | AP58: 9 | AQ58: - | AR58: 10 | AS58: 5 | AT58: 48 | AU58: 1 | AV58: - | AW58: 5 | AX58: 8 | AY58: 52 | AZ58: 1 | BA58: - | BB58: 5 | BC58: 4 | BD58: 49 | BE58: 1 | BF58: - | BG58: 8 | BH58: 7 | BI58: 52 | BJ58: 7 | BK58: - | BL58: 9 | BM58: 4 | BN58: 49 | BO58: 2 | BP58: - | BQ58: 3 | BR58: 7 | BS58: 52 | BT58: 8 | BU58: - | BV58: 10 | BW58: 4
AO59: 52 | AP59: 7 | AQ59: - | AR59: 8 | AS59: 5 | AU59: 九節 | AX59: 9 | AZ59: 五節 | BC59: 5 | BE59: 八節 | BH59: 8 | BI59: 53 | BJ59: 10 | BK59: - | BL59: 1 | BM59: 4 | BN59: 50 | BO59: 16 | BP59: - | BQ59: 4 | BR59: 7 | BS59: 53 | BT59: 6 | BU59: - | BV59: 12 | BW59: 4
AO60: 53 | AP60: 5 | AQ60: - | AR60: 6 | AS60: 5 | AT60: 49 | AU60: 9 | AV60: - | AW60: 10 | AX60: 9 | AY60: 53 | AZ60: 10 | BA60: - | BB60: 12 | BC60: 5 | BD60: 50 | BE60: 13 | BF60: - | BG60: 14 | BH60: 8 | BI60: 54 | BJ60: 8 | BK60: - | BL60: 12 | BM60: 4 | BN60: 51 | BO60: 15 | BP60: - | BQ60: 5 | BR60: 7 | BS60: 54 | BT60: 4 | BU60: - | BV60: 14 | BW60: 4
AO61: 54 | AP61: 3 | AQ61: - | AR61: 4 | AS61: 5 | AT61: 50 | AU61: 8 | AV61: - | AW61: 11 | AX61: 9 | AY61: 54 | AZ61: 8 | BA61: - | BB61: 13 | BC61: 5 | BD61: 51 | BE61: 12 | BF61: - | BG61: 2 | BH61: 8 | BI61: 55 | BJ61: 6 | BK61: - | BL61: 14 | BM61: 4 | BN61: 52 | BO61: 14 | BP61: - | BQ61: 6 | BR61: 7 | BS61: 55 | BT61: 2 | BU61: - | BV61: 16 | BW61: 4
AO62: 55 | AP62: 1 | AQ62: - | AR62: 2 | AS62: 5 | AT62: 51 | AU62: 7 | AV62: - | AW62: 12 | AX62: 9 | AY62: 55 | AZ62: 6 | BA62: - | BB62: 11 | BC62: 5 | BD62: 52 | BE62: 11 | BF62: - | BG62: 3 | BH62: 8 | BI62: 56 | BJ62: 4 | BK62: - | BL62: 15 | BM62: 4 | BN62: 53 | BO62: 13 | BP62: - | BQ62: 7 | BR62: 7 | BS62: 56 | BT62: 3 | BU62: - | BV62: 17 | BW62: 4
AT63: 52 | AU63: 6 | AV63: - | AW63: 2 | AX63: 9 | AY63: 56 | AZ63: 4 | BA63: - | BB63: 9 | BC63: 5 | BD63: 53 | BE63: 10 | BF63: - | BG63: 4 | BH63: 8 | BI63: 57 | BJ63: 2 | BK63: - | BL63: 13 | BM63: 4 | BN63: 54 | BO63: 12 | BP63: - | BQ63: 8 | BR63: 7 | BS63: 57 | BT63: 5 | BU63: - | BV63: 15 | BW63: 4
AT64: 53 | AU64: 5 | AV64: - | AW64: 3 | AX64: 9 | AY64: 57 | AZ64: 2 | BA64: - | BB64: 7 | BC64: 5 | BD64: 54 | BE64: 9 | BF64: - | BG64: 5 | BH64: 8 | BI64: 58 | BJ64: 3 | BK64: - | BL64: 11 | BM64: 4 | BN64: 55 | BO64: 11 | BP64: - | BQ64: 9 | BR64: 7 | BS64: 58 | BT64: 7 | BU64: - | BV64: 13 | BW64: 4
AT65: 54 | AU65: 1 | AV65: - | AW65: 4 | AX65: 9 | AY65: 58 | AZ65: 3 | BA65: - | BB65: 5 | BC65: 5 | BD65: 55 | BE65: 8 | BF65: - | BG65: 6 | BH65: 8 | BI65: 59 | BJ65: 5 | BK65: - | BL65: 9 | BM65: 4 | BN65: 56 | BO65: 1 | BP65: - | BQ65: 10 | BR65: 7 | BS65: 59 | BT65: 9 | BU65: - | BV65: 11 | BW65: 4
AU66: 十節 | AX66: 10 | AY66: 59 | AZ66: 12 | BA66: - | BB66: 1 | BC66: 5 | BD66: 56 | BE66: 1 | BF66: - | BG66: 7 | BH66: 8 | BI66: 60 | BJ66: 1 | BK66: - | BL66: 7 | BM66: 4 | BO66: 八節 | BR66: 8 | BS66: 60 | BT66: 10 | BU66: - | BV66: 1 | BW66: 4
AT67: 55 | AU67: 8 | AV67: - | AW67: 9 | AX67: 10 | AY67: 60 | AZ67: 10 | BA67: - | BB67: 13 | BC67: 5 | BE67: 九節 | BH67: 9 | BJ67: 五節 | BM67: 5 | BN67: 57 | BO67: 16 | BP67: - | BQ67: 2 | BR67: 8 | BS67: 61 | BT67: 8 | BU67: - | BV67: 12 | BW67: 4
AT68: 56 | AU68: 7 | AV68: - | AW68: 10 | AX68: 10 | AY68: 61 | AZ68: 8 | BA68: - | BB68: 11 | BC68: 5 | BD68: 57 | BE68: 12 | BF68: - | BG68: 13 | BH68: 9 | BI68: 61 | BJ68: 10 | BK68: - | BL68: 12 | BM68: 5 | BN68: 58 | BO68: 15 | BP68: - | BQ68: 3 | BR68: 8 | BS68: 62 | BT68: 6 | BU68: - | BV68: 14 | BW68: 4
AT69: 57 | AU69: 6 | AV69: - | AW69: 11 | AX69: 10 | AY69: 62 | AZ69: 6 | BA69: - | BB69: 9 | BC69: 5 | BD69: 58 | BE69: 11 | BF69: - | BG69: 14 | BH69: 9 | BI69: 62 | BJ69: 8 | BK69: - | BL69: 14 | BM69: 5 | BN69: 59 | BO69: 14 | BP69: - | BQ69: 4 | BR69: 8 | BS69: 63 | BT69: 4 | BU69: - | BV69: 16 | BW69: 4
AT70: 58 | AU70: 5 | AV70: - | AW70: 12 | AX70: 10 | AY70: 63 | AZ70: 4 | BA70: - | BB70: 7 | BC70: 5 | BD70: 59 | BE70: 10 | BF70: - | BG70: 2 | BH70: 9 | BI70: 63 | BJ70: 6 | BK70: - | BL70: 15 | BM70: 5 | BN70: 60 | BO70: 13 | BP70: - | BQ70: 5 | BR70: 8 | BS70: 64 | BT70: 2 | BU70: - | BV70: 17 | BW70: 4
AT71: 59 | AU71: 4 | AV71: - | AW71: 2 | AX71: 10 | AY71: 64 | AZ71: 2 | BA71: - | BB71: 5 | BC71: 5 | BD71: 60 | BE71: 9 | BF71: - | BG71: 3 | BH71: 9 | BI71: 64 | BJ71: 4 | BK71: - | BL71: 13 | BM71: 5 | BN71: 61 | BO71: 12 | BP71: - | BQ71: 6 | BR71: 8 | BS71: 65 | BT71: 3 | BU71: - | BV71: 15 | BW71: 4
AT72: 60 | AU72: 1 | AV72: - | AW72: 3 | AX72: 10 | AY72: 65 | AZ72: 1 | BA72: - | BB72: 3 | BC72: 5 | BD72: 61 | BE72: 8 | BF72: - | BG72: 4 | BH72: 9 | BI72: 65 | BJ72: 2 | BK72: - | BL72: 11 | BM72: 5 | BN72: 62 | BO72: 11 | BP72: - | BQ72: 7 | BR72: 8 | BS72: 66 | BT72: 5 | BU72: - | BV72: 13 | BW72: 4
AU73: 十一節 | AX73: 11 | AZ73: 六節 | BC73: 6 | BD73: 62 | BE73: 7 | BF73: - | BG73: 5 | BH73: 9 | BI73: 66 | BJ73: 3 | BK73: - | BL73: 9 | BM73: 5 | BN73: 63 | BO73: 10 | BP73: - | BQ73: 8 | BR73: 8 | BS73: 67 | BT73: 7 | BU73: - | BV73: 11 | BW73: 4
AT74: 61 | AU74: 7 | AV74: - | AW74: 8 | AX74: 11 | AY74: 66 | AZ74: 12 | BA74: - | BB74: 13 | BC74: 6 | BD74: 63 | BE74: 1 | BF74: - | BG74: 6 | BH74: 9 | BI74: 67 | BJ74: 5 | BK74: - | BL74: 7 | BM74: 5 | BN74: 64 | BO74: 1 | BP74: - | BQ74: 9 | BR74: 8 | BS74: 68 | BT74: 1 | BU74: - | BV74: 9 | BW74: 4
AT75: 62 | AU75: 6 | AV75: - | AW75: 9 | AX75: 11 | AY75: 67 | AZ75: 10 | BA75: - | BB75: 11 | BC75: 6 | BE75: 十節 | BH75: 10 | BI75: 68 | BJ75: 12 | BK75: - | BL75: 1 | BM75: 5 | BO75: 九節 | BR75: 9 | BT75: 五節 | BW75: 5
AT76: 63 | AU76: 5 | AV76: - | AW76: 10 | AX76: 11 | AY76: 68 | AZ76: 8 | BA76: - | BB76: 9 | BC76: 6 | BD76: 64 | BE76: 11 | BF76: - | BG76: 12 | BH76: 10 | BI76: 69 | BJ76: 10 | BK76: - | BL76: 14 | BM76: 5 | BN76: 65 | BO76: 15 | BP76: - | BQ76: 16 | BR76: 9 | BS76: 69 | BT76: 10 | BU76: - | BV76: 12 | BW76: 5
AT77: 64 | AU77: 4 | AV77: - | AW77: 11 | AX77: 11 | AY77: 69 | AZ77: 6 | BA77: - | BB77: 7 | BC77: 6 | BD77: 65 | BE77: 10 | BF77: - | BG77: 13 | BH77: 10 | BI77: 70 | BJ77: 8 | BK77: - | BL77: 15 | BM77: 5 | BN77: 66 | BO77: 14 | BP77: - | BQ77: 2 | BR77: 9 | BS77: 70 | BT77: 8 | BU77: - | BV77: 14 | BW77: 5
AT78: 65 | AU78: 3 | AV78: - | AW78: 12 | AX78: 11 | AY78: 70 | AZ78: 4 | BA78: - | BB78: 5 | BC78: 6 | BD78: 66 | BE78: 9 | BF78: - | BG78: 14 | BH78: 10 | BI78: 71 | BJ78: 6 | BK78: - | BL78: 13 | BM78: 5 | BN78: 67 | BO78: 13 | BP78: - | BQ78: 3 | BR78: 9 | BS78: 71 | BT78: 6 | BU78: - | BV78: 16 | BW78: 5
AT79: 66 | AU79: 1 | AV79: - | AW79: 2 | AX79: 11 | AY79: 71 | AZ79: 2 | BA79: - | BB79: 3 | BC79: 6 | BD79: 67 | BE79: 8 | BF79: - | BG79: 2 | BH79: 10 | BI79: 72 | BJ79: 4 | BK79: - | BL79: 11 | BM79: 5 | BN79: 68 | BO79: 12 | BP79: - | BQ79: 4 | BR79: 9 | BS79: 72 | BT79: 4 | BU79: - | BV79: 17 | BW79: 5
AY80: 72 | AZ80: 13 | BA80: - | BB80: 1 | BC80: 6 | BD80: 68 | BE80: 7 | BF80: - | BG80: 3 | BH80: 10 | BI80: 73 | BJ80: 2 | BK80: - | BL80: 9 | BM80: 5 | BN80: 69 | BO80: 11 | BP80: - | BQ80: 5 | BR80: 9 | BS80: 73 | BT80: 2 | BU80: - | BV80: 15 | BW80: 5
AY81: 73 | AZ81: 11 | BA81: - | BB81: 12 | BC81: 6 | BD81: 69 | BE81: 6 | BF81: - | BG81: 4 | BH81: 10 | BI81: 74 | BJ81: 3 | BK81: - | BL81: 7 | BM81: 5 | BN81: 70 | BO81: 10 | BP81: - | BQ81: 6 | BR81: 9 | BS81: 74 | BT81: 3 | BU81: - | BV81: 13 | BW81: 5
AY82: 74 | AZ82: 9 | BA82: - | BB82: 10 | BC82: 6 | BD82: 70 | BE82: 1 | BF82: - | BG82: 5 | BH82: 10 | BI82: 75 | BJ82: 1 | BK82: - | BL82: 5 | BM82: 5 | BN82: 71 | BO82: 9 | BP82: - | BQ82: 7 | BR82: 9 | BS82: 75 | BT82: 5 | BU82: - | BV82: 11 | BW82: 5
AY83: 75 | AZ83: 7 | BA83: - | BB83: 8 | BC83: 6 | BE83: 十一節 | BH83: 11 | BJ83: 六節 | BM83: 6 | BN83: 72 | BO83: 1 | BP83: - | BQ83: 8 | BR83: 9 | BS83: 76 | BT83: 7 | BU83: - | BV83: 9 | BW83: 5
AY84: 76 | AZ84: 5 | BA84: - | BB84: 6 | BC84: 6 | BD84: 71 | BE84: 10 | BF84: - | BG84: 11 | BH84: 11 | BI84: 76 | BJ84: 12 | BK84: - | BL84: 14 | BM84: 6 | BO84: 十節 | BR84: 10 | BS84: 77 | BT84: 12 | BU84: - | BV84: 1 | BW84: 5
AY85: 77 | AZ85: 3 | BA85: - | BB85: 4 | BC85: 6 | BD85: 72 | BE85: 9 | BF85: - | BG85: 12 | BH85: 11 | BI85: 77 | BJ85: 10 | BK85: - | BL85: 15 | BM85: 6 | BN85: 73 | BO85: 14 | BP85: - | BQ85: 15 | BR85: 10 | BS85: 78 | BT85: 10 | BU85: - | BV85: 14 | BW85: 5
AY86: 78 | AZ86: 1 | BA86: - | BB86: 2 | BC86: 6 | BD86: 73 | BE86: 8 | BF86: - | BG86: 13 | BH86: 11 | BI86: 78 | BJ86: 8 | BK86: - | BL86: 13 | BM86: 6 | BN86: 74 | BO86: 13 | BP86: - | BQ86: 16 | BR86: 10 | BS86: 79 | BT86: 8 | BU86: - | BV86: 16 | BW86: 5
BD87: 74 | BE87: 7 | BF87: - | BG87: 14 | BH87: 11 | BI87: 79 | BJ87: 6 | BK87: - | BL87: 11 | BM87: 6 | BN87: 75 | BO87: 12 | BP87: - | BQ87: 2 | BR87: 10 | BS87: 80 | BT87: 6 | BU87: - | BV87: 17 | BW87: 5
BD88: 75 | BE88: 6 | BF88: - | BG88: 2 | BH88: 11 | BI88: 80 | BJ88: 4 | BK88: - | BL88: 9 | BM88: 6 | BN88: 76 | BO88: 11 | BP88: - | BQ88: 3 | BR88: 10 | BS88: 81 | BT88: 4 | BU88: - | BV88: 15 | BW88: 5
BD89: 76 | BE89: 5 | BF89: - | BG89: 3 | BH89: 11 | BI89: 81 | BJ89: 2 | BK89: - | BL89: 7 | BM89: 6 | BN89: 77 | BO89: 10 | BP89: - | BQ89: 4 | BR89: 10 | BS89: 82 | BT89: 2 | BU89: - | BV89: 13 | BW89: 5
BD90: 77 | BE90: 1 | BF90: - | BG90: 4 | BH90: 11 | BI90: 82 | BJ90: 3 | BK90: - | BL90: 5 | BM90: 6 | BN90: 78 | BO90: 9 | BP90: - | BQ90: 5 | BR90: 10 | BS90: 83 | BT90: 3 | BU90: - | BV90: 11 | BW90: 5
BE91: 十二節 | BH91: 12 | BI91: 83 | BJ91: 14 | BK91: - | BL91: 1 | BM91: 6 | BN91: 79 | BO91: 8 | BP91: - | BQ91: 6 | BR91: 10 | BS91: 84 | BT91: 5 | BU91: - | BV91: 9 | BW91: 5
BD92: 78 | BE92: 9 | BF92: - | BG92: 10 | BH92: 12 | BI92: 84 | BJ92: 12 | BK92: - | BL92: 15 | BM92: 6 | BN92: 80 | BO92: 1 | BP92: - | BQ92: 7 | BR92: 10 | BS92: 85 | BT92: 1 | BU92: - | BV92: 7 | BW92: 5
BD93: 79 | BE93: 8 | BF93: - | BG93: 11 | BH93: 12 | BI93: 85 | BJ93: 10 | BK93: - | BL93: 13 | BM93: 6 | BO93: 十一節 | BR93: 11 | BT93: 六節 | BW93: 6
BD94: 80 | BE94: 7 | BF94: - | BG94: 12 | BH94: 12 | BI94: 86 | BJ94: 8 | BK94: - | BL94: 11 | BM94: 6 | BN94: 81 | BO94: 13 | BP94: - | BQ94: 14 | BR94: 11 | BS94: 86 | BT94: 12 | BU94: - | BV94: 14 | BW94: 6
BD95: 81 | BE95: 6 | BF95: - | BG95: 13 | BH95: 12 | BI95: 87 | BJ95: 6 | BK95: - | BL95: 9 | BM95: 6 | BN95: 82 | BO95: 12 | BP95: - | BQ95: 15 | BR95: 11 | BS95: 87 | BT95: 10 | BU95: - | BV95: 16 | BW95: 6
BD96: 82 | BE96: 5 | BF96: - | BG96: 14 | BH96: 12 | BI96: 88 | BJ96: 4 | BK96: - | BL96: 7 | BM96: 6 | BN96: 83 | BO96: 11 | BP96: - | BQ96: 16 | BR96: 11 | BS96: 88 | BT96: 8 | BU96: - | BV96: 17 | BW96: 6
BD97: 83 | BE97: 4 | BF97: - | BG97: 2 | BH97: 12 | BI97: 89 | BJ97: 2 | BK97: - | BL97: 5 | BM97: 6 | BN97: 84 | BO97: 10 | BP97: - | BQ97: 2 | BR97: 11 | BS97: 89 | BT97: 6 | BU97: - | BV97: 15 | BW97: 6
BD98: 84 | BE98: 1 | BF98: - | BG98: 3 | BH98: 12 | BI98: 90 | BJ98: 1 | BK98: - | BL98: 3 | BM98: 6 | BN98: 85 | BO98: 9 | BP98: - | BQ98: 3 | BR98: 11 | BS98: 90 | BT98: 4 | BU98: - | BV98: 13 | BW98: 6
BE99: 十三節 | BH99: 13 | BJ99: 七節 | BM99: 7 | BN99: 86 | BO99: 8 | BP99: - | BQ99: 4 | BR99: 11 | BS99: 91 | BT99: 2 | BU99: - | BV99: 11 | BW99: 6
BD100: 85 | BE100: 8 | BF100: - | BG100: 9 | BH100: 13 | BI100: 91 | BJ100: 14 | BK100: - | BL100: 15 | BM100: 7 | BN100: 87 | BO100: 7 | BP100: - | BQ100: 5 | BR100: 11 | BS100: 92 | BT100: 3 | BU100: - | BV100: 9 | BW100: 6
BD101: 86 | BE101: 7 | BF101: - | BG101: 10 | BH101: 13 | BI101: 92 | BJ101: 12 | BK101: - | BL101: 13 | BM101: 7 | BN101: 88 | BO101: 1 | BP101: - | BQ101: 6 | BR101: 11 | BS101: 93 | BT101: 5 | BU101: - | BV101: 7 | BW101: 6
BD102: 87 | BE102: 6 | BF102: - | BG102: 11 | BH102: 13 | BI102: 93 | BJ102: 10 | BK102: - | BL102: 11 | BM102: 7 | BO102: 十二節 | BR102: 12 | BS102: 94 | BT102: 14 | BU102: - | BV102: 1 | BW102: 6
BD103: 88 | BE103: 5 | BF103: - | BG103: 12 | BH103: 13 | BI103: 94 | BJ103: 8 | BK103: - | BL103: 9 | BM103: 7 | BN103: 89 | BO103: 12 | BP103: - | BQ103: 13 | BR103: 12 | BS103: 95 | BT103: 12 | BU103: - | BV103: 16 | BW103: 6
BD104: 89 | BE104: 4 | BF104: - | BG104: 13 | BH104: 13 | BI104: 95 | BJ104: 6 | BK104: - | BL104: 7 | BM104: 7 | BN104: 90 | BO104: 11 | BP104: - | BQ104: 14 | BR104: 12 | BS104: 96 | BT104: 10 | BU104: - | BV104: 17 | BW104: 6
BD105: 90 | BE105: 3 | BF105: - | BG105: 14 | BH105: 13 | BI105: 96 | BJ105: 4 | BK105: - | BL105: 5 | BM105: 7 | BN105: 91 | BO105: 10 | BP105: - | BQ105: 15 | BR105: 12 | BS105: 97 | BT105: 8 | BU105: - | BV105: 15 | BW105: 6
BD106: 91 | BE106: 1 | BF106: - | BG106: 2 | BH106: 13 | BI106: 97 | BJ106: 2 | BK106: - | BL106: 3 | BM106: 7 | BN106: 92 | BO106: 9 | BP106: - | BQ106: 16 | BR106: 12 | BS106: 98 | BT106: 6 | BU106: - | BV106: 13 | BW106: 6
BI107: 98 | BJ107: 15 | BK107: - | BL107: 1 | BM107: 7 | BN107: 93 | BO107: 8 | BP107: - | BQ107: 2 | BR107: 12 | BS107: 99 | BT107: 4 | BU107: - | BV107: 11 | BW107: 6
BI108: 99 | BJ108: 13 | BK108: - | BL108: 14 | BM108: 7 | BN108: 94 | BO108: 7 | BP108: - | BQ108: 3 | BR108: 12 | BS108: 100 | BT108: 2 | BU108: - | BV108: 9 | BW108: 6
BI109: 100 | BJ109: 11 | BK109: - | BL109: 12 | BM109: 7 | BN109: 95 | BO109: 6 | BP109: - | BQ109: 4 | BR109: 12 | BS109: 101 | BT109: 3 | BU109: - | BV109: 7 | BW109: 6
BI110: 101 | BJ110: 9 | BK110: - | BL110: 10 | BM110: 7 | BN110: 96 | BO110: 1 | BP110: - | BQ110: 5 | BR110: 12 | BS110: 102 | BT110: 1 | BU110: - | BV110: 5 | BW110: 6
BI111: 102 | BJ111: 7 | BK111: - | BL111: 8 | BM111: 7 | BO111: 十三節 | BR111: 13 | BT111: 七節 | BW111: 7
BI112: 103 | BJ112: 5 | BK112: - | BL112: 6 | BM112: 7 | BN112: 97 | BO112: 11 | BP112: - | BQ112: 12 | BR112: 13 | BS112: 103 | BT112: 14 | BU112: - | BV112: 16 | BW112: 7
BI113: 104 | BJ113: 3 | BK113: - | BL113: 4 | BM113: 7 | BN113: 98 | BO113: 10 | BP113: - | BQ113: 13 | BR113: 13 | BS113: 104 | BT113: 12 | BU113: - | BV113: 17 | BW113: 7
BI114: 105 | BJ114: 1 | BK114: - | BL114: 2 | BM114: 7 | BN114: 99 | BO114: 9 | BP114: - | BQ114: 14 | BR114: 13 | BS114: 105 | BT114: 10 | BU114: - | BV114: 15 | BW114: 7
BN115: 100 | BO115: 8 | BP115: - | BQ115: 15 | BR115: 13 | BS115: 106 | BT115: 8 | BU115: - | BV115: 13 | BW115: 7
BN116: 101 | BO116: 7 | BP116: - | BQ116: 16 | BR116: 13 | BS116: 107 | BT116: 6 | BU116: - | BV116: 11 | BW116: 7
BN117: 102 | BO117: 6 | BP117: - | BQ117: 2 | BR117: 13 | BS117: 108 | BT117: 4 | BU117: - | BV117: 9 | BW117: 7
BN118: 103 | BO118: 5 | BP118: - | BQ118: 3 | BR118: 13 | BS118: 109 | BT118: 2 | BU118: - | BV118: 7 | BW118: 7
BN119: 104 | BO119: 1 | BP119: - | BQ119: 4 | BR119: 13 | BS119: 110 | BT119: 3 | BU119: - | BV119: 5 | BW119: 7
BO120: 十四節 | BR120: 14 | BS120: 111 | BT120: 16 | BU120: - | BV120: 1 | BW120: 7
BN121: 105 | BO121: 10 | BP121: - | BQ121: 11 | BR121: 14 | BS121: 112 | BT121: 14 | BU121: - | BV121: 17 | BW121: 7
BN122: 106 | BO122: 9 | BP122: - | BQ122: 12 | BR122: 14 | BS122: 113 | BT122: 12 | BU122: - | BV122: 15 | BW122: 7
BN123: 107 | BO123: 8 | BP123: - | BQ123: 13 | BR123: 14 | BS123: 114 | BT123: 10 | BU123: - | BV123: 13 | BW123: 7
BN124: 108 | BO124: 7 | BP124: - | BQ124: 14 | BR124: 14 | BS124: 115 | BT124: 8 | BU124: - | BV124: 11 | BW124: 7
BN125: 109 | BO125: 6 | BP125: - | BQ125: 15 | BR125: 14 | BS125: 116 | BT125: 6 | BU125: - | BV125: 9 | BW125: 7
BN126: 110 | BO126: 5 | BP126: - | BQ126: 16 | BR126: 14 | BS126: 117 | BT126: 4 | BU126: - | BV126: 7 | BW126: 7
BN127: 111 | BO127: 4 | BP127: - | BQ127: 2 | BR127: 14 | BS127: 118 | BT127: 2 | BU127: - | BV127: 5 | BW127: 7
BN128: 112 | BO128: 1 | BP128: - | BQ128: 3 | BR128: 14 | BS128: 119 | BT128: 1 | BU128: - | BV128: 3 | BW128: 7
BO129: 十五節 | BR129: 15 | BT129: 八節 | BW129: 8
BN130: 113 | BO130: 9 | BP130: - | BQ130: 10 | BR130: 15 | BS130: 120 | BT130: 16 | BU130: - | BV130: 17 | BW130: 8
BN131: 114 | BO131: 8 | BP131: - | BQ131: 11 | BR131: 15 | BS131: 121 | BT131: 14 | BU131: - | BV131: 15 | BW131: 8
BN132: 115 | BO132: 7 | BP132: - | BQ132: 12 | BR132: 15 | BS132: 122 | BT132: 12 | BU132: - | BV132: 13 | BW132: 8
BN133: 116 | BO133: 6 | BP133: - | BQ133: 13 | BR133: 15 | BS133: 123 | BT133: 10 | BU133: - | BV133: 11 | BW133: 8
BN134: 117 | BO134: 5 | BP134: - | BQ134: 14 | BR134: 15 | BS134: 124 | BT134: 8 | BU134: - | BV134: 9 | BW134: 8
BN135: 118 | BO135: 4 | BP135: - | BQ135: 15 | BR135: 15 | BS135: 125 | BT135: 6 | BU135: - | BV135: 7 | BW135: 8
BN136: 119 | BO136: 3 | BP136: - | BQ136: 16 | BR136: 15 | BS136: 126 | BT136: 4 | BU136: - | BV136: 5 | BW136: 8
BN137: 120 | BO137: 1 | BP137: - | BQ137: 2 | BR137: 15 | BS137: 127 | BT137: 2 | BU137: - | BV137: 3 | BW137: 8
BS138: 128 | BT138: 17 | BU138: - | BV138: 1 | BW138: 8
BS139: 129 | BT139: 15 | BU139: - | BV139: 16 | BW139: 8
BS140: 130 | BT140: 13 | BU140: - | BV140: 14 | BW140: 8
BS141: 131 | BT141: 11 | BU141: - | BV141: 12 | BW141: 8
BS142: 132 | BT142: 9 | BU142: - | BV142: 10 | BW142: 8
BS143: 133 | BT143: 7 | BU143: - | BV143: 8 | BW143: 8
BS144: 134 | BT144: 5 | BU144: - | BV144: 6 | BW144: 8
BS145: 135 | BT145: 3 | BU145: - | BV145: 4 | BW145: 8
BS146: 136 | BT146: 1 | BU146: - | BV146: 2 | BW146: 8

Sheet 赤
E1: =概要設定!B2 -> 2016 | F1: 年 | I1: =概要設定!D2 -> 9 | J1: 月 | L1: 例会 | P1: =概要設定!B4 -> 和奈対抗戦
E2: 赤組 | K2: =概要設定!B6 -> 180 | L2: 点 | M2: =概要設定!D6 -> コールショット | T2: 開催日： | V2: =E1&"/"&I1&"/"&概要設定!F2 -> 2016/9/11 | AN2: 会場： | AO2: =概要設定!B8 -> トップガン
B4: No | C4: ハンデ | D4: ハンデ | E4: No. | F4: 1 | H4: 2 | J4: 3 | L4: 4 | N4: 5 | P4: 6 | R4: 7 | T4: 8 | V4: 9 | X4: 10 | Z4: 11 | AB4: 12 | AD4: 13 | AF4: 14 | AH4: 15 | AJ4: 16 | AL4: 17 | AP4: H・C | AT4: ABC | AU4: ABC優劣 | AV4: A | AW4: B | AX4: C
C5: 点数 | D5: 変更 | F5: =IF($E7="","",$E7) -> 吉向 翔平 | H5: =IF($E9="","",$E9) -> 近藤 拓馬 | J5: =IF($E11="","",$E11) -> 山田 晋之 | L5: =IF($E13="","",$E13) -> 水田 賢宏 | N5: =IF($E15="","",$E15) -> 峯山 崇史 | P5: =IF($E17="","",$E17) -> 宮野 早織 | R5: =IF($E19="","",$E19) -> 岩本 剛 | T5: =IF($E21="","",$E21) -> 佐藤 循一 | V5: =IF($E23="","",$E23) ->  | X5: =IF($E25="","",$E25) ->  | Z5: =IF($E27="","",$E27) ->  | AB5: =IF($E29="","",$E29) ->  | AD5: =IF($E31="","",$E31) ->  | AF5: =IF($E33="","",$E33) ->  | AH5: =IF($E35="","",$E35) ->  | AJ5: =IF($E37="","",$E37) ->  | AL5: =IF($E39="","",$E39) ->  | AN5: W | AO5: L | AP5: TP | AQ5: LP | AR5: R_POINT | AS5: R | AT5: HR | AU5: ABC+HR | AV5: HR | AW5: HR | AX5: HR | AY5: HR
C6: =IF($E7="","",INDEX(概要設定!$J$2:$L$51,MATCH($E7, 概要設定!$J$2:$J$51,0),3)) -> 0 | E6: =IF(ISERROR(INDEX(概要設定!$J$2:$K$51,MATCH($E7,概要設定!$J$2:$J$51,0),2)),"",INDEX(概要設定!$J$2:$K$51,MATCH($E7,概要設定!$J$2:$J$51,0),2)) -> きっこう しょうへい | AP6: =IF($E7="","",INT((SUM($F7:$AM7)+($C7*$AN7)))) -> 1038 | AT6: =IF($E7="","",IF($AV6="A","A",IF($AW6="B","B",IF($AX6="C","C","")))) ->  | AU6: =IF($AT7="","",IF($AT7=0,0,IF($AT6="A",9000,IF($AT6="B",8000,IF($AT6="C",7000,0))))) -> 0 | AV6: =IF($E7="","",IF(COUNTIF($F6:$AM6,"A")=0,"","A")) ->  | AW6: =IF($E7="","",IF(COUNTIF($F6:$AM6,"B")=0,"","B")) ->  | AX6: =IF($E7="","",IF(COUNTIF($F6:$AM6,"C")=0,"","C")) -> 
B7: 1 | C7: =IF($E7="","",IF($D7<>"",$D7,IF($C6<>"-",概要設定!$B$6,INDEX(概要設定!$N$2:$O$6,MATCH(概要設定!$B$6, 概要設定!$N$2:$N$6,0),2)))) -> 180 | E7: 吉向 翔平 | J7: w | L7: w | N7: w | P7: 138 | R7: w | T7: w | AN7: =IF($E7="","",COUNTIF($F7:$AL7,"w")) -> 5 | AO7: =IF($E7="","",COUNTIF($F7:$AL7,">=0")) -> 1 | AP7: =IF($E7="","",INT((SUM($F7:$AM7)+($C7*$AN7))*$K$2/$C7)) -> 1038 | AQ7: =IF($E7="","",SUM(F$7:F$39)) -> 375 | AR7: =IF($E7="","",$AN7*100000000+$AP7*10000-$AQ7+$AU7*0.0001) -> 510379625 | AS7: =IF($E7="","",RANK($AR7,$AR$7:$AR$39)+COUNTIF($AR$7:$AR7,$AR7)-1) -> 1 | AT7: =IF($E7="","",IF($AV6="A",$AV7,IF($AW6="B",$AW7,IF($AX6="C",$AX7,$AY7)))) -> 0 | AU7: =IF($AT7="","",$AT7+$AU6) -> 0 | AV7: =IF($E7="","",IF(COUNTIF($F6:$AM6,"A")=0,"",MAX(IF($F6:$AL6="A",$G6:$AM6)))) ->  | AW7: =IF($E7="","",IF(COUNTIF($F6:$AM6,"B")=0,"",MAX(IF($F6:$AL6="B",$G6:$AM6)))) ->  | AX7: =IF($E7="","",IF(COUNTIF($F6:$AM6,"C")=0,"",MAX(IF($F6:$AL6="C",$G6:$AM6)))) ->  | AY7: =IF($E7="","",MAX($F6:$AM6)) -> 0
C8: =IF($E9="","",INDEX(概要設定!$J$2:$L$51,MATCH($E9, 概要設定!$J$2:$J$51,0),3)) -> 0 | E8: =IF(ISERROR(INDEX(概要設定!$J$2:$K$51,MATCH($E9,概要設定!$J$2:$J$51,0),2)),"",INDEX(概要設定!$J$2:$K$51,MATCH($E9,概要設定!$J$2:$J$51,0),2)) -> こんどう たくま | AP8: =IF($E9="","",INT((SUM($F9:$AM9)+($C9*$AN9)))) -> 913 | AT8: =IF($E9="","",IF($AV8="A","A",IF($AW8="B","B",IF($AX8="C","C","")))) ->  | AU8: =IF($AT9="","",IF($AT9=0,0,IF($AT8="A",9000,IF($AT8="B",8000,IF($AT8="C",7000,0))))) -> 0 | AV8: =IF($E9="","",IF(COUNTIF($F8:$AM8,"A")=0,"","A")) ->  | AW8: =IF($E9="","",IF(COUNTIF($F8:$AM8,"B")=0,"","B")) ->  | AX8: =IF($E9="","",IF(COUNTIF($F8:$AM8,"C")=0,"","C")) -> 
B9: 2 | C9: =IF($E9="","",IF($D9<>"",$D9,IF($C8<>"-",概要設定!$B$6,INDEX(概要設定!$N$2:$O$6,MATCH(概要設定!$B$6, 概要設定!$N$2:$N$6,0),2)))) -> 180 | E9: 近藤 拓馬 | J9: w | L9: w | N9: w | P9: w | R9: 13 | T9: w | AN9: =IF($E9="","",COUNTIF($F9:$AL9,"w")) -> 5 | AO9: =IF($E9="","",COUNTIF($F9:$AL9,">=0")) -> 1 | AP9: =IF($E9="","",INT((SUM($F9:$AM9)+($C9*$AN9))*$K$2/$C9)) -> 913 | AQ9: =IF($E9="","",SUM(H$7:H$39)) -> 526 | AR9: =IF($E9="","",$AN9*100000000+$AP9*10000-$AQ9+$AU9*0.0001) -> 509129474 | AS9: =IF($E9="","",RANK($AR9,$AR$7:$AR$39)+COUNTIF($AR$7:$AR9,$AR9)-1) -> 3 | AT9: =IF($E9="","",IF($AV8="A",$AV9,IF($AW8="B",$AW9,IF($AX8="C",$AX9,$AY9)))) -> 0 | AU9: 0 | AV9: =IF($E9="","",IF(COUNTIF($F8:$AM8,"A")=0,"",MAX(IF($F8:$AL8="A",$G8:$AM8)))) ->  | AW9: =IF($E9="","",IF(COUNTIF($F8:$AM8,"B")=0,"",MAX(IF($F8:$AL8="B",$G8:$AM8)))) ->  | AX9: =IF($E9="","",IF(COUNTIF($F8:$AM8,"C")=0,"",MAX(IF($F8:$AL8="C",$G8:$AM8)))) ->  | AY9: =IF($E9="","",MAX($F8:$AM8)) -> 0
C10: =IF($E11="","",INDEX(概要設定!$J$2:$L$51,MATCH($E11, 概要設定!$J$2:$J$51,0),3)) -> 0 | E10: =IF(ISERROR(INDEX(概要設定!$J$2:$K$51,MATCH($E11,概要設定!$J$2:$J$51,0),2)),"",INDEX(概要設定!$J$2:$K$51,MATCH($E11,概要設定!$J$2:$J$51,0),2)) -> やまだ くにゆき | AP10: =IF($E11="","",INT((SUM($F11:$AM11)+($C11*$AN11)))) -> 787 | AT10: =IF($E11="","",IF($AV10="A","A",IF($AW10="B","B",IF($AX10="C","C","")))) ->  | AU10: =IF($AT11="","",IF($AT11=0,0,IF($AT10="A",9000,IF($AT10="B",8000,IF($AT10="C",7000,0))))) -> 0 | AV10: =IF($E11="","",IF(COUNTIF($F10:$AM10,"A")=0,"","A")) ->  | AW10: =IF($E11="","",IF(COUNTIF($F10:$AM10,"B")=0,"","B")) ->  | AX10: =IF($E11="","",IF(COUNTIF($F10:$AM10,"C")=0,"","C")) -> 
B11: 3 | C11: =IF($E11="","",IF($D11<>"",$D11,IF($C10<>"-",概要設定!$B$6,INDEX(概要設定!$N$2:$O$6,MATCH(概要設定!$B$6, 概要設定!$N$2:$N$6,0),2)))) -> 180 | E11: 山田 晋之 | F11: 50 | H11: 163 | L11: w | N11: w | P11: w | R11: 34 | AN11: =IF($E11="","",COUNTIF($F11:$AL11,"w")) -> 3 | AO11: =IF($E11="","",COUNTIF($F11:$AL11,">=0")) -> 3 | AP11: =IF($E11="","",INT((SUM($F11:$AM11)+($C11*$AN11))*$K$2/$C11)) -> 787 | AQ11: =IF($E11="","",SUM(J$7:J$39)) -> 224 | AR11: =IF($E11="","",$AN11*100000000+$AP11*10000-$AQ11+$AU11*0.0001) -> 307869776 | AS11: =IF($E11="","",RANK($AR11,$AR$7:$AR$39)+COUNTIF($AR$7:$AR11,$AR11)-1) -> 4 | AT11: =IF($E11="","",IF($AV10="A",$AV11,IF($AW10="B",$AW11,IF($AX10="C",$AX11,$AY11)))) -> 0 | AU11: 0 | AV11: =IF($E11="","",IF(COUNTIF($F10:$AM10,"A")=0,"",MAX(IF($F10:$AL10="A",$G10:$AM10)))) ->  | AW11: =IF($E11="","",IF(COUNTIF($F10:$AM10,"B")=0,"",MAX(IF($F10:$AL10="B",$G10:$AM10)))) ->  | AX11: =IF($E11="","",IF(COUNTIF($F10:$AM10,"C")=0,"",MAX(IF($F10:$AL10="C",$G10:$AM10)))) ->  | AY11: =IF($E11="","",MAX($F10:$AM10)) -> 0
C12: =IF($E13="","",INDEX(概要設定!$J$2:$L$51,MATCH($E13, 概要設定!$J$2:$J$51,0),3)) -> 0 | E12: =IF(ISERROR(INDEX(概要設定!$J$2:$K$51,MATCH($E13,概要設定!$J$2:$J$51,0),2)),"",INDEX(概要設定!$J$2:$K$51,MATCH($E13,概要設定!$J$2:$J$51,0),2)) -> みずた よしひろ | U12: 115 | AP12: =IF($E13="","",INT((SUM($F13:$AM13)+($C13*$AN13)))) -> 654 | AT12: =IF($E13="","",IF($AV12="A","A",IF($AW12="B","B",IF($AX12="C","C","")))) ->  | AU12: =IF($AT13="","",IF($AT13=0,0,IF($AT12="A",9000,IF($AT12="B",8000,IF($AT12="C",7000,0))))) -> 0 | AV12: =IF($E13="","",IF(COUNTIF($F12:$AM12,"A")=0,"","A")) ->  | AW12: =IF($E13="","",IF(COUNTIF($F12:$AM12,"B")=0,"","B")) ->  | AX12: =IF($E13="","",IF(COUNTIF($F12:$AM12,"C")=0,"","C")) -> 
B13: 4 | C13: =IF($E13="","",IF($D13<>"",$D13,IF($C12<>"-",概要設定!$B$6,INDEX(概要設定!$N$2:$O$6,MATCH(概要設定!$B$6, 概要設定!$N$2:$N$6,0),2)))) -> 180 | E13: 水田 賢宏 | F13: 100 | H13: 61 | J13: 107 | N13: 89 | P13: 117 | T13: w | AN13: =IF($E13="","",COUNTIF($F13:$AL13,"w")) -> 1 | AO13: =IF($E13="","",COUNTIF($F13:$AL13,">=0")) -> 5 | AP13: =IF($E13="","",INT((SUM($F13:$AM13)+($C13*$AN13))*$K$2/$C13)) -> 654 | AQ13: =IF($E13="","",SUM(L$7:L$39)) -> 123 | AR13: =IF($E13="","",$AN13*100000000+$AP13*10000-$AQ13+$AU13*0.0001) -> 106539877 | AS13: =IF($E13="","",RANK($AR13,$AR$7:$AR$39)+COUNTIF($AR$7:$AR13,$AR13)-1) -> 7 | AT13: =IF($E13="","",IF($AV12="A",$AV13,IF($AW12="B",$AW13,IF($AX12="C",$AX13,$AY13)))) -> 115 | AU13: 115 | AV13: =IF($E13="","",IF(COUNTIF($F12:$AM12,"A")=0,"",MAX(IF($F12:$AL12="A",$G12:$AM12)))) ->  | AW13: =IF($E13="","",IF(COUNTIF($F12:$AM12,"B")=0,"",MAX(IF($F12:$AL12="B",$G12:$AM12)))) ->  | AX13: =IF($E13="","",IF(COUNTIF($F12:$AM12,"C")=0,"",MAX(IF($F12:$AL12="C",$G12:$AM12)))) ->  | AY13: =IF($E13="","",MAX($F12:$AM12)) -> 115
C14: =IF($E15="","",INDEX(概要設定!$J$2:$L$51,MATCH($E15, 概要設定!$J$2:$J$51,0),3)) -> 0 | E14: =IF(ISERROR(INDEX(概要設定!$J$2:$K$51,MATCH($E15,概要設定!$J$2:$J$51,0),2)),"",INDEX(概要設定!$J$2:$K$51,MATCH($E15,概要設定!$J$2:$J$51,0),2)) -> みねやま たかし | AP14: =IF($E15="","",INT((SUM($F15:$AM15)+($C15*$AN15)))) -> 900 | AT14: =IF($E15="","",IF($AV14="A","A",IF($AW14="B","B",IF($AX14="C","C","")))) ->  | AU14: =IF($AT15="","",IF($AT15=0,0,IF($AT14="A",9000,IF($AT14="B",8000,IF($AT14="C",7000,0))))) -> 0 | AV14: =IF($E15="","",IF(COUNTIF($F14:$AM14,"A")=0,"","A")) ->  | AW14: =IF($E15="","",IF(COUNTIF($F14:$AM14,"B")=0,"","B")) ->  | AX14: =IF($E15="","",IF(COUNTIF($F14:$AM14,"C")=0,"","C")) -> 
B15: 5 | C15: =IF($E15="","",IF($D15<>"",$D15,IF($C14<>"-",概要設定!$B$6,INDEX(概要設定!$N$2:$O$6,MATCH(概要設定!$B$6, 概要設定!$N$2:$N$6,0),2)))) -> 180 | E15: 峯山 崇史 | F15: 140 | H15: 148 | J15: 111 | L15: w | R15: 141 | T15: w | AN15: =IF($E15="","",COUNTIF($F15:$AL15,"w")) -> 2 | AO15: =IF($E15="","",COUNTIF($F15:$AL15,">=0")) -> 4 | AP15: =IF($E15="","",INT((SUM($F15:$AM15)+($C15*$AN15))*$K$2/$C15)) -> 900 | AQ15: =IF($E15="","",SUM(N$7:N$39)) -> 153 | AR15: =IF($E15="","",$AN15*100000000+$AP15*10000-$AQ15+$AU15*0.0001) -> 208999847 | AS15: =IF($E15="","",RANK($AR15,$AR$7:$AR$39)+COUNTIF($AR$7:$AR15,$AR15)-1) -> 6 | AT15: =IF($E15="","",IF($AV14="A",$AV15,IF($AW14="B",$AW15,IF($AX14="C",$AX15,$AY15)))) -> 0 | AU15: 0 | AV15: =IF($E15="","",IF(COUNTIF($F14:$AM14,"A")=0,"",MAX(IF($F14:$AL14="A",$G14:$AM14)))) ->  | AW15: =IF($E15="","",IF(COUNTIF($F14:$AM14,"B")=0,"",MAX(IF($F14:$AL14="B",$G14:$AM14)))) ->  | AX15: =IF($E15="","",IF(COUNTIF($F14:$AM14,"C")=0,"",MAX(IF($F14:$AL14="C",$G14:$AM14)))) ->  | AY15: =IF($E15="","",MAX($F14:$AM14)) -> 0
C16: =IF($E17="","",INDEX(概要設定!$J$2:$L$51,MATCH($E17, 概要設定!$J$2:$J$51,0),3)) -> - | E16: =IF(ISERROR(INDEX(概要設定!$J$2:$K$51,MATCH($E17,概要設定!$J$2:$J$51,0),2)),"",INDEX(概要設定!$J$2:$K$51,MATCH($E17,概要設定!$J$2:$J$51,0),2)) -> みやの さおり | AP16: =IF($E17="","",INT((SUM($F17:$AM17)+($C17*$AN17)))) -> 590 | AT16: =IF($E17="","",IF($AV16="A","A",IF($AW16="B","B",IF($AX16="C","C","")))) ->  | AU16: =IF($AT17="","",IF($AT17=0,0,IF($AT16="A",9000,IF($AT16="B",8000,IF($AT16="C",7000,0))))) -> 0 | AV16: =IF($E17="","",IF(COUNTIF($F16:$AM16,"A")=0,"","A")) ->  | AW16: =IF($E17="","",IF(COUNTIF($F16:$AM16,"B")=0,"","B")) ->  | AX16: =IF($E17="","",IF(COUNTIF($F16:$AM16,"C")=0,"","C")) -> 
B17: 6 | C17: =IF($E17="","",IF($D17<>"",$D17,IF($C16<>"-",概要設定!$B$6,INDEX(概要設定!$N$2:$O$6,MATCH(概要設定!$B$6, 概要設定!$N$2:$N$6,0),2)))) -> 140 | E17: 宮野 早織 | F17: w | H17: 121 | J17: 6 | L17: w | R17: 43 | T17: w | AN17: =IF($E17="","",COUNTIF($F17:$AL17,"w")) -> 3 | AO17: =IF($E17="","",COUNTIF($F17:$AL17,">=0")) -> 3 | AP17: =IF($E17="","",INT((SUM($F17:$AM17)+($C17*$AN17))*$K$2/$C17)) -> 758 | AQ17: =IF($E17="","",SUM(P$7:P$39)) -> 292 | AR17: =IF($E17="","",$AN17*100000000+$AP17*10000-$AQ17+$AU17*0.0001) -> 307579708 | AS17: =IF($E17="","",RANK($AR17,$AR$7:$AR$39)+COUNTIF($AR$7:$AR17,$AR17)-1) -> 5 | AT17: =IF($E17="","",IF($AV16="A",$AV17,IF($AW16="B",$AW17,IF($AX16="C",$AX17,$AY17)))) -> 0 | AU17: 0 | AV17: =IF($E17="","",IF(COUNTIF($F16:$AM16,"A")=0,"",MAX(IF($F16:$AL16="A",$G16:$AM16)))) ->  | AW17: =IF($E17="","",IF(COUNTIF($F16:$AM16,"B")=0,"",MAX(IF($F16:$AL16="B",$G16:$AM16)))) ->  | AX17: =IF($E17="","",IF(COUNTIF($F16:$AM16,"C")=0,"",MAX(IF($F16:$AL16="C",$G16:$AM16)))) ->  | AY17: =IF($E17="","",MAX($F16:$AM16)) -> 0
C18: =IF($E19="","",INDEX(概要設定!$J$2:$L$51,MATCH($E19, 概要設定!$J$2:$J$51,0),3)) -> 0 | E18: =IF(ISERROR(INDEX(概要設定!$J$2:$K$51,MATCH($E19,概要設定!$J$2:$J$51,0),2)),"",INDEX(概要設定!$J$2:$K$51,MATCH($E19,概要設定!$J$2:$J$51,0),2)) -> いわもと つよし | AP18: =IF($E19="","",INT((SUM($F19:$AM19)+($C19*$AN19)))) -> 931 | AT18: =IF($E19="","",IF($AV18="A","A",IF($AW18="B","B",IF($AX18="C","C","")))) ->  | AU18: =IF($AT19="","",IF($AT19=0,0,IF($AT18="A",9000,IF($AT18="B",8000,IF($AT18="C",7000,0))))) -> 0 | AV18: =IF($E19="","",IF(COUNTIF($F18:$AM18,"A")=0,"","A")) ->  | AW18: =IF($E19="","",IF(COUNTIF($F18:$AM18,"B")=0,"","B")) ->  | AX18: =IF($E19="","",IF(COUNTIF($F18:$AM18,"C")=0,"","C")) -> 
B19: 7 | C19: =IF($E19="","",IF($D19<>"",$D19,IF($C18<>"-",概要設定!$B$6,INDEX(概要設定!$N$2:$O$6,MATCH(概要設定!$B$6, 概要設定!$N$2:$N$6,0),2)))) -> 180 | E19: 岩本 剛 | F19: 31 | H19: w | J19: w | N19: w | P19: w | T19: w | AN19: =IF($E19="","",COUNTIF($F19:$AL19,"w")) -> 5 | AO19: =IF($E19="","",COUNTIF($F19:$AL19,">=0")) -> 1 | AP19: =IF($E19="","",INT((SUM($F19:$AM19)+($C19*$AN19))*$K$2/$C19)) -> 931 | AQ19: =IF($E19="","",SUM(R$7:R$39)) -> 298 | AR19: =IF($E19="","",$AN19*100000000+$AP19*10000-$AQ19+$AU19*0.0001) -> 509309702 | AS19: =IF($E19="","",RANK($AR19,$AR$7:$AR$39)+COUNTIF($AR$7:$AR19,$AR19)-1) -> 2 | AT19: =IF($E19="","",IF($AV18="A",$AV19,IF($AW18="B",$AW19,IF($AX18="C",$AX19,$AY19)))) -> 0 | AU19: 0 | AV19: =IF($E19="","",IF(COUNTIF($F18:$AM18,"A")=0,"",MAX(IF($F18:$AL18="A",$G18:$AM18)))) ->  | AW19: =IF($E19="","",IF(COUNTIF($F18:$AM18,"B")=0,"",MAX(IF($F18:$AL18="B",$G18:$AM18)))) ->  | AX19: =IF($E19="","",IF(COUNTIF($F18:$AM18,"C")=0,"",MAX(IF($F18:$AL18="C",$G18:$AM18)))) ->  | AY19: =IF($E19="","",MAX($F18:$AM18)) -> 0
C20: =IF($E21="","",INDEX(概要設定!$J$2:$L$51,MATCH($E21, 概要設定!$J$2:$J$51,0),3)) -> 0 | E20: =IF(ISERROR(INDEX(概要設定!$J$2:$K$51,MATCH($E21,概要設定!$J$2:$J$51,0),2)),"",INDEX(概要設定!$J$2:$K$51,MATCH($E21,概要設定!$J$2:$J$51,0),2)) -> さとう じゅんいち | AP20: =IF($E21="","",INT((SUM($F21:$AM21)+($C21*$AN21)))) -> 378 | AT20: =IF($E21="","",IF($AV20="A","A",IF($AW20="B","B",IF($AX20="C","C","")))) ->  | AU20: =IF($AT21="","",IF($AT21=0,0,IF($AT20="A",9000,IF($AT20="B",8000,IF($AT20="C",7000,0))))) -> 0 | AV20: =IF($E21="","",IF(COUNTIF($F20:$AM20,"A")=0,"","A")) ->  | AW20: =IF($E21="","",IF(COUNTIF($F20:$AM20,"B")=0,"","B")) ->  | AX20: =IF($E21="","",IF(COUNTIF($F20:$AM20,"C")=0,"","C")) -> 
B21: 8 | C21: =IF($E21="","",IF($D21<>"",$D21,IF($C20<>"-",概要設定!$B$6,INDEX(概要設定!$N$2:$O$6,MATCH(概要設定!$B$6, 概要設定!$N$2:$N$6,0),2)))) -> 180 | E21: 佐藤 循一 | F21: 54 | H21: 33 | L21: 123 | N21: 64 | P21: 37 | R21: 67 | AN21: =IF($E21="","",COUNTIF($F21:$AL21,"w")) -> 0 | AO21: =IF($E21="","",COUNTIF($F21:$AL21,">=0")) -> 6 | AP21: =IF($E21="","",INT((SUM($F21:$AM21)+($C21*$AN21))*$K$2/$C21)) -> 378 | AQ21: =IF($E21="","",SUM(T$7:T$39)) -> 0 | AR21: =IF($E21="","",$AN21*100000000+$AP21*10000-$AQ21+$AU21*0.0001) -> 3780000 | AS21: =IF($E21="","",RANK($AR21,$AR$7:$AR$39)+COUNTIF($AR$7:$AR21,$AR21)-1) -> 8 | AT21: =IF($E21="","",IF($AV20="A",$AV21,IF($AW20="B",$AW21,IF($AX20="C",$AX21,$AY21)))) -> 0 | AU21: 0 | AV21: =IF($E21="","",IF(COUNTIF($F20:$AM20,"A")=0,"",MAX(IF($F20:$AL20="A",$G20:$AM20)))) ->  | AW21: =IF($E21="","",IF(COUNTIF($F20:$AM20,"B")=0,"",MAX(IF($F20:$AL20="B",$G20:$AM20)))) ->  | AX21: =IF($E21="","",IF(COUNTIF($F20:$AM20,"C")=0,"",MAX(IF($F20:$AL20="C",$G20:$AM20)))) ->  | AY21: =IF($E21="","",MAX($F20:$AM20)) -> 0
C22: =IF($E23="","",INDEX(概要設定!$J$2:$L$51,MATCH($E23, 概要設定!$J$2:$J$51,0),3)) ->  | E22: =IF(ISERROR(INDEX(概要設定!$J$2:$K$51,MATCH($E23,概要設定!$J$2:$J$51,0),2)),"",INDEX(概要設定!$J$2:$K$51,MATCH($E23,概要設定!$J$2:$J$51,0),2)) ->  | AP22: =IF($E23="","",INT((SUM($F23:$AM23)+($C23*$AN23)))) ->  | AT22: =IF($E23="","",IF($AV22="A","A",IF($AW22="B","B",IF($AX22="C","C","")))) ->  | AU22: =IF($AT23="","",IF($AT23=0,0,IF($AT22="A",9000,IF($AT22="B",8000,IF($AT22="C",7000,0))))) ->  | AV22: =IF($E23="","",IF(COUNTIF($F22:$AM22,"A")=0,"","A")) ->  | AW22: =IF($E23="","",IF(COUNTIF($F22:$AM22,"B")=0,"","B")) ->  | AX22: =IF($E23="","",IF(COUNTIF($F22:$AM22,"C")=0,"","C")) -> 
B23: 9 | C23: =IF($E23="","",IF($D23<>"",$D23,IF($C22<>"-",概要設定!$B$6,INDEX(概要設定!$N$2:$O$6,MATCH(概要設定!$B$6, 概要設定!$N$2:$N$6,0),2)))) ->  | AN23: =IF($E23="","",COUNTIF($F23:$AL23,"w")) ->  | AO23: =IF($E23="","",COUNTIF($F23:$AL23,">=0")) ->  | AP23: =IF($E23="","",INT((SUM($F23:$AM23)+($C23*$AN23))*$K$2/$C23)) ->  | AQ23: =IF($E23="","",SUM(V$7:V$39)) ->  | AR23: =IF($E23="","",$AN23*100000000+$AP23*10000-$AQ23+$AU23*0.0001) ->  | AS23: =IF($E23="","",RANK($AR23,$AR$7:$AR$39)+COUNTIF($AR$7:$AR23,$AR23)-1) ->  | AT23: =IF($E23="","",IF($AV22="A",$AV23,IF($AW22="B",$AW23,IF($AX22="C",$AX23,$AY23)))) ->  | AV23: =IF($E23="","",IF(COUNTIF($F22:$AM22,"A")=0,"",MAX(IF($F22:$AL22="A",$G22:$AM22)))) ->  | AW23: =IF($E23="","",IF(COUNTIF($F22:$AM22,"B")=0,"",MAX(IF($F22:$AL22="B",$G22:$AM22)))) ->  | AX23: =IF($E23="","",IF(COUNTIF($F22:$AM22,"C")=0,"",MAX(IF($F22:$AL22="C",$G22:$AM22)))) ->  | AY23: =IF($E23="","",MAX($F22:$AM22)) -> 
C24: =IF($E25="","",INDEX(概要設定!$J$2:$L$51,MATCH($E25, 概要設定!$J$2:$J$51,0),3)) ->  | E24: =IF(ISERROR(INDEX(概要設定!$J$2:$K$51,MATCH($E25,概要設定!$J$2:$J$51,0),2)),"",INDEX(概要設定!$J$2:$K$51,MATCH($E25,概要設定!$J$2:$J$51,0),2)) ->  | AP24: =IF($E25="","",INT((SUM($F25:$AM25)+($C25*$AN25)))) ->  | AT24: =IF($E25="","",IF($AV24="A","A",IF($AW24="B","B",IF($AX24="C","C","")))) ->  | AU24: =IF($AT25="","",IF($AT25=0,0,IF($AT24="A",9000,IF($AT24="B",8000,IF($AT24="C",7000,0))))) ->  | AV24: =IF($E25="","",IF(COUNTIF($F24:$AM24,"A")=0,"","A")) ->  | AW24: =IF($E25="","",IF(COUNTIF($F24:$AM24,"B")=0,"","B")) ->  | AX24: =IF($E25="","",IF(COUNTIF($F24:$AM24,"C")=0,"","C")) -> 
B25: 10 | C25: =IF($E25="","",IF($D25<>"",$D25,IF($C24<>"-",概要設定!$B$6,INDEX(概要設定!$N$2:$O$6,MATCH(概要設定!$B$6, 概要設定!$N$2:$N$6,0),2)))) ->  | AN25: =IF($E25="","",COUNTIF($F25:$AL25,"w")) ->  | AO25: =IF($E25="","",COUNTIF($F25:$AL25,">=0")) ->  | AP25: =IF($E25="","",INT((SUM($F25:$AM25)+($C25*$AN25))*$K$2/$C25)) ->  | AQ25: =IF($E25="","",SUM(X$7:X$39)) ->  | AR25: =IF($E25="","",$AN25*100000000+$AP25*10000-$AQ25+$AU25*0.0001) ->  | AS25: =IF($E25="","",RANK($AR25,$AR$7:$AR$39)+COUNTIF($AR$7:$AR25,$AR25)-1) ->  | AT25: =IF($E25="","",IF($AV24="A",$AV25,IF($AW24="B",$AW25,IF($AX24="C",$AX25,$AY25)))) ->  | AV25: =IF($E25="","",IF(COUNTIF($F24:$AM24,"A")=0,"",MAX(IF($F24:$AL24="A",$G24:$AM24)))) ->  | AW25: =IF($E25="","",IF(COUNTIF($F24:$AM24,"B")=0,"",MAX(IF($F24:$AL24="B",$G24:$AM24)))) ->  | AX25: =IF($E25="","",IF(COUNTIF($F24:$AM24,"C")=0,"",MAX(IF($F24:$AL24="C",$G24:$AM24)))) ->  | AY25: =IF($E25="","",MAX($F24:$AM24)) -> 
C26: =IF($E27="","",INDEX(概要設定!$J$2:$L$51,MATCH($E27, 概要設定!$J$2:$J$51,0),3)) ->  | E26: =IF(ISERROR(INDEX(概要設定!$J$2:$K$51,MATCH($E27,概要設定!$J$2:$J$51,0),2)),"",INDEX(概要設定!$J$2:$K$51,MATCH($E27,概要設定!$J$2:$J$51,0),2)) ->  | AP26: =IF($E27="","",INT((SUM($F27:$AM27)+($C27*$AN27)))) ->  | AT26: =IF($E27="","",IF($AV26="A","A",IF($AW26="B","B",IF($AX26="C","C","")))) ->  | AU26: =IF($AT27="","",IF($AT27=0,0,IF($AT26="A",9000,IF($AT26="B",8000,IF($AT26="C",7000,0))))) ->  | AV26: =IF($E27="","",IF(COUNTIF($F26:$AM26,"A")=0,"","A")) ->  | AW26: =IF($E27="","",IF(COUNTIF($F26:$AM26,"B")=0,"","B")) ->  | AX26: =IF($E27="","",IF(COUNTIF($F26:$AM26,"C")=0,"","C")) -> 
B27: 11 | C27: =IF($E27="","",IF($D27<>"",$D27,IF($C26<>"-",概要設定!$B$6,INDEX(概要設定!$N$2:$O$6,MATCH(概要設定!$B$6, 概要設定!$N$2:$N$6,0),2)))) ->  | AN27: =IF($E27="","",COUNTIF($F27:$AL27,"w")) ->  | AO27: =IF($E27="","",COUNTIF($F27:$AL27,">=0")) ->  | AP27: =IF($E27="","",INT((SUM($F27:$AM27)+($C27*$AN27))*$K$2/$C27)) ->  | AQ27: =IF($E27="","",SUM(Z$7:Z$39)) ->  | AR27: =IF($E27="","",$AN27*100000000+$AP27*10000-$AQ27+$AU27*0.0001) ->  | AS27: =IF($E27="","",RANK($AR27,$AR$7:$AR$39)+COUNTIF($AR$7:$AR27,$AR27)-1) ->  | AT27: =IF($E27="","",IF($AV26="A",$AV27,IF($AW26="B",$AW27,IF($AX26="C",$AX27,$AY27)))) ->  | AV27: =IF($E27="","",IF(COUNTIF($F26:$AM26,"A")=0,"",MAX(IF($F26:$AL26="A",$G26:$AM26)))) ->  | AW27: =IF($E27="","",IF(COUNTIF($F26:$AM26,"B")=0,"",MAX(IF($F26:$AL26="B",$G26:$AM26)))) ->  | AX27: =IF($E27="","",IF(COUNTIF($F26:$AM26,"C")=0,"",MAX(IF($F26:$AL26="C",$G26:$AM26)))) ->  | AY27: =IF($E27="","",MAX($F26:$AM26)) -> 
C28: =IF($E29="","",INDEX(概要設定!$J$2:$L$51,MATCH($E29, 概要設定!$J$2:$J$51,0),3)) ->  | E28: =IF(ISERROR(INDEX(概要設定!$J$2:$K$51,MATCH($E29,概要設定!$J$2:$J$51,0),2)),"",INDEX(概要設定!$J$2:$K$51,MATCH($E29,概要設定!$J$2:$J$51,0),2)) ->  | AP28: =IF($E29="","",INT((SUM($F29:$AM29)+($C29*$AN29)))) ->  | AT28: =IF($E29="","",IF($AV28="A","A",IF($AW28="B","B",IF($AX28="C","C","")))) ->  | AU28: =IF($AT29="","",IF($AT29=0,0,IF($AT28="A",9000,IF($AT28="B",8000,IF($AT28="C",7000,0))))) ->  | AV28: =IF($E29="","",IF(COUNTIF($F28:$AM28,"A")=0,"","A")) ->  | AW28: =IF($E29="","",IF(COUNTIF($F28:$AM28,"B")=0,"","B")) ->  | AX28: =IF($E29="","",IF(COUNTIF($F28:$AM28,"C")=0,"","C")) -> 
B29: 12 | C29: =IF($E29="","",IF($D29<>"",$D29,IF($C28<>"-",概要設定!$B$6,INDEX(概要設定!$N$2:$O$6,MATCH(概要設定!$B$6, 概要設定!$N$2:$N$6,0),2)))) ->  | AN29: =IF($E29="","",COUNTIF($F29:$AL29,"w")) ->  | AO29: =IF($E29="","",COUNTIF($F29:$AL29,">=0")) ->  | AP29: =IF($E29="","",INT((SUM($F29:$AM29)+($C29*$AN29))*$K$2/$C29)) ->  | AQ29: =IF($E29="","",SUM(AB$7:AB$39)) ->  | AR29: =IF($E29="","",$AN29*100000000+$AP29*10000-$AQ29+$AU29*0.0001) ->  | AS29: =IF($E29="","",RANK($AR29,$AR$7:$AR$39)+COUNTIF($AR$7:$AR29,$AR29)-1) ->  | AT29: =IF($E29="","",IF($AV28="A",$AV29,IF($AW28="B",$AW29,IF($AX28="C",$AX29,$AY29)))) ->  | AV29: =IF($E29="","",IF(COUNTIF($F28:$AM28,"A")=0,"",MAX(IF($F28:$AL28="A",$G28:$AM28)))) ->  | AW29: =IF($E29="","",IF(COUNTIF($F28:$AM28,"B")=0,"",MAX(IF($F28:$AL28="B",$G28:$AM28)))) ->  | AX29: =IF($E29="","",IF(COUNTIF($F28:$AM28,"C")=0,"",MAX(IF($F28:$AL28="C",$G28:$AM28)))) ->  | AY29: =IF($E29="","",MAX($F28:$AM28)) -> 
C30: =IF($E31="","",INDEX(概要設定!$J$2:$L$51,MATCH($E31, 概要設定!$J$2:$J$51,0),3)) ->  | E30: =IF(ISERROR(INDEX(概要設定!$J$2:$K$51,MATCH($E31,概要設定!$J$2:$J$51,0),2)),"",INDEX(概要設定!$J$2:$K$51,MATCH($E31,概要設定!$J$2:$J$51,0),2)) ->  | AP30: =IF($E31="","",INT((SUM($F31:$AM31)+($C31*$AN31)))) ->  | AT30: =IF($E31="","",IF($AV30="A","A",IF($AW30="B","B",IF($AX30="C","C","")))) ->  | AU30: =IF($AT31="","",IF($AT31=0,0,IF($AT30="A",9000,IF($AT30="B",8000,IF($AT30="C",7000,0))))) ->  | AV30: =IF($E31="","",IF(COUNTIF($F30:$AM30,"A")=0,"","A")) ->  | AW30: =IF($E31="","",IF(COUNTIF($F30:$AM30,"B")=0,"","B")) ->  | AX30: =IF($E31="","",IF(COUNTIF($F30:$AM30,"C")=0,"","C")) -> 
B31: 13 | C31: =IF($E31="","",IF($D31<>"",$D31,IF($C30<>"-",概要設定!$B$6,INDEX(概要設定!$N$2:$O$6,MATCH(概要設定!$B$6, 概要設定!$N$2:$N$6,0),2)))) ->  | AN31: =IF($E31="","",COUNTIF($F31:$AL31,"w")) ->  | AO31: =IF($E31="","",COUNTIF($F31:$AL31,">=0")) ->  | AP31: =IF($E31="","",INT((SUM($F31:$AM31)+($C31*$AN31))*$K$2/$C31)) ->  | AQ31: =IF($E31="","",SUM(AD$7:AD$39)) ->  | AR31: =IF($E31="","",$AN31*100000000+$AP31*10000-$AQ31+$AU31*0.0001) ->  | AS31: =IF($E31="","",RANK($AR31,$AR$7:$AR$39)+COUNTIF($AR$7:$AR31,$AR31)-1) ->  | AT31: =IF($E31="","",IF($AV30="A",$AV31,IF($AW30="B",$AW31,IF($AX30="C",$AX31,$AY31)))) ->  | AV31: =IF($E31="","",IF(COUNTIF($F30:$AM30,"A")=0,"",MAX(IF($F30:$AL30="A",$G30:$AM30)))) ->  | AW31: =IF($E31="","",IF(COUNTIF($F30:$AM30,"B")=0,"",MAX(IF($F30:$AL30="B",$G30:$AM30)))) ->  | AX31: =IF($E31="","",IF(COUNTIF($F30:$AM30,"C")=0,"",MAX(IF($F30:$AL30="C",$G30:$AM30)))) ->  | AY31: =IF($E31="","",MAX($F30:$AM30)) -> 
C32: =IF($E33="","",INDEX(概要設定!$J$2:$L$51,MATCH($E33, 概要設定!$J$2:$J$51,0),3)) ->  | E32: =IF(ISERROR(INDEX(概要設定!$J$2:$K$51,MATCH($E33,概要設定!$J$2:$J$51,0),2)),"",INDEX(概要設定!$J$2:$K$51,MATCH($E33,概要設定!$J$2:$J$51,0),2)) ->  | AP32: =IF($E33="","",INT((SUM($F33:$AM33)+($C33*$AN33)))) ->  | AT32: =IF($E33="","",IF($AV32="A","A",IF($AW32="B","B",IF($AX32="C","C","")))) ->  | AU32: =IF($AT33="","",IF($AT33=0,0,IF($AT32="A",9000,IF($AT32="B",8000,IF($AT32="C",7000,0))))) ->  | AV32: =IF($E33="","",IF(COUNTIF($F32:$AM32,"A")=0,"","A")) ->  | AW32: =IF($E33="","",IF(COUNTIF($F32:$AM32,"B")=0,"","B")) ->  | AX32: =IF($E33="","",IF(COUNTIF($F32:$AM32,"C")=0,"","C")) -> 
B33: 14 | C33: =IF($E33="","",IF($D33<>"",$D33,IF($C32<>"-",概要設定!$B$6,INDEX(概要設定!$N$2:$O$6,MATCH(概要設定!$B$6, 概要設定!$N$2:$N$6,0),2)))) ->  | AN33: =IF($E33="","",COUNTIF($F33:$AL33,"w")) ->  | AO33: =IF($E33="","",COUNTIF($F33:$AL33,">=0")) ->  | AP33: =IF($E33="","",INT((SUM($F33:$AM33)+($C33*$AN33))*$K$2/$C33)) ->  | AQ33: =IF($E33="","",SUM(AF$7:AF$39)) ->  | AR33: =IF($E33="","",$AN33*100000000+$AP33*10000-$AQ33+$AU33*0.0001) ->  | AS33: =IF($E33="","",RANK($AR33,$AR$7:$AR$39)+COUNTIF($AR$7:$AR33,$AR33)-1) ->  | AT33: =IF($E33="","",IF($AV32="A",$AV33,IF($AW32="B",$AW33,IF($AX32="C",$AX33,$AY33)))) ->  | AV33: =IF($E33="","",IF(COUNTIF($F32:$AM32,"A")=0,"",MAX(IF($F32:$AL32="A",$G32:$AM32)))) ->  | AW33: =IF($E33="","",IF(COUNTIF($F32:$AM32,"B")=0,"",MAX(IF($F32:$AL32="B",$G32:$AM32)))) ->  | AX33: =IF($E33="","",IF(COUNTIF($F32:$AM32,"C")=0,"",MAX(IF($F32:$AL32="C",$G32:$AM32)))) ->  | AY33: =IF($E33="","",MAX($F32:$AM32)) -> 
C34: =IF($E35="","",INDEX(概要設定!$J$2:$L$51,MATCH($E35, 概要設定!$J$2:$J$51,0),3)) ->  | E34: =IF(ISERROR(INDEX(概要設定!$J$2:$K$51,MATCH($E35,概要設定!$J$2:$J$51,0),2)),"",INDEX(概要設定!$J$2:$K$51,MATCH($E35,概要設定!$J$2:$J$51,0),2)) ->  | AP34: =IF($E35="","",INT((SUM($F35:$AM35)+($C35*$AN35)))) ->  | AT34: =IF($E35="","",IF($AV34="A","A",IF($AW34="B","B",IF($AX34="C","C","")))) ->  | AU34: =IF($AT35="","",IF($AT35=0,0,IF($AT34="A",9000,IF($AT34="B",8000,IF($AT34="C",7000,0))))) ->  | AV34: =IF($E35="","",IF(COUNTIF($F34:$AM34,"A")=0,"","A")) ->  | AW34: =IF($E35="","",IF(COUNTIF($F34:$AM34,"B")=0,"","B")) ->  | AX34: =IF($E35="","",IF(COUNTIF($F34:$AM34,"C")=0,"","C")) -> 
B35: 15 | C35: =IF($E35="","",IF($D35<>"",$D35,IF($C34<>"-",概要設定!$B$6,INDEX(概要設定!$N$2:$O$6,MATCH(概要設定!$B$6, 概要設定!$N$2:$N$6,0),2)))) ->  | AN35: =IF($E35="","",COUNTIF($F35:$AL35,"w")) ->  | AO35: =IF($E35="","",COUNTIF($F35:$AL35,">=0")) ->  | AP35: =IF($E35="","",INT((SUM($F35:$AM35)+($C35*$AN35))*$K$2/$C35)) ->  | AQ35: =IF($E35="","",SUM(AH$7:AH$39)) ->  | AR35: =IF($E35="","",$AN35*100000000+$AP35*10000-$AQ35+$AU35*0.0001) ->  | AS35: =IF($E35="","",RANK($AR35,$AR$7:$AR$39)+COUNTIF($AR$7:$AR35,$AR35)-1) ->  | AT35: =IF($E35="","",IF($AV34="A",$AV35,IF($AW34="B",$AW35,IF($AX34="C",$AX35,$AY35)))) ->  | AV35: =IF($E35="","",IF(COUNTIF($F34:$AM34,"A")=0,"",MAX(IF($F34:$AL34="A",$G34:$AM34)))) ->  | AW35: =IF($E35="","",IF(COUNTIF($F34:$AM34,"B")=0,"",MAX(IF($F34:$AL34="B",$G34:$AM34)))) ->  | AX35: =IF($E35="","",IF(COUNTIF($F34:$AM34,"C")=0,"",MAX(IF($F34:$AL34="C",$G34:$AM34)))) ->  | AY35: =IF($E35="","",MAX($F34:$AM34)) -> 
C36: =IF($E37="","",INDEX(概要設定!$J$2:$L$51,MATCH($E37, 概要設定!$J$2:$J$51,0),3)) ->  | E36: =IF(ISERROR(INDEX(概要設定!$J$2:$K$51,MATCH($E37,概要設定!$J$2:$J$51,0),2)),"",INDEX(概要設定!$J$2:$K$51,MATCH($E37,概要設定!$J$2:$J$51,0),2)) ->  | AP36: =IF($E37="","",INT((SUM($F37:$AM37)+($C37*$AN37)))) ->  | AT36: =IF($E37="","",IF($AV36="A","A",IF($AW36="B","B",IF($AX36="C","C","")))) ->  | AU36: =IF($AT37="","",IF($AT37=0,0,IF($AT36="A",9000,IF($AT36="B",8000,IF($AT36="C",7000,0))))) ->  | AV36: =IF($E37="","",IF(COUNTIF($F36:$AM36,"A")=0,"","A")) ->  | AW36: =IF($E37="","",IF(COUNTIF($F36:$AM36,"B")=0,"","B")) ->  | AX36: =IF($E37="","",IF(COUNTIF($F36:$AM36,"C")=0,"","C")) -> 
B37: 16 | C37: =IF($E37="","",IF($D37<>"",$D37,IF($C36<>"-",概要設定!$B$6,INDEX(概要設定!$N$2:$O$6,MATCH(概要設定!$B$6, 概要設定!$N$2:$N$6,0),2)))) ->  | AN37: =IF($E37="","",COUNTIF($F37:$AL37,"w")) ->  | AO37: =IF($E37="","",COUNTIF($F37:$AL37,">=0")) ->  | AP37: =IF($E37="","",INT((SUM($F37:$AM37)+($C37*$AN37))*$K$2/$C37)) ->  | AQ37: =IF($E37="","",SUM(AJ$7:AJ$39)) ->  | AR37: =IF($E37="","",$AN37*100000000+$AP37*10000-$AQ37+$AU37*0.0001) ->  | AS37: =IF($E37="","",RANK($AR37,$AR$7:$AR$39)+COUNTIF($AR$7:$AR37,$AR37)-1) ->  | AT37: =IF($E37="","",IF($AV36="A",$AV37,IF($AW36="B",$AW37,IF($AX36="C",$AX37,$AY37)))) ->  | AV37: =IF($E37="","",IF(COUNTIF($F36:$AM36,"A")=0,"",MAX(IF($F36:$AL36="A",$G36:$AM36)))) ->  | AW37: =IF($E37="","",IF(COUNTIF($F36:$AM36,"B")=0,"",MAX(IF($F36:$AL36="B",$G36:$AM36)))) ->  | AX37: =IF($E37="","",IF(COUNTIF($F36:$AM36,"C")=0,"",MAX(IF($F36:$AL36="C",$G36:$AM36)))) ->  | AY37: =IF($E37="","",MAX($F36:$AM36)) -> 
C38: =IF($E39="","",INDEX(概要設定!$J$2:$L$51,MATCH($E39, 概要設定!$J$2:$J$51,0),3)) ->  | E38: =IF(ISERROR(INDEX(概要設定!$J$2:$K$51,MATCH($E39,概要設定!$J$2:$J$51,0),2)),"",INDEX(概要設定!$J$2:$K$51,MATCH($E39,概要設定!$J$2:$J$51,0),2)) ->  | AP38: =IF($E39="","",INT((SUM($F39:$AM39)+($C39*$AN39)))) ->  | AT38: =IF($E39="","",IF($AV38="A","A",IF($AW38="B","B",IF($AX38="C","C","")))) ->  | AU38: =IF($AT39="","",IF($AT39=0,0,IF($AT38="A",9000,IF($AT38="B",8000,IF($AT38="C",7000,0))))) ->  | AV38: =IF($E39="","",IF(COUNTIF($F38:$AM38,"A")=0,"","A")) ->  | AW38: =IF($E39="","",IF(COUNTIF($F38:$AM38,"B")=0,"","B")) ->  | AX38: =IF($E39="","",IF(COUNTIF($F38:$AM38,"C")=0,"","C")) -> 
B39: 17 | C39: =IF($E39="","",IF($D39<>"",$D39,IF($C38<>"-",概要設定!$B$6,INDEX(概要設定!$N$2:$O$6,MATCH(概要設定!$B$6, 概要設定!$N$2:$N$6,0),2)))) ->  | AN39: =IF($E39="","",COUNTIF($F39:$AL39,"w")) ->  | AO39: =IF($E39="","",COUNTIF($F39:$AL39,">=0")) ->  | AP39: =IF($E39="","",INT((SUM($F39:$AM39)+($C39*$AN39))*$K$2/$C39)) ->  | AQ39: =IF($E39="","",SUM(AL$7:AL$39)) ->  | AR39: =IF($E39="","",$AN39*100000000+$AP39*10000-$AQ39+$AU39*0.0001) ->  | AS39: =IF($E39="","",RANK($AR39,$AR$7:$AR$39)+COUNTIF($AR$7:$AR39,$AR39)-1) ->  | AT39: =IF($E39="","",IF($AV38="A",$AV39,IF($AW38="B",$AW39,IF($AX38="C",$AX39,$AY39)))) ->  | AV39: =IF($E39="","",IF(COUNTIF($F38:$AM38,"A")=0,"",MAX(IF($F38:$AL38="A",$G38:$AM38)))) ->  | AW39: =IF($E39="","",IF(COUNTIF($F38:$AM38,"B")=0,"",MAX(IF($F38:$AL38="B",$G38:$AM38)))) ->  | AX39: =IF($E39="","",IF(COUNTIF($F38:$AM38,"C")=0,"",MAX(IF($F38:$AL38="C",$G38:$AM38)))) ->  | AY39: =IF($E39="","",MAX($F38:$AM38)) -> 
E40: ※注1）赤組17人まで ※注2）印刷する時はマス目以外の所でクリック（A1） ※注3）負けスコア入力後”w”が自動表示、Ctrl+qは自分相手クリア、Ctrl+f は全てクリア、Ctrl+k は対戦マス目のみクリア
F42: 記入例 | H42: A | I42: 180 | L42: B | M42: 180 | Q42: 110 | U42: 110
H43: w | L43: w | P43: w | T43: 120

Sheet 赤RT
C1: 人数、節数により自動でRTを作成→ | J1: 人数は： | K1: =IF(赤!$E7 ="",0,(34 - COUNTIF(赤!$E$6:$E$39,""))/2) -> 8 | L1: 人 | M1: 列数は： | N1: =IF($K$1<3,"",HLOOKUP($K$1,list!$A$1:$BW$2,2,FALSE)) -> 27 | O1: 列 | P1: (listセルの開始列数) | AB1: 赤の選手を登録すると人数が自動表示されます。（3人～１７人まで対応、人数は入力しないで下さい。）
B2: 赤組 | D2: ←スコアを赤セルに反映 | J2: 何節まで： | K2: 99 | L2: 節 | P2: 赤側の行と列変換 | AB2: 表示させる節数を入力。（”９９”と入力すると全節が表示され”０”だと全節クリアされます。）
A3: 試合数 | B3: 節数/No. | C3: 名 前 | D3: スコア | F3: スコア | H3: 名 前 | I3: No. | M3: スコアL行 | N3: スコアL列 | O3: ABL行 | P3: ABL列 | Q3: HRL行 | R3: HRL列 | S3: ハンデ左 | T3: スコアL行 | U3: スコアL列 | V3: ABR行 | W3: ABR列 | X3: HRR行 | Y3: HRR列 | Z3: ハンデ右 | AB3: 入力手順 ： RTクリア ＞ 赤で選手を選択 ＞ 何節まで：表示させる節数を入力 ＞ RT作成 ＞ スコア入力 ＞ 赤へ反映
C4: =IF(ISERROR(INDEX(概要設定!$J$2:$K$51,MATCH($C5,概要設定!$J$2:$J$51,0),2)),"",INDEX(概要設定!$J$2:$K$51,MATCH($C5,概要設定!$J$2:$J$51,0),2)) ->  | H4: =IF(ISERROR(INDEX(概要設定!$J$2:$K$51,MATCH($H5,概要設定!$J$2:$J$51,0),2)),"",INDEX(概要設定!$J$2:$K$51,MATCH($H5,概要設定!$J$2:$J$51,0),2)) -> 
B5: 一節 | C5: =IF(AND($B5>=1,$B5<=17),INDEX(赤!$B$6:$E$39,MATCH($B5,赤!$B$6:$B$39,0),4),"") ->  | H5: =IF(AND($I5>=1,$I5<=17),INDEX(赤!$B$6:$E$39,MATCH($I5,赤!$B$6:$B$39,0),4),"") ->  | K5: ←RT・ラベルを初期化 | M5: =IF($A5="","",$B5+$B5+5) ->  | N5: =IF($A5="","",$I5+$I5+4) ->  | O5: =IF($A5="","",$M5-1) ->  | P5: =IF($A5="","",$N5) ->  | Q5: =IF($A5="","",$M5-1) ->  | R5: =IF($A5="","",$N5+1) ->  | S5: =IF(AND($B5>=1,$B5<=17),INDEX(赤!$B$6:$E$39,MATCH($B5,赤!$B$6:$B$39,0),2),"") ->  | T5: =IF($A5="","",$I5+$I5+5) ->  | U5: =IF($A5="","",$B5+$B5+4) ->  | V5: =IF($A5="","",$T5-1) ->  | W5: =IF($A5="","",$U5) ->  | X5: =IF($A5="","",$T5-1) ->  | Y5: =IF($A5="","",$U5+1) ->  | Z5: =IF(AND($I5>=1,$I5<=17),INDEX(赤!$B$6:$E$39,MATCH($I5,赤!$B$6:$B$39,0),2),"") -> 
C6: =IF(ISERROR(INDEX(概要設定!$J$2:$K$51,MATCH($C7,概要設定!$J$2:$J$51,0),2)),"",INDEX(概要設定!$J$2:$K$51,MATCH($C7,概要設定!$J$2:$J$51,0),2)) -> みずた よしひろ | H6: =IF(ISERROR(INDEX(概要設定!$J$2:$K$51,MATCH($H7,概要設定!$J$2:$J$51,0),2)),"",INDEX(概要設定!$J$2:$K$51,MATCH($H7,概要設定!$J$2:$J$51,0),2)) -> みねやま たかし
A7: 1 | B7: 4 | C7: =IF(AND($B7>=1,$B7<=17),INDEX(赤!$B$6:$E$39,MATCH($B7,赤!$B$6:$B$39,0),4),"") -> 水田 賢宏 | D7: 89 | F7: w | H7: =IF(AND($I7>=1,$I7<=17),INDEX(赤!$B$6:$E$39,MATCH($I7,赤!$B$6:$B$39,0),4),"") -> 峯山 崇史 | I7: 5 | M7: =IF($A7="","",$B7+$B7+5) -> 13 | N7: =IF($A7="","",$I7+$I7+4) -> 14 | O7: =IF($A7="","",$M7-1) -> 12 | P7: =IF($A7="","",$N7) -> 14 | Q7: =IF($A7="","",$M7-1) -> 12 | R7: =IF($A7="","",$N7+1) -> 15 | S7: =IF(AND($B7>=1,$B7<=17),INDEX(赤!$B$6:$E$39,MATCH($B7,赤!$B$6:$B$39,0),2),"") -> 180 | T7: =IF($A7="","",$I7+$I7+5) -> 15 | U7: =IF($A7="","",$B7+$B7+4) -> 12 | V7: =IF($A7="","",$T7-1) -> 14 | W7: =IF($A7="","",$U7) -> 12 | X7: =IF($A7="","",$T7-1) -> 14 | Y7: =IF($A7="","",$U7+1) -> 13 | Z7: =IF(AND($I7>=1,$I7<=17),INDEX(赤!$B$6:$E$39,MATCH($I7,赤!$B$6:$B$39,0),2),"") -> 180
C8: =IF(ISERROR(INDEX(概要設定!$J$2:$K$51,MATCH($C9,概要設定!$J$2:$J$51,0),2)),"",INDEX(概要設定!$J$2:$K$51,MATCH($C9,概要設定!$J$2:$J$51,0),2)) -> やまだ くにゆき | H8: =IF(ISERROR(INDEX(概要設定!$J$2:$K$51,MATCH($H9,概要設定!$J$2:$J$51,0),2)),"",INDEX(概要設定!$J$2:$K$51,MATCH($H9,概要設定!$J$2:$J$51,0),2)) -> みやの さおり
A9: 2 | B9: 3 | C9: =IF(AND($B9>=1,$B9<=17),INDEX(赤!$B$6:$E$39,MATCH($B9,赤!$B$6:$B$39,0),4),"") -> 山田 晋之 | D9: w | F9: 6 | H9: =IF(AND($I9>=1,$I9<=17),INDEX(赤!$B$6:$E$39,MATCH($I9,赤!$B$6:$B$39,0),4),"") -> 宮野 早織 | I9: 6 | M9: =IF($A9="","",$B9+$B9+5) -> 11 | N9: =IF($A9="","",$I9+$I9+4) -> 16 | O9: =IF($A9="","",$M9-1) -> 10 | P9: =IF($A9="","",$N9) -> 16 | Q9: =IF($A9="","",$M9-1) -> 10 | R9: =IF($A9="","",$N9+1) -> 17 | S9: =IF(AND($B9>=1,$B9<=17),INDEX(赤!$B$6:$E$39,MATCH($B9,赤!$B$6:$B$39,0),2),"") -> 180 | T9: =IF($A9="","",$I9+$I9+5) -> 17 | U9: =IF($A9="","",$B9+$B9+4) -> 10 | V9: =IF($A9="","",$T9-1) -> 16 | W9: =IF($A9="","",$U9) -> 10 | X9: =IF($A9="","",$T9-1) -> 16 | Y9: =IF($A9="","",$U9+1) -> 11 | Z9: =IF(AND($I9>=1,$I9<=17),INDEX(赤!$B$6:$E$39,MATCH($I9,赤!$B$6:$B$39,0),2),"") -> 140
C10: =IF(ISERROR(INDEX(概要設定!$J$2:$K$51,MATCH($C11,概要設定!$J$2:$J$51,0),2)),"",INDEX(概要設定!$J$2:$K$51,MATCH($C11,概要設定!$J$2:$J$51,0),2)) -> こんどう たくま | H10: =IF(ISERROR(INDEX(概要設定!$J$2:$K$51,MATCH($H11,概要設定!$J$2:$J$51,0),2)),"",INDEX(概要設定!$J$2:$K$51,MATCH($H11,概要設定!$J$2:$J$51,0),2)) -> いわもと つよし | AB10: 記入例 | AC10: A | AD10: 180 | AF10: B | AG10: 180 | AJ10: 110
A11: 3 | B11: 2 | C11: =IF(AND($B11>=1,$B11<=17),INDEX(赤!$B$6:$E$39,MATCH($B11,赤!$B$6:$B$39,0),4),"") -> 近藤 拓馬 | D11: 13 | F11: w | H11: =IF(AND($I11>=1,$I11<=17),INDEX(赤!$B$6:$E$39,MATCH($I11,赤!$B$6:$B$39,0),4),"") -> 岩本 剛 | I11: 7 | M11: =IF($A11="","",$B11+$B11+5) -> 9 | N11: =IF($A11="","",$I11+$I11+4) -> 18 | O11: =IF($A11="","",$M11-1) -> 8 | P11: =IF($A11="","",$N11) -> 18 | Q11: =IF($A11="","",$M11-1) -> 8 | R11: =IF($A11="","",$N11+1) -> 19 | S11: =IF(AND($B11>=1,$B11<=17),INDEX(赤!$B$6:$E$39,MATCH($B11,赤!$B$6:$B$39,0),2),"") -> 180 | T11: =IF($A11="","",$I11+$I11+5) -> 19 | U11: =IF($A11="","",$B11+$B11+4) -> 8 | V11: =IF($A11="","",$T11-1) -> 18 | W11: =IF($A11="","",$U11) -> 8 | X11: =IF($A11="","",$T11-1) -> 18 | Y11: =IF($A11="","",$U11+1) -> 9 | Z11: =IF(AND($I11>=1,$I11<=17),INDEX(赤!$B$6:$E$39,MATCH($I11,赤!$B$6:$B$39,0),2),"") -> 180 | AC11: w | AF11: w | AI11: 125
C12: =IF(ISERROR(INDEX(概要設定!$J$2:$K$51,MATCH($C13,概要設定!$J$2:$J$51,0),2)),"",INDEX(概要設定!$J$2:$K$51,MATCH($C13,概要設定!$J$2:$J$51,0),2)) -> きっこう しょうへい | H12: =IF(ISERROR(INDEX(概要設定!$J$2:$K$51,MATCH($H13,概要設定!$J$2:$J$51,0),2)),"",INDEX(概要設定!$J$2:$K$51,MATCH($H13,概要設定!$J$2:$J$51,0),2)) -> さとう じゅんいち
A13: 4 | B13: 1 | C13: =IF(AND($B13>=1,$B13<=17),INDEX(赤!$B$6:$E$39,MATCH($B13,赤!$B$6:$B$39,0),4),"") -> 吉向 翔平 | D13: w | F13: 54 | H13: =IF(AND($I13>=1,$I13<=17),INDEX(赤!$B$6:$E$39,MATCH($I13,赤!$B$6:$B$39,0),4),"") -> 佐藤 循一 | I13: 8 | M13: =IF($A13="","",$B13+$B13+5) -> 7 | N13: =IF($A13="","",$I13+$I13+4) -> 20 | O13: =IF($A13="","",$M13-1) -> 6 | P13: =IF($A13="","",$N13) -> 20 | Q13: =IF($A13="","",$M13-1) -> 6 | R13: =IF($A13="","",$N13+1) -> 21 | S13: =IF(AND($B13>=1,$B13<=17),INDEX(赤!$B$6:$E$39,MATCH($B13,赤!$B$6:$B$39,0),2),"") -> 180 | T13: =IF($A13="","",$I13+$I13+5) -> 21 | U13: =IF($A13="","",$B13+$B13+4) -> 6 | V13: =IF($A13="","",$T13-1) -> 20 | W13: =IF($A13="","",$U13) -> 6 | X13: =IF($A13="","",$T13-1) -> 20 | Y13: =IF($A13="","",$U13+1) -> 7 | Z13: =IF(AND($I13>=1,$I13<=17),INDEX(赤!$B$6:$E$39,MATCH($I13,赤!$B$6:$B$39,0),2),"") -> 180 | AC13: 勝者は"w"半角小文字で入力して下さい。
C14: =IF(ISERROR(INDEX(概要設定!$J$2:$K$51,MATCH($C15,概要設定!$J$2:$J$51,0),2)),"",INDEX(概要設定!$J$2:$K$51,MATCH($C15,概要設定!$J$2:$J$51,0),2)) ->  | H14: =IF(ISERROR(INDEX(概要設定!$J$2:$K$51,MATCH($H15,概要設定!$J$2:$J$51,0),2)),"",INDEX(概要設定!$J$2:$K$51,MATCH($H15,概要設定!$J$2:$J$51,0),2)) -> 
B15: 二節 | C15: =IF(AND($B15>=1,$B15<=17),INDEX(赤!$B$6:$E$39,MATCH($B15,赤!$B$6:$B$39,0),4),"") ->  | H15: =IF(AND($I15>=1,$I15<=17),INDEX(赤!$B$6:$E$39,MATCH($I15,赤!$B$6:$B$39,0),4),"") ->  | M15: =IF($A15="","",$B15+$B15+5) ->  | N15: =IF($A15="","",$I15+$I15+4) ->  | O15: =IF($A15="","",$M15-1) ->  | P15: =IF($A15="","",$N15) ->  | Q15: =IF($A15="","",$M15-1) ->  | R15: =IF($A15="","",$N15+1) ->  | S15: =IF(AND($B15>=1,$B15<=17),INDEX(赤!$B$6:$E$39,MATCH($B15,赤!$B$6:$B$39,0),2),"") ->  | T15: =IF($A15="","",$I15+$I15+5) ->  | U15: =IF($A15="","",$B15+$B15+4) ->  | V15: =IF($A15="","",$T15-1) ->  | W15: =IF($A15="","",$U15) ->  | X15: =IF($A15="","",$T15-1) ->  | Y15: =IF($A15="","",$U15+1) ->  | Z15: =IF(AND($I15>=1,$I15<=17),INDEX(赤!$B$6:$E$39,MATCH($I15,赤!$B$6:$B$39,0),2),"") ->  | AC15: 敗者側のスコアを入力すると相手側に”ｗ”が自動表示されます。
C16: =IF(ISERROR(INDEX(概要設定!$J$2:$K$51,MATCH($C17,概要設定!$J$2:$J$51,0),2)),"",INDEX(概要設定!$J$2:$K$51,MATCH($C17,概要設定!$J$2:$J$51,0),2)) -> やまだ くにゆき | H16: =IF(ISERROR(INDEX(概要設定!$J$2:$K$51,MATCH($H17,概要設定!$J$2:$J$51,0),2)),"",INDEX(概要設定!$J$2:$K$51,MATCH($H17,概要設定!$J$2:$J$51,0),2)) -> みずた よしひろ
A17: 5 | B17: 3 | C17: =IF(AND($B17>=1,$B17<=17),INDEX(赤!$B$6:$E$39,MATCH($B17,赤!$B$6:$B$39,0),4),"") -> 山田 晋之 | D17: w | F17: 107 | H17: =IF(AND($I17>=1,$I17<=17),INDEX(赤!$B$6:$E$39,MATCH($I17,赤!$B$6:$B$39,0),4),"") -> 水田 賢宏 | I17: 4 | M17: =IF($A17="","",$B17+$B17+5) -> 11 | N17: =IF($A17="","",$I17+$I17+4) -> 12 | O17: =IF($A17="","",$M17-1) -> 10 | P17: =IF($A17="","",$N17) -> 12 | Q17: =IF($A17="","",$M17-1) -> 10 | R17: =IF($A17="","",$N17+1) -> 13 | S17: =IF(AND($B17>=1,$B17<=17),INDEX(赤!$B$6:$E$39,MATCH($B17,赤!$B$6:$B$39,0),2),"") -> 180 | T17: =IF($A17="","",$I17+$I17+5) -> 13 | U17: =IF($A17="","",$B17+$B17+4) -> 10 | V17: =IF($A17="","",$T17-1) -> 12 | W17: =IF($A17="","",$U17) -> 10 | X17: =IF($A17="","",$T17-1) -> 12 | Y17: =IF($A17="","",$U17+1) -> 11 | Z17: =IF(AND($I17>=1,$I17<=17),INDEX(赤!$B$6:$E$39,MATCH($I17,赤!$B$6:$B$39,0),2),"") -> 180
C18: =IF(ISERROR(INDEX(概要設定!$J$2:$K$51,MATCH($C19,概要設定!$J$2:$J$51,0),2)),"",INDEX(概要設定!$J$2:$K$51,MATCH($C19,概要設定!$J$2:$J$51,0),2)) -> こんどう たくま | H18: =IF(ISERROR(INDEX(概要設定!$J$2:$K$51,MATCH($H19,概要設定!$J$2:$J$51,0),2)),"",INDEX(概要設定!$J$2:$K$51,MATCH($H19,概要設定!$J$2:$J$51,0),2)) -> みねやま たかし
A19: 6 | B19: 2 | C19: =IF(AND($B19>=1,$B19<=17),INDEX(赤!$B$6:$E$39,MATCH($B19,赤!$B$6:$B$39,0),4),"") -> 近藤 拓馬 | D19: w | F19: 148 | H19: =IF(AND($I19>=1,$I19<=17),INDEX(赤!$B$6:$E$39,MATCH($I19,赤!$B$6:$B$39,0),4),"") -> 峯山 崇史 | I19: 5 | M19: =IF($A19="","",$B19+$B19+5) -> 9 | N19: =IF($A19="","",$I19+$I19+4) -> 14 | O19: =IF($A19="","",$M19-1) -> 8 | P19: =IF($A19="","",$N19) -> 14 | Q19: =IF($A19="","",$M19-1) -> 8 | R19: =IF($A19="","",$N19+1) -> 15 | S19: =IF(AND($B19>=1,$B19<=17),INDEX(赤!$B$6:$E$39,MATCH($B19,赤!$B$6:$B$39,0),2),"") -> 180 | T19: =IF($A19="","",$I19+$I19+5) -> 15 | U19: =IF($A19="","",$B19+$B19+4) -> 8 | V19: =IF($A19="","",$T19-1) -> 14 | W19: =IF($A19="","",$U19) -> 8 | X19: =IF($A19="","",$T19-1) -> 14 | Y19: =IF($A19="","",$U19+1) -> 9 | Z19: =IF(AND($I19>=1,$I19<=17),INDEX(赤!$B$6:$E$39,MATCH($I19,赤!$B$6:$B$39,0),2),"") -> 180
C20: =IF(ISERROR(INDEX(概要設定!$J$2:$K$51,MATCH($C21,概要設定!$J$2:$J$51,0),2)),"",INDEX(概要設定!$J$2:$K$51,MATCH($C21,概要設定!$J$2:$J$51,0),2)) -> さとう じゅんいち | H20: =IF(ISERROR(INDEX(概要設定!$J$2:$K$51,MATCH($H21,概要設定!$J$2:$J$51,0),2)),"",INDEX(概要設定!$J$2:$K$51,MATCH($H21,概要設定!$J$2:$J$51,0),2)) -> みやの さおり
A21: 7 | B21: 8 | C21: =IF(AND($B21>=1,$B21<=17),INDEX(赤!$B$6:$E$39,MATCH($B21,赤!$B$6:$B$39,0),4),"") -> 佐藤 循一 | D21: 37 | F21: w | H21: =IF(AND($I21>=1,$I21<=17),INDEX(赤!$B$6:$E$39,MATCH($I21,赤!$B$6:$B$39,0),4),"") -> 宮野 早織 | I21: 6 | M21: =IF($A21="","",$B21+$B21+5) -> 21 | N21: =IF($A21="","",$I21+$I21+4) -> 16 | O21: =IF($A21="","",$M21-1) -> 20 | P21: =IF($A21="","",$N21) -> 16 | Q21: =IF($A21="","",$M21-1) -> 20 | R21: =IF($A21="","",$N21+1) -> 17 | S21: =IF(AND($B21>=1,$B21<=17),INDEX(赤!$B$6:$E$39,MATCH($B21,赤!$B$6:$B$39,0),2),"") -> 180 | T21: =IF($A21="","",$I21+$I21+5) -> 17 | U21: =IF($A21="","",$B21+$B21+4) -> 20 | V21: =IF($A21="","",$T21-1) -> 16 | W21: =IF($A21="","",$U21) -> 20 | X21: =IF($A21="","",$T21-1) -> 16 | Y21: =IF($A21="","",$U21+1) -> 21 | Z21: =IF(AND($I21>=1,$I21<=17),INDEX(赤!$B$6:$E$39,MATCH($I21,赤!$B$6:$B$39,0),2),"") -> 140
C22: =IF(ISERROR(INDEX(概要設定!$J$2:$K$51,MATCH($C23,概要設定!$J$2:$J$51,0),2)),"",INDEX(概要設定!$J$2:$K$51,MATCH($C23,概要設定!$J$2:$J$51,0),2)) -> きっこう しょうへい | H22: =IF(ISERROR(INDEX(概要設定!$J$2:$K$51,MATCH($H23,概要設定!$J$2:$J$51,0),2)),"",INDEX(概要設定!$J$2:$K$51,MATCH($H23,概要設定!$J$2:$J$51,0),2)) -> いわもと つよし
A23: 8 | B23: 1 | C23: =IF(AND($B23>=1,$B23<=17),INDEX(赤!$B$6:$E$39,MATCH($B23,赤!$B$6:$B$39,0),4),"") -> 吉向 翔平 | D23: w | F23: 31 | H23: =IF(AND($I23>=1,$I23<=17),INDEX(赤!$B$6:$E$39,MATCH($I23,赤!$B$6:$B$39,0),4),"") -> 岩本 剛 | I23: 7 | M23: =IF($A23="","",$B23+$B23+5) -> 7 | N23: =IF($A23="","",$I23+$I23+4) -> 18 | O23: =IF($A23="","",$M23-1) -> 6 | P23: =IF($A23="","",$N23) -> 18 | Q23: =IF($A23="","",$M23-1) -> 6 | R23: =IF($A23="","",$N23+1) -> 19 | S23: =IF(AND($B23>=1,$B23<=17),INDEX(赤!$B$6:$E$39,MATCH($B23,赤!$B$6:$B$39,0),2),"") -> 180 | T23: =IF($A23="","",$I23+$I23+5) -> 19 | U23: =IF($A23="","",$B23+$B23+4) -> 6 | V23: =IF($A23="","",$T23-1) -> 18 | W23: =IF($A23="","",$U23) -> 6 | X23: =IF($A23="","",$T23-1) -> 18 | Y23: =IF($A23="","",$U23+1) -> 7 | Z23: =IF(AND($I23>=1,$I23<=17),INDEX(赤!$B$6:$E$39,MATCH($I23,赤!$B$6:$B$39,0),2),"") -> 180
C24: =IF(ISERROR(INDEX(概要設定!$J$2:$K$51,MATCH($C25,概要設定!$J$2:$J$51,0),2)),"",INDEX(概要設定!$J$2:$K$51,MATCH($C25,概要設定!$J$2:$J$51,0),2)) ->  | H24: =IF(ISERROR(INDEX(概要設定!$J$2:$K$51,MATCH($H25,概要設定!$J$2:$J$51,0),2)),"",INDEX(概要設定!$J$2:$K$51,MATCH($H25,概要設定!$J$2:$J$51,0),2)) -> 
B25: 三節 | C25: =IF(AND($B25>=1,$B25<=17),INDEX(赤!$B$6:$E$39,MATCH($B25,赤!$B$6:$B$39,0),4),"") ->  | H25: =IF(AND($I25>=1,$I25<=17),INDEX(赤!$B$6:$E$39,MATCH($I25,赤!$B$6:$B$39,0),4),"") ->  | M25: =IF($A25="","",$B25+$B25+5) ->  | N25: =IF($A25="","",$I25+$I25+4) ->  | O25: =IF($A25="","",$M25-1) ->  | P25: =IF($A25="","",$N25) ->  | Q25: =IF($A25="","",$M25-1) ->  | R25: =IF($A25="","",$N25+1) ->  | S25: =IF(AND($B25>=1,$B25<=17),INDEX(赤!$B$6:$E$39,MATCH($B25,赤!$B$6:$B$39,0),2),"") ->  | T25: =IF($A25="","",$I25+$I25+5) ->  | U25: =IF($A25="","",$B25+$B25+4) ->  | V25: =IF($A25="","",$T25-1) ->  | W25: =IF($A25="","",$U25) ->  | X25: =IF($A25="","",$T25-1) ->  | Y25: =IF($A25="","",$U25+1) ->  | Z25: =IF(AND($I25>=1,$I25<=17),INDEX(赤!$B$6:$E$39,MATCH($I25,赤!$B$6:$B$39,0),2),"") -> 
C26: =IF(ISERROR(INDEX(概要設定!$J$2:$K$51,MATCH($C27,概要設定!$J$2:$J$51,0),2)),"",INDEX(概要設定!$J$2:$K$51,MATCH($C27,概要設定!$J$2:$J$51,0),2)) -> こんどう たくま | H26: =IF(ISERROR(INDEX(概要設定!$J$2:$K$51,MATCH($H27,概要設定!$J$2:$J$51,0),2)),"",INDEX(概要設定!$J$2:$K$51,MATCH($H27,概要設定!$J$2:$J$51,0),2)) -> やまだ くにゆき
A27: 9 | B27: 2 | C27: =IF(AND($B27>=1,$B27<=17),INDEX(赤!$B$6:$E$39,MATCH($B27,赤!$B$6:$B$39,0),4),"") -> 近藤 拓馬 | D27: w | F27: 163 | H27: =IF(AND($I27>=1,$I27<=17),INDEX(赤!$B$6:$E$39,MATCH($I27,赤!$B$6:$B$39,0),4),"") -> 山田 晋之 | I27: 3 | M27: =IF($A27="","",$B27+$B27+5) -> 9 | N27: =IF($A27="","",$I27+$I27+4) -> 10 | O27: =IF($A27="","",$M27-1) -> 8 | P27: =IF($A27="","",$N27) -> 10 | Q27: =IF($A27="","",$M27-1) -> 8 | R27: =IF($A27="","",$N27+1) -> 11 | S27: =IF(AND($B27>=1,$B27<=17),INDEX(赤!$B$6:$E$39,MATCH($B27,赤!$B$6:$B$39,0),2),"") -> 180 | T27: =IF($A27="","",$I27+$I27+5) -> 11 | U27: =IF($A27="","",$B27+$B27+4) -> 8 | V27: =IF($A27="","",$T27-1) -> 10 | W27: =IF($A27="","",$U27) -> 8 | X27: =IF($A27="","",$T27-1) -> 10 | Y27: =IF($A27="","",$U27+1) -> 9 | Z27: =IF(AND($I27>=1,$I27<=17),INDEX(赤!$B$6:$E$39,MATCH($I27,赤!$B$6:$B$39,0),2),"") -> 180
C28: =IF(ISERROR(INDEX(概要設定!$J$2:$K$51,MATCH($C29,概要設定!$J$2:$J$51,0),2)),"",INDEX(概要設定!$J$2:$K$51,MATCH($C29,概要設定!$J$2:$J$51,0),2)) -> さとう じゅんいち | G28: 115 | H28: =IF(ISERROR(INDEX(概要設定!$J$2:$K$51,MATCH($H29,概要設定!$J$2:$J$51,0),2)),"",INDEX(概要設定!$J$2:$K$51,MATCH($H29,概要設定!$J$2:$J$51,0),2)) -> みずた よしひろ
A29: 10 | B29: 8 | C29: =IF(AND($B29>=1,$B29<=17),INDEX(赤!$B$6:$E$39,MATCH($B29,赤!$B$6:$B$39,0),4),"") -> 佐藤 循一 | D29: 123 | F29: w | H29: =IF(AND($I29>=1,$I29<=17),INDEX(赤!$B$6:$E$39,MATCH($I29,赤!$B$6:$B$39,0),4),"") -> 水田 賢宏 | I29: 4 | M29: =IF($A29="","",$B29+$B29+5) -> 21 | N29: =IF($A29="","",$I29+$I29+4) -> 12 | O29: =IF($A29="","",$M29-1) -> 20 | P29: =IF($A29="","",$N29) -> 12 | Q29: =IF($A29="","",$M29-1) -> 20 | R29: =IF($A29="","",$N29+1) -> 13 | S29: =IF(AND($B29>=1,$B29<=17),INDEX(赤!$B$6:$E$39,MATCH($B29,赤!$B$6:$B$39,0),2),"") -> 180 | T29: =IF($A29="","",$I29+$I29+5) -> 13 | U29: =IF($A29="","",$B29+$B29+4) -> 20 | V29: =IF($A29="","",$T29-1) -> 12 | W29: =IF($A29="","",$U29) -> 20 | X29: =IF($A29="","",$T29-1) -> 12 | Y29: =IF($A29="","",$U29+1) -> 21 | Z29: =IF(AND($I29>=1,$I29<=17),INDEX(赤!$B$6:$E$39,MATCH($I29,赤!$B$6:$B$39,0),2),"") -> 180
C30: =IF(ISERROR(INDEX(概要設定!$J$2:$K$51,MATCH($C31,概要設定!$J$2:$J$51,0),2)),"",INDEX(概要設定!$J$2:$K$51,MATCH($C31,概要設定!$J$2:$J$51,0),2)) -> いわもと つよし | H30: =IF(ISERROR(INDEX(概要設定!$J$2:$K$51,MATCH($H31,概要設定!$J$2:$J$51,0),2)),"",INDEX(概要設定!$J$2:$K$51,MATCH($H31,概要設定!$J$2:$J$51,0),2)) -> みねやま たかし
A31: 11 | B31: 7 | C31: =IF(AND($B31>=1,$B31<=17),INDEX(赤!$B$6:$E$39,MATCH($B31,赤!$B$6:$B$39,0),4),"") -> 岩本 剛 | D31: w | F31: 141 | H31: =IF(AND($I31>=1,$I31<=17),INDEX(赤!$B$6:$E$39,MATCH($I31,赤!$B$6:$B$39,0),4),"") -> 峯山 崇史 | I31: 5 | M31: =IF($A31="","",$B31+$B31+5) -> 19 | N31: =IF($A31="","",$I31+$I31+4) -> 14 | O31: =IF($A31="","",$M31-1) -> 18 | P31: =IF($A31="","",$N31) -> 14 | Q31: =IF($A31="","",$M31-1) -> 18 | R31: =IF($A31="","",$N31+1) -> 15 | S31: =IF(AND($B31>=1,$B31<=17),INDEX(赤!$B$6:$E$39,MATCH($B31,赤!$B$6:$B$39,0),2),"") -> 180 | T31: =IF($A31="","",$I31+$I31+5) -> 15 | U31: =IF($A31="","",$B31+$B31+4) -> 18 | V31: =IF($A31="","",$T31-1) -> 14 | W31: =IF($A31="","",$U31) -> 18 | X31: =IF($A31="","",$T31-1) -> 14 | Y31: =IF($A31="","",$U31+1) -> 19 | Z31: =IF(AND($I31>=1,$I31<=17),INDEX(赤!$B$6:$E$39,MATCH($I31,赤!$B$6:$B$39,0),2),"") -> 180
C32: =IF(ISERROR(INDEX(概要設定!$J$2:$K$51,MATCH($C33,概要設定!$J$2:$J$51,0),2)),"",INDEX(概要設定!$J$2:$K$51,MATCH($C33,概要設定!$J$2:$J$51,0),2)) -> きっこう しょうへい | H32: =IF(ISERROR(INDEX(概要設定!$J$2:$K$51,MATCH($H33,概要設定!$J$2:$J$51,0),2)),"",INDEX(概要設定!$J$2:$K$51,MATCH($H33,概要設定!$J$2:$J$51,0),2)) -> みやの さおり
A33: 12 | B33: 1 | C33: =IF(AND($B33>=1,$B33<=17),INDEX(赤!$B$6:$E$39,MATCH($B33,赤!$B$6:$B$39,0),4),"") -> 吉向 翔平 | D33: 138 | F33: w | H33: =IF(AND($I33>=1,$I33<=17),INDEX(赤!$B$6:$E$39,MATCH($I33,赤!$B$6:$B$39,0),4),"") -> 宮野 早織 | I33: 6 | M33: =IF($A33="","",$B33+$B33+5) -> 7 | N33: =IF($A33="","",$I33+$I33+4) -> 16 | O33: =IF($A33="","",$M33-1) -> 6 | P33: =IF($A33="","",$N33) -> 16 | Q33: =IF($A33="","",$M33-1) -> 6 | R33: =IF($A33="","",$N33+1) -> 17 | S33: =IF(AND($B33>=1,$B33<=17),INDEX(赤!$B$6:$E$39,MATCH($B33,赤!$B$6:$B$39,0),2),"") -> 180 | T33: =IF($A33="","",$I33+$I33+5) -> 17 | U33: =IF($A33="","",$B33+$B33+4) -> 6 | V33: =IF($A33="","",$T33-1) -> 16 | W33: =IF($A33="","",$U33) -> 6 | X33: =IF($A33="","",$T33-1) -> 16 | Y33: =IF($A33="","",$U33+1) -> 7 | Z33: =IF(AND($I33>=1,$I33<=17),INDEX(赤!$B$6:$E$39,MATCH($I33,赤!$B$6:$B$39,0),2),"") -> 140
C34: =IF(ISERROR(INDEX(概要設定!$J$2:$K$51,MATCH($C35,概要設定!$J$2:$J$51,0),2)),"",INDEX(概要設定!$J$2:$K$51,MATCH($C35,概要設定!$J$2:$J$51,0),2)) ->  | H34: =IF(ISERROR(INDEX(概要設定!$J$2:$K$51,MATCH($H35,概要設定!$J$2:$J$51,0),2)),"",INDEX(概要設定!$J$2:$K$51,MATCH($H35,概要設定!$J$2:$J$51,0),2)) -> 
B35: 四節 | C35: =IF(AND($B35>=1,$B35<=17),INDEX(赤!$B$6:$E$39,MATCH($B35,赤!$B$6:$B$39,0),4),"") ->  | H35: =IF(AND($I35>=1,$I35<=17),INDEX(赤!$B$6:$E$39,MATCH($I35,赤!$B$6:$B$39,0),4),"") ->  | M35: =IF($A35="","",$B35+$B35+5) ->  | N35: =IF($A35="","",$I35+$I35+4) ->  | O35: =IF($A35="","",$M35-1) ->  | P35: =IF($A35="","",$N35) ->  | Q35: =IF($A35="","",$M35-1) ->  | R35: =IF($A35="","",$N35+1) ->  | S35: =IF(AND($B35>=1,$B35<=17),INDEX(赤!$B$6:$E$39,MATCH($B35,赤!$B$6:$B$39,0),2),"") ->  | T35: =IF($A35="","",$I35+$I35+5) ->  | U35: =IF($A35="","",$B35+$B35+4) ->  | V35: =IF($A35="","",$T35-1) ->  | W35: =IF($A35="","",$U35) ->  | X35: =IF($A35="","",$T35-1) ->  | Y35: =IF($A35="","",$U35+1) ->  | Z35: =IF(AND($I35>=1,$I35<=17),INDEX(赤!$B$6:$E$39,MATCH($I35,赤!$B$6:$B$39,0),2),"") -> 
C36: =IF(ISERROR(INDEX(概要設定!$J$2:$K$51,MATCH($C37,概要設定!$J$2:$J$51,0),2)),"",INDEX(概要設定!$J$2:$K$51,MATCH($C37,概要設定!$J$2:$J$51,0),2)) -> さとう じゅんいち | H36: =IF(ISERROR(INDEX(概要設定!$J$2:$K$51,MATCH($H37,概要設定!$J$2:$J$51,0),2)),"",INDEX(概要設定!$J$2:$K$51,MATCH($H37,概要設定!$J$2:$J$51,0),2)) -> こんどう たくま
A37: 13 | B37: 8 | C37: =IF(AND($B37>=1,$B37<=17),INDEX(赤!$B$6:$E$39,MATCH($B37,赤!$B$6:$B$39,0),4),"") -> 佐藤 循一 | D37: 33 | F37: w | H37: =IF(AND($I37>=1,$I37<=17),INDEX(赤!$B$6:$E$39,MATCH($I37,赤!$B$6:$B$39,0),4),"") -> 近藤 拓馬 | I37: 2 | M37: =IF($A37="","",$B37+$B37+5) -> 21 | N37: =IF($A37="","",$I37+$I37+4) -> 8 | O37: =IF($A37="","",$M37-1) -> 20 | P37: =IF($A37="","",$N37) -> 8 | Q37: =IF($A37="","",$M37-1) -> 20 | R37: =IF($A37="","",$N37+1) -> 9 | S37: =IF(AND($B37>=1,$B37<=17),INDEX(赤!$B$6:$E$39,MATCH($B37,赤!$B$6:$B$39,0),2),"") -> 180 | T37: =IF($A37="","",$I37+$I37+5) -> 9 | U37: =IF($A37="","",$B37+$B37+4) -> 20 | V37: =IF($A37="","",$T37-1) -> 8 | W37: =IF($A37="","",$U37) -> 20 | X37: =IF($A37="","",$T37-1) -> 8 | Y37: =IF($A37="","",$U37+1) -> 21 | Z37: =IF(AND($I37>=1,$I37<=17),INDEX(赤!$B$6:$E$39,MATCH($I37,赤!$B$6:$B$39,0),2),"") -> 180
C38: =IF(ISERROR(INDEX(概要設定!$J$2:$K$51,MATCH($C39,概要設定!$J$2:$J$51,0),2)),"",INDEX(概要設定!$J$2:$K$51,MATCH($C39,概要設定!$J$2:$J$51,0),2)) -> いわもと つよし | H38: =IF(ISERROR(INDEX(概要設定!$J$2:$K$51,MATCH($H39,概要設定!$J$2:$J$51,0),2)),"",INDEX(概要設定!$J$2:$K$51,MATCH($H39,概要設定!$J$2:$J$51,0),2)) -> やまだ くにゆき
A39: 14 | B39: 7 | C39: =IF(AND($B39>=1,$B39<=17),INDEX(赤!$B$6:$E$39,MATCH($B39,赤!$B$6:$B$39,0),4),"") -> 岩本 剛 | D39: w | F39: 34 | H39: =IF(AND($I39>=1,$I39<=17),INDEX(赤!$B$6:$E$39,MATCH($I39,赤!$B$6:$B$39,0),4),"") -> 山田 晋之 | I39: 3 | M39: =IF($A39="","",$B39+$B39+5) -> 19 | N39: =IF($A39="","",$I39+$I39+4) -> 10 | O39: =IF($A39="","",$M39-1) -> 18 | P39: =IF($A39="","",$N39) -> 10 | Q39: =IF($A39="","",$M39-1) -> 18 | R39: =IF($A39="","",$N39+1) -> 11 | S39: =IF(AND($B39>=1,$B39<=17),INDEX(赤!$B$6:$E$39,MATCH($B39,赤!$B$6:$B$39,0),2),"") -> 180 | T39: =IF($A39="","",$I39+$I39+5) -> 11 | U39: =IF($A39="","",$B39+$B39+4) -> 18 | V39: =IF($A39="","",$T39-1) -> 10 | W39: =IF($A39="","",$U39) -> 18 | X39: =IF($A39="","",$T39-1) -> 10 | Y39: =IF($A39="","",$U39+1) -> 19 | Z39: =IF(AND($I39>=1,$I39<=17),INDEX(赤!$B$6:$E$39,MATCH($I39,赤!$B$6:$B$39,0),2),"") -> 180
C40: =IF(ISERROR(INDEX(概要設定!$J$2:$K$51,MATCH($C41,概要設定!$J$2:$J$51,0),2)),"",INDEX(概要設定!$J$2:$K$51,MATCH($C41,概要設定!$J$2:$J$51,0),2)) -> みやの さおり | H40: =IF(ISERROR(INDEX(概要設定!$J$2:$K$51,MATCH($H41,概要設定!$J$2:$J$51,0),2)),"",INDEX(概要設定!$J$2:$K$51,MATCH($H41,概要設定!$J$2:$J$51,0),2)) -> みずた よしひろ
A41: 15 | B41: 6 | C41: =IF(AND($B41>=1,$B41<=17),INDEX(赤!$B$6:$E$39,MATCH($B41,赤!$B$6:$B$39,0),4),"") -> 宮野 早織 | D41: w | F41: 117 | H41: =IF(AND($I41>=1,$I41<=17),INDEX(赤!$B$6:$E$39,MATCH($I41,赤!$B$6:$B$39,0),4),"") -> 水田 賢宏 | I41: 4 | M41: =IF($A41="","",$B41+$B41+5) -> 17 | N41: =IF($A41="","",$I41+$I41+4) -> 12 | O41: =IF($A41="","",$M41-1) -> 16 | P41: =IF($A41="","",$N41) -> 12 | Q41: =IF($A41="","",$M41-1) -> 16 | R41: =IF($A41="","",$N41+1) -> 13 | S41: =IF(AND($B41>=1,$B41<=17),INDEX(赤!$B$6:$E$39,MATCH($B41,赤!$B$6:$B$39,0),2),"") -> 140 | T41: =IF($A41="","",$I41+$I41+5) -> 13 | U41: =IF($A41="","",$B41+$B41+4) -> 16 | V41: =IF($A41="","",$T41-1) -> 12 | W41: =IF($A41="","",$U41) -> 16 | X41: =IF($A41="","",$T41-1) -> 12 | Y41: =IF($A41="","",$U41+1) -> 17 | Z41: =IF(AND($I41>=1,$I41<=17),INDEX(赤!$B$6:$E$39,MATCH($I41,赤!$B$6:$B$39,0),2),"") -> 180
C42: =IF(ISERROR(INDEX(概要設定!$J$2:$K$51,MATCH($C43,概要設定!$J$2:$J$51,0),2)),"",INDEX(概要設定!$J$2:$K$51,MATCH($C43,概要設定!$J$2:$J$51,0),2)) -> きっこう しょうへい | H42: =IF(ISERROR(INDEX(概要設定!$J$2:$K$51,MATCH($H43,概要設定!$J$2:$J$51,0),2)),"",INDEX(概要設定!$J$2:$K$51,MATCH($H43,概要設定!$J$2:$J$51,0),2)) -> みねやま たかし
A43: 16 | B43: 1 | C43: =IF(AND($B43>=1,$B43<=17),INDEX(赤!$B$6:$E$39,MATCH($B43,赤!$B$6:$B$39,0),4),"") -> 吉向 翔平 | D43: w | F43: 140 | H43: =IF(AND($I43>=1,$I43<=17),INDEX(赤!$B$6:$E$39,MATCH($I43,赤!$B$6:$B$39,0),4),"") -> 峯山 崇史 | I43: 5 | M43: =IF($A43="","",$B43+$B43+5) -> 7 | N43: =IF($A43="","",$I43+$I43+4) -> 14 | O43: =IF($A43="","",$M43-1) -> 6 | P43: =IF($A43="","",$N43) -> 14 | Q43: =IF($A43="","",$M43-1) -> 6 | R43: =IF($A43="","",$N43+1) -> 15 | S43: =IF(AND($B43>=1,$B43<=17),INDEX(赤!$B$6:$E$39,MATCH($B43,赤!$B$6:$B$39,0),2),"") -> 180 | T43: =IF($A43="","",$I43+$I43+5) -> 15 | U43: =IF($A43="","",$B43+$B43+4) -> 6 | V43: =IF($A43="","",$T43-1) -> 14 | W43: =IF($A43="","",$U43) -> 6 | X43: =IF($A43="","",$T43-1) -> 14 | Y43: =IF($A43="","",$U43+1) -> 7 | Z43: =IF(AND($I43>=1,$I43<=17),INDEX(赤!$B$6:$E$39,MATCH($I43,赤!$B$6:$B$39,0),2),"") -> 180
C44: =IF(ISERROR(INDEX(概要設定!$J$2:$K$51,MATCH($C45,概要設定!$J$2:$J$51,0),2)),"",INDEX(概要設定!$J$2:$K$51,MATCH($C45,概要設定!$J$2:$J$51,0),2)) ->  | H44: =IF(ISERROR(INDEX(概要設定!$J$2:$K$51,MATCH($H45,概要設定!$J$2:$J$51,0),2)),"",INDEX(概要設定!$J$2:$K$51,MATCH($H45,概要設定!$J$2:$J$51,0),2)) -> 
B45: 五節 | C45: =IF(AND($B45>=1,$B45<=17),INDEX(赤!$B$6:$E$39,MATCH($B45,赤!$B$6:$B$39,0),4),"") ->  | H45: =IF(AND($I45>=1,$I45<=17),INDEX(赤!$B$6:$E$39,MATCH($I45,赤!$B$6:$B$39,0),4),"") ->  | M45: =IF($A45="","",$B45+$B45+5) ->  | N45: =IF($A45="","",$I45+$I45+4) ->  | O45: =IF($A45="","",$M45-1) ->  | P45: =IF($A45="","",$N45) ->  | Q45: =IF($A45="","",$M45-1) ->  | R45: =IF($A45="","",$N45+1) ->  | S45: =IF(AND($B45>=1,$B45<=17),INDEX(赤!$B$6:$E$39,MATCH($B45,赤!$B$6:$B$39,0),2),"") ->  | T45: =IF($A45="","",$I45+$I45+5) ->  | U45: =IF($A45="","",$B45+$B45+4) ->  | V45: =IF($A45="","",$T45-1) ->  | W45: =IF($A45="","",$U45) ->  | X45: =IF($A45="","",$T45-1) ->  | Y45: =IF($A45="","",$U45+1) ->  | Z45: =IF(AND($I45>=1,$I45<=17),INDEX(赤!$B$6:$E$39,MATCH($I45,赤!$B$6:$B$39,0),2),"") -> 
C46: =IF(ISERROR(INDEX(概要設定!$J$2:$K$51,MATCH($C47,概要設定!$J$2:$J$51,0),2)),"",INDEX(概要設定!$J$2:$K$51,MATCH($C47,概要設定!$J$2:$J$51,0),2)) -> いわもと つよし | H46: =IF(ISERROR(INDEX(概要設定!$J$2:$K$51,MATCH($H47,概要設定!$J$2:$J$51,0),2)),"",INDEX(概要設定!$J$2:$K$51,MATCH($H47,概要設定!$J$2:$J$51,0),2)) -> さとう じゅんいち
A47: 17 | B47: 7 | C47: =IF(AND($B47>=1,$B47<=17),INDEX(赤!$B$6:$E$39,MATCH($B47,赤!$B$6:$B$39,0),4),"") -> 岩本 剛 | D47: w | F47: 67 | H47: =IF(AND($I47>=1,$I47<=17),INDEX(赤!$B$6:$E$39,MATCH($I47,赤!$B$6:$B$39,0),4),"") -> 佐藤 循一 | I47: 8 | M47: =IF($A47="","",$B47+$B47+5) -> 19 | N47: =IF($A47="","",$I47+$I47+4) -> 20 | O47: =IF($A47="","",$M47-1) -> 18 | P47: =IF($A47="","",$N47) -> 20 | Q47: =IF($A47="","",$M47-1) -> 18 | R47: =IF($A47="","",$N47+1) -> 21 | S47: =IF(AND($B47>=1,$B47<=17),INDEX(赤!$B$6:$E$39,MATCH($B47,赤!$B$6:$B$39,0),2),"") -> 180 | T47: =IF($A47="","",$I47+$I47+5) -> 21 | U47: =IF($A47="","",$B47+$B47+4) -> 18 | V47: =IF($A47="","",$T47-1) -> 20 | W47: =IF($A47="","",$U47) -> 18 | X47: =IF($A47="","",$T47-1) -> 20 | Y47: =IF($A47="","",$U47+1) -> 19 | Z47: =IF(AND($I47>=1,$I47<=17),INDEX(赤!$B$6:$E$39,MATCH($I47,赤!$B$6:$B$39,0),2),"") -> 180
C48: =IF(ISERROR(INDEX(概要設定!$J$2:$K$51,MATCH($C49,概要設定!$J$2:$J$51,0),2)),"",INDEX(概要設定!$J$2:$K$51,MATCH($C49,概要設定!$J$2:$J$51,0),2)) -> みやの さおり | H48: =IF(ISERROR(INDEX(概要設定!$J$2:$K$51,MATCH($H49,概要設定!$J$2:$J$51,0),2)),"",INDEX(概要設定!$J$2:$K$51,MATCH($H49,概要設定!$J$2:$J$51,0),2)) -> こんどう たくま
A49: 18 | B49: 6 | C49: =IF(AND($B49>=1,$B49<=17),INDEX(赤!$B$6:$E$39,MATCH($B49,赤!$B$6:$B$39,0),4),"") -> 宮野 早織 | D49: 121 | F49: w | H49: =IF(AND($I49>=1,$I49<=17),INDEX(赤!$B$6:$E$39,MATCH($I49,赤!$B$6:$B$39,0),4),"") -> 近藤 拓馬 | I49: 2 | M49: =IF($A49="","",$B49+$B49+5) -> 17 | N49: =IF($A49="","",$I49+$I49+4) -> 8 | O49: =IF($A49="","",$M49-1) -> 16 | P49: =IF($A49="","",$N49) -> 8 | Q49: =IF($A49="","",$M49-1) -> 16 | R49: =IF($A49="","",$N49+1) -> 9 | S49: =IF(AND($B49>=1,$B49<=17),INDEX(赤!$B$6:$E$39,MATCH($B49,赤!$B$6:$B$39,0),2),"") -> 140 | T49: =IF($A49="","",$I49+$I49+5) -> 9 | U49: =IF($A49="","",$B49+$B49+4) -> 16 | V49: =IF($A49="","",$T49-1) -> 8 | W49: =IF($A49="","",$U49) -> 16 | X49: =IF($A49="","",$T49-1) -> 8 | Y49: =IF($A49="","",$U49+1) -> 17 | Z49: =IF(AND($I49>=1,$I49<=17),INDEX(赤!$B$6:$E$39,MATCH($I49,赤!$B$6:$B$39,0),2),"") -> 180
C50: =IF(ISERROR(INDEX(概要設定!$J$2:$K$51,MATCH($C51,概要設定!$J$2:$J$51,0),2)),"",INDEX(概要設定!$J$2:$K$51,MATCH($C51,概要設定!$J$2:$J$51,0),2)) -> みねやま たかし | H50: =IF(ISERROR(INDEX(概要設定!$J$2:$K$51,MATCH($H51,概要設定!$J$2:$J$51,0),2)),"",INDEX(概要設定!$J$2:$K$51,MATCH($H51,概要設定!$J$2:$J$51,0),2)) -> やまだ くにゆき
A51: 19 | B51: 5 | C51: =IF(AND($B51>=1,$B51<=17),INDEX(赤!$B$6:$E$39,MATCH($B51,赤!$B$6:$B$39,0),4),"") -> 峯山 崇史 | D51: 111 | F51: w | H51: =IF(AND($I51>=1,$I51<=17),INDEX(赤!$B$6:$E$39,MATCH($I51,赤!$B$6:$B$39,0),4),"") -> 山田 晋之 | I51: 3 | M51: =IF($A51="","",$B51+$B51+5) -> 15 | N51: =IF($A51="","",$I51+$I51+4) -> 10 | O51: =IF($A51="","",$M51-1) -> 14 | P51: =IF($A51="","",$N51) -> 10 | Q51: =IF($A51="","",$M51-1) -> 14 | R51: =IF($A51="","",$N51+1) -> 11 | S51: =IF(AND($B51>=1,$B51<=17),INDEX(赤!$B$6:$E$39,MATCH($B51,赤!$B$6:$B$39,0),2),"") -> 180 | T51: =IF($A51="","",$I51+$I51+5) -> 11 | U51: =IF($A51="","",$B51+$B51+4) -> 14 | V51: =IF($A51="","",$T51-1) -> 10 | W51: =IF($A51="","",$U51) -> 14 | X51: =IF($A51="","",$T51-1) -> 10 | Y51: =IF($A51="","",$U51+1) -> 15 | Z51: =IF(AND($I51>=1,$I51<=17),INDEX(赤!$B$6:$E$39,MATCH($I51,赤!$B$6:$B$39,0),2),"") -> 180
C52: =IF(ISERROR(INDEX(概要設定!$J$2:$K$51,MATCH($C53,概要設定!$J$2:$J$51,0),2)),"",INDEX(概要設定!$J$2:$K$51,MATCH($C53,概要設定!$J$2:$J$51,0),2)) -> きっこう しょうへい | H52: =IF(ISERROR(INDEX(概要設定!$J$2:$K$51,MATCH($H53,概要設定!$J$2:$J$51,0),2)),"",INDEX(概要設定!$J$2:$K$51,MATCH($H53,概要設定!$J$2:$J$51,0),2)) -> みずた よしひろ
A53: 20 | B53: 1 | C53: =IF(AND($B53>=1,$B53<=17),INDEX(赤!$B$6:$E$39,MATCH($B53,赤!$B$6:$B$39,0),4),"") -> 吉向 翔平 | D53: w | F53: 100 | H53: =IF(AND($I53>=1,$I53<=17),INDEX(赤!$B$6:$E$39,MATCH($I53,赤!$B$6:$B$39,0),4),"") -> 水田 賢宏 | I53: 4 | M53: =IF($A53="","",$B53+$B53+5) -> 7 | N53: =IF($A53="","",$I53+$I53+4) -> 12 | O53: =IF($A53="","",$M53-1) -> 6 | P53: =IF($A53="","",$N53) -> 12 | Q53: =IF($A53="","",$M53-1) -> 6 | R53: =IF($A53="","",$N53+1) -> 13 | S53: =IF(AND($B53>=1,$B53<=17),INDEX(赤!$B$6:$E$39,MATCH($B53,赤!$B$6:$B$39,0),2),"") -> 180 | T53: =IF($A53="","",$I53+$I53+5) -> 13 | U53: =IF($A53="","",$B53+$B53+4) -> 6 | V53: =IF($A53="","",$T53-1) -> 12 | W53: =IF($A53="","",$U53) -> 6 | X53: =IF($A53="","",$T53-1) -> 12 | Y53: =IF($A53="","",$U53+1) -> 7 | Z53: =IF(AND($I53>=1,$I53<=17),INDEX(赤!$B$6:$E$39,MATCH($I53,赤!$B$6:$B$39,0),2),"") -> 180
C54: =IF(ISERROR(INDEX(概要設定!$J$2:$K$51,MATCH($C55,概要設定!$J$2:$J$51,0),2)),"",INDEX(概要設定!$J$2:$K$51,MATCH($C55,概要設定!$J$2:$J$51,0),2)) ->  | H54: =IF(ISERROR(INDEX(概要設定!$J$2:$K$51,MATCH($H55,概要設定!$J$2:$J$51,0),2)),"",INDEX(概要設定!$J$2:$K$51,MATCH($H55,概要設定!$J$2:$J$51,0),2)) -> 
B55: 六節 | C55: =IF(AND($B55>=1,$B55<=17),INDEX(赤!$B$6:$E$39,MATCH($B55,赤!$B$6:$B$39,0),4),"") ->  | H55: =IF(AND($I55>=1,$I55<=17),INDEX(赤!$B$6:$E$39,MATCH($I55,赤!$B$6:$B$39,0),4),"") ->  | M55: =IF($A55="","",$B55+$B55+5) ->  | N55: =IF($A55="","",$I55+$I55+4) ->  | O55: =IF($A55="","",$M55-1) ->  | P55: =IF($A55="","",$N55) ->  | Q55: =IF($A55="","",$M55-1) ->  | R55: =IF($A55="","",$N55+1) ->  | S55: =IF(AND($B55>=1,$B55<=17),INDEX(赤!$B$6:$E$39,MATCH($B55,赤!$B$6:$B$39,0),2),"") ->  | T55: =IF($A55="","",$I55+$I55+5) ->  | U55: =IF($A55="","",$B55+$B55+4) ->  | V55: =IF($A55="","",$T55-1) ->  | W55: =IF($A55="","",$U55) ->  | X55: =IF($A55="","",$T55-1) ->  | Y55: =IF($A55="","",$U55+1) ->  | Z55: =IF(AND($I55>=1,$I55<=17),INDEX(赤!$B$6:$E$39,MATCH($I55,赤!$B$6:$B$39,0),2),"") -> 
C56: =IF(ISERROR(INDEX(概要設定!$J$2:$K$51,MATCH($C57,概要設定!$J$2:$J$51,0),2)),"",INDEX(概要設定!$J$2:$K$51,MATCH($C57,概要設定!$J$2:$J$51,0),2)) -> みやの さおり | H56: =IF(ISERROR(INDEX(概要設定!$J$2:$K$51,MATCH($H57,概要設定!$J$2:$J$51,0),2)),"",INDEX(概要設定!$J$2:$K$51,MATCH($H57,概要設定!$J$2:$J$51,0),2)) -> いわもと つよし
A57: 21 | B57: 6 | C57: =IF(AND($B57>=1,$B57<=17),INDEX(赤!$B$6:$E$39,MATCH($B57,赤!$B$6:$B$39,0),4),"") -> 宮野 早織 | D57: 43 | F57: w | H57: =IF(AND($I57>=1,$I57<=17),INDEX(赤!$B$6:$E$39,MATCH($I57,赤!$B$6:$B$39,0),4),"") -> 岩本 剛 | I57: 7 | M57: =IF($A57="","",$B57+$B57+5) -> 17 | N57: =IF($A57="","",$I57+$I57+4) -> 18 | O57: =IF($A57="","",$M57-1) -> 16 | P57: =IF($A57="","",$N57) -> 18 | Q57: =IF($A57="","",$M57-1) -> 16 | R57: =IF($A57="","",$N57+1) -> 19 | S57: =IF(AND($B57>=1,$B57<=17),INDEX(赤!$B$6:$E$39,MATCH($B57,赤!$B$6:$B$39,0),2),"") -> 140 | T57: =IF($A57="","",$I57+$I57+5) -> 19 | U57: =IF($A57="","",$B57+$B57+4) -> 16 | V57: =IF($A57="","",$T57-1) -> 18 | W57: =IF($A57="","",$U57) -> 16 | X57: =IF($A57="","",$T57-1) -> 18 | Y57: =IF($A57="","",$U57+1) -> 17 | Z57: =IF(AND($I57>=1,$I57<=17),INDEX(赤!$B$6:$E$39,MATCH($I57,赤!$B$6:$B$39,0),2),"") -> 180
C58: =IF(ISERROR(INDEX(概要設定!$J$2:$K$51,MATCH($C59,概要設定!$J$2:$J$51,0),2)),"",INDEX(概要設定!$J$2:$K$51,MATCH($C59,概要設定!$J$2:$J$51,0),2)) -> みねやま たかし | H58: =IF(ISERROR(INDEX(概要設定!$J$2:$K$51,MATCH($H59,概要設定!$J$2:$J$51,0),2)),"",INDEX(概要設定!$J$2:$K$51,MATCH($H59,概要設定!$J$2:$J$51,0),2)) -> さとう じゅんいち
A59: 22 | B59: 5 | C59: =IF(AND($B59>=1,$B59<=17),INDEX(赤!$B$6:$E$39,MATCH($B59,赤!$B$6:$B$39,0),4),"") -> 峯山 崇史 | D59: w | F59: 64 | H59: =IF(AND($I59>=1,$I59<=17),INDEX(赤!$B$6:$E$39,MATCH($I59,赤!$B$6:$B$39,0),4),"") -> 佐藤 循一 | I59: 8 | M59: =IF($A59="","",$B59+$B59+5) -> 15 | N59: =IF($A59="","",$I59+$I59+4) -> 20 | O59: =IF($A59="","",$M59-1) -> 14 | P59: =IF($A59="","",$N59) -> 20 | Q59: =IF($A59="","",$M59-1) -> 14 | R59: =IF($A59="","",$N59+1) -> 21 | S59: =IF(AND($B59>=1,$B59<=17),INDEX(赤!$B$6:$E$39,MATCH($B59,赤!$B$6:$B$39,0),2),"") -> 180 | T59: =IF($A59="","",$I59+$I59+5) -> 21 | U59: =IF($A59="","",$B59+$B59+4) -> 14 | V59: =IF($A59="","",$T59-1) -> 20 | W59: =IF($A59="","",$U59) -> 14 | X59: =IF($A59="","",$T59-1) -> 20 | Y59: =IF($A59="","",$U59+1) -> 15 | Z59: =IF(AND($I59>=1,$I59<=17),INDEX(赤!$B$6:$E$39,MATCH($I59,赤!$B$6:$B$39,0),2),"") -> 180
C60: =IF(ISERROR(INDEX(概要設定!$J$2:$K$51,MATCH($C61,概要設定!$J$2:$J$51,0),2)),"",INDEX(概要設定!$J$2:$K$51,MATCH($C61,概要設定!$J$2:$J$51,0),2)) -> みずた よしひろ | H60: =IF(ISERROR(INDEX(概要設定!$J$2:$K$51,MATCH($H61,概要設定!$J$2:$J$51,0),2)),"",INDEX(概要設定!$J$2:$K$51,MATCH($H61,概要設定!$J$2:$J$51,0),2)) -> こんどう たくま
A61: 23 | B61: 4 | C61: =IF(AND($B61>=1,$B61<=17),INDEX(赤!$B$6:$E$39,MATCH($B61,赤!$B$6:$B$39,0),4),"") -> 水田 賢宏 | D61: 61 | F61: w | H61: =IF(AND($I61>=1,$I61<=17),INDEX(赤!$B$6:$E$39,MATCH($I61,赤!$B$6:$B$39,0),4),"") -> 近藤 拓馬 | I61: 2 | M61: =IF($A61="","",$B61+$B61+5) -> 13 | N61: =IF($A61="","",$I61+$I61+4) -> 8 | O61: =IF($A61="","",$M61-1) -> 12 | P61: =IF($A61="","",$N61) -> 8 | Q61: =IF($A61="","",$M61-1) -> 12 | R61: =IF($A61="","",$N61+1) -> 9 | S61: =IF(AND($B61>=1,$B61<=17),INDEX(赤!$B$6:$E$39,MATCH($B61,赤!$B$6:$B$39,0),2),"") -> 180 | T61: =IF($A61="","",$I61+$I61+5) -> 9 | U61: =IF($A61="","",$B61+$B61+4) -> 12 | V61: =IF($A61="","",$T61-1) -> 8 | W61: =IF($A61="","",$U61) -> 12 | X61: =IF($A61="","",$T61-1) -> 8 | Y61: =IF($A61="","",$U61+1) -> 13 | Z61: =IF(AND($I61>=1,$I61<=17),INDEX(赤!$B$6:$E$39,MATCH($I61,赤!$B$6:$B$39,0),2),"") -> 180
C62: =IF(ISERROR(INDEX(概要設定!$J$2:$K$51,MATCH($C63,概要設定!$J$2:$J$51,0),2)),"",INDEX(概要設定!$J$2:$K$51,MATCH($C63,概要設定!$J$2:$J$51,0),2)) -> きっこう しょうへい | H62: =IF(ISERROR(INDEX(概要設定!$J$2:$K$51,MATCH($H63,概要設定!$J$2:$J$51,0),2)),"",INDEX(概要設定!$J$2:$K$51,MATCH($H63,概要設定!$J$2:$J$51,0),2)) -> やまだ くにゆき
A63: 24 | B63: 1 | C63: =IF(AND($B63>=1,$B63<=17),INDEX(赤!$B$6:$E$39,MATCH($B63,赤!$B$6:$B$39,0),4),"") -> 吉向 翔平 | D63: w | F63: 50 | H63: =IF(AND($I63>=1,$I63<=17),INDEX(赤!$B$6:$E$39,MATCH($I63,赤!$B$6:$B$39,0),4),"") -> 山田 晋之 | I63: 3 | M63: =IF($A63="","",$B63+$B63+5) -> 7 | N63: =IF($A63="","",$I63+$I63+4) -> 10 | O63: =IF($A63="","",$M63-1) -> 6 | P63: =IF($A63="","",$N63) -> 10 | Q63: =IF($A63="","",$M63-1) -> 6 | R63: =IF($A63="","",$N63+1) -> 11 | S63: =IF(AND($B63>=1,$B63<=17),INDEX(赤!$B$6:$E$39,MATCH($B63,赤!$B$6:$B$39,0),2),"") -> 180 | T63: =IF($A63="","",$I63+$I63+5) -> 11 | U63: =IF($A63="","",$B63+$B63+4) -> 6 | V63: =IF($A63="","",$T63-1) -> 10 | W63: =IF($A63="","",$U63) -> 6 | X63: =IF($A63="","",$T63-1) -> 10 | Y63: =IF($A63="","",$U63+1) -> 7 | Z63: =IF(AND($I63>=1,$I63<=17),INDEX(赤!$B$6:$E$39,MATCH($I63,赤!$B$6:$B$39,0),2),"") -> 180
C64: =IF(ISERROR(INDEX(概要設定!$J$2:$K$51,MATCH($C65,概要設定!$J$2:$J$51,0),2)),"",INDEX(概要設定!$J$2:$K$51,MATCH($C65,概要設定!$J$2:$J$51,0),2)) ->  | H64: =IF(ISERROR(INDEX(概要設定!$J$2:$K$51,MATCH($H65,概要設定!$J$2:$J$51,0),2)),"",INDEX(概要設定!$J$2:$K$51,MATCH($H65,概要設定!$J$2:$J$51,0),2)) -> 
B65: 七節 | C65: =IF(AND($B65>=1,$B65<=17),INDEX(赤!$B$6:$E$39,MATCH($B65,赤!$B$6:$B$39,0),4),"") ->  | H65: =IF(AND($I65>=1,$I65<=17),INDEX(赤!$B$6:$E$39,MATCH($I65,赤!$B$6:$B$39,0),4),"") ->  | M65: =IF($A65="","",$B65+$B65+5) ->  | N65: =IF($A65="","",$I65+$I65+4) ->  | O65: =IF($A65="","",$M65-1) ->  | P65: =IF($A65="","",$N65) ->  | Q65: =IF($A65="","",$M65-1) ->  | R65: =IF($A65="","",$N65+1) ->  | S65: =IF(AND($B65>=1,$B65<=17),INDEX(赤!$B$6:$E$39,MATCH($B65,赤!$B$6:$B$39,0),2),"") ->  | T65: =IF($A65="","",$I65+$I65+5) ->  | U65: =IF($A65="","",$B65+$B65+4) ->  | V65: =IF($A65="","",$T65-1) ->  | W65: =IF($A65="","",$U65) ->  | X65: =IF($A65="","",$T65-1) ->  | Y65: =IF($A65="","",$U65+1) ->  | Z65: =IF(AND($I65>=1,$I65<=17),INDEX(赤!$B$6:$E$39,MATCH($I65,赤!$B$6:$B$39,0),2),"") -> 
C66: =IF(ISERROR(INDEX(概要設定!$J$2:$K$51,MATCH($C67,概要設定!$J$2:$J$51,0),2)),"",INDEX(概要設定!$J$2:$K$51,MATCH($C67,概要設定!$J$2:$J$51,0),2)) -> みねやま たかし | H66: =IF(ISERROR(INDEX(概要設定!$J$2:$K$51,MATCH($H67,概要設定!$J$2:$J$51,0),2)),"",INDEX(概要設定!$J$2:$K$51,MATCH($H67,概要設定!$J$2:$J$51,0),2)) -> みやの さおり
A67: 25 | B67: 5 | C67: =IF(AND($B67>=1,$B67<=17),INDEX(赤!$B$6:$E$39,MATCH($B67,赤!$B$6:$B$39,0),4),"") -> 峯山 崇史 | H67: =IF(AND($I67>=1,$I67<=17),INDEX(赤!$B$6:$E$39,MATCH($I67,赤!$B$6:$B$39,0),4),"") -> 宮野 早織 | I67: 6 | M67: =IF($A67="","",$B67+$B67+5) -> 15 | N67: =IF($A67="","",$I67+$I67+4) -> 16 | O67: =IF($A67="","",$M67-1) -> 14 | P67: =IF($A67="","",$N67) -> 16 | Q67: =IF($A67="","",$M67-1) -> 14 | R67: =IF($A67="","",$N67+1) -> 17 | S67: =IF(AND($B67>=1,$B67<=17),INDEX(赤!$B$6:$E$39,MATCH($B67,赤!$B$6:$B$39,0),2),"") -> 180 | T67: =IF($A67="","",$I67+$I67+5) -> 17 | U67: =IF($A67="","",$B67+$B67+4) -> 14 | V67: =IF($A67="","",$T67-1) -> 16 | W67: =IF($A67="","",$U67) -> 14 | X67: =IF($A67="","",$T67-1) -> 16 | Y67: =IF($A67="","",$U67+1) -> 15 | Z67: =IF(AND($I67>=1,$I67<=17),INDEX(赤!$B$6:$E$39,MATCH($I67,赤!$B$6:$B$39,0),2),"") -> 140
C68: =IF(ISERROR(INDEX(概要設定!$J$2:$K$51,MATCH($C69,概要設定!$J$2:$J$51,0),2)),"",INDEX(概要設定!$J$2:$K$51,MATCH($C69,概要設定!$J$2:$J$51,0),2)) -> みずた よしひろ | H68: =IF(ISERROR(INDEX(概要設定!$J$2:$K$51,MATCH($H69,概要設定!$J$2:$J$51,0),2)),"",INDEX(概要設定!$J$2:$K$51,MATCH($H69,概要設定!$J$2:$J$51,0),2)) -> いわもと つよし
A69: 26 | B69: 4 | C69: =IF(AND($B69>=1,$B69<=17),INDEX(赤!$B$6:$E$39,MATCH($B69,赤!$B$6:$B$39,0),4),"") -> 水田 賢宏 | H69: =IF(AND($I69>=1,$I69<=17),INDEX(赤!$B$6:$E$39,MATCH($I69,赤!$B$6:$B$39,0),4),"") -> 岩本 剛 | I69: 7 | M69: =IF($A69="","",$B69+$B69+5) -> 13 | N69: =IF($A69="","",$I69+$I69+4) -> 18 | O69: =IF($A69="","",$M69-1) -> 12 | P69: =IF($A69="","",$N69) -> 18 | Q69: =IF($A69="","",$M69-1) -> 12 | R69: =IF($A69="","",$N69+1) -> 19 | S69: =IF(AND($B69>=1,$B69<=17),INDEX(赤!$B$6:$E$39,MATCH($B69,赤!$B$6:$B$39,0),2),"") -> 180 | T69: =IF($A69="","",$I69+$I69+5) -> 19 | U69: =IF($A69="","",$B69+$B69+4) -> 12 | V69: =IF($A69="","",$T69-1) -> 18 | W69: =IF($A69="","",$U69) -> 12 | X69: =IF($A69="","",$T69-1) -> 18 | Y69: =IF($A69="","",$U69+1) -> 13 | Z69: =IF(AND($I69>=1,$I69<=17),INDEX(赤!$B$6:$E$39,MATCH($I69,赤!$B$6:$B$39,0),2),"") -> 180
C70: =IF(ISERROR(INDEX(概要設定!$J$2:$K$51,MATCH($C71,概要設定!$J$2:$J$51,0),2)),"",INDEX(概要設定!$J$2:$K$51,MATCH($C71,概要設定!$J$2:$J$51,0),2)) -> やまだ くにゆき | H70: =IF(ISERROR(INDEX(概要設定!$J$2:$K$51,MATCH($H71,概要設定!$J$2:$J$51,0),2)),"",INDEX(概要設定!$J$2:$K$51,MATCH($H71,概要設定!$J$2:$J$51,0),2)) -> さとう じゅんいち
A71: 27 | B71: 3 | C71: =IF(AND($B71>=1,$B71<=17),INDEX(赤!$B$6:$E$39,MATCH($B71,赤!$B$6:$B$39,0),4),"") -> 山田 晋之 | H71: =IF(AND($I71>=1,$I71<=17),INDEX(赤!$B$6:$E$39,MATCH($I71,赤!$B$6:$B$39,0),4),"") -> 佐藤 循一 | I71: 8 | M71: =IF($A71="","",$B71+$B71+5) -> 11 | N71: =IF($A71="","",$I71+$I71+4) -> 20 | O71: =IF($A71="","",$M71-1) -> 10 | P71: =IF($A71="","",$N71) -> 20 | Q71: =IF($A71="","",$M71-1) -> 10 | R71: =IF($A71="","",$N71+1) -> 21 | S71: =IF(AND($B71>=1,$B71<=17),INDEX(赤!$B$6:$E$39,MATCH($B71,赤!$B$6:$B$39,0),2),"") -> 180 | T71: =IF($A71="","",$I71+$I71+5) -> 21 | U71: =IF($A71="","",$B71+$B71+4) -> 10 | V71: =IF($A71="","",$T71-1) -> 20 | W71: =IF($A71="","",$U71) -> 10 | X71: =IF($A71="","",$T71-1) -> 20 | Y71: =IF($A71="","",$U71+1) -> 11 | Z71: =IF(AND($I71>=1,$I71<=17),INDEX(赤!$B$6:$E$39,MATCH($I71,赤!$B$6:$B$39,0),2),"") -> 180
C72: =IF(ISERROR(INDEX(概要設定!$J$2:$K$51,MATCH($C73,概要設定!$J$2:$J$51,0),2)),"",INDEX(概要設定!$J$2:$K$51,MATCH($C73,概要設定!$J$2:$J$51,0),2)) -> きっこう しょうへい | H72: =IF(ISERROR(INDEX(概要設定!$J$2:$K$51,MATCH($H73,概要設定!$J$2:$J$51,0),2)),"",INDEX(概要設定!$J$2:$K$51,MATCH($H73,概要設定!$J$2:$J$51,0),2)) -> こんどう たくま
A73: 28 | B73: 1 | C73: =IF(AND($B73>=1,$B73<=17),INDEX(赤!$B$6:$E$39,MATCH($B73,赤!$B$6:$B$39,0),4),"") -> 吉向 翔平 | H73: =IF(AND($I73>=1,$I73<=17),INDEX(赤!$B$6:$E$39,MATCH($I73,赤!$B$6:$B$39,0),4),"") -> 近藤 拓馬 | I73: 2 | M73: =IF($A73="","",$B73+$B73+5) -> 7 | N73: =IF($A73="","",$I73+$I73+4) -> 8 | O73: =IF($A73="","",$M73-1) -> 6 | P73: =IF($A73="","",$N73) -> 8 | Q73: =IF($A73="","",$M73-1) -> 6 | R73: =IF($A73="","",$N73+1) -> 9 | S73: =IF(AND($B73>=1,$B73<=17),INDEX(赤!$B$6:$E$39,MATCH($B73,赤!$B$6:$B$39,0),2),"") -> 180 | T73: =IF($A73="","",$I73+$I73+5) -> 9 | U73: =IF($A73="","",$B73+$B73+4) -> 6 | V73: =IF($A73="","",$T73-1) -> 8 | W73: =IF($A73="","",$U73) -> 6 | X73: =IF($A73="","",$T73-1) -> 8 | Y73: =IF($A73="","",$U73+1) -> 7 | Z73: =IF(AND($I73>=1,$I73<=17),INDEX(赤!$B$6:$E$39,MATCH($I73,赤!$B$6:$B$39,0),2),"") -> 180
C74: =IF(ISERROR(INDEX(概要設定!$J$2:$K$51,MATCH($C75,概要設定!$J$2:$J$51,0),2)),"",INDEX(概要設定!$J$2:$K$51,MATCH($C75,概要設定!$J$2:$J$51,0),2)) ->  | H74: =IF(ISERROR(INDEX(概要設定!$J$2:$K$51,MATCH($H75,概要設定!$J$2:$J$51,0),2)),"",INDEX(概要設定!$J$2:$K$51,MATCH($H75,概要設定!$J$2:$J$51,0),2)) -> 
C75: =IF(AND($B75>=1,$B75<=17),INDEX(赤!$B$6:$E$39,MATCH($B75,赤!$B$6:$B$39,0),4),"") ->  | H75: =IF(AND($I75>=1,$I75<=17),INDEX(赤!$B$6:$E$39,MATCH($I75,赤!$B$6:$B$39,0),4),"") ->  | M75: =IF($A75="","",$B75+$B75+5) ->  | N75: =IF($A75="","",$I75+$I75+4) ->  | S75: =IF(AND($B75>=1,$B75<=17),INDEX(赤!$B$6:$E$39,MATCH($B75,赤!$B$6:$B$39,0),2),"") ->  | T75: =IF($A75="","",$I75+$I75+5) ->  | U75: =IF($A75="","",$B75+$B75+4) ->  | Z75: =IF(AND($I75>=1,$I75<=17),INDEX(赤!$B$6:$E$39,MATCH($I75,赤!$B$6:$B$39,0),2),"") -> 
C76: =IF(ISERROR(INDEX(概要設定!$J$2:$K$51,MATCH($C77,概要設定!$J$2:$J$51,0),2)),"",INDEX(概要設定!$J$2:$K$51,MATCH($C77,概要設定!$J$2:$J$51,0),2)) ->  | H76: =IF(ISERROR(INDEX(概要設定!$J$2:$K$51,MATCH($H77,概要設定!$J$2:$J$51,0),2)),"",INDEX(概要設定!$J$2:$K$51,MATCH($H77,概要設定!$J$2:$J$51,0),2)) -> 
C77: =IF(AND($B77>=1,$B77<=17),INDEX(赤!$B$6:$E$39,MATCH($B77,赤!$B$6:$B$39,0),4),"") ->  | H77: =IF(AND($I77>=1,$I77<=17),INDEX(赤!$B$6:$E$39,MATCH($I77,赤!$B$6:$B$39,0),4),"") ->  | M77: =IF($A77="","",$B77+$B77+5) ->  | N77: =IF($A77="","",$I77+$I77+4) ->  | S77: =IF(AND($B77>=1,$B77<=17),INDEX(赤!$B$6:$E$39,MATCH($B77,赤!$B$6:$B$39,0),2),"") ->  | T77: =IF($A77="","",$I77+$I77+5) ->  | U77: =IF($A77="","",$B77+$B77+4) ->  | Z77: =IF(AND($I77>=1,$I77<=17),INDEX(赤!$B$6:$E$39,MATCH($I77,赤!$B$6:$B$39,0),2),"") -> 
C78: =IF(ISERROR(INDEX(概要設定!$J$2:$K$51,MATCH($C79,概要設定!$J$2:$J$51,0),2)),"",INDEX(概要設定!$J$2:$K$51,MATCH($C79,概要設定!$J$2:$J$51,0),2)) ->  | H78: =IF(ISERROR(INDEX(概要設定!$J$2:$K$51,MATCH($H79,概要設定!$J$2:$J$51,0),2)),"",INDEX(概要設定!$J$2:$K$51,MATCH($H79,概要設定!$J$2:$J$51,0),2)) -> 
C79: =IF(AND($B79>=1,$B79<=17),INDEX(赤!$B$6:$E$39,MATCH($B79,赤!$B$6:$B$39,0),4),"") ->  | H79: =IF(AND($I79>=1,$I79<=17),INDEX(赤!$B$6:$E$39,MATCH($I79,赤!$B$6:$B$39,0),4),"") ->  | M79: =IF($A79="","",$B79+$B79+5) ->  | N79: =IF($A79="","",$I79+$I79+4) ->  | S79: =IF(AND($B79>=1,$B79<=17),INDEX(赤!$B$6:$E$39,MATCH($B79,赤!$B$6:$B$39,0),2),"") ->  | T79: =IF($A79="","",$I79+$I79+5) ->  | U79: =IF($A79="","",$B79+$B79+4) ->  | Z79: =IF(AND($I79>=1,$I79<=17),INDEX(赤!$B$6:$E$39,MATCH($I79,赤!$B$6:$B$39,0),2),"") -> 
C80: =IF(ISERROR(INDEX(概要設定!$J$2:$K$51,MATCH($C81,概要設定!$J$2:$J$51,0),2)),"",INDEX(概要設定!$J$2:$K$51,MATCH($C81,概要設定!$J$2:$J$51,0),2)) ->  | H80: =IF(ISERROR(INDEX(概要設定!$J$2:$K$51,MATCH($H81,概要設定!$J$2:$J$51,0),2)),"",INDEX(概要設定!$J$2:$K$51,MATCH($H81,概要設定!$J$2:$J$51,0),2)) -> 
C81: =IF(AND($B81>=1,$B81<=17),INDEX(赤!$B$6:$E$39,MATCH($B81,赤!$B$6:$B$39,0),4),"") ->  | H81: =IF(AND($I81>=1,$I81<=17),INDEX(赤!$B$6:$E$39,MATCH($I81,赤!$B$6:$B$39,0),4),"") ->  | M81: =IF($A81="","",$B81+$B81+5) ->  | N81: =IF($A81="","",$I81+$I81+4) ->  | S81: =IF(AND($B81>=1,$B81<=17),INDEX(赤!$B$6:$E$39,MATCH($B81,赤!$B$6:$B$39,0),2),"") ->  | T81: =IF($A81="","",$I81+$I81+5) ->  | U81: =IF($A81="","",$B81+$B81+4) ->  | Z81: =IF(AND($I81>=1,$I81<=17),INDEX(赤!$B$6:$E$39,MATCH($I81,赤!$B$6:$B$39,0),2),"") -> 
C82: =IF(ISERROR(INDEX(概要設定!$J$2:$K$51,MATCH($C83,概要設定!$J$2:$J$51,0),2)),"",INDEX(概要設定!$J$2:$K$51,MATCH($C83,概要設定!$J$2:$J$51,0),2)) ->  | H82: =IF(ISERROR(INDEX(概要設定!$J$2:$K$51,MATCH($H83,概要設定!$J$2:$J$51,0),2)),"",INDEX(概要設定!$J$2:$K$51,MATCH($H83,概要設定!$J$2:$J$51,0),2)) -> 
C83: =IF(AND($B83>=1,$B83<=17),INDEX(赤!$B$6:$E$39,MATCH($B83,赤!$B$6:$B$39,0),4),"") ->  | H83: =IF(AND($I83>=1,$I83<=17),INDEX(赤!$B$6:$E$39,MATCH($I83,赤!$B$6:$B$39,0),4),"") ->  | M83: =IF($A83="","",$B83+$B83+5) ->  | N83: =IF($A83="","",$I83+$I83+4) ->  | S83: =IF(AND($B83>=1,$B83<=17),INDEX(赤!$B$6:$E$39,MATCH($B83,赤!$B$6:$B$39,0),2),"") ->  | T83: =IF($A83="","",$I83+$I83+5) ->  | U83: =IF($A83="","",$B83+$B83+4) ->  | Z83: =IF(AND($I83>=1,$I83<=17),INDEX(赤!$B$6:$E$39,MATCH($I83,赤!$B$6:$B$39,0),2),"") -> 
C84: =IF(ISERROR(INDEX(概要設定!$J$2:$K$51,MATCH($C85,概要設定!$J$2:$J$51,0),2)),"",INDEX(概要設定!$J$2:$K$51,MATCH($C85,概要設定!$J$2:$J$51,0),2)) ->  | H84: =IF(ISERROR(INDEX(概要設定!$J$2:$K$51,MATCH($H85,概要設定!$J$2:$J$51,0),2)),"",INDEX(概要設定!$J$2:$K$51,MATCH($H85,概要設定!$J$2:$J$51,0),2)) -> 
C85: =IF(AND($B85>=1,$B85<=17),INDEX(赤!$B$6:$E$39,MATCH($B85,赤!$B$6:$B$39,0),4),"") ->  | H85: =IF(AND($I85>=1,$I85<=17),INDEX(赤!$B$6:$E$39,MATCH($I85,赤!$B$6:$B$39,0),4),"") ->  | M85: =IF($A85="","",$B85+$B85+5) ->  | N85: =IF($A85="","",$I85+$I85+4) ->  | S85: =IF(AND($B85>=1,$B85<=17),INDEX(赤!$B$6:$E$39,MATCH($B85,赤!$B$6:$B$39,0),2),"") ->  | T85: =IF($A85="","",$I85+$I85+5) ->  | U85: =IF($A85="","",$B85+$B85+4) ->  | Z85: =IF(AND($I85>=1,$I85<=17),INDEX(赤!$B$6:$E$39,MATCH($I85,赤!$B$6:$B$39,0),2),"") -> 
C86: =IF(ISERROR(INDEX(概要設定!$J$2:$K$51,MATCH($C87,概要設定!$J$2:$J$51,0),2)),"",INDEX(概要設定!$J$2:$K$51,MATCH($C87,概要設定!$J$2:$J$51,0),2)) ->  | H86: =IF(ISERROR(INDEX(概要設定!$J$2:$K$51,MATCH($H87,概要設定!$J$2:$J$51,0),2)),"",INDEX(概要設定!$J$2:$K$51,MATCH($H87,概要設定!$J$2:$J$51,0),2)) -> 
C87: =IF(AND($B87>=1,$B87<=17),INDEX(赤!$B$6:$E$39,MATCH($B87,赤!$B$6:$B$39,0),4),"") ->  | H87: =IF(AND($I87>=1,$I87<=17),INDEX(赤!$B$6:$E$39,MATCH($I87,赤!$B$6:$B$39,0),4),"") ->  | M87: =IF($A87="","",$B87+$B87+5) ->  | N87: =IF($A87="","",$I87+$I87+4) ->  | S87: =IF(AND($B87>=1,$B87<=17),INDEX(赤!$B$6:$E$39,MATCH($B87,赤!$B$6:$B$39,0),2),"") ->  | T87: =IF($A87="","",$I87+$I87+5) ->  | U87: =IF($A87="","",$B87+$B87+4) ->  | Z87: =IF(AND($I87>=1,$I87<=17),INDEX(赤!$B$6:$E$39,MATCH($I87,赤!$B$6:$B$39,0),2),"") -> 
C88: =IF(ISERROR(INDEX(概要設定!$J$2:$K$51,MATCH($C89,概要設定!$J$2:$J$51,0),2)),"",INDEX(概要設定!$J$2:$K$51,MATCH($C89,概要設定!$J$2:$J$51,0),2)) ->  | H88: =IF(ISERROR(INDEX(概要設定!$J$2:$K$51,MATCH($H89,概要設定!$J$2:$J$51,0),2)),"",INDEX(概要設定!$J$2:$K$51,MATCH($H89,概要設定!$J$2:$J$51,0),2)) -> 
C89: =IF(AND($B89>=1,$B89<=17),INDEX(赤!$B$6:$E$39,MATCH($B89,赤!$B$6:$B$39,0),4),"") ->  | H89: =IF(AND($I89>=1,$I89<=17),INDEX(赤!$B$6:$E$39,MATCH($I89,赤!$B$6:$B$39,0),4),"") ->  | M89: =IF($A89="","",$B89+$B89+5) ->  | N89: =IF($A89="","",$I89+$I89+4) ->  | S89: =IF(AND($B89>=1,$B89<=17),INDEX(赤!$B$6:$E$39,MATCH($B89,赤!$B$6:$B$39,0),2),"") ->  | T89: =IF($A89="","",$I89+$I89+5) ->  | U89: =IF($A89="","",$B89+$B89+4) ->  | Z89: =IF(AND($I89>=1,$I89<=17),INDEX(赤!$B$6:$E$39,MATCH($I89,赤!$B$6:$B$39,0),2),"") -> 
C90: =IF(ISERROR(INDEX(概要設定!$J$2:$K$51,MATCH($C91,概要設定!$J$2:$J$51,0),2)),"",INDEX(概要設定!$J$2:$K$51,MATCH($C91,概要設定!$J$2:$J$51,0),2)) ->  | H90: =IF(ISERROR(INDEX(概要設定!$J$2:$K$51,MATCH($H91,概要設定!$J$2:$J$51,0),2)),"",INDEX(概要設定!$J$2:$K$51,MATCH($H91,概要設定!$J$2:$J$51,0),2)) -> 
C91: =IF(AND($B91>=1,$B91<=17),INDEX(赤!$B$6:$E$39,MATCH($B91,赤!$B$6:$B$39,0),4),"") ->  | H91: =IF(AND($I91>=1,$I91<=17),INDEX(赤!$B$6:$E$39,MATCH($I91,赤!$B$6:$B$39,0),4),"") ->  | M91: =IF($A91="","",$B91+$B91+5) ->  | N91: =IF($A91="","",$I91+$I91+4) ->  | S91: =IF(AND($B91>=1,$B91<=17),INDEX(赤!$B$6:$E$39,MATCH($B91,赤!$B$6:$B$39,0),2),"") ->  | T91: =IF($A91="","",$I91+$I91+5) ->  | U91: =IF($A91="","",$B91+$B91+4) ->  | Z91: =IF(AND($I91>=1,$I91<=17),INDEX(赤!$B$6:$E$39,MATCH($I91,赤!$B$6:$B$39,0),2),"") -> 
C92: =IF(ISERROR(INDEX(概要設定!$J$2:$K$51,MATCH($C93,概要設定!$J$2:$J$51,0),2)),"",INDEX(概要設定!$J$2:$K$51,MATCH($C93,概要設定!$J$2:$J$51,0),2)) ->  | H92: =IF(ISERROR(INDEX(概要設定!$J$2:$K$51,MATCH($H93,概要設定!$J$2:$J$51,0),2)),"",INDEX(概要設定!$J$2:$K$51,MATCH($H93,概要設定!$J$2:$J$51,0),2)) -> 
C93: =IF(AND($B93>=1,$B93<=17),INDEX(赤!$B$6:$E$39,MATCH($B93,赤!$B$6:$B$39,0),4),"") ->  | H93: =IF(AND($I93>=1,$I93<=17),INDEX(赤!$B$6:$E$39,MATCH($I93,赤!$B$6:$B$39,0),4),"") ->  | M93: =IF($A93="","",$B93+$B93+5) ->  | N93: =IF($A93="","",$I93+$I93+4) ->  | S93: =IF(AND($B93>=1,$B93<=17),INDEX(赤!$B$6:$E$39,MATCH($B93,赤!$B$6:$B$39,0),2),"") ->  | T93: =IF($A93="","",$I93+$I93+5) ->  | U93: =IF($A93="","",$B93+$B93+4) ->  | Z93: =IF(AND($I93>=1,$I93<=17),INDEX(赤!$B$6:$E$39,MATCH($I93,赤!$B$6:$B$39,0),2),"") -> 
C94: =IF(ISERROR(INDEX(概要設定!$J$2:$K$51,MATCH($C95,概要設定!$J$2:$J$51,0),2)),"",INDEX(概要設定!$J$2:$K$51,MATCH($C95,概要設定!$J$2:$J$51,0),2)) ->  | H94: =IF(ISERROR(INDEX(概要設定!$J$2:$K$51,MATCH($H95,概要設定!$J$2:$J$51,0),2)),"",INDEX(概要設定!$J$2:$K$51,MATCH($H95,概要設定!$J$2:$J$51,0),2)) -> 
C95: =IF(AND($B95>=1,$B95<=17),INDEX(赤!$B$6:$E$39,MATCH($B95,赤!$B$6:$B$39,0),4),"") ->  | H95: =IF(AND($I95>=1,$I95<=17),INDEX(赤!$B$6:$E$39,MATCH($I95,赤!$B$6:$B$39,0),4),"") ->  | M95: =IF($A95="","",$B95+$B95+5) ->  | N95: =IF($A95="","",$I95+$I95+4) ->  | S95: =IF(AND($B95>=1,$B95<=17),INDEX(赤!$B$6:$E$39,MATCH($B95,赤!$B$6:$B$39,0),2),"") ->  | T95: =IF($A95="","",$I95+$I95+5) ->  | U95: =IF($A95="","",$B95+$B95+4) ->  | Z95: =IF(AND($I95>=1,$I95<=17),INDEX(赤!$B$6:$E$39,MATCH($I95,赤!$B$6:$B$39,0),2),"") -> 
C96: =IF(ISERROR(INDEX(概要設定!$J$2:$K$51,MATCH($C97,概要設定!$J$2:$J$51,0),2)),"",INDEX(概要設定!$J$2:$K$51,MATCH($C97,概要設定!$J$2:$J$51,0),2)) ->  | H96: =IF(ISERROR(INDEX(概要設定!$J$2:$K$51,MATCH($H97,概要設定!$J$2:$J$51,0),2)),"",INDEX(概要設定!$J$2:$K$51,MATCH($H97,概要設定!$J$2:$J$51,0),2)) -> 
C97: =IF(AND($B97>=1,$B97<=17),INDEX(赤!$B$6:$E$39,MATCH($B97,赤!$B$6:$B$39,0),4),"") ->  | H97: =IF(AND($I97>=1,$I97<=17),INDEX(赤!$B$6:$E$39,MATCH($I97,赤!$B$6:$B$39,0),4),"") ->  | M97: =IF($A97="","",$B97+$B97+5) ->  | N97: =IF($A97="","",$I97+$I97+4) ->  | S97: =IF(AND($B97>=1,$B97<=17),INDEX(赤!$B$6:$E$39,MATCH($B97,赤!$B$6:$B$39,0),2),"") ->  | T97: =IF($A97="","",$I97+$I97+5) ->  | U97: =IF($A97="","",$B97+$B97+4) ->  | Z97: =IF(AND($I97>=1,$I97<=17),INDEX(赤!$B$6:$E$39,MATCH($I97,赤!$B$6:$B$39,0),2),"") -> 
C98: =IF(ISERROR(INDEX(概要設定!$J$2:$K$51,MATCH($C99,概要設定!$J$2:$J$51,0),2)),"",INDEX(概要設定!$J$2:$K$51,MATCH($C99,概要設定!$J$2:$J$51,0),2)) ->  | H98: =IF(ISERROR(INDEX(概要設定!$J$2:$K$51,MATCH($H99,概要設定!$J$2:$J$51,0),2)),"",INDEX(概要設定!$J$2:$K$51,MATCH($H99,概要設定!$J$2:$J$51,0),2)) -> 
C99: =IF(AND($B99>=1,$B99<=17),INDEX(赤!$B$6:$E$39,MATCH($B99,赤!$B$6:$B$39,0),4),"") ->  | H99: =IF(AND($I99>=1,$I99<=17),INDEX(赤!$B$6:$E$39,MATCH($I99,赤!$B$6:$B$39,0),4),"") ->  | M99: =IF($A99="","",$B99+$B99+5) ->  | N99: =IF($A99="","",$I99+$I99+4) ->  | S99: =IF(AND($B99>=1,$B99<=17),INDEX(赤!$B$6:$E$39,MATCH($B99,赤!$B$6:$B$39,0),2),"") ->  | T99: =IF($A99="","",$I99+$I99+5) ->  | U99: =IF($A99="","",$B99+$B99+4) ->  | Z99: =IF(AND($I99>=1,$I99<=17),INDEX(赤!$B$6:$E$39,MATCH($I99,赤!$B$6:$B$39,0),2),"") -> 
C100: =IF(ISERROR(INDEX(概要設定!$J$2:$K$51,MATCH($C101,概要設定!$J$2:$J$51,0),2)),"",INDEX(概要設定!$J$2:$K$51,MATCH($C101,概要設定!$J$2:$J$51,0),2)) ->  | H100: =IF(ISERROR(INDEX(概要設定!$J$2:$K$51,MATCH($H101,概要設定!$J$2:$J$51,0),2)),"",INDEX(概要設定!$J$2:$K$51,MATCH($H101,概要設定!$J$2:$J$51,0),2)) -> 
C101: =IF(AND($B101>=1,$B101<=17),INDEX(赤!$B$6:$E$39,MATCH($B101,赤!$B$6:$B$39,0),4),"") ->  | H101: =IF(AND($I101>=1,$I101<=17),INDEX(赤!$B$6:$E$39,MATCH($I101,赤!$B$6:$B$39,0),4),"") ->  | M101: =IF($A101="","",$B101+$B101+5) ->  | N101: =IF($A101="","",$I101+$I101+4) ->  | S101: =IF(AND($B101>=1,$B101<=17),INDEX(赤!$B$6:$E$39,MATCH($B101,赤!$B$6:$B$39,0),2),"") ->  | T101: =IF($A101="","",$I101+$I101+5) ->  | U101: =IF($A101="","",$B101+$B101+4) ->  | Z101: =IF(AND($I101>=1,$I101<=17),INDEX(赤!$B$6:$E$39,MATCH($I101,赤!$B$6:$B$39,0),2),"") -> 
C102: =IF(ISERROR(INDEX(概要設定!$J$2:$K$51,MATCH($C103,概要設定!$J$2:$J$51,0),2)),"",INDEX(概要設定!$J$2:$K$51,MATCH($C103,概要設定!$J$2:$J$51,0),2)) ->  | H102: =IF(ISERROR(INDEX(概要設定!$J$2:$K$51,MATCH($H103,概要設定!$J$2:$J$51,0),2)),"",INDEX(概要設定!$J$2:$K$51,MATCH($H103,概要設定!$J$2:$J$51,0),2)) -> 
C103: =IF(AND($B103>=1,$B103<=17),INDEX(赤!$B$6:$E$39,MATCH($B103,赤!$B$6:$B$39,0),4),"") ->  | H103: =IF(AND($I103>=1,$I103<=17),INDEX(赤!$B$6:$E$39,MATCH($I103,赤!$B$6:$B$39,0),4),"") ->  | M103: =IF($A103="","",$B103+$B103+5) ->  | N103: =IF($A103="","",$I103+$I103+4) ->  | S103: =IF(AND($B103>=1,$B103<=17),INDEX(赤!$B$6:$E$39,MATCH($B103,赤!$B$6:$B$39,0),2),"") ->  | T103: =IF($A103="","",$I103+$I103+5) ->  | U103: =IF($A103="","",$B103+$B103+4) ->  | Z103: =IF(AND($I103>=1,$I103<=17),INDEX(赤!$B$6:$E$39,MATCH($I103,赤!$B$6:$B$39,0),2),"") -> 
C104: =IF(ISERROR(INDEX(概要設定!$J$2:$K$51,MATCH($C105,概要設定!$J$2:$J$51,0),2)),"",INDEX(概要設定!$J$2:$K$51,MATCH($C105,概要設定!$J$2:$J$51,0),2)) ->  | H104: =IF(ISERROR(INDEX(概要設定!$J$2:$K$51,MATCH($H105,概要設定!$J$2:$J$51,0),2)),"",INDEX(概要設定!$J$2:$K$51,MATCH($H105,概要設定!$J$2:$J$51,0),2)) -> 
C105: =IF(AND($B105>=1,$B105<=17),INDEX(赤!$B$6:$E$39,MATCH($B105,赤!$B$6:$B$39,0),4),"") ->  | H105: =IF(AND($I105>=1,$I105<=17),INDEX(赤!$B$6:$E$39,MATCH($I105,赤!$B$6:$B$39,0),4),"") ->  | M105: =IF($A105="","",$B105+$B105+5) ->  | N105: =IF($A105="","",$I105+$I105+4) ->  | S105: =IF(AND($B105>=1,$B105<=17),INDEX(赤!$B$6:$E$39,MATCH($B105,赤!$B$6:$B$39,0),2),"") ->  | T105: =IF($A105="","",$I105+$I105+5) ->  | U105: =IF($A105="","",$B105+$B105+4) ->  | Z105: =IF(AND($I105>=1,$I105<=17),INDEX(赤!$B$6:$E$39,MATCH($I105,赤!$B$6:$B$39,0),2),"") -> 
C106: =IF(ISERROR(INDEX(概要設定!$J$2:$K$51,MATCH($C107,概要設定!$J$2:$J$51,0),2)),"",INDEX(概要設定!$J$2:$K$51,MATCH($C107,概要設定!$J$2:$J$51,0),2)) ->  | H106: =IF(ISERROR(INDEX(概要設定!$J$2:$K$51,MATCH($H107,概要設定!$J$2:$J$51,0),2)),"",INDEX(概要設定!$J$2:$K$51,MATCH($H107,概要設定!$J$2:$J$51,0),2)) -> 
C107: =IF(AND($B107>=1,$B107<=17),INDEX(赤!$B$6:$E$39,MATCH($B107,赤!$B$6:$B$39,0),4),"") ->  | H107: =IF(AND($I107>=1,$I107<=17),INDEX(赤!$B$6:$E$39,MATCH($I107,赤!$B$6:$B$39,0),4),"") ->  | M107: =IF($A107="","",$B107+$B107+5) ->  | N107: =IF($A107="","",$I107+$I107+4) ->  | S107: =IF(AND($B107>=1,$B107<=17),INDEX(赤!$B$6:$E$39,MATCH($B107,赤!$B$6:$B$39,0),2),"") ->  | T107: =IF($A107="","",$I107+$I107+5) ->  | U107: =IF($A107="","",$B107+$B107+4) ->  | Z107: =IF(AND($I107>=1,$I107<=17),INDEX(赤!$B$6:$E$39,MATCH($I107,赤!$B$6:$B$39,0),2),"") -> 
C108: =IF(ISERROR(INDEX(概要設定!$J$2:$K$51,MATCH($C109,概要設定!$J$2:$J$51,0),2)),"",INDEX(概要設定!$J$2:$K$51,MATCH($C109,概要設定!$J$2:$J$51,0),2)) ->  | H108: =IF(ISERROR(INDEX(概要設定!$J$2:$K$51,MATCH($H109,概要設定!$J$2:$J$51,0),2)),"",INDEX(概要設定!$J$2:$K$51,MATCH($H109,概要設定!$J$2:$J$51,0),2)) -> 
C109: =IF(AND($B109>=1,$B109<=17),INDEX(赤!$B$6:$E$39,MATCH($B109,赤!$B$6:$B$39,0),4),"") ->  | H109: =IF(AND($I109>=1,$I109<=17),INDEX(赤!$B$6:$E$39,MATCH($I109,赤!$B$6:$B$39,0),4),"") ->  | M109: =IF($A109="","",$B109+$B109+5) ->  | N109: =IF($A109="","",$I109+$I109+4) ->  | S109: =IF(AND($B109>=1,$B109<=17),INDEX(赤!$B$6:$E$39,MATCH($B109,赤!$B$6:$B$39,0),2),"") ->  | T109: =IF($A109="","",$I109+$I109+5) ->  | U109: =IF($A109="","",$B109+$B109+4) ->  | Z109: =IF(AND($I109>=1,$I109<=17),INDEX(赤!$B$6:$E$39,MATCH($I109,赤!$B$6:$B$39,0),2),"") -> 
C110: =IF(ISERROR(INDEX(概要設定!$J$2:$K$51,MATCH($C111,概要設定!$J$2:$J$51,0),2)),"",INDEX(概要設定!$J$2:$K$51,MATCH($C111,概要設定!$J$2:$J$51,0),2)) ->  | H110: =IF(ISERROR(INDEX(概要設定!$J$2:$K$51,MATCH($H111,概要設定!$J$2:$J$51,0),2)),"",INDEX(概要設定!$J$2:$K$51,MATCH($H111,概要設定!$J$2:$J$51,0),2)) -> 
C111: =IF(AND($B111>=1,$B111<=17),INDEX(赤!$B$6:$E$39,MATCH($B111,赤!$B$6:$B$39,0),4),"") ->  | H111: =IF(AND($I111>=1,$I111<=17),INDEX(赤!$B$6:$E$39,MATCH($I111,赤!$B$6:$B$39,0),4),"") ->  | M111: =IF($A111="","",$B111+$B111+5) ->  | N111: =IF($A111="","",$I111+$I111+4) ->  | S111: =IF(AND($B111>=1,$B111<=17),INDEX(赤!$B$6:$E$39,MATCH($B111,赤!$B$6:$B$39,0),2),"") ->  | T111: =IF($A111="","",$I111+$I111+5) ->  | U111: =IF($A111="","",$B111+$B111+4) ->  | Z111: =IF(AND($I111>=1,$I111<=17),INDEX(赤!$B$6:$E$39,MATCH($I111,赤!$B$6:$B$39,0),2),"") -> 
C112: =IF(ISERROR(INDEX(概要設定!$J$2:$K$51,MATCH($C113,概要設定!$J$2:$J$51,0),2)),"",INDEX(概要設定!$J$2:$K$51,MATCH($C113,概要設定!$J$2:$J$51,0),2)) ->  | H112: =IF(ISERROR(INDEX(概要設定!$J$2:$K$51,MATCH($H113,概要設定!$J$2:$J$51,0),2)),"",INDEX(概要設定!$J$2:$K$51,MATCH($H113,概要設定!$J$2:$J$51,0),2)) -> 
C113: =IF(AND($B113>=1,$B113<=17),INDEX(赤!$B$6:$E$39,MATCH($B113,赤!$B$6:$B$39,0),4),"") ->  | H113: =IF(AND($I113>=1,$I113<=17),INDEX(赤!$B$6:$E$39,MATCH($I113,赤!$B$6:$B$39,0),4),"") ->  | M113: =IF($A113="","",$B113+$B113+5) ->  | N113: =IF($A113="","",$I113+$I113+4) ->  | S113: =IF(AND($B113>=1,$B113<=17),INDEX(赤!$B$6:$E$39,MATCH($B113,赤!$B$6:$B$39,0),2),"") ->  | T113: =IF($A113="","",$I113+$I113+5) ->  | U113: =IF($A113="","",$B113+$B113+4) ->  | Z113: =IF(AND($I113>=1,$I113<=17),INDEX(赤!$B$6:$E$39,MATCH($I113,赤!$B$6:$B$39,0),2),"") -> 
C114: =IF(ISERROR(INDEX(概要設定!$J$2:$K$51,MATCH($C115,概要設定!$J$2:$J$51,0),2)),"",INDEX(概要設定!$J$2:$K$51,MATCH($C115,概要設定!$J$2:$J$51,0),2)) ->  | H114: =IF(ISERROR(INDEX(概要設定!$J$2:$K$51,MATCH($H115,概要設定!$J$2:$J$51,0),2)),"",INDEX(概要設定!$J$2:$K$51,MATCH($H115,概要設定!$J$2:$J$51,0),2)) -> 
C115: =IF(AND($B115>=1,$B115<=17),INDEX(赤!$B$6:$E$39,MATCH($B115,赤!$B$6:$B$39,0),4),"") ->  | H115: =IF(AND($I115>=1,$I115<=17),INDEX(赤!$B$6:$E$39,MATCH($I115,赤!$B$6:$B$39,0),4),"") ->  | M115: =IF($A115="","",$B115+$B115+5) ->  | N115: =IF($A115="","",$I115+$I115+4) ->  | S115: =IF(AND($B115>=1,$B115<=17),INDEX(赤!$B$6:$E$39,MATCH($B115,赤!$B$6:$B$39,0),2),"") ->  | T115: =IF($A115="","",$I115+$I115+5) ->  | U115: =IF($A115="","",$B115+$B115+4) ->  | Z115: =IF(AND($I115>=1,$I115<=17),INDEX(赤!$B$6:$E$39,MATCH($I115,赤!$B$6:$B$39,0),2),"") -> 
C116: =IF(ISERROR(INDEX(概要設定!$J$2:$K$51,MATCH($C117,概要設定!$J$2:$J$51,0),2)),"",INDEX(概要設定!$J$2:$K$51,MATCH($C117,概要設定!$J$2:$J$51,0),2)) ->  | H116: =IF(ISERROR(INDEX(概要設定!$J$2:$K$51,MATCH($H117,概要設定!$J$2:$J$51,0),2)),"",INDEX(概要設定!$J$2:$K$51,MATCH($H117,概要設定!$J$2:$J$51,0),2)) -> 
C117: =IF(AND($B117>=1,$B117<=17),INDEX(赤!$B$6:$E$39,MATCH($B117,赤!$B$6:$B$39,0),4),"") ->  | H117: =IF(AND($I117>=1,$I117<=17),INDEX(赤!$B$6:$E$39,MATCH($I117,赤!$B$6:$B$39,0),4),"") ->  | M117: =IF($A117="","",$B117+$B117+5) ->  | N117: =IF($A117="","",$I117+$I117+4) ->  | S117: =IF(AND($B117>=1,$B117<=17),INDEX(赤!$B$6:$E$39,MATCH($B117,赤!$B$6:$B$39,0),2),"") ->  | T117: =IF($A117="","",$I117+$I117+5) ->  | U117: =IF($A117="","",$B117+$B117+4) ->  | Z117: =IF(AND($I117>=1,$I117<=17),INDEX(赤!$B$6:$E$39,MATCH($I117,赤!$B$6:$B$39,0),2),"") -> 
C118: =IF(ISERROR(INDEX(概要設定!$J$2:$K$51,MATCH($C119,概要設定!$J$2:$J$51,0),2)),"",INDEX(概要設定!$J$2:$K$51,MATCH($C119,概要設定!$J$2:$J$51,0),2)) ->  | H118: =IF(ISERROR(INDEX(概要設定!$J$2:$K$51,MATCH($H119,概要設定!$J$2:$J$51,0),2)),"",INDEX(概要設定!$J$2:$K$51,MATCH($H119,概要設定!$J$2:$J$51,0),2)) -> 
C119: =IF(AND($B119>=1,$B119<=17),INDEX(赤!$B$6:$E$39,MATCH($B119,赤!$B$6:$B$39,0),4),"") ->  | H119: =IF(AND($I119>=1,$I119<=17),INDEX(赤!$B$6:$E$39,MATCH($I119,赤!$B$6:$B$39,0),4),"") ->  | M119: =IF($A119="","",$B119+$B119+5) ->  | N119: =IF($A119="","",$I119+$I119+4) ->  | S119: =IF(AND($B119>=1,$B119<=17),INDEX(赤!$B$6:$E$39,MATCH($B119,赤!$B$6:$B$39,0),2),"") ->  | T119: =IF($A119="","",$I119+$I119+5) ->  | U119: =IF($A119="","",$B119+$B119+4) ->  | Z119: =IF(AND($I119>=1,$I119<=17),INDEX(赤!$B$6:$E$39,MATCH($I119,赤!$B$6:$B$39,0),2),"") -> 
C120: =IF(ISERROR(INDEX(概要設定!$J$2:$K$51,MATCH($C121,概要設定!$J$2:$J$51,0),2)),"",INDEX(概要設定!$J$2:$K$51,MATCH($C121,概要設定!$J$2:$J$51,0),2)) ->  | H120: =IF(ISERROR(INDEX(概要設定!$J$2:$K$51,MATCH($H121,概要設定!$J$2:$J$51,0),2)),"",INDEX(概要設定!$J$2:$K$51,MATCH($H121,概要設定!$J$2:$J$51,0),2)) -> 
C121: =IF(AND($B121>=1,$B121<=17),INDEX(赤!$B$6:$E$39,MATCH($B121,赤!$B$6:$B$39,0),4),"") ->  | H121: =IF(AND($I121>=1,$I121<=17),INDEX(赤!$B$6:$E$39,MATCH($I121,赤!$B$6:$B$39,0),4),"") ->  | M121: =IF($A121="","",$B121+$B121+5) ->  | N121: =IF($A121="","",$I121+$I121+4) ->  | S121: =IF(AND($B121>=1,$B121<=17),INDEX(赤!$B$6:$E$39,MATCH($B121,赤!$B$6:$B$39,0),2),"") ->  | T121: =IF($A121="","",$I121+$I121+5) ->  | U121: =IF($A121="","",$B121+$B121+4) ->  | Z121: =IF(AND($I121>=1,$I121<=17),INDEX(赤!$B$6:$E$39,MATCH($I121,赤!$B$6:$B$39,0),2),"") -> 
C122: =IF(ISERROR(INDEX(概要設定!$J$2:$K$51,MATCH($C123,概要設定!$J$2:$J$51,0),2)),"",INDEX(概要設定!$J$2:$K$51,MATCH($C123,概要設定!$J$2:$J$51,0),2)) ->  | H122: =IF(ISERROR(INDEX(概要設定!$J$2:$K$51,MATCH($H123,概要設定!$J$2:$J$51,0),2)),"",INDEX(概要設定!$J$2:$K$51,MATCH($H123,概要設定!$J$2:$J$51,0),2)) -> 
C123: =IF(AND($B123>=1,$B123<=17),INDEX(赤!$B$6:$E$39,MATCH($B123,赤!$B$6:$B$39,0),4),"") ->  | H123: =IF(AND($I123>=1,$I123<=17),INDEX(赤!$B$6:$E$39,MATCH($I123,赤!$B$6:$B$39,0),4),"") ->  | M123: =IF($A123="","",$B123+$B123+5) ->  | N123: =IF($A123="","",$I123+$I123+4) ->  | S123: =IF(AND($B123>=1,$B123<=17),INDEX(赤!$B$6:$E$39,MATCH($B123,赤!$B$6:$B$39,0),2),"") ->  | T123: =IF($A123="","",$I123+$I123+5) ->  | U123: =IF($A123="","",$B123+$B123+4) ->  | Z123: =IF(AND($I123>=1,$I123<=17),INDEX(赤!$B$6:$E$39,MATCH($I123,赤!$B$6:$B$39,0),2),"") -> 
C124: =IF(ISERROR(INDEX(概要設定!$J$2:$K$51,MATCH($C125,概要設定!$J$2:$J$51,0),2)),"",INDEX(概要設定!$J$2:$K$51,MATCH($C125,概要設定!$J$2:$J$51,0),2)) ->  | H124: =IF(ISERROR(INDEX(概要設定!$J$2:$K$51,MATCH($H125,概要設定!$J$2:$J$51,0),2)),"",INDEX(概要設定!$J$2:$K$51,MATCH($H125,概要設定!$J$2:$J$51,0),2)) -> 
C125: =IF(AND($B125>=1,$B125<=17),INDEX(赤!$B$6:$E$39,MATCH($B125,赤!$B$6:$B$39,0),4),"") ->  | H125: =IF(AND($I125>=1,$I125<=17),INDEX(赤!$B$6:$E$39,MATCH($I125,赤!$B$6:$B$39,0),4),"") ->  | M125: =IF($A125="","",$B125+$B125+5) ->  | N125: =IF($A125="","",$I125+$I125+4) ->  | S125: =IF(AND($B125>=1,$B125<=17),INDEX(赤!$B$6:$E$39,MATCH($B125,赤!$B$6:$B$39,0),2),"") ->  | T125: =IF($A125="","",$I125+$I125+5) ->  | U125: =IF($A125="","",$B125+$B125+4) ->  | Z125: =IF(AND($I125>=1,$I125<=17),INDEX(赤!$B$6:$E$39,MATCH($I125,赤!$B$6:$B$39,0),2),"") -> 
C126: =IF(ISERROR(INDEX(概要設定!$J$2:$K$51,MATCH($C127,概要設定!$J$2:$J$51,0),2)),"",INDEX(概要設定!$J$2:$K$51,MATCH($C127,概要設定!$J$2:$J$51,0),2)) ->  | H126: =IF(ISERROR(INDEX(概要設定!$J$2:$K$51,MATCH($H127,概要設定!$J$2:$J$51,0),2)),"",INDEX(概要設定!$J$2:$K$51,MATCH($H127,概要設定!$J$2:$J$51,0),2)) -> 
C127: =IF(AND($B127>=1,$B127<=17),INDEX(赤!$B$6:$E$39,MATCH($B127,赤!$B$6:$B$39,0),4),"") ->  | H127: =IF(AND($I127>=1,$I127<=17),INDEX(赤!$B$6:$E$39,MATCH($I127,赤!$B$6:$B$39,0),4),"") ->  | M127: =IF($A127="","",$B127+$B127+5) ->  | N127: =IF($A127="","",$I127+$I127+4) ->  | S127: =IF(AND($B127>=1,$B127<=17),INDEX(赤!$B$6:$E$39,MATCH($B127,赤!$B$6:$B$39,0),2),"") ->  | T127: =IF($A127="","",$I127+$I127+5) ->  | U127: =IF($A127="","",$B127+$B127+4) ->  | Z127: =IF(AND($I127>=1,$I127<=17),INDEX(赤!$B$6:$E$39,MATCH($I127,赤!$B$6:$B$39,0),2),"") -> 
C128: =IF(ISERROR(INDEX(概要設定!$J$2:$K$51,MATCH($C129,概要設定!$J$2:$J$51,0),2)),"",INDEX(概要設定!$J$2:$K$51,MATCH($C129,概要設定!$J$2:$J$51,0),2)) ->  | H128: =IF(ISERROR(INDEX(概要設定!$J$2:$K$51,MATCH($H129,概要設定!$J$2:$J$51,0),2)),"",INDEX(概要設定!$J$2:$K$51,MATCH($H129,概要設定!$J$2:$J$51,0),2)) -> 
C129: =IF(AND($B129>=1,$B129<=17),INDEX(赤!$B$6:$E$39,MATCH($B129,赤!$B$6:$B$39,0),4),"") ->  | H129: =IF(AND($I129>=1,$I129<=17),INDEX(赤!$B$6:$E$39,MATCH($I129,赤!$B$6:$B$39,0),4),"") ->  | M129: =IF($A129="","",$B129+$B129+5) ->  | N129: =IF($A129="","",$I129+$I129+4) ->  | S129: =IF(AND($B129>=1,$B129<=17),INDEX(赤!$B$6:$E$39,MATCH($B129,赤!$B$6:$B$39,0),2),"") ->  | T129: =IF($A129="","",$I129+$I129+5) ->  | U129: =IF($A129="","",$B129+$B129+4) ->  | Z129: =IF(AND($I129>=1,$I129<=17),INDEX(赤!$B$6:$E$39,MATCH($I129,赤!$B$6:$B$39,0),2),"") -> 
C130: =IF(ISERROR(INDEX(概要設定!$J$2:$K$51,MATCH($C131,概要設定!$J$2:$J$51,0),2)),"",INDEX(概要設定!$J$2:$K$51,MATCH($C131,概要設定!$J$2:$J$51,0),2)) ->  | H130: =IF(ISERROR(INDEX(概要設定!$J$2:$K$51,MATCH($H131,概要設定!$J$2:$J$51,0),2)),"",INDEX(概要設定!$J$2:$K$51,MATCH($H131,概要設定!$J$2:$J$51,0),2)) -> 
C131: =IF(AND($B131>=1,$B131<=17),INDEX(赤!$B$6:$E$39,MATCH($B131,赤!$B$6:$B$39,0),4),"") ->  | H131: =IF(AND($I131>=1,$I131<=17),INDEX(赤!$B$6:$E$39,MATCH($I131,赤!$B$6:$B$39,0),4),"") ->  | M131: =IF($A131="","",$B131+$B131+5) ->  | N131: =IF($A131="","",$I131+$I131+4) ->  | S131: =IF(AND($B131>=1,$B131<=17),INDEX(赤!$B$6:$E$39,MATCH($B131,赤!$B$6:$B$39,0),2),"") ->  | T131: =IF($A131="","",$I131+$I131+5) ->  | U131: =IF($A131="","",$B131+$B131+4) ->  | Z131: =IF(AND($I131>=1,$I131<=17),INDEX(赤!$B$6:$E$39,MATCH($I131,赤!$B$6:$B$39,0),2),"") -> 
C132: =IF(ISERROR(INDEX(概要設定!$J$2:$K$51,MATCH($C133,概要設定!$J$2:$J$51,0),2)),"",INDEX(概要設定!$J$2:$K$51,MATCH($C133,概要設定!$J$2:$J$51,0),2)) ->  | H132: =IF(ISERROR(INDEX(概要設定!$J$2:$K$51,MATCH($H133,概要設定!$J$2:$J$51,0),2)),"",INDEX(概要設定!$J$2:$K$51,MATCH($H133,概要設定!$J$2:$J$51,0),2)) -> 
C133: =IF(AND($B133>=1,$B133<=17),INDEX(赤!$B$6:$E$39,MATCH($B133,赤!$B$6:$B$39,0),4),"") ->  | H133: =IF(AND($I133>=1,$I133<=17),INDEX(赤!$B$6:$E$39,MATCH($I133,赤!$B$6:$B$39,0),4),"") ->  | M133: =IF($A133="","",$B133+$B133+5) ->  | N133: =IF($A133="","",$I133+$I133+4) ->  | S133: =IF(AND($B133>=1,$B133<=17),INDEX(赤!$B$6:$E$39,MATCH($B133,赤!$B$6:$B$39,0),2),"") ->  | T133: =IF($A133="","",$I133+$I133+5) ->  | U133: =IF($A133="","",$B133+$B133+4) ->  | Z133: =IF(AND($I133>=1,$I133<=17),INDEX(赤!$B$6:$E$39,MATCH($I133,赤!$B$6:$B$39,0),2),"") -> 
C134: =IF(ISERROR(INDEX(概要設定!$J$2:$K$51,MATCH($C135,概要設定!$J$2:$J$51,0),2)),"",INDEX(概要設定!$J$2:$K$51,MATCH($C135,概要設定!$J$2:$J$51,0),2)) ->  | H134: =IF(ISERROR(INDEX(概要設定!$J$2:$K$51,MATCH($H135,概要設定!$J$2:$J$51,0),2)),"",INDEX(概要設定!$J$2:$K$51,MATCH($H135,概要設定!$J$2:$J$51,0),2)) -> 
C135: =IF(AND($B135>=1,$B135<=17),INDEX(赤!$B$6:$E$39,MATCH($B135,赤!$B$6:$B$39,0),4),"") ->  | H135: =IF(AND($I135>=1,$I135<=17),INDEX(赤!$B$6:$E$39,MATCH($I135,赤!$B$6:$B$39,0),4),"") ->  | M135: =IF($A135="","",$B135+$B135+5) ->  | N135: =IF($A135="","",$I135+$I135+4) ->  | S135: =IF(AND($B135>=1,$B135<=17),INDEX(赤!$B$6:$E$39,MATCH($B135,赤!$B$6:$B$39,0),2),"") ->  | T135: =IF($A135="","",$I135+$I135+5) ->  | U135: =IF($A135="","",$B135+$B135+4) ->  | Z135: =IF(AND($I135>=1,$I135<=17),INDEX(赤!$B$6:$E$39,MATCH($I135,赤!$B$6:$B$39,0),2),"") -> 
C136: =IF(ISERROR(INDEX(概要設定!$J$2:$K$51,MATCH($C137,概要設定!$J$2:$J$51,0),2)),"",INDEX(概要設定!$J$2:$K$51,MATCH($C137,概要設定!$J$2:$J$51,0),2)) ->  | H136: =IF(ISERROR(INDEX(概要設定!$J$2:$K$51,MATCH($H137,概要設定!$J$2:$J$51,0),2)),"",INDEX(概要設定!$J$2:$K$51,MATCH($H137,概要設定!$J$2:$J$51,0),2)) -> 
C137: =IF(AND($B137>=1,$B137<=17),INDEX(赤!$B$6:$E$39,MATCH($B137,赤!$B$6:$B$39,0),4),"") ->  | H137: =IF(AND($I137>=1,$I137<=17),INDEX(赤!$B$6:$E$39,MATCH($I137,赤!$B$6:$B$39,0),4),"") ->  | M137: =IF($A137="","",$B137+$B137+5) ->  | N137: =IF($A137="","",$I137+$I137+4) ->  | O137: =IF($A137="","",$M137-1) ->  | P137: =IF($A137="","",$N137) ->  | Q137: =IF($A137="","",$M137-1) ->  | R137: =IF($A137="","",$N137+1) ->  | S137: =IF(AND($B137>=1,$B137<=17),INDEX(赤!$B$6:$E$39,MATCH($B137,赤!$B$6:$B$39,0),2),"") ->  | T137: =IF($A137="","",$I137+$I137+5) ->  | U137: =IF($A137="","",$B137+$B137+4) ->  | V137: =IF($A137="","",$T137-1) ->  | W137: =IF($A137="","",$U137) ->  | X137: =IF($A137="","",$T137-1) ->  | Y137: =IF($A137="","",$U137+1) ->  | Z137: =IF(AND($I137>=1,$I137<=17),INDEX(赤!$B$6:$E$39,MATCH($I137,赤!$B$6:$B$39,0),2),"") -> 
C138: =IF(ISERROR(INDEX(概要設定!$J$2:$K$51,MATCH($C139,概要設定!$J$2:$J$51,0),2)),"",INDEX(概要設定!$J$2:$K$51,MATCH($C139,概要設定!$J$2:$J$51,0),2)) ->  | H138: =IF(ISERROR(INDEX(概要設定!$J$2:$K$51,MATCH($H139,概要設定!$J$2:$J$51,0),2)),"",INDEX(概要設定!$J$2:$K$51,MATCH($H139,概要設定!$J$2:$J$51,0),2)) -> 
C139: =IF(AND($B139>=1,$B139<=17),INDEX(赤!$B$6:$E$39,MATCH($B139,赤!$B$6:$B$39,0),4),"") ->  | H139: =IF(AND($I139>=1,$I139<=17),INDEX(赤!$B$6:$E$39,MATCH($I139,赤!$B$6:$B$39,0),4),"") ->  | M139: =IF($A139="","",$B139+$B139+5) ->  | N139: =IF($A139="","",$I139+$I139+4) ->  | S139: =IF(AND($B139>=1,$B139<=17),INDEX(赤!$B$6:$E$39,MATCH($B139,赤!$B$6:$B$39,0),2),"") ->  | T139: =IF($A139="","",$I139+$I139+5) ->  | U139: =IF($A139="","",$B139+$B139+4) ->  | Z139: =IF(AND($I139>=1,$I139<=17),INDEX(赤!$B$6:$E$39,MATCH($I139,赤!$B$6:$B$39,0),2),"") -> 
C140: =IF(ISERROR(INDEX(概要設定!$J$2:$K$51,MATCH($C141,概要設定!$J$2:$J$51,0),2)),"",INDEX(概要設定!$J$2:$K$51,MATCH($C141,概要設定!$J$2:$J$51,0),2)) ->  | H140: =IF(ISERROR(INDEX(概要設定!$J$2:$K$51,MATCH($H141,概要設定!$J$2:$J$51,0),2)),"",INDEX(概要設定!$J$2:$K$51,MATCH($H141,概要設定!$J$2:$J$51,0),2)) -> 
C141: =IF(AND($B141>=1,$B141<=17),INDEX(赤!$B$6:$E$39,MATCH($B141,赤!$B$6:$B$39,0),4),"") ->  | H141: =IF(AND($I141>=1,$I141<=17),INDEX(赤!$B$6:$E$39,MATCH($I141,赤!$B$6:$B$39,0),4),"") ->  | M141: =IF($A141="","",$B141+$B141+5) ->  | N141: =IF($A141="","",$I141+$I141+4) ->  | S141: =IF(AND($B141>=1,$B141<=17),INDEX(赤!$B$6:$E$39,MATCH($B141,赤!$B$6:$B$39,0),2),"") ->  | T141: =IF($A141="","",$I141+$I141+5) ->  | U141: =IF($A141="","",$B141+$B141+4) ->  | Z141: =IF(AND($I141>=1,$I141<=17),INDEX(赤!$B$6:$E$39,MATCH($I141,赤!$B$6:$B$39,0),2),"") -> 
C142: =IF(ISERROR(INDEX(概要設定!$J$2:$K$51,MATCH($C143,概要設定!$J$2:$J$51,0),2)),"",INDEX(概要設定!$J$2:$K$51,MATCH($C143,概要設定!$J$2:$J$51,0),2)) ->  | H142: =IF(ISERROR(INDEX(概要設定!$J$2:$K$51,MATCH($H143,概要設定!$J$2:$J$51,0),2)),"",INDEX(概要設定!$J$2:$K$51,MATCH($H143,概要設定!$J$2:$J$51,0),2)) -> 
C143: =IF(AND($B143>=1,$B143<=17),INDEX(赤!$B$6:$E$39,MATCH($B143,赤!$B$6:$B$39,0),4),"") ->  | H143: =IF(AND($I143>=1,$I143<=17),INDEX(赤!$B$6:$E$39,MATCH($I143,赤!$B$6:$B$39,0),4),"") ->  | M143: =IF($A143="","",$B143+$B143+5) ->  | N143: =IF($A143="","",$I143+$I143+4) ->  | S143: =IF(AND($B143>=1,$B143<=17),INDEX(赤!$B$6:$E$39,MATCH($B143,赤!$B$6:$B$39,0),2),"") ->  | T143: =IF($A143="","",$I143+$I143+5) ->  | U143: =IF($A143="","",$B143+$B143+4) ->  | Z143: =IF(AND($I143>=1,$I143<=17),INDEX(赤!$B$6:$E$39,MATCH($I143,赤!$B$6:$B$39,0),2),"") -> 
C144: =IF(ISERROR(INDEX(概要設定!$J$2:$K$51,MATCH($C145,概要設定!$J$2:$J$51,0),2)),"",INDEX(概要設定!$J$2:$K$51,MATCH($C145,概要設定!$J$2:$J$51,0),2)) ->  | H144: =IF(ISERROR(INDEX(概要設定!$J$2:$K$51,MATCH($H145,概要設定!$J$2:$J$51,0),2)),"",INDEX(概要設定!$J$2:$K$51,MATCH($H145,概要設定!$J$2:$J$51,0),2)) -> 
C145: =IF(AND($B145>=1,$B145<=17),INDEX(赤!$B$6:$E$39,MATCH($B145,赤!$B$6:$B$39,0),4),"") ->  | H145: =IF(AND($I145>=1,$I145<=17),INDEX(赤!$B$6:$E$39,MATCH($I145,赤!$B$6:$B$39,0),4),"") ->  | M145: =IF($A145="","",$B145+$B145+5) ->  | N145: =IF($A145="","",$I145+$I145+4) ->  | S145: =IF(AND($B145>=1,$B145<=17),INDEX(赤!$B$6:$E$39,MATCH($B145,赤!$B$6:$B$39,0),2),"") ->  | T145: =IF($A145="","",$I145+$I145+5) ->  | U145: =IF($A145="","",$B145+$B145+4) ->  | Z145: =IF(AND($I145>=1,$I145<=17),INDEX(赤!$B$6:$E$39,MATCH($I145,赤!$B$6:$B$39,0),2),"") -> 
C146: =IF(ISERROR(INDEX(概要設定!$J$2:$K$51,MATCH($C147,概要設定!$J$2:$J$51,0),2)),"",INDEX(概要設定!$J$2:$K$51,MATCH($C147,概要設定!$J$2:$J$51,0),2)) ->  | H146: =IF(ISERROR(INDEX(概要設定!$J$2:$K$51,MATCH($H147,概要設定!$J$2:$J$51,0),2)),"",INDEX(概要設定!$J$2:$K$51,MATCH($H147,概要設定!$J$2:$J$51,0),2)) -> 
C147: =IF(AND($B147>=1,$B147<=17),INDEX(赤!$B$6:$E$39,MATCH($B147,赤!$B$6:$B$39,0),4),"") ->  | H147: =IF(AND($I147>=1,$I147<=17),INDEX(赤!$B$6:$E$39,MATCH($I147,赤!$B$6:$B$39,0),4),"") ->  | M147: =IF($A147="","",$B147+$B147+5) ->  | N147: =IF($A147="","",$I147+$I147+4) ->  | S147: =IF(AND($B147>=1,$B147<=17),INDEX(赤!$B$6:$E$39,MATCH($B147,赤!$B$6:$B$39,0),2),"") ->  | T147: =IF($A147="","",$I147+$I147+5) ->  | U147: =IF($A147="","",$B147+$B147+4) ->  | Z147: =IF(AND($I147>=1,$I147<=17),INDEX(赤!$B$6:$E$39,MATCH($I147,赤!$B$6:$B$39,0),2),"") -> 
C148: =IF(ISERROR(INDEX(概要設定!$J$2:$K$51,MATCH($C149,概要設定!$J$2:$J$51,0),2)),"",INDEX(概要設定!$J$2:$K$51,MATCH($C149,概要設定!$J$2:$J$51,0),2)) ->  | H148: =IF(ISERROR(INDEX(概要設定!$J$2:$K$51,MATCH($H149,概要設定!$J$2:$J$51,0),2)),"",INDEX(概要設定!$J$2:$K$51,MATCH($H149,概要設定!$J$2:$J$51,0),2)) -> 
C149: =IF(AND($B149>=1,$B149<=17),INDEX(赤!$B$6:$E$39,MATCH($B149,赤!$B$6:$B$39,0),4),"") ->  | H149: =IF(AND($I149>=1,$I149<=17),INDEX(赤!$B$6:$E$39,MATCH($I149,赤!$B$6:$B$39,0),4),"") ->  | M149: =IF($A149="","",$B149+$B149+5) ->  | N149: =IF($A149="","",$I149+$I149+4) ->  | S149: =IF(AND($B149>=1,$B149<=17),INDEX(赤!$B$6:$E$39,MATCH($B149,赤!$B$6:$B$39,0),2),"") ->  | T149: =IF($A149="","",$I149+$I149+5) ->  | U149: =IF($A149="","",$B149+$B149+4) ->  | Z149: =IF(AND($I149>=1,$I149<=17),INDEX(赤!$B$6:$E$39,MATCH($I149,赤!$B$6:$B$39,0),2),"") -> 
C150: =IF(ISERROR(INDEX(概要設定!$J$2:$K$51,MATCH($C151,概要設定!$J$2:$J$51,0),2)),"",INDEX(概要設定!$J$2:$K$51,MATCH($C151,概要設定!$J$2:$J$51,0),2)) ->  | H150: =IF(ISERROR(INDEX(概要設定!$J$2:$K$51,MATCH($H151,概要設定!$J$2:$J$51,0),2)),"",INDEX(概要設定!$J$2:$K$51,MATCH($H151,概要設定!$J$2:$J$51,0),2)) -> 
C151: =IF(AND($B151>=1,$B151<=17),INDEX(赤!$B$6:$E$39,MATCH($B151,赤!$B$6:$B$39,0),4),"") ->  | H151: =IF(AND($I151>=1,$I151<=17),INDEX(赤!$B$6:$E$39,MATCH($I151,赤!$B$6:$B$39,0),4),"") ->  | M151: =IF($A151="","",$B151+$B151+5) ->  | N151: =IF($A151="","",$I151+$I151+4) ->  | S151: =IF(AND($B151>=1,$B151<=17),INDEX(赤!$B$6:$E$39,MATCH($B151,赤!$B$6:$B$39,0),2),"") ->  | T151: =IF($A151="","",$I151+$I151+5) ->  | U151: =IF($A151="","",$B151+$B151+4) ->  | Z151: =IF(AND($I151>=1,$I151<=17),INDEX(赤!$B$6:$E$39,MATCH($I151,赤!$B$6:$B$39,0),2),"") -> 
C152: =IF(ISERROR(INDEX(概要設定!$J$2:$K$51,MATCH($C153,概要設定!$J$2:$J$51,0),2)),"",INDEX(概要設定!$J$2:$K$51,MATCH($C153,概要設定!$J$2:$J$51,0),2)) ->  | H152: =IF(ISERROR(INDEX(概要設定!$J$2:$K$51,MATCH($H153,概要設定!$J$2:$J$51,0),2)),"",INDEX(概要設定!$J$2:$K$51,MATCH($H153,概要設定!$J$2:$J$51,0),2)) -> 
C153: =IF(AND($B153>=1,$B153<=17),INDEX(赤!$B$6:$E$39,MATCH($B153,赤!$B$6:$B$39,0),4),"") ->  | H153: =IF(AND($I153>=1,$I153<=17),INDEX(赤!$B$6:$E$39,MATCH($I153,赤!$B$6:$B$39,0),4),"") ->  | M153: =IF($A153="","",$B153+$B153+5) ->  | N153: =IF($A153="","",$I153+$I153+4) ->  | S153: =IF(AND($B153>=1,$B153<=17),INDEX(赤!$B$6:$E$39,MATCH($B153,赤!$B$6:$B$39,0),2),"") ->  | T153: =IF($A153="","",$I153+$I153+5) ->  | U153: =IF($A153="","",$B153+$B153+4) ->  | Z153: =IF(AND($I153>=1,$I153<=17),INDEX(赤!$B$6:$E$39,MATCH($I153,赤!$B$6:$B$39,0),2),"") -> 
C154: =IF(ISERROR(INDEX(概要設定!$J$2:$K$51,MATCH($C155,概要設定!$J$2:$J$51,0),2)),"",INDEX(概要設定!$J$2:$K$51,MATCH($C155,概要設定!$J$2:$J$51,0),2)) ->  | H154: =IF(ISERROR(INDEX(概要設定!$J$2:$K$51,MATCH($H155,概要設定!$J$2:$J$51,0),2)),"",INDEX(概要設定!$J$2:$K$51,MATCH($H155,概要設定!$J$2:$J$51,0),2)) -> 
C155: =IF(AND($B155>=1,$B155<=17),INDEX(赤!$B$6:$E$39,MATCH($B155,赤!$B$6:$B$39,0),4),"") ->  | H155: =IF(AND($I155>=1,$I155<=17),INDEX(赤!$B$6:$E$39,MATCH($I155,赤!$B$6:$B$39,0),4),"") ->  | M155: =IF($A155="","",$B155+$B155+5) ->  | N155: =IF($A155="","",$I155+$I155+4) ->  | S155: =IF(AND($B155>=1,$B155<=17),INDEX(赤!$B$6:$E$39,MATCH($B155,赤!$B$6:$B$39,0),2),"") ->  | T155: =IF($A155="","",$I155+$I155+5) ->  | U155: =IF($A155="","",$B155+$B155+4) ->  | Z155: =IF(AND($I155>=1,$I155<=17),INDEX(赤!$B$6:$E$39,MATCH($I155,赤!$B$6:$B$39,0),2),"") -> 
C156: =IF(ISERROR(INDEX(概要設定!$J$2:$K$51,MATCH($C157,概要設定!$J$2:$J$51,0),2)),"",INDEX(概要設定!$J$2:$K$51,MATCH($C157,概要設定!$J$2:$J$51,0),2)) ->  | H156: =IF(ISERROR(INDEX(概要設定!$J$2:$K$51,MATCH($H157,概要設定!$J$2:$J$51,0),2)),"",INDEX(概要設定!$J$2:$K$51,MATCH($H157,概要設定!$J$2:$J$51,0),2)) -> 
C157: =IF(AND($B157>=1,$B157<=17),INDEX(赤!$B$6:$E$39,MATCH($B157,赤!$B$6:$B$39,0),4),"") ->  | H157: =IF(AND($I157>=1,$I157<=17),INDEX(赤!$B$6:$E$39,MATCH($I157,赤!$B$6:$B$39,0),4),"") ->  | M157: =IF($A157="","",$B157+$B157+5) ->  | N157: =IF($A157="","",$I157+$I157+4) ->  | S157: =IF(AND($B157>=1,$B157<=17),INDEX(赤!$B$6:$E$39,MATCH($B157,赤!$B$6:$B$39,0),2),"") ->  | T157: =IF($A157="","",$I157+$I157+5) ->  | U157: =IF($A157="","",$B157+$B157+4) ->  | Z157: =IF(AND($I157>=1,$I157<=17),INDEX(赤!$B$6:$E$39,MATCH($I157,赤!$B$6:$B$39,0),2),"") -> 
C158: =IF(ISERROR(INDEX(概要設定!$J$2:$K$51,MATCH($C159,概要設定!$J$2:$J$51,0),2)),"",INDEX(概要設定!$J$2:$K$51,MATCH($C159,概要設定!$J$2:$J$51,0),2)) ->  | H158: =IF(ISERROR(INDEX(概要設定!$J$2:$K$51,MATCH($H159,概要設定!$J$2:$J$51,0),2)),"",INDEX(概要設定!$J$2:$K$51,MATCH($H159,概要設定!$J$2:$J$51,0),2)) -> 
C159: =IF(AND($B159>=1,$B159<=17),INDEX(赤!$B$6:$E$39,MATCH($B159,赤!$B$6:$B$39,0),4),"") ->  | H159: =IF(AND($I159>=1,$I159<=17),INDEX(赤!$B$6:$E$39,MATCH($I159,赤!$B$6:$B$39,0),4),"") ->  | M159: =IF($A159="","",$B159+$B159+5) ->  | N159: =IF($A159="","",$I159+$I159+4) ->  | S159: =IF(AND($B159>=1,$B159<=17),INDEX(赤!$B$6:$E$39,MATCH($B159,赤!$B$6:$B$39,0),2),"") ->  | T159: =IF($A159="","",$I159+$I159+5) ->  | U159: =IF($A159="","",$B159+$B159+4) ->  | Z159: =IF(AND($I159>=1,$I159<=17),INDEX(赤!$B$6:$E$39,MATCH($I159,赤!$B$6:$B$39,0),2),"") -> 
C160: =IF(ISERROR(INDEX(概要設定!$J$2:$K$51,MATCH($C161,概要設定!$J$2:$J$51,0),2)),"",INDEX(概要設定!$J$2:$K$51,MATCH($C161,概要設定!$J$2:$J$51,0),2)) ->  | H160: =IF(ISERROR(INDEX(概要設定!$J$2:$K$51,MATCH($H161,概要設定!$J$2:$J$51,0),2)),"",INDEX(概要設定!$J$2:$K$51,MATCH($H161,概要設定!$J$2:$J$51,0),2)) -> 
C161: =IF(AND($B161>=1,$B161<=17),INDEX(赤!$B$6:$E$39,MATCH($B161,赤!$B$6:$B$39,0),4),"") ->  | H161: =IF(AND($I161>=1,$I161<=17),INDEX(赤!$B$6:$E$39,MATCH($I161,赤!$B$6:$B$39,0),4),"") ->  | M161: =IF($A161="","",$B161+$B161+5) ->  | N161: =IF($A161="","",$I161+$I161+4) ->  | S161: =IF(AND($B161>=1,$B161<=17),INDEX(赤!$B$6:$E$39,MATCH($B161,赤!$B$6:$B$39,0),2),"") ->  | T161: =IF($A161="","",$I161+$I161+5) ->  | U161: =IF($A161="","",$B161+$B161+4) ->  | Z161: =IF(AND($I161>=1,$I161<=17),INDEX(赤!$B$6:$E$39,MATCH($I161,赤!$B$6:$B$39,0),2),"") -> 
C162: =IF(ISERROR(INDEX(概要設定!$J$2:$K$51,MATCH($C163,概要設定!$J$2:$J$51,0),2)),"",INDEX(概要設定!$J$2:$K$51,MATCH($C163,概要設定!$J$2:$J$51,0),2)) ->  | H162: =IF(ISERROR(INDEX(概要設定!$J$2:$K$51,MATCH($H163,概要設定!$J$2:$J$51,0),2)),"",INDEX(概要設定!$J$2:$K$51,MATCH($H163,概要設定!$J$2:$J$51,0),2)) -> 
C163: =IF(AND($B163>=1,$B163<=17),INDEX(赤!$B$6:$E$39,MATCH($B163,赤!$B$6:$B$39,0),4),"") ->  | H163: =IF(AND($I163>=1,$I163<=17),INDEX(赤!$B$6:$E$39,MATCH($I163,赤!$B$6:$B$39,0),4),"") ->  | M163: =IF($A163="","",$B163+$B163+5) ->  | N163: =IF($A163="","",$I163+$I163+4) ->  | S163: =IF(AND($B163>=1,$B163<=17),INDEX(赤!$B$6:$E$39,MATCH($B163,赤!$B$6:$B$39,0),2),"") ->  | T163: =IF($A163="","",$I163+$I163+5) ->  | U163: =IF($A163="","",$B163+$B163+4) ->  | Z163: =IF(AND($I163>=1,$I163<=17),INDEX(赤!$B$6:$E$39,MATCH($I163,赤!$B$6:$B$39,0),2),"") -> 
C164: =IF(ISERROR(INDEX(概要設定!$J$2:$K$51,MATCH($C165,概要設定!$J$2:$J$51,0),2)),"",INDEX(概要設定!$J$2:$K$51,MATCH($C165,概要設定!$J$2:$J$51,0),2)) ->  | H164: =IF(ISERROR(INDEX(概要設定!$J$2:$K$51,MATCH($H165,概要設定!$J$2:$J$51,0),2)),"",INDEX(概要設定!$J$2:$K$51,MATCH($H165,概要設定!$J$2:$J$51,0),2)) -> 
C165: =IF(AND($B165>=1,$B165<=17),INDEX(赤!$B$6:$E$39,MATCH($B165,赤!$B$6:$B$39,0),4),"") ->  | H165: =IF(AND($I165>=1,$I165<=17),INDEX(赤!$B$6:$E$39,MATCH($I165,赤!$B$6:$B$39,0),4),"") ->  | M165: =IF($A165="","",$B165+$B165+5) ->  | N165: =IF($A165="","",$I165+$I165+4) ->  | S165: =IF(AND($B165>=1,$B165<=17),INDEX(赤!$B$6:$E$39,MATCH($B165,赤!$B$6:$B$39,0),2),"") ->  | T165: =IF($A165="","",$I165+$I165+5) ->  | U165: =IF($A165="","",$B165+$B165+4) ->  | Z165: =IF(AND($I165>=1,$I165<=17),INDEX(赤!$B$6:$E$39,MATCH($I165,赤!$B$6:$B$39,0),2),"") -> 
C166: =IF(ISERROR(INDEX(概要設定!$J$2:$K$51,MATCH($C167,概要設定!$J$2:$J$51,0),2)),"",INDEX(概要設定!$J$2:$K$51,MATCH($C167,概要設定!$J$2:$J$51,0),2)) ->  | H166: =IF(ISERROR(INDEX(概要設定!$J$2:$K$51,MATCH($H167,概要設定!$J$2:$J$51,0),2)),"",INDEX(概要設定!$J$2:$K$51,MATCH($H167,概要設定!$J$2:$J$51,0),2)) -> 
C167: =IF(AND($B167>=1,$B167<=17),INDEX(赤!$B$6:$E$39,MATCH($B167,赤!$B$6:$B$39,0),4),"") ->  | H167: =IF(AND($I167>=1,$I167<=17),INDEX(赤!$B$6:$E$39,MATCH($I167,赤!$B$6:$B$39,0),4),"") ->  | M167: =IF($A167="","",$B167+$B167+5) ->  | N167: =IF($A167="","",$I167+$I167+4) ->  | S167: =IF(AND($B167>=1,$B167<=17),INDEX(赤!$B$6:$E$39,MATCH($B167,赤!$B$6:$B$39,0),2),"") ->  | T167: =IF($A167="","",$I167+$I167+5) ->  | U167: =IF($A167="","",$B167+$B167+4) ->  | Z167: =IF(AND($I167>=1,$I167<=17),INDEX(赤!$B$6:$E$39,MATCH($I167,赤!$B$6:$B$39,0),2),"") -> 
C168: =IF(ISERROR(INDEX(概要設定!$J$2:$K$51,MATCH($C169,概要設定!$J$2:$J$51,0),2)),"",INDEX(概要設定!$J$2:$K$51,MATCH($C169,概要設定!$J$2:$J$51,0),2)) ->  | H168: =IF(ISERROR(INDEX(概要設定!$J$2:$K$51,MATCH($H169,概要設定!$J$2:$J$51,0),2)),"",INDEX(概要設定!$J$2:$K$51,MATCH($H169,概要設定!$J$2:$J$51,0),2)) -> 
C169: =IF(AND($B169>=1,$B169<=17),INDEX(赤!$B$6:$E$39,MATCH($B169,赤!$B$6:$B$39,0),4),"") ->  | H169: =IF(AND($I169>=1,$I169<=17),INDEX(赤!$B$6:$E$39,MATCH($I169,赤!$B$6:$B$39,0),4),"") ->  | M169: =IF($A169="","",$B169+$B169+5) ->  | N169: =IF($A169="","",$I169+$I169+4) ->  | S169: =IF(AND($B169>=1,$B169<=17),INDEX(赤!$B$6:$E$39,MATCH($B169,赤!$B$6:$B$39,0),2),"") ->  | T169: =IF($A169="","",$I169+$I169+5) ->  | U169: =IF($A169="","",$B169+$B169+4) ->  | Z169: =IF(AND($I169>=1,$I169<=17),INDEX(赤!$B$6:$E$39,MATCH($I169,赤!$B$6:$B$39,0),2),"") -> 
C170: =IF(ISERROR(INDEX(概要設定!$J$2:$K$51,MATCH($C171,概要設定!$J$2:$J$51,0),2)),"",INDEX(概要設定!$J$2:$K$51,MATCH($C171,概要設定!$J$2:$J$51,0),2)) ->  | H170: =IF(ISERROR(INDEX(概要設定!$J$2:$K$51,MATCH($H171,概要設定!$J$2:$J$51,0),2)),"",INDEX(概要設定!$J$2:$K$51,MATCH($H171,概要設定!$J$2:$J$51,0),2)) -> 
C171: =IF(AND($B171>=1,$B171<=17),INDEX(赤!$B$6:$E$39,MATCH($B171,赤!$B$6:$B$39,0),4),"") ->  | H171: =IF(AND($I171>=1,$I171<=17),INDEX(赤!$B$6:$E$39,MATCH($I171,赤!$B$6:$B$39,0),4),"") ->  | M171: =IF($A171="","",$B171+$B171+5) ->  | N171: =IF($A171="","",$I171+$I171+4) ->  | S171: =IF(AND($B171>=1,$B171<=17),INDEX(赤!$B$6:$E$39,MATCH($B171,赤!$B$6:$B$39,0),2),"") ->  | T171: =IF($A171="","",$I171+$I171+5) ->  | U171: =IF($A171="","",$B171+$B171+4) ->  | Z171: =IF(AND($I171>=1,$I171<=17),INDEX(赤!$B$6:$E$39,MATCH($I171,赤!$B$6:$B$39,0),2),"") -> 
C172: =IF(ISERROR(INDEX(概要設定!$J$2:$K$51,MATCH($C173,概要設定!$J$2:$J$51,0),2)),"",INDEX(概要設定!$J$2:$K$51,MATCH($C173,概要設定!$J$2:$J$51,0),2)) ->  | H172: =IF(ISERROR(INDEX(概要設定!$J$2:$K$51,MATCH($H173,概要設定!$J$2:$J$51,0),2)),"",INDEX(概要設定!$J$2:$K$51,MATCH($H173,概要設定!$J$2:$J$51,0),2)) -> 
C173: =IF(AND($B173>=1,$B173<=17),INDEX(赤!$B$6:$E$39,MATCH($B173,赤!$B$6:$B$39,0),4),"") ->  | H173: =IF(AND($I173>=1,$I173<=17),INDEX(赤!$B$6:$E$39,MATCH($I173,赤!$B$6:$B$39,0),4),"") ->  | M173: =IF($A173="","",$B173+$B173+5) ->  | N173: =IF($A173="","",$I173+$I173+4) ->  | S173: =IF(AND($B173>=1,$B173<=17),INDEX(赤!$B$6:$E$39,MATCH($B173,赤!$B$6:$B$39,0),2),"") ->  | T173: =IF($A173="","",$I173+$I173+5) ->  | U173: =IF($A173="","",$B173+$B173+4) ->  | Z173: =IF(AND($I173>=1,$I173<=17),INDEX(赤!$B$6:$E$39,MATCH($I173,赤!$B$6:$B$39,0),2),"") -> 
C174: =IF(ISERROR(INDEX(概要設定!$J$2:$K$51,MATCH($C175,概要設定!$J$2:$J$51,0),2)),"",INDEX(概要設定!$J$2:$K$51,MATCH($C175,概要設定!$J$2:$J$51,0),2)) ->  | H174: =IF(ISERROR(INDEX(概要設定!$J$2:$K$51,MATCH($H175,概要設定!$J$2:$J$51,0),2)),"",INDEX(概要設定!$J$2:$K$51,MATCH($H175,概要設定!$J$2:$J$51,0),2)) -> 
C175: =IF(AND($B175>=1,$B175<=17),INDEX(赤!$B$6:$E$39,MATCH($B175,赤!$B$6:$B$39,0),4),"") ->  | H175: =IF(AND($I175>=1,$I175<=17),INDEX(赤!$B$6:$E$39,MATCH($I175,赤!$B$6:$B$39,0),4),"") ->  | M175: =IF($A175="","",$B175+$B175+5) ->  | N175: =IF($A175="","",$I175+$I175+4) ->  | S175: =IF(AND($B175>=1,$B175<=17),INDEX(赤!$B$6:$E$39,MATCH($B175,赤!$B$6:$B$39,0),2),"") ->  | T175: =IF($A175="","",$I175+$I175+5) ->  | U175: =IF($A175="","",$B175+$B175+4) ->  | Z175: =IF(AND($I175>=1,$I175<=17),INDEX(赤!$B$6:$E$39,MATCH($I175,赤!$B$6:$B$39,0),2),"") -> 
C176: =IF(ISERROR(INDEX(概要設定!$J$2:$K$51,MATCH($C177,概要設定!$J$2:$J$51,0),2)),"",INDEX(概要設定!$J$2:$K$51,MATCH($C177,概要設定!$J$2:$J$51,0),2)) ->  | H176: =IF(ISERROR(INDEX(概要設定!$J$2:$K$51,MATCH($H177,概要設定!$J$2:$J$51,0),2)),"",INDEX(概要設定!$J$2:$K$51,MATCH($H177,概要設定!$J$2:$J$51,0),2)) -> 
C177: =IF(AND($B177>=1,$B177<=17),INDEX(赤!$B$6:$E$39,MATCH($B177,赤!$B$6:$B$39,0),4),"") ->  | H177: =IF(AND($I177>=1,$I177<=17),INDEX(赤!$B$6:$E$39,MATCH($I177,赤!$B$6:$B$39,0),4),"") ->  | M177: =IF($A177="","",$B177+$B177+5) ->  | N177: =IF($A177="","",$I177+$I177+4) ->  | S177: =IF(AND($B177>=1,$B177<=17),INDEX(赤!$B$6:$E$39,MATCH($B177,赤!$B$6:$B$39,0),2),"") ->  | T177: =IF($A177="","",$I177+$I177+5) ->  | U177: =IF($A177="","",$B177+$B177+4) ->  | Z177: =IF(AND($I177>=1,$I177<=17),INDEX(赤!$B$6:$E$39,MATCH($I177,赤!$B$6:$B$39,0),2),"") -> 
C178: =IF(ISERROR(INDEX(概要設定!$J$2:$K$51,MATCH($C179,概要設定!$J$2:$J$51,0),2)),"",INDEX(概要設定!$J$2:$K$51,MATCH($C179,概要設定!$J$2:$J$51,0),2)) ->  | H178: =IF(ISERROR(INDEX(概要設定!$J$2:$K$51,MATCH($H179,概要設定!$J$2:$J$51,0),2)),"",INDEX(概要設定!$J$2:$K$51,MATCH($H179,概要設定!$J$2:$J$51,0),2)) -> 
C179: =IF(AND($B179>=1,$B179<=17),INDEX(赤!$B$6:$E$39,MATCH($B179,赤!$B$6:$B$39,0),4),"") ->  | H179: =IF(AND($I179>=1,$I179<=17),INDEX(赤!$B$6:$E$39,MATCH($I179,赤!$B$6:$B$39,0),4),"") ->  | M179: =IF($A179="","",$B179+$B179+5) ->  | N179: =IF($A179="","",$I179+$I179+4) ->  | S179: =IF(AND($B179>=1,$B179<=17),INDEX(赤!$B$6:$E$39,MATCH($B179,赤!$B$6:$B$39,0),2),"") ->  | T179: =IF($A179="","",$I179+$I179+5) ->  | U179: =IF($A179="","",$B179+$B179+4) ->  | Z179: =IF(AND($I179>=1,$I179<=17),INDEX(赤!$B$6:$E$39,MATCH($I179,赤!$B$6:$B$39,0),2),"") -> 
C180: =IF(ISERROR(INDEX(概要設定!$J$2:$K$51,MATCH($C181,概要設定!$J$2:$J$51,0),2)),"",INDEX(概要設定!$J$2:$K$51,MATCH($C181,概要設定!$J$2:$J$51,0),2)) ->  | H180: =IF(ISERROR(INDEX(概要設定!$J$2:$K$51,MATCH($H181,概要設定!$J$2:$J$51,0),2)),"",INDEX(概要設定!$J$2:$K$51,MATCH($H181,概要設定!$J$2:$J$51,0),2)) -> 
C181: =IF(AND($B181>=1,$B181<=17),INDEX(赤!$B$6:$E$39,MATCH($B181,赤!$B$6:$B$39,0),4),"") ->  | H181: =IF(AND($I181>=1,$I181<=17),INDEX(赤!$B$6:$E$39,MATCH($I181,赤!$B$6:$B$39,0),4),"") ->  | M181: =IF($A181="","",$B181+$B181+5) ->  | N181: =IF($A181="","",$I181+$I181+4) ->  | S181: =IF(AND($B181>=1,$B181<=17),INDEX(赤!$B$6:$E$39,MATCH($B181,赤!$B$6:$B$39,0),2),"") ->  | T181: =IF($A181="","",$I181+$I181+5) ->  | U181: =IF($A181="","",$B181+$B181+4) ->  | Z181: =IF(AND($I181>=1,$I181<=17),INDEX(赤!$B$6:$E$39,MATCH($I181,赤!$B$6:$B$39,0),2),"") -> 
C182: =IF(ISERROR(INDEX(概要設定!$J$2:$K$51,MATCH($C183,概要設定!$J$2:$J$51,0),2)),"",INDEX(概要設定!$J$2:$K$51,MATCH($C183,概要設定!$J$2:$J$51,0),2)) ->  | H182: =IF(ISERROR(INDEX(概要設定!$J$2:$K$51,MATCH($H183,概要設定!$J$2:$J$51,0),2)),"",INDEX(概要設定!$J$2:$K$51,MATCH($H183,概要設定!$J$2:$J$51,0),2)) -> 
C183: =IF(AND($B183>=1,$B183<=17),INDEX(赤!$B$6:$E$39,MATCH($B183,赤!$B$6:$B$39,0),4),"") ->  | H183: =IF(AND($I183>=1,$I183<=17),INDEX(赤!$B$6:$E$39,MATCH($I183,赤!$B$6:$B$39,0),4),"") ->  | M183: =IF($A183="","",$B183+$B183+5) ->  | N183: =IF($A183="","",$I183+$I183+4) ->  | S183: =IF(AND($B183>=1,$B183<=17),INDEX(赤!$B$6:$E$39,MATCH($B183,赤!$B$6:$B$39,0),2),"") ->  | T183: =IF($A183="","",$I183+$I183+5) ->  | U183: =IF($A183="","",$B183+$B183+4) ->  | Z183: =IF(AND($I183>=1,$I183<=17),INDEX(赤!$B$6:$E$39,MATCH($I183,赤!$B$6:$B$39,0),2),"") -> 
C184: =IF(ISERROR(INDEX(概要設定!$J$2:$K$51,MATCH($C185,概要設定!$J$2:$J$51,0),2)),"",INDEX(概要設定!$J$2:$K$51,MATCH($C185,概要設定!$J$2:$J$51,0),2)) ->  | H184: =IF(ISERROR(INDEX(概要設定!$J$2:$K$51,MATCH($H185,概要設定!$J$2:$J$51,0),2)),"",INDEX(概要設定!$J$2:$K$51,MATCH($H185,概要設定!$J$2:$J$51,0),2)) -> 
C185: =IF(AND($B185>=1,$B185<=17),INDEX(赤!$B$6:$E$39,MATCH($B185,赤!$B$6:$B$39,0),4),"") ->  | H185: =IF(AND($I185>=1,$I185<=17),INDEX(赤!$B$6:$E$39,MATCH($I185,赤!$B$6:$B$39,0),4),"") ->  | M185: =IF($A185="","",$B185+$B185+5) ->  | N185: =IF($A185="","",$I185+$I185+4) ->  | S185: =IF(AND($B185>=1,$B185<=17),INDEX(赤!$B$6:$E$39,MATCH($B185,赤!$B$6:$B$39,0),2),"") ->  | T185: =IF($A185="","",$I185+$I185+5) ->  | U185: =IF($A185="","",$B185+$B185+4) ->  | Z185: =IF(AND($I185>=1,$I185<=17),INDEX(赤!$B$6:$E$39,MATCH($I185,赤!$B$6:$B$39,0),2),"") -> 
C186: =IF(ISERROR(INDEX(概要設定!$J$2:$K$51,MATCH($C187,概要設定!$J$2:$J$51,0),2)),"",INDEX(概要設定!$J$2:$K$51,MATCH($C187,概要設定!$J$2:$J$51,0),2)) ->  | H186: =IF(ISERROR(INDEX(概要設定!$J$2:$K$51,MATCH($H187,概要設定!$J$2:$J$51,0),2)),"",INDEX(概要設定!$J$2:$K$51,MATCH($H187,概要設定!$J$2:$J$51,0),2)) -> 
C187: =IF(AND($B187>=1,$B187<=17),INDEX(赤!$B$6:$E$39,MATCH($B187,赤!$B$6:$B$39,0),4),"") ->  | H187: =IF(AND($I187>=1,$I187<=17),INDEX(赤!$B$6:$E$39,MATCH($I187,赤!$B$6:$B$39,0),4),"") ->  | M187: =IF($A187="","",$B187+$B187+5) ->  | N187: =IF($A187="","",$I187+$I187+4) ->  | S187: =IF(AND($B187>=1,$B187<=17),INDEX(赤!$B$6:$E$39,MATCH($B187,赤!$B$6:$B$39,0),2),"") ->  | T187: =IF($A187="","",$I187+$I187+5) ->  | U187: =IF($A187="","",$B187+$B187+4) ->  | Z187: =IF(AND($I187>=1,$I187<=17),INDEX(赤!$B$6:$E$39,MATCH($I187,赤!$B$6:$B$39,0),2),"") -> 
C188: =IF(ISERROR(INDEX(概要設定!$J$2:$K$51,MATCH($C189,概要設定!$J$2:$J$51,0),2)),"",INDEX(概要設定!$J$2:$K$51,MATCH($C189,概要設定!$J$2:$J$51,0),2)) ->  | H188: =IF(ISERROR(INDEX(概要設定!$J$2:$K$51,MATCH($H189,概要設定!$J$2:$J$51,0),2)),"",INDEX(概要設定!$J$2:$K$51,MATCH($H189,概要設定!$J$2:$J$51,0),2)) -> 
C189: =IF(AND($B189>=1,$B189<=17),INDEX(赤!$B$6:$E$39,MATCH($B189,赤!$B$6:$B$39,0),4),"") ->  | H189: =IF(AND($I189>=1,$I189<=17),INDEX(赤!$B$6:$E$39,MATCH($I189,赤!$B$6:$B$39,0),4),"") ->  | M189: =IF($A189="","",$B189+$B189+5) ->  | N189: =IF($A189="","",$I189+$I189+4) ->  | S189: =IF(AND($B189>=1,$B189<=17),INDEX(赤!$B$6:$E$39,MATCH($B189,赤!$B$6:$B$39,0),2),"") ->  | T189: =IF($A189="","",$I189+$I189+5) ->  | U189: =IF($A189="","",$B189+$B189+4) ->  | Z189: =IF(AND($I189>=1,$I189<=17),INDEX(赤!$B$6:$E$39,MATCH($I189,赤!$B$6:$B$39,0),2),"") -> 
C190: =IF(ISERROR(INDEX(概要設定!$J$2:$K$51,MATCH($C191,概要設定!$J$2:$J$51,0),2)),"",INDEX(概要設定!$J$2:$K$51,MATCH($C191,概要設定!$J$2:$J$51,0),2)) ->  | H190: =IF(ISERROR(INDEX(概要設定!$J$2:$K$51,MATCH($H191,概要設定!$J$2:$J$51,0),2)),"",INDEX(概要設定!$J$2:$K$51,MATCH($H191,概要設定!$J$2:$J$51,0),2)) -> 
C191: =IF(AND($B191>=1,$B191<=17),INDEX(赤!$B$6:$E$39,MATCH($B191,赤!$B$6:$B$39,0),4),"") ->  | H191: =IF(AND($I191>=1,$I191<=17),INDEX(赤!$B$6:$E$39,MATCH($I191,赤!$B$6:$B$39,0),4),"") ->  | M191: =IF($A191="","",$B191+$B191+5) ->  | N191: =IF($A191="","",$I191+$I191+4) ->  | S191: =IF(AND($B191>=1,$B191<=17),INDEX(赤!$B$6:$E$39,MATCH($B191,赤!$B$6:$B$39,0),2),"") ->  | T191: =IF($A191="","",$I191+$I191+5) ->  | U191: =IF($A191="","",$B191+$B191+4) ->  | Z191: =IF(AND($I191>=1,$I191<=17),INDEX(赤!$B$6:$E$39,MATCH($I191,赤!$B$6:$B$39,0),2),"") -> 
C192: =IF(ISERROR(INDEX(概要設定!$J$2:$K$51,MATCH($C193,概要設定!$J$2:$J$51,0),2)),"",INDEX(概要設定!$J$2:$K$51,MATCH($C193,概要設定!$J$2:$J$51,0),2)) ->  | H192: =IF(ISERROR(INDEX(概要設定!$J$2:$K$51,MATCH($H193,概要設定!$J$2:$J$51,0),2)),"",INDEX(概要設定!$J$2:$K$51,MATCH($H193,概要設定!$J$2:$J$51,0),2)) -> 
C193: =IF(AND($B193>=1,$B193<=17),INDEX(赤!$B$6:$E$39,MATCH($B193,赤!$B$6:$B$39,0),4),"") ->  | H193: =IF(AND($I193>=1,$I193<=17),INDEX(赤!$B$6:$E$39,MATCH($I193,赤!$B$6:$B$39,0),4),"") ->  | M193: =IF($A193="","",$B193+$B193+5) ->  | N193: =IF($A193="","",$I193+$I193+4) ->  | S193: =IF(AND($B193>=1,$B193<=17),INDEX(赤!$B$6:$E$39,MATCH($B193,赤!$B$6:$B$39,0),2),"") ->  | T193: =IF($A193="","",$I193+$I193+5) ->  | U193: =IF($A193="","",$B193+$B193+4) ->  | Z193: =IF(AND($I193>=1,$I193<=17),INDEX(赤!$B$6:$E$39,MATCH($I193,赤!$B$6:$B$39,0),2),"") -> 
C194: =IF(ISERROR(INDEX(概要設定!$J$2:$K$51,MATCH($C195,概要設定!$J$2:$J$51,0),2)),"",INDEX(概要設定!$J$2:$K$51,MATCH($C195,概要設定!$J$2:$J$51,0),2)) ->  | H194: =IF(ISERROR(INDEX(概要設定!$J$2:$K$51,MATCH($H195,概要設定!$J$2:$J$51,0),2)),"",INDEX(概要設定!$J$2:$K$51,MATCH($H195,概要設定!$J$2:$J$51,0),2)) -> 
C195: =IF(AND($B195>=1,$B195<=17),INDEX(赤!$B$6:$E$39,MATCH($B195,赤!$B$6:$B$39,0),4),"") ->  | H195: =IF(AND($I195>=1,$I195<=17),INDEX(赤!$B$6:$E$39,MATCH($I195,赤!$B$6:$B$39,0),4),"") ->  | M195: =IF($A195="","",$B195+$B195+5) ->  | N195: =IF($A195="","",$I195+$I195+4) ->  | S195: =IF(AND($B195>=1,$B195<=17),INDEX(赤!$B$6:$E$39,MATCH($B195,赤!$B$6:$B$39,0),2),"") ->  | T195: =IF($A195="","",$I195+$I195+5) ->  | U195: =IF($A195="","",$B195+$B195+4) ->  | Z195: =IF(AND($I195>=1,$I195<=17),INDEX(赤!$B$6:$E$39,MATCH($I195,赤!$B$6:$B$39,0),2),"") -> 
C196: =IF(ISERROR(INDEX(概要設定!$J$2:$K$51,MATCH($C197,概要設定!$J$2:$J$51,0),2)),"",INDEX(概要設定!$J$2:$K$51,MATCH($C197,概要設定!$J$2:$J$51,0),2)) ->  | H196: =IF(ISERROR(INDEX(概要設定!$J$2:$K$51,MATCH($H197,概要設定!$J$2:$J$51,0),2)),"",INDEX(概要設定!$J$2:$K$51,MATCH($H197,概要設定!$J$2:$J$51,0),2)) -> 
C197: =IF(AND($B197>=1,$B197<=17),INDEX(赤!$B$6:$E$39,MATCH($B197,赤!$B$6:$B$39,0),4),"") ->  | H197: =IF(AND($I197>=1,$I197<=17),INDEX(赤!$B$6:$E$39,MATCH($I197,赤!$B$6:$B$39,0),4),"") ->  | M197: =IF($A197="","",$B197+$B197+5) ->  | N197: =IF($A197="","",$I197+$I197+4) ->  | S197: =IF(AND($B197>=1,$B197<=17),INDEX(赤!$B$6:$E$39,MATCH($B197,赤!$B$6:$B$39,0),2),"") ->  | T197: =IF($A197="","",$I197+$I197+5) ->  | U197: =IF($A197="","",$B197+$B197+4) ->  | Z197: =IF(AND($I197>=1,$I197<=17),INDEX(赤!$B$6:$E$39,MATCH($I197,赤!$B$6:$B$39,0),2),"") -> 
C198: =IF(ISERROR(INDEX(概要設定!$J$2:$K$51,MATCH($C199,概要設定!$J$2:$J$51,0),2)),"",INDEX(概要設定!$J$2:$K$51,MATCH($C199,概要設定!$J$2:$J$51,0),2)) ->  | H198: =IF(ISERROR(INDEX(概要設定!$J$2:$K$51,MATCH($H199,概要設定!$J$2:$J$51,0),2)),"",INDEX(概要設定!$J$2:$K$51,MATCH($H199,概要設定!$J$2:$J$51,0),2)) -> 
C199: =IF(AND($B199>=1,$B199<=17),INDEX(赤!$B$6:$E$39,MATCH($B199,赤!$B$6:$B$39,0),4),"") ->  | H199: =IF(AND($I199>=1,$I199<=17),INDEX(赤!$B$6:$E$39,MATCH($I199,赤!$B$6:$B$39,0),4),"") ->  | M199: =IF($A199="","",$B199+$B199+5) ->  | N199: =IF($A199="","",$I199+$I199+4) ->  | S199: =IF(AND($B199>=1,$B199<=17),INDEX(赤!$B$6:$E$39,MATCH($B199,赤!$B$6:$B$39,0),2),"") ->  | T199: =IF($A199="","",$I199+$I199+5) ->  | U199: =IF($A199="","",$B199+$B199+4) ->  | Z199: =IF(AND($I199>=1,$I199<=17),INDEX(赤!$B$6:$E$39,MATCH($I199,赤!$B$6:$B$39,0),2),"") -> 
C200: =IF(ISERROR(INDEX(概要設定!$J$2:$K$51,MATCH($C201,概要設定!$J$2:$J$51,0),2)),"",INDEX(概要設定!$J$2:$K$51,MATCH($C201,概要設定!$J$2:$J$51,0),2)) ->  | H200: =IF(ISERROR(INDEX(概要設定!$J$2:$K$51,MATCH($H201,概要設定!$J$2:$J$51,0),2)),"",INDEX(概要設定!$J$2:$K$51,MATCH($H201,概要設定!$J$2:$J$51,0),2)) -> 
... 129 more rows

Sheet 赤ラベル
B2: 赤組 4 - 5 持ち点：180 | C2: 第1節 (1) 持ち点：180 | F2: 赤組 3 - 6 持ち点：180 | G2: 第1節 (2) 持ち点：140 | J2: 赤組 2 - 7 持ち点：180 | K2: 第1節 (3) 持ち点：180 | N2: 赤組 1 - 8 持ち点：180 | O2: 第1節 (4) 持ち点：180
B3: 水田 賢宏 | C3: 峯山 崇史 | F3: 山田 晋之 | G3: 宮野 早織 | J3: 近藤 拓馬 | K3: 岩本 剛 | N3: 吉向 翔平 | O3: 佐藤 循一
B4: みずた よしひろ | C4: みねやま たかし | F4: やまだ くにゆき | G4: みやの さおり | J4: こんどう たくま | K4: いわもと つよし | N4: きっこう しょうへい | O4: さとう じゅんいち
B6: HR | C6: HR | F6: HR | G6: HR | J6: HR | K6: HR | N6: HR | O6: HR
B7: レフリー | F7: レフリー | J7: レフリー | N7: レフリー
B10: 赤組 3 - 4 持ち点：180 | C10: 第2節 (5) 持ち点：180 | F10: 赤組 2 - 5 持ち点：180 | G10: 第2節 (6) 持ち点：180 | J10: 赤組 8 - 6 持ち点：180 | K10: 第2節 (7) 持ち点：140 | N10: 赤組 1 - 7 持ち点：180 | O10: 第2節 (8) 持ち点：180
B11: 山田 晋之 | C11: 水田 賢宏 | F11: 近藤 拓馬 | G11: 峯山 崇史 | J11: 佐藤 循一 | K11: 宮野 早織 | N11: 吉向 翔平 | O11: 岩本 剛
B12: やまだ くにゆき | C12: みずた よしひろ | F12: こんどう たくま | G12: みねやま たかし | J12: さとう じゅんいち | K12: みやの さおり | N12: きっこう しょうへい | O12: いわもと つよし
B14: HR | C14: HR | F14: HR | G14: HR | J14: HR | K14: HR | N14: HR | O14: HR
B15: レフリー | F15: レフリー | J15: レフリー | N15: レフリー
B18: 赤組 2 - 3 持ち点：180 | C18: 第3節 (9) 持ち点：180 | F18: 赤組 8 - 4 持ち点：180 | G18: 第3節 (10) 持ち点：180 | J18: 赤組 7 - 5 持ち点：180 | K18: 第3節 (11) 持ち点：180 | N18: 赤組 1 - 6 持ち点：180 | O18: 第3節 (12) 持ち点：140
B19: 近藤 拓馬 | C19: 山田 晋之 | F19: 佐藤 循一 | G19: 水田 賢宏 | J19: 岩本 剛 | K19: 峯山 崇史 | N19: 吉向 翔平 | O19: 宮野 早織
B20: こんどう たくま | C20: やまだ くにゆき | F20: さとう じゅんいち | G20: みずた よしひろ | J20: いわもと つよし | K20: みねやま たかし | N20: きっこう しょうへい | O20: みやの さおり
B22: HR | C22: HR | F22: HR | G22: HR | J22: HR | K22: HR | N22: HR | O22: HR
B23: レフリー | F23: レフリー | J23: レフリー | N23: レフリー
B26: 赤組 8 - 2 持ち点：180 | C26: 第4節 (13) 持ち点：180 | F26: 赤組 7 - 3 持ち点：180 | G26: 第4節 (14) 持ち点：180 | J26: 赤組 6 - 4 持ち点：140 | K26: 第4節 (15) 持ち点：180 | N26: 赤組 1 - 5 持ち点：180 | O26: 第4節 (16) 持ち点：180
B27: 佐藤 循一 | C27: 近藤 拓馬 | F27: 岩本 剛 | G27: 山田 晋之 | J27: 宮野 早織 | K27: 水田 賢宏 | N27: 吉向 翔平 | O27: 峯山 崇史
B28: さとう じゅんいち | C28: こんどう たくま | F28: いわもと つよし | G28: やまだ くにゆき | J28: みやの さおり | K28: みずた よしひろ | N28: きっこう しょうへい | O28: みねやま たかし
B30: HR | C30: HR | F30: HR | G30: HR | J30: HR | K30: HR | N30: HR | O30: HR
B31: レフリー | F31: レフリー | J31: レフリー | N31: レフリー
B34: 赤組 7 - 8 持ち点：180 | C34: 第5節 (17) 持ち点：180 | F34: 赤組 6 - 2 持ち点：140 | G34: 第5節 (18) 持ち点：180 | J34: 赤組 5 - 3 持ち点：180 | K34: 第5節 (19) 持ち点：180 | N34: 赤組 1 - 4 持ち点：180 | O34: 第5節 (20) 持ち点：180
B35: 岩本 剛 | C35: 佐藤 循一 | F35: 宮野 早織 | G35: 近藤 拓馬 | J35: 峯山 崇史 | K35: 山田 晋之 | N35: 吉向 翔平 | O35: 水田 賢宏
B36: いわもと つよし | C36: さとう じゅんいち | F36: みやの さおり | G36: こんどう たくま | J36: みねやま たかし | K36: やまだ くにゆき | N36: きっこう しょうへい | O36: みずた よしひろ
B38: HR | C38: HR | F38: HR | G38: HR | J38: HR | K38: HR | N38: HR | O38: HR
B39: レフリー | F39: レフリー | J39: レフリー | N39: レフリー
B42: 赤組 6 - 7 持ち点：140 | C42: 第6節 (21) 持ち点：180 | F42: 赤組 5 - 8 持ち点：180 | G42: 第6節 (22) 持ち点：180 | J42: 赤組 4 - 2 持ち点：180 | K42: 第6節 (23) 持ち点：180 | N42: 赤組 1 - 3 持ち点：180 | O42: 第6節 (24) 持ち点：180
B43: 宮野 早織 | C43: 岩本 剛 | F43: 峯山 崇史 | G43: 佐藤 循一 | J43: 水田 賢宏 | K43: 近藤 拓馬 | N43: 吉向 翔平 | O43: 山田 晋之
B44: みやの さおり | C44: いわもと つよし | F44: みねやま たかし | G44: さとう じゅんいち | J44: みずた よしひろ | K44: こんどう たくま | N44: きっこう しょうへい | O44: やまだ くにゆき
B46: HR | C46: HR | F46: HR | G46: HR | J46: HR | K46: HR | N46: HR | O46: HR
B47: レフリー | F47: レフリー | J47: レフリー | N47: レフリー
B50: 赤組 5 - 6 持ち点：180 | C50: 第7節 (25) 持ち点：140 | F50: 赤組 4 - 7 持ち点：180 | G50: 第7節 (26) 持ち点：180 | J50: 赤組 3 - 8 持ち点：180 | K50: 第7節 (27) 持ち点：180 | N50: 赤組 1 - 2 持ち点：180 | O50: 第7節 (28) 持ち点：180
B51: 峯山 崇史 | C51: 宮野 早織 | F51: 水田 賢宏 | G51: 岩本 剛 | J51: 山田 晋之 | K51: 佐藤 循一 | N51: 吉向 翔平 | O51: 近藤 拓馬
B52: みねやま たかし | C52: みやの さおり | F52: みずた よしひろ | G52: いわもと つよし | J52: やまだ くにゆき | K52: さとう じゅんいち | N52: きっこう しょうへい | O52: こんどう たくま
B54: HR | C54: HR | F54: HR | G54: HR | J54: HR | K54: HR | N54: HR | O54: HR
B55: レフリー | F55: レフリー | J55: レフリー | N55: レフリー

Sheet 黒
E1: =概要設定!B2 -> 2016 | F1: 年 | I1: =概要設定!D2 -> 9 | J1: 月 | L1: 例会 | P1: =概要設定!B4 -> 和奈対抗戦
E2: 黒組 | K2: =概要設定!B6 -> 180 | L2: 点 | M2: =概要設定!D6 -> コールショット | T2: 開催日： | V2: =E1&"/"&I1&"/"&概要設定!F2 -> 2016/9/11 | AN2: 会場： | AO2: =概要設定!B8 -> トップガン
B4: No | C4: ハンデ | D4: ハンデ | E4: No. | F4: 1 | H4: 2 | J4: 3 | L4: 4 | N4: 5 | P4: 6 | R4: 7 | T4: 8 | V4: 9 | X4: 10 | Z4: 11 | AB4: 12 | AD4: 13 | AF4: 14 | AH4: 15 | AJ4: 16 | AL4: 17 | AP4: H・C | AT4: ABC | AU4: ABC優劣 | AV4: A | AW4: B | AX4: C
C5: 点数 | D5: 変更 | F5: =IF($E7="","",$E7) -> 白戸 玲人 | H5: =IF($E9="","",$E9) -> 斉藤 裕児 | J5: =IF($E11="","",$E11) -> 山田 晃司 | L5: =IF($E13="","",$E13) -> 斉藤 大輔 | N5: =IF($E15="","",$E15) -> 植田 慎也 | P5: =IF($E17="","",$E17) -> 鷲尾 隆杜 | R5: =IF($E19="","",$E19) -> 長谷川 進 | T5: =IF($E21="","",$E21) -> 白戸 恭子 | V5: =IF($E23="","",$E23) ->  | X5: =IF($E25="","",$E25) ->  | Z5: =IF($E27="","",$E27) ->  | AB5: =IF($E29="","",$E29) ->  | AD5: =IF($E31="","",$E31) ->  | AF5: =IF($E33="","",$E33) ->  | AH5: =IF($E35="","",$E35) ->  | AJ5: =IF($E37="","",$E37) ->  | AL5: =IF($E39="","",$E39) ->  | AN5: W | AO5: L | AP5: TP | AQ5: LP | AR5: R_POINT | AS5: R | AT5: HR | AU5: ABC+HR | AV5: HR | AW5: HR | AX5: HR | AY5: HR
C6: =IF($E7="","",INDEX(概要設定!$J$2:$L$51,MATCH($E7, 概要設定!$J$2:$J$51,0),3)) -> 0 | E6: =IF(ISERROR(INDEX(概要設定!$J$2:$K$51,MATCH($E7,概要設定!$J$2:$J$51,0),2)),"",INDEX(概要設定!$J$2:$K$51,MATCH($E7,概要設定!$J$2:$J$51,0),2)) -> しらと れいにん | O6: 114 | AP6: =IF($E7="","",INT((SUM($F7:$AM7)+($C7*$AN7)))) -> 860 | AT6: =IF($E7="","",IF($AV6="A","A",IF($AW6="B","B",IF($AX6="C","C","")))) ->  | AU6: =IF($AT7="","",IF($AT7=0,0,IF($AT6="A",9000,IF($AT6="B",8000,IF($AT6="C",7000,0))))) -> 0 | AV6: =IF($E7="","",IF(COUNTIF($F6:$AM6,"A")=0,"","A")) ->  | AW6: =IF($E7="","",IF(COUNTIF($F6:$AM6,"B")=0,"","B")) ->  | AX6: =IF($E7="","",IF(COUNTIF($F6:$AM6,"C")=0,"","C")) -> 
B7: 1 | C7: =IF($E7="","",IF($D7<>"",$D7,IF($C6<>"-",概要設定!$B$6,INDEX(概要設定!$N$2:$O$6,MATCH(概要設定!$B$6, 概要設定!$N$2:$N$6,0),2)))) -> 180 | E7: 白戸 玲人 | J7: 92 | L7: w | N7: w | P7: w | R7: w | T7: 48 | AN7: =IF($E7="","",COUNTIF($F7:$AL7,"w")) -> 4 | AO7: =IF($E7="","",COUNTIF($F7:$AL7,">=0")) -> 2 | AP7: =IF($E7="","",INT((SUM($F7:$AM7)+($C7*$AN7))*$K$2/$C7)) -> 860 | AQ7: =IF($E7="","",SUM(F$7:F$39)) -> 376 | AR7: =IF($E7="","",$AN7*100000000+$AP7*10000-$AQ7+$AU7*0.0001) -> 408599624 | AS7: =IF($E7="","",RANK($AR7,$AR$7:$AR$39)+COUNTIF($AR$7:$AR7,$AR7)-1) -> 3 | AT7: =IF($E7="","",IF($AV6="A",$AV7,IF($AW6="B",$AW7,IF($AX6="C",$AX7,$AY7)))) -> 114 | AU7: =IF($AT7="","",$AT7+$AU6) -> 114 | AV7: =IF($E7="","",IF(COUNTIF($F6:$AM6,"A")=0,"",MAX(IF($F6:$AL6="A",$G6:$AM6)))) ->  | AW7: =IF($E7="","",IF(COUNTIF($F6:$AM6,"B")=0,"",MAX(IF($F6:$AL6="B",$G6:$AM6)))) ->  | AX7: =IF($E7="","",IF(COUNTIF($F6:$AM6,"C")=0,"",MAX(IF($F6:$AL6="C",$G6:$AM6)))) ->  | AY7: =IF($E7="","",MAX($F6:$AM6)) -> 114
C8: =IF($E9="","",INDEX(概要設定!$J$2:$L$51,MATCH($E9, 概要設定!$J$2:$J$51,0),3)) -> 0 | E8: =IF(ISERROR(INDEX(概要設定!$J$2:$K$51,MATCH($E9,概要設定!$J$2:$J$51,0),2)),"",INDEX(概要設定!$J$2:$K$51,MATCH($E9,概要設定!$J$2:$J$51,0),2)) -> さいとう ゆうじ | Q8: 109 | AP8: =IF($E9="","",INT((SUM($F9:$AM9)+($C9*$AN9)))) -> 817 | AT8: =IF($E9="","",IF($AV8="A","A",IF($AW8="B","B",IF($AX8="C","C","")))) ->  | AU8: =IF($AT9="","",IF($AT9=0,0,IF($AT8="A",9000,IF($AT8="B",8000,IF($AT8="C",7000,0))))) -> 0 | AV8: =IF($E9="","",IF(COUNTIF($F8:$AM8,"A")=0,"","A")) ->  | AW8: =IF($E9="","",IF(COUNTIF($F8:$AM8,"B")=0,"","B")) ->  | AX8: =IF($E9="","",IF(COUNTIF($F8:$AM8,"C")=0,"","C")) -> 
B9: 2 | C9: =IF($E9="","",IF($D9<>"",$D9,IF($C8<>"-",概要設定!$B$6,INDEX(概要設定!$N$2:$O$6,MATCH(概要設定!$B$6, 概要設定!$N$2:$N$6,0),2)))) -> 180 | E9: 斉藤 裕児 | J9: 163 | L9: 101 | N9: w | P9: w | R9: w | T9: 13 | AN9: =IF($E9="","",COUNTIF($F9:$AL9,"w")) -> 3 | AO9: =IF($E9="","",COUNTIF($F9:$AL9,">=0")) -> 3 | AP9: =IF($E9="","",INT((SUM($F9:$AM9)+($C9*$AN9))*$K$2/$C9)) -> 817 | AQ9: =IF($E9="","",SUM(H$7:H$39)) -> 166 | AR9: =IF($E9="","",$AN9*100000000+$AP9*10000-$AQ9+$AU9*0.0001) -> 308169834 | AS9: =IF($E9="","",RANK($AR9,$AR$7:$AR$39)+COUNTIF($AR$7:$AR9,$AR9)-1) -> 4 | AT9: =IF($E9="","",IF($AV8="A",$AV9,IF($AW8="B",$AW9,IF($AX8="C",$AX9,$AY9)))) -> 109 | AU9: 109 | AV9: =IF($E9="","",IF(COUNTIF($F8:$AM8,"A")=0,"",MAX(IF($F8:$AL8="A",$G8:$AM8)))) ->  | AW9: =IF($E9="","",IF(COUNTIF($F8:$AM8,"B")=0,"",MAX(IF($F8:$AL8="B",$G8:$AM8)))) ->  | AX9: =IF($E9="","",IF(COUNTIF($F8:$AM8,"C")=0,"",MAX(IF($F8:$AL8="C",$G8:$AM8)))) ->  | AY9: =IF($E9="","",MAX($F8:$AM8)) -> 109
C10: =IF($E11="","",INDEX(概要設定!$J$2:$L$51,MATCH($E11, 概要設定!$J$2:$J$51,0),3)) -> 0 | E10: =IF(ISERROR(INDEX(概要設定!$J$2:$K$51,MATCH($E11,概要設定!$J$2:$J$51,0),2)),"",INDEX(概要設定!$J$2:$K$51,MATCH($E11,概要設定!$J$2:$J$51,0),2)) -> やまだ こうじ | O10: 151 | AP10: =IF($E11="","",INT((SUM($F11:$AM11)+($C11*$AN11)))) -> 1064 | AT10: =IF($E11="","",IF($AV10="A","A",IF($AW10="B","B",IF($AX10="C","C","")))) ->  | AU10: =IF($AT11="","",IF($AT11=0,0,IF($AT10="A",9000,IF($AT10="B",8000,IF($AT10="C",7000,0))))) -> 0 | AV10: =IF($E11="","",IF(COUNTIF($F10:$AM10,"A")=0,"","A")) ->  | AW10: =IF($E11="","",IF(COUNTIF($F10:$AM10,"B")=0,"","B")) ->  | AX10: =IF($E11="","",IF(COUNTIF($F10:$AM10,"C")=0,"","C")) -> 
B11: 3 | C11: =IF($E11="","",IF($D11<>"",$D11,IF($C10<>"-",概要設定!$B$6,INDEX(概要設定!$N$2:$O$6,MATCH(概要設定!$B$6, 概要設定!$N$2:$N$6,0),2)))) -> 180 | E11: 山田 晃司 | F11: w | H11: w | L11: w | N11: 164 | P11: w | R11: w | AN11: =IF($E11="","",COUNTIF($F11:$AL11,"w")) -> 5 | AO11: =IF($E11="","",COUNTIF($F11:$AL11,">=0")) -> 1 | AP11: =IF($E11="","",INT((SUM($F11:$AM11)+($C11*$AN11))*$K$2/$C11)) -> 1064 | AQ11: =IF($E11="","",SUM(J$7:J$39)) -> 671 | AR11: =IF($E11="","",$AN11*100000000+$AP11*10000-$AQ11+$AU11*0.0001) -> 510639329 | AS11: =IF($E11="","",RANK($AR11,$AR$7:$AR$39)+COUNTIF($AR$7:$AR11,$AR11)-1) -> 2 | AT11: =IF($E11="","",IF($AV10="A",$AV11,IF($AW10="B",$AW11,IF($AX10="C",$AX11,$AY11)))) -> 151 | AU11: 151 | AV11: =IF($E11="","",IF(COUNTIF($F10:$AM10,"A")=0,"",MAX(IF($F10:$AL10="A",$G10:$AM10)))) ->  | AW11: =IF($E11="","",IF(COUNTIF($F10:$AM10,"B")=0,"",MAX(IF($F10:$AL10="B",$G10:$AM10)))) ->  | AX11: =IF($E11="","",IF(COUNTIF($F10:$AM10,"C")=0,"",MAX(IF($F10:$AL10="C",$G10:$AM10)))) ->  | AY11: =IF($E11="","",MAX($F10:$AM10)) -> 151
C12: =IF($E13="","",INDEX(概要設定!$J$2:$L$51,MATCH($E13, 概要設定!$J$2:$J$51,0),3)) -> 0 | E12: =IF(ISERROR(INDEX(概要設定!$J$2:$K$51,MATCH($E13,概要設定!$J$2:$J$51,0),2)),"",INDEX(概要設定!$J$2:$K$51,MATCH($E13,概要設定!$J$2:$J$51,0),2)) -> さいとう だいすけ | AP12: =IF($E13="","",INT((SUM($F13:$AM13)+($C13*$AN13)))) -> 828 | AT12: =IF($E13="","",IF($AV12="A","A",IF($AW12="B","B",IF($AX12="C","C","")))) ->  | AU12: =IF($AT13="","",IF($AT13=0,0,IF($AT12="A",9000,IF($AT12="B",8000,IF($AT12="C",7000,0))))) -> 0 | AV12: =IF($E13="","",IF(COUNTIF($F12:$AM12,"A")=0,"","A")) ->  | AW12: =IF($E13="","",IF(COUNTIF($F12:$AM12,"B")=0,"","B")) ->  | AX12: =IF($E13="","",IF(COUNTIF($F12:$AM12,"C")=0,"","C")) -> 
B13: 4 | C13: =IF($E13="","",IF($D13<>"",$D13,IF($C12<>"-",概要設定!$B$6,INDEX(概要設定!$N$2:$O$6,MATCH(概要設定!$B$6, 概要設定!$N$2:$N$6,0),2)))) -> 180 | E13: 斉藤 大輔 | F13: 81 | H13: w | J13: 160 | N13: 163 | P13: 140 | T13: 104 | AN13: =IF($E13="","",COUNTIF($F13:$AL13,"w")) -> 1 | AO13: =IF($E13="","",COUNTIF($F13:$AL13,">=0")) -> 5 | AP13: =IF($E13="","",INT((SUM($F13:$AM13)+($C13*$AN13))*$K$2/$C13)) -> 828 | AQ13: =IF($E13="","",SUM(L$7:L$39)) -> 101 | AR13: =IF($E13="","",$AN13*100000000+$AP13*10000-$AQ13+$AU13*0.0001) -> 108279899 | AS13: =IF($E13="","",RANK($AR13,$AR$7:$AR$39)+COUNTIF($AR$7:$AR13,$AR13)-1) -> 6 | AT13: =IF($E13="","",IF($AV12="A",$AV13,IF($AW12="B",$AW13,IF($AX12="C",$AX13,$AY13)))) -> 0 | AU13: 0 | AV13: =IF($E13="","",IF(COUNTIF($F12:$AM12,"A")=0,"",MAX(IF($F12:$AL12="A",$G12:$AM12)))) ->  | AW13: =IF($E13="","",IF(COUNTIF($F12:$AM12,"B")=0,"",MAX(IF($F12:$AL12="B",$G12:$AM12)))) ->  | AX13: =IF($E13="","",IF(COUNTIF($F12:$AM12,"C")=0,"",MAX(IF($F12:$AL12="C",$G12:$AM12)))) ->  | AY13: =IF($E13="","",MAX($F12:$AM12)) -> 0
C14: =IF($E15="","",INDEX(概要設定!$J$2:$L$51,MATCH($E15, 概要設定!$J$2:$J$51,0),3)) -> 0 | E14: =IF(ISERROR(INDEX(概要設定!$J$2:$K$51,MATCH($E15,概要設定!$J$2:$J$51,0),2)),"",INDEX(概要設定!$J$2:$K$51,MATCH($E15,概要設定!$J$2:$J$51,0),2)) -> うえだ しんや | AP14: =IF($E15="","",INT((SUM($F15:$AM15)+($C15*$AN15)))) -> 789 | AT14: =IF($E15="","",IF($AV14="A","A",IF($AW14="B","B",IF($AX14="C","C","")))) ->  | AU14: =IF($AT15="","",IF($AT15=0,0,IF($AT14="A",9000,IF($AT14="B",8000,IF($AT14="C",7000,0))))) -> 0 | AV14: =IF($E15="","",IF(COUNTIF($F14:$AM14,"A")=0,"","A")) ->  | AW14: =IF($E15="","",IF(COUNTIF($F14:$AM14,"B")=0,"","B")) ->  | AX14: =IF($E15="","",IF(COUNTIF($F14:$AM14,"C")=0,"","C")) -> 
B15: 5 | C15: =IF($E15="","",IF($D15<>"",$D15,IF($C14<>"-",概要設定!$B$6,INDEX(概要設定!$N$2:$O$6,MATCH(概要設定!$B$6, 概要設定!$N$2:$N$6,0),2)))) -> 180 | E15: 植田 慎也 | F15: 116 | H15: 28 | J15: w | L15: w | R15: w | T15: 105 | AN15: =IF($E15="","",COUNTIF($F15:$AL15,"w")) -> 3 | AO15: =IF($E15="","",COUNTIF($F15:$AL15,">=0")) -> 3 | AP15: =IF($E15="","",INT((SUM($F15:$AM15)+($C15*$AN15))*$K$2/$C15)) -> 789 | AQ15: =IF($E15="","",SUM(N$7:N$39)) -> 424 | AR15: =IF($E15="","",$AN15*100000000+$AP15*10000-$AQ15+$AU15*0.0001) -> 307889576 | AS15: =IF($E15="","",RANK($AR15,$AR$7:$AR$39)+COUNTIF($AR$7:$AR15,$AR15)-1) -> 5 | AT15: =IF($E15="","",IF($AV14="A",$AV15,IF($AW14="B",$AW15,IF($AX14="C",$AX15,$AY15)))) -> 0 | AU15: 0 | AV15: =IF($E15="","",IF(COUNTIF($F14:$AM14,"A")=0,"",MAX(IF($F14:$AL14="A",$G14:$AM14)))) ->  | AW15: =IF($E15="","",IF(COUNTIF($F14:$AM14,"B")=0,"",MAX(IF($F14:$AL14="B",$G14:$AM14)))) ->  | AX15: =IF($E15="","",IF(COUNTIF($F14:$AM14,"C")=0,"",MAX(IF($F14:$AL14="C",$G14:$AM14)))) ->  | AY15: =IF($E15="","",MAX($F14:$AM14)) -> 0
C16: =IF($E17="","",INDEX(概要設定!$J$2:$L$51,MATCH($E17, 概要設定!$J$2:$J$51,0),3)) -> 0 | E16: =IF(ISERROR(INDEX(概要設定!$J$2:$K$51,MATCH($E17,概要設定!$J$2:$J$51,0),2)),"",INDEX(概要設定!$J$2:$K$51,MATCH($E17,概要設定!$J$2:$J$51,0),2)) -> わしお りゅうと | AP16: =IF($E17="","",INT((SUM($F17:$AM17)+($C17*$AN17)))) -> 625 | AT16: =IF($E17="","",IF($AV16="A","A",IF($AW16="B","B",IF($AX16="C","C","")))) ->  | AU16: =IF($AT17="","",IF($AT17=0,0,IF($AT16="A",9000,IF($AT16="B",8000,IF($AT16="C",7000,0))))) -> 0 | AV16: =IF($E17="","",IF(COUNTIF($F16:$AM16,"A")=0,"","A")) ->  | AW16: =IF($E17="","",IF(COUNTIF($F16:$AM16,"B")=0,"","B")) ->  | AX16: =IF($E17="","",IF(COUNTIF($F16:$AM16,"C")=0,"","C")) -> 
B17: 6 | C17: =IF($E17="","",IF($D17<>"",$D17,IF($C16<>"-",概要設定!$B$6,INDEX(概要設定!$N$2:$O$6,MATCH(概要設定!$B$6, 概要設定!$N$2:$N$6,0),2)))) -> 180 | E17: 鷲尾 隆杜 | F17: 141 | H17: 112 | J17: 93 | L17: w | R17: 67 | T17: 32 | AN17: =IF($E17="","",COUNTIF($F17:$AL17,"w")) -> 1 | AO17: =IF($E17="","",COUNTIF($F17:$AL17,">=0")) -> 5 | AP17: =IF($E17="","",INT((SUM($F17:$AM17)+($C17*$AN17))*$K$2/$C17)) -> 625 | AQ17: =IF($E17="","",SUM(P$7:P$39)) -> 140 | AR17: =IF($E17="","",$AN17*100000000+$AP17*10000-$AQ17+$AU17*0.0001) -> 106249860 | AS17: =IF($E17="","",RANK($AR17,$AR$7:$AR$39)+COUNTIF($AR$7:$AR17,$AR17)-1) -> 7 | AT17: =IF($E17="","",IF($AV16="A",$AV17,IF($AW16="B",$AW17,IF($AX16="C",$AX17,$AY17)))) -> 0 | AU17: 0 | AV17: =IF($E17="","",IF(COUNTIF($F16:$AM16,"A")=0,"",MAX(IF($F16:$AL16="A",$G16:$AM16)))) ->  | AW17: =IF($E17="","",IF(COUNTIF($F16:$AM16,"B")=0,"",MAX(IF($F16:$AL16="B",$G16:$AM16)))) ->  | AX17: =IF($E17="","",IF(COUNTIF($F16:$AM16,"C")=0,"",MAX(IF($F16:$AL16="C",$G16:$AM16)))) ->  | AY17: =IF($E17="","",MAX($F16:$AM16)) -> 0
C18: =IF($E19="","",INDEX(概要設定!$J$2:$L$51,MATCH($E19, 概要設定!$J$2:$J$51,0),3)) -> 0 | E18: =IF(ISERROR(INDEX(概要設定!$J$2:$K$51,MATCH($E19,概要設定!$J$2:$J$51,0),2)),"",INDEX(概要設定!$J$2:$K$51,MATCH($E19,概要設定!$J$2:$J$51,0),2)) -> はせがわ すすむ | AP18: =IF($E19="","",INT((SUM($F19:$AM19)+($C19*$AN19)))) -> 526 | AT18: =IF($E19="","",IF($AV18="A","A",IF($AW18="B","B",IF($AX18="C","C","")))) ->  | AU18: =IF($AT19="","",IF($AT19=0,0,IF($AT18="A",9000,IF($AT18="B",8000,IF($AT18="C",7000,0))))) -> 0 | AV18: =IF($E19="","",IF(COUNTIF($F18:$AM18,"A")=0,"","A")) ->  | AW18: =IF($E19="","",IF(COUNTIF($F18:$AM18,"B")=0,"","B")) ->  | AX18: =IF($E19="","",IF(COUNTIF($F18:$AM18,"C")=0,"","C")) -> 
B19: 7 | C19: =IF($E19="","",IF($D19<>"",$D19,IF($C18<>"-",概要設定!$B$6,INDEX(概要設定!$N$2:$O$6,MATCH(概要設定!$B$6, 概要設定!$N$2:$N$6,0),2)))) -> 180 | E19: 長谷川 進 | F19: 38 | H19: 26 | J19: 163 | N19: 97 | P19: w | T19: 22 | AN19: =IF($E19="","",COUNTIF($F19:$AL19,"w")) -> 1 | AO19: =IF($E19="","",COUNTIF($F19:$AL19,">=0")) -> 5 | AP19: =IF($E19="","",INT((SUM($F19:$AM19)+($C19*$AN19))*$K$2/$C19)) -> 526 | AQ19: =IF($E19="","",SUM(R$7:R$39)) -> 67 | AR19: =IF($E19="","",$AN19*100000000+$AP19*10000-$AQ19+$AU19*0.0001) -> 105259933 | AS19: =IF($E19="","",RANK($AR19,$AR$7:$AR$39)+COUNTIF($AR$7:$AR19,$AR19)-1) -> 8 | AT19: =IF($E19="","",IF($AV18="A",$AV19,IF($AW18="B",$AW19,IF($AX18="C",$AX19,$AY19)))) -> 0 | AU19: 0 | AV19: =IF($E19="","",IF(COUNTIF($F18:$AM18,"A")=0,"",MAX(IF($F18:$AL18="A",$G18:$AM18)))) ->  | AW19: =IF($E19="","",IF(COUNTIF($F18:$AM18,"B")=0,"",MAX(IF($F18:$AL18="B",$G18:$AM18)))) ->  | AX19: =IF($E19="","",IF(COUNTIF($F18:$AM18,"C")=0,"",MAX(IF($F18:$AL18="C",$G18:$AM18)))) ->  | AY19: =IF($E19="","",MAX($F18:$AM18)) -> 0
C20: =IF($E21="","",INDEX(概要設定!$J$2:$L$51,MATCH($E21, 概要設定!$J$2:$J$51,0),3)) -> - | E20: =IF(ISERROR(INDEX(概要設定!$J$2:$K$51,MATCH($E21,概要設定!$J$2:$J$51,0),2)),"",INDEX(概要設定!$J$2:$K$51,MATCH($E21,概要設定!$J$2:$J$51,0),2)) -> しらと きょうこ | G20: 103 | AP20: =IF($E21="","",INT((SUM($F21:$AM21)+($C21*$AN21)))) -> 840 | AT20: =IF($E21="","",IF($AV20="A","A",IF($AW20="B","B",IF($AX20="C","C","")))) ->  | AU20: =IF($AT21="","",IF($AT21=0,0,IF($AT20="A",9000,IF($AT20="B",8000,IF($AT20="C",7000,0))))) -> 0 | AV20: =IF($E21="","",IF(COUNTIF($F20:$AM20,"A")=0,"","A")) ->  | AW20: =IF($E21="","",IF(COUNTIF($F20:$AM20,"B")=0,"","B")) ->  | AX20: =IF($E21="","",IF(COUNTIF($F20:$AM20,"C")=0,"","C")) -> 
B21: 8 | C21: =IF($E21="","",IF($D21<>"",$D21,IF($C20<>"-",概要設定!$B$6,INDEX(概要設定!$N$2:$O$6,MATCH(概要設定!$B$6, 概要設定!$N$2:$N$6,0),2)))) -> 140 | E21: 白戸 恭子 | F21: w | H21: w | L21: w | N21: w | P21: w | R21: w | AN21: =IF($E21="","",COUNTIF($F21:$AL21,"w")) -> 6 | AO21: =IF($E21="","",COUNTIF($F21:$AL21,">=0")) -> 0 | AP21: =IF($E21="","",INT((SUM($F21:$AM21)+($C21*$AN21))*$K$2/$C21)) -> 1080 | AQ21: =IF($E21="","",SUM(T$7:T$39)) -> 324 | AR21: =IF($E21="","",$AN21*100000000+$AP21*10000-$AQ21+$AU21*0.0001) -> 610799676 | AS21: =IF($E21="","",RANK($AR21,$AR$7:$AR$39)+COUNTIF($AR$7:$AR21,$AR21)-1) -> 1 | AT21: =IF($E21="","",IF($AV20="A",$AV21,IF($AW20="B",$AW21,IF($AX20="C",$AX21,$AY21)))) -> 103 | AU21: 103 | AV21: =IF($E21="","",IF(COUNTIF($F20:$AM20,"A")=0,"",MAX(IF($F20:$AL20="A",$G20:$AM20)))) ->  | AW21: =IF($E21="","",IF(COUNTIF($F20:$AM20,"B")=0,"",MAX(IF($F20:$AL20="B",$G20:$AM20)))) ->  | AX21: =IF($E21="","",IF(COUNTIF($F20:$AM20,"C")=0,"",MAX(IF($F20:$AL20="C",$G20:$AM20)))) ->  | AY21: =IF($E21="","",MAX($F20:$AM20)) -> 103
C22: =IF($E23="","",INDEX(概要設定!$J$2:$L$51,MATCH($E23, 概要設定!$J$2:$J$51,0),3)) ->  | E22: =IF(ISERROR(INDEX(概要設定!$J$2:$K$51,MATCH($E23,概要設定!$J$2:$J$51,0),2)),"",INDEX(概要設定!$J$2:$K$51,MATCH($E23,概要設定!$J$2:$J$51,0),2)) ->  | AP22: =IF($E23="","",INT((SUM($F23:$AM23)+($C23*$AN23)))) ->  | AT22: =IF($E23="","",IF($AV22="A","A",IF($AW22="B","B",IF($AX22="C","C","")))) ->  | AU22: =IF($AT23="","",IF($AT23=0,0,IF($AT22="A",9000,IF($AT22="B",8000,IF($AT22="C",7000,0))))) ->  | AV22: =IF($E23="","",IF(COUNTIF($F22:$AM22,"A")=0,"","A")) ->  | AW22: =IF($E23="","",IF(COUNTIF($F22:$AM22,"B")=0,"","B")) ->  | AX22: =IF($E23="","",IF(COUNTIF($F22:$AM22,"C")=0,"","C")) -> 
B23: 9 | C23: =IF($E23="","",IF($D23<>"",$D23,IF($C22<>"-",概要設定!$B$6,INDEX(概要設定!$N$2:$O$6,MATCH(概要設定!$B$6, 概要設定!$N$2:$N$6,0),2)))) ->  | AN23: =IF($E23="","",COUNTIF($F23:$AL23,"w")) ->  | AO23: =IF($E23="","",COUNTIF($F23:$AL23,">=0")) ->  | AP23: =IF($E23="","",INT((SUM($F23:$AM23)+($C23*$AN23))*$K$2/$C23)) ->  | AQ23: =IF($E23="","",SUM(V$7:V$39)) ->  | AR23: =IF($E23="","",$AN23*100000000+$AP23*10000-$AQ23+$AU23*0.0001) ->  | AS23: =IF($E23="","",RANK($AR23,$AR$7:$AR$39)+COUNTIF($AR$7:$AR23,$AR23)-1) ->  | AT23: =IF($E23="","",IF($AV22="A",$AV23,IF($AW22="B",$AW23,IF($AX22="C",$AX23,$AY23)))) ->  | AV23: =IF($E23="","",IF(COUNTIF($F22:$AM22,"A")=0,"",MAX(IF($F22:$AL22="A",$G22:$AM22)))) ->  | AW23: =IF($E23="","",IF(COUNTIF($F22:$AM22,"B")=0,"",MAX(IF($F22:$AL22="B",$G22:$AM22)))) ->  | AX23: =IF($E23="","",IF(COUNTIF($F22:$AM22,"C")=0,"",MAX(IF($F22:$AL22="C",$G22:$AM22)))) ->  | AY23: =IF($E23="","",MAX($F22:$AM22)) -> 
C24: =IF($E25="","",INDEX(概要設定!$J$2:$L$51,MATCH($E25, 概要設定!$J$2:$J$51,0),3)) ->  | E24: =IF(ISERROR(INDEX(概要設定!$J$2:$K$51,MATCH($E25,概要設定!$J$2:$J$51,0),2)),"",INDEX(概要設定!$J$2:$K$51,MATCH($E25,概要設定!$J$2:$J$51,0),2)) ->  | AP24: =IF($E25="","",INT((SUM($F25:$AM25)+($C25*$AN25)))) ->  | AT24: =IF($E25="","",IF($AV24="A","A",IF($AW24="B","B",IF($AX24="C","C","")))) ->  | AU24: =IF($AT25="","",IF($AT25=0,0,IF($AT24="A",9000,IF($AT24="B",8000,IF($AT24="C",7000,0))))) ->  | AV24: =IF($E25="","",IF(COUNTIF($F24:$AM24,"A")=0,"","A")) ->  | AW24: =IF($E25="","",IF(COUNTIF($F24:$AM24,"B")=0,"","B")) ->  | AX24: =IF($E25="","",IF(COUNTIF($F24:$AM24,"C")=0,"","C")) -> 
B25: 10 | C25: =IF($E25="","",IF($D25<>"",$D25,IF($C24<>"-",概要設定!$B$6,INDEX(概要設定!$N$2:$O$6,MATCH(概要設定!$B$6, 概要設定!$N$2:$N$6,0),2)))) ->  | AN25: =IF($E25="","",COUNTIF($F25:$AL25,"w")) ->  | AO25: =IF($E25="","",COUNTIF($F25:$AL25,">=0")) ->  | AP25: =IF($E25="","",INT((SUM($F25:$AM25)+($C25*$AN25))*$K$2/$C25)) ->  | AQ25: =IF($E25="","",SUM(X$7:X$39)) ->  | AR25: =IF($E25="","",$AN25*100000000+$AP25*10000-$AQ25+$AU25*0.0001) ->  | AS25: =IF($E25="","",RANK($AR25,$AR$7:$AR$39)+COUNTIF($AR$7:$AR25,$AR25)-1) ->  | AT25: =IF($E25="","",IF($AV24="A",$AV25,IF($AW24="B",$AW25,IF($AX24="C",$AX25,$AY25)))) ->  | AV25: =IF($E25="","",IF(COUNTIF($F24:$AM24,"A")=0,"",MAX(IF($F24:$AL24="A",$G24:$AM24)))) ->  | AW25: =IF($E25="","",IF(COUNTIF($F24:$AM24,"B")=0,"",MAX(IF($F24:$AL24="B",$G24:$AM24)))) ->  | AX25: =IF($E25="","",IF(COUNTIF($F24:$AM24,"C")=0,"",MAX(IF($F24:$AL24="C",$G24:$AM24)))) ->  | AY25: =IF($E25="","",MAX($F24:$AM24)) -> 
C26: =IF($E27="","",INDEX(概要設定!$J$2:$L$51,MATCH($E27, 概要設定!$J$2:$J$51,0),3)) ->  | E26: =IF(ISERROR(INDEX(概要設定!$J$2:$K$51,MATCH($E27,概要設定!$J$2:$J$51,0),2)),"",INDEX(概要設定!$J$2:$K$51,MATCH($E27,概要設定!$J$2:$J$51,0),2)) ->  | AP26: =IF($E27="","",INT((SUM($F27:$AM27)+($C27*$AN27)))) ->  | AT26: =IF($E27="","",IF($AV26="A","A",IF($AW26="B","B",IF($AX26="C","C","")))) ->  | AU26: =IF($AT27="","",IF($AT27=0,0,IF($AT26="A",9000,IF($AT26="B",8000,IF($AT26="C",7000,0))))) ->  | AV26: =IF($E27="","",IF(COUNTIF($F26:$AM26,"A")=0,"","A")) ->  | AW26: =IF($E27="","",IF(COUNTIF($F26:$AM26,"B")=0,"","B")) ->  | AX26: =IF($E27="","",IF(COUNTIF($F26:$AM26,"C")=0,"","C")) -> 
B27: 11 | C27: =IF($E27="","",IF($D27<>"",$D27,IF($C26<>"-",概要設定!$B$6,INDEX(概要設定!$N$2:$O$6,MATCH(概要設定!$B$6, 概要設定!$N$2:$N$6,0),2)))) ->  | AN27: =IF($E27="","",COUNTIF($F27:$AL27,"w")) ->  | AO27: =IF($E27="","",COUNTIF($F27:$AL27,">=0")) ->  | AP27: =IF($E27="","",INT((SUM($F27:$AM27)+($C27*$AN27))*$K$2/$C27)) ->  | AQ27: =IF($E27="","",SUM(Z$7:Z$39)) ->  | AR27: =IF($E27="","",$AN27*100000000+$AP27*10000-$AQ27+$AU27*0.0001) ->  | AS27: =IF($E27="","",RANK($AR27,$AR$7:$AR$39)+COUNTIF($AR$7:$AR27,$AR27)-1) ->  | AT27: =IF($E27="","",IF($AV26="A",$AV27,IF($AW26="B",$AW27,IF($AX26="C",$AX27,$AY27)))) ->  | AV27: =IF($E27="","",IF(COUNTIF($F26:$AM26,"A")=0,"",MAX(IF($F26:$AL26="A",$G26:$AM26)))) ->  | AW27: =IF($E27="","",IF(COUNTIF($F26:$AM26,"B")=0,"",MAX(IF($F26:$AL26="B",$G26:$AM26)))) ->  | AX27: =IF($E27="","",IF(COUNTIF($F26:$AM26,"C")=0,"",MAX(IF($F26:$AL26="C",$G26:$AM26)))) ->  | AY27: =IF($E27="","",MAX($F26:$AM26)) -> 
C28: =IF($E29="","",INDEX(概要設定!$J$2:$L$51,MATCH($E29, 概要設定!$J$2:$J$51,0),3)) ->  | E28: =IF(ISERROR(INDEX(概要設定!$J$2:$K$51,MATCH($E29,概要設定!$J$2:$J$51,0),2)),"",INDEX(概要設定!$J$2:$K$51,MATCH($E29,概要設定!$J$2:$J$51,0),2)) ->  | AP28: =IF($E29="","",INT((SUM($F29:$AM29)+($C29*$AN29)))) ->  | AT28: =IF($E29="","",IF($AV28="A","A",IF($AW28="B","B",IF($AX28="C","C","")))) ->  | AU28: =IF($AT29="","",IF($AT29=0,0,IF($AT28="A",9000,IF($AT28="B",8000,IF($AT28="C",7000,0))))) ->  | AV28: =IF($E29="","",IF(COUNTIF($F28:$AM28,"A")=0,"","A")) ->  | AW28: =IF($E29="","",IF(COUNTIF($F28:$AM28,"B")=0,"","B")) ->  | AX28: =IF($E29="","",IF(COUNTIF($F28:$AM28,"C")=0,"","C")) -> 
B29: 12 | C29: =IF($E29="","",IF($D29<>"",$D29,IF($C28<>"-",概要設定!$B$6,INDEX(概要設定!$N$2:$O$6,MATCH(概要設定!$B$6, 概要設定!$N$2:$N$6,0),2)))) ->  | AN29: =IF($E29="","",COUNTIF($F29:$AL29,"w")) ->  | AO29: =IF($E29="","",COUNTIF($F29:$AL29,">=0")) ->  | AP29: =IF($E29="","",INT((SUM($F29:$AM29)+($C29*$AN29))*$K$2/$C29)) ->  | AQ29: =IF($E29="","",SUM(AB$7:AB$39)) ->  | AR29: =IF($E29="","",$AN29*100000000+$AP29*10000-$AQ29+$AU29*0.0001) ->  | AS29: =IF($E29="","",RANK($AR29,$AR$7:$AR$39)+COUNTIF($AR$7:$AR29,$AR29)-1) ->  | AT29: =IF($E29="","",IF($AV28="A",$AV29,IF($AW28="B",$AW29,IF($AX28="C",$AX29,$AY29)))) ->  | AV29: =IF($E29="","",IF(COUNTIF($F28:$AM28,"A")=0,"",MAX(IF($F28:$AL28="A",$G28:$AM28)))) ->  | AW29: =IF($E29="","",IF(COUNTIF($F28:$AM28,"B")=0,"",MAX(IF($F28:$AL28="B",$G28:$AM28)))) ->  | AX29: =IF($E29="","",IF(COUNTIF($F28:$AM28,"C")=0,"",MAX(IF($F28:$AL28="C",$G28:$AM28)))) ->  | AY29: =IF($E29="","",MAX($F28:$AM28)) -> 
C30: =IF($E31="","",INDEX(概要設定!$J$2:$L$51,MATCH($E31, 概要設定!$J$2:$J$51,0),3)) ->  | E30: =IF(ISERROR(INDEX(概要設定!$J$2:$K$51,MATCH($E31,概要設定!$J$2:$J$51,0),2)),"",INDEX(概要設定!$J$2:$K$51,MATCH($E31,概要設定!$J$2:$J$51,0),2)) ->  | AP30: =IF($E31="","",INT((SUM($F31:$AM31)+($C31*$AN31)))) ->  | AT30: =IF($E31="","",IF($AV30="A","A",IF($AW30="B","B",IF($AX30="C","C","")))) ->  | AU30: =IF($AT31="","",IF($AT31=0,0,IF($AT30="A",9000,IF($AT30="B",8000,IF($AT30="C",7000,0))))) ->  | AV30: =IF($E31="","",IF(COUNTIF($F30:$AM30,"A")=0,"","A")) ->  | AW30: =IF($E31="","",IF(COUNTIF($F30:$AM30,"B")=0,"","B")) ->  | AX30: =IF($E31="","",IF(COUNTIF($F30:$AM30,"C")=0,"","C")) -> 
B31: 13 | C31: =IF($E31="","",IF($D31<>"",$D31,IF($C30<>"-",概要設定!$B$6,INDEX(概要設定!$N$2:$O$6,MATCH(概要設定!$B$6, 概要設定!$N$2:$N$6,0),2)))) ->  | AN31: =IF($E31="","",COUNTIF($F31:$AL31,"w")) ->  | AO31: =IF($E31="","",COUNTIF($F31:$AL31,">=0")) ->  | AP31: =IF($E31="","",INT((SUM($F31:$AM31)+($C31*$AN31))*$K$2/$C31)) ->  | AQ31: =IF($E31="","",SUM(AD$7:AD$39)) ->  | AR31: =IF($E31="","",$AN31*100000000+$AP31*10000-$AQ31+$AU31*0.0001) ->  | AS31: =IF($E31="","",RANK($AR31,$AR$7:$AR$39)+COUNTIF($AR$7:$AR31,$AR31)-1) ->  | AT31: =IF($E31="","",IF($AV30="A",$AV31,IF($AW30="B",$AW31,IF($AX30="C",$AX31,$AY31)))) ->  | AV31: =IF($E31="","",IF(COUNTIF($F30:$AM30,"A")=0,"",MAX(IF($F30:$AL30="A",$G30:$AM30)))) ->  | AW31: =IF($E31="","",IF(COUNTIF($F30:$AM30,"B")=0,"",MAX(IF($F30:$AL30="B",$G30:$AM30)))) ->  | AX31: =IF($E31="","",IF(COUNTIF($F30:$AM30,"C")=0,"",MAX(IF($F30:$AL30="C",$G30:$AM30)))) ->  | AY31: =IF($E31="","",MAX($F30:$AM30)) -> 
C32: =IF($E33="","",INDEX(概要設定!$J$2:$L$51,MATCH($E33, 概要設定!$J$2:$J$51,0),3)) ->  | E32: =IF(ISERROR(INDEX(概要設定!$J$2:$K$51,MATCH($E33,概要設定!$J$2:$J$51,0),2)),"",INDEX(概要設定!$J$2:$K$51,MATCH($E33,概要設定!$J$2:$J$51,0),2)) ->  | AP32: =IF($E33="","",INT((SUM($F33:$AM33)+($C33*$AN33)))) ->  | AT32: =IF($E33="","",IF($AV32="A","A",IF($AW32="B","B",IF($AX32="C","C","")))) ->  | AU32: =IF($AT33="","",IF($AT33=0,0,IF($AT32="A",9000,IF($AT32="B",8000,IF($AT32="C",7000,0))))) ->  | AV32: =IF($E33="","",IF(COUNTIF($F32:$AM32,"A")=0,"","A")) ->  | AW32: =IF($E33="","",IF(COUNTIF($F32:$AM32,"B")=0,"","B")) ->  | AX32: =IF($E33="","",IF(COUNTIF($F32:$AM32,"C")=0,"","C")) -> 
B33: 14 | C33: =IF($E33="","",IF($D33<>"",$D33,IF($C32<>"-",概要設定!$B$6,INDEX(概要設定!$N$2:$O$6,MATCH(概要設定!$B$6, 概要設定!$N$2:$N$6,0),2)))) ->  | AN33: =IF($E33="","",COUNTIF($F33:$AL33,"w")) ->  | AO33: =IF($E33="","",COUNTIF($F33:$AL33,">=0")) ->  | AP33: =IF($E33="","",INT((SUM($F33:$AM33)+($C33*$AN33))*$K$2/$C33)) ->  | AQ33: =IF($E33="","",SUM(AF$7:AF$39)) ->  | AR33: =IF($E33="","",$AN33*100000000+$AP33*10000-$AQ33+$AU33*0.0001) ->  | AS33: =IF($E33="","",RANK($AR33,$AR$7:$AR$39)+COUNTIF($AR$7:$AR33,$AR33)-1) ->  | AT33: =IF($E33="","",IF($AV32="A",$AV33,IF($AW32="B",$AW33,IF($AX32="C",$AX33,$AY33)))) ->  | AV33: =IF($E33="","",IF(COUNTIF($F32:$AM32,"A")=0,"",MAX(IF($F32:$AL32="A",$G32:$AM32)))) ->  | AW33: =IF($E33="","",IF(COUNTIF($F32:$AM32,"B")=0,"",MAX(IF($F32:$AL32="B",$G32:$AM32)))) ->  | AX33: =IF($E33="","",IF(COUNTIF($F32:$AM32,"C")=0,"",MAX(IF($F32:$AL32="C",$G32:$AM32)))) ->  | AY33: =IF($E33="","",MAX($F32:$AM32)) -> 
C34: =IF($E35="","",INDEX(概要設定!$J$2:$L$51,MATCH($E35, 概要設定!$J$2:$J$51,0),3)) ->  | E34: =IF(ISERROR(INDEX(概要設定!$J$2:$K$51,MATCH($E35,概要設定!$J$2:$J$51,0),2)),"",INDEX(概要設定!$J$2:$K$51,MATCH($E35,概要設定!$J$2:$J$51,0),2)) ->  | AP34: =IF($E35="","",INT((SUM($F35:$AM35)+($C35*$AN35)))) ->  | AT34: =IF($E35="","",IF($AV34="A","A",IF($AW34="B","B",IF($AX34="C","C","")))) ->  | AU34: =IF($AT35="","",IF($AT35=0,0,IF($AT34="A",9000,IF($AT34="B",8000,IF($AT34="C",7000,0))))) ->  | AV34: =IF($E35="","",IF(COUNTIF($F34:$AM34,"A")=0,"","A")) ->  | AW34: =IF($E35="","",IF(COUNTIF($F34:$AM34,"B")=0,"","B")) ->  | AX34: =IF($E35="","",IF(COUNTIF($F34:$AM34,"C")=0,"","C")) -> 
B35: 15 | C35: =IF($E35="","",IF($D35<>"",$D35,IF($C34<>"-",概要設定!$B$6,INDEX(概要設定!$N$2:$O$6,MATCH(概要設定!$B$6, 概要設定!$N$2:$N$6,0),2)))) ->  | AN35: =IF($E35="","",COUNTIF($F35:$AL35,"w")) ->  | AO35: =IF($E35="","",COUNTIF($F35:$AL35,">=0")) ->  | AP35: =IF($E35="","",INT((SUM($F35:$AM35)+($C35*$AN35))*$K$2/$C35)) ->  | AQ35: =IF($E35="","",SUM(AH$7:AH$39)) ->  | AR35: =IF($E35="","",$AN35*100000000+$AP35*10000-$AQ35+$AU35*0.0001) ->  | AS35: =IF($E35="","",RANK($AR35,$AR$7:$AR$39)+COUNTIF($AR$7:$AR35,$AR35)-1) ->  | AT35: =IF($E35="","",IF($AV34="A",$AV35,IF($AW34="B",$AW35,IF($AX34="C",$AX35,$AY35)))) ->  | AV35: =IF($E35="","",IF(COUNTIF($F34:$AM34,"A")=0,"",MAX(IF($F34:$AL34="A",$G34:$AM34)))) ->  | AW35: =IF($E35="","",IF(COUNTIF($F34:$AM34,"B")=0,"",MAX(IF($F34:$AL34="B",$G34:$AM34)))) ->  | AX35: =IF($E35="","",IF(COUNTIF($F34:$AM34,"C")=0,"",MAX(IF($F34:$AL34="C",$G34:$AM34)))) ->  | AY35: =IF($E35="","",MAX($F34:$AM34)) -> 
C36: =IF($E37="","",INDEX(概要設定!$J$2:$L$51,MATCH($E37, 概要設定!$J$2:$J$51,0),3)) ->  | E36: =IF(ISERROR(INDEX(概要設定!$J$2:$K$51,MATCH($E37,概要設定!$J$2:$J$51,0),2)),"",INDEX(概要設定!$J$2:$K$51,MATCH($E37,概要設定!$J$2:$J$51,0),2)) ->  | AP36: =IF($E37="","",INT((SUM($F37:$AM37)+($C37*$AN37)))) ->  | AT36: =IF($E37="","",IF($AV36="A","A",IF($AW36="B","B",IF($AX36="C","C","")))) ->  | AU36: =IF($AT37="","",IF($AT37=0,0,IF($AT36="A",9000,IF($AT36="B",8000,IF($AT36="C",7000,0))))) ->  | AV36: =IF($E37="","",IF(COUNTIF($F36:$AM36,"A")=0,"","A")) ->  | AW36: =IF($E37="","",IF(COUNTIF($F36:$AM36,"B")=0,"","B")) ->  | AX36: =IF($E37="","",IF(COUNTIF($F36:$AM36,"C")=0,"","C")) -> 
B37: 16 | C37: =IF($E37="","",IF($D37<>"",$D37,IF($C36<>"-",概要設定!$B$6,INDEX(概要設定!$N$2:$O$6,MATCH(概要設定!$B$6, 概要設定!$N$2:$N$6,0),2)))) ->  | AN37: =IF($E37="","",COUNTIF($F37:$AL37,"w")) ->  | AO37: =IF($E37="","",COUNTIF($F37:$AL37,">=0")) ->  | AP37: =IF($E37="","",INT((SUM($F37:$AM37)+($C37*$AN37))*$K$2/$C37)) ->  | AQ37: =IF($E37="","",SUM(AJ$7:AJ$39)) ->  | AR37: =IF($E37="","",$AN37*100000000+$AP37*10000-$AQ37+$AU37*0.0001) ->  | AS37: =IF($E37="","",RANK($AR37,$AR$7:$AR$39)+COUNTIF($AR$7:$AR37,$AR37)-1) ->  | AT37: =IF($E37="","",IF($AV36="A",$AV37,IF($AW36="B",$AW37,IF($AX36="C",$AX37,$AY37)))) ->  | AV37: =IF($E37="","",IF(COUNTIF($F36:$AM36,"A")=0,"",MAX(IF($F36:$AL36="A",$G36:$AM36)))) ->  | AW37: =IF($E37="","",IF(COUNTIF($F36:$AM36,"B")=0,"",MAX(IF($F36:$AL36="B",$G36:$AM36)))) ->  | AX37: =IF($E37="","",IF(COUNTIF($F36:$AM36,"C")=0,"",MAX(IF($F36:$AL36="C",$G36:$AM36)))) ->  | AY37: =IF($E37="","",MAX($F36:$AM36)) -> 
C38: =IF($E39="","",INDEX(概要設定!$J$2:$L$51,MATCH($E39, 概要設定!$J$2:$J$51,0),3)) ->  | E38: =IF(ISERROR(INDEX(概要設定!$J$2:$K$51,MATCH($E39,概要設定!$J$2:$J$51,0),2)),"",INDEX(概要設定!$J$2:$K$51,MATCH($E39,概要設定!$J$2:$J$51,0),2)) ->  | AP38: =IF($E39="","",INT((SUM($F39:$AM39)+($C39*$AN39)))) ->  | AT38: =IF($E39="","",IF($AV38="A","A",IF($AW38="B","B",IF($AX38="C","C","")))) ->  | AU38: =IF($AT39="","",IF($AT39=0,0,IF($AT38="A",9000,IF($AT38="B",8000,IF($AT38="C",7000,0))))) ->  | AV38: =IF($E39="","",IF(COUNTIF($F38:$AM38,"A")=0,"","A")) ->  | AW38: =IF($E39="","",IF(COUNTIF($F38:$AM38,"B")=0,"","B")) ->  | AX38: =IF($E39="","",IF(COUNTIF($F38:$AM38,"C")=0,"","C")) -> 
B39: 17 | C39: =IF($E39="","",IF($D39<>"",$D39,IF($C38<>"-",概要設定!$B$6,INDEX(概要設定!$N$2:$O$6,MATCH(概要設定!$B$6, 概要設定!$N$2:$N$6,0),2)))) ->  | AN39: =IF($E39="","",COUNTIF($F39:$AL39,"w")) ->  | AO39: =IF($E39="","",COUNTIF($F39:$AL39,">=0")) ->  | AP39: =IF($E39="","",INT((SUM($F39:$AM39)+($C39*$AN39))*$K$2/$C39)) ->  | AQ39: =IF($E39="","",SUM(AL$7:AL$39)) ->  | AR39: =IF($E39="","",$AN39*100000000+$AP39*10000-$AQ39+$AU39*0.0001) ->  | AS39: =IF($E39="","",RANK($AR39,$AR$7:$AR$39)+COUNTIF($AR$7:$AR39,$AR39)-1) ->  | AT39: =IF($E39="","",IF($AV38="A",$AV39,IF($AW38="B",$AW39,IF($AX38="C",$AX39,$AY39)))) ->  | AV39: =IF($E39="","",IF(COUNTIF($F38:$AM38,"A")=0,"",MAX(IF($F38:$AL38="A",$G38:$AM38)))) ->  | AW39: =IF($E39="","",IF(COUNTIF($F38:$AM38,"B")=0,"",MAX(IF($F38:$AL38="B",$G38:$AM38)))) ->  | AX39: =IF($E39="","",IF(COUNTIF($F38:$AM38,"C")=0,"",MAX(IF($F38:$AL38="C",$G38:$AM38)))) ->  | AY39: =IF($E39="","",MAX($F38:$AM38)) -> 
E40: ※注1）赤組17人まで ※注2）印刷する時はマス目以外の所でクリック（A1） ※注3）負けスコア入力後”w”が自動表示、Ctrl+qは自分相手クリア、Ctrl+f は全てクリア、Ctrl+k は対戦マス目のみクリア
F42: 記入例 | H42: A | I42: 180 | L42: B | M42: 180 | Q42: 110 | U42: 110
H43: w | L43: w | P43: w | T43: 120

Sheet 黒RT
C1: 人数、節数により自動でRTを作成→ | J1: 人数は： | K1: =IF(黒!$E7 ="",0,(34 - COUNTIF(黒!$E$6:$E$39,""))/2) -> 8 | L1: 人 | M1: 列数は： | N1: =IF($K$1<3,"",HLOOKUP($K$1,list!$A$1:$BW$2,2,FALSE)) -> 27 | O1: 列 | P1: (listセルの開始列数) | AB1: 黒の選手を登録すると人数が自動表示されます。（3人～１７人まで対応、人数は入力しないで下さい。）
B2: 黒組 | D2: ←スコアを黒セルに反映 | J2: 何節まで： | K2: 99 | L2: 節 | P2: 赤側の行と列変換 | AB2: 表示させる節数を入力。（”９９”と入力すると全節が表示され”０”だと全節クリアされます。）
A3: 試合数 | B3: 節数/No. | C3: 名 前 | D3: スコア | F3: スコア | H3: 名 前 | I3: No. | M3: スコアL行 | N3: スコアL列 | O3: ABL行 | P3: ABL列 | Q3: HRL行 | R3: HRL列 | S3: ハンデ左 | T3: スコアL行 | U3: スコアL列 | V3: ABR行 | W3: ABR列 | X3: HRR行 | Y3: HRR列 | Z3: ハンデ右 | AB3: 入力手順 ： RTクリア ＞ 黒で選手を選択 ＞ 何節まで：表示させる節数を入力 ＞ RT作成 ＞ スコア入力 ＞ 黒へ反映
C4: =IF(ISERROR(INDEX(概要設定!$J$2:$K$51,MATCH($C5,概要設定!$J$2:$J$51,0),2)),"",INDEX(概要設定!$J$2:$K$51,MATCH($C5,概要設定!$J$2:$J$51,0),2)) ->  | H4: =IF(ISERROR(INDEX(概要設定!$J$2:$K$51,MATCH($H5,概要設定!$J$2:$J$51,0),2)),"",INDEX(概要設定!$J$2:$K$51,MATCH($H5,概要設定!$J$2:$J$51,0),2)) -> 
B5: 一節 | C5: =IF(AND($B5>=1,$B5<=17),INDEX(黒!$B$6:$E$39,MATCH($B5,黒!$B$6:$B$39,0),4),"") ->  | H5: =IF(AND($I5>=1,$I5<=17),INDEX(黒!$B$6:$E$39,MATCH($I5,黒!$B$6:$B$39,0),4),"") ->  | K5: ←RT・ラベルを初期化 | M5: =IF($A5="","",$B5+$B5+5) ->  | N5: =IF($A5="","",$I5+$I5+4) ->  | O5: =IF($A5="","",$M5-1) ->  | P5: =IF($A5="","",$N5) ->  | Q5: =IF($A5="","",$M5-1) ->  | R5: =IF($A5="","",$N5+1) ->  | S5: =IF(AND($B5>=1,$B5<=17),INDEX(黒!$B$6:$E$39,MATCH($B5,黒!$B$6:$B$39,0),2),"") ->  | T5: =IF($A5="","",$I5+$I5+5) ->  | U5: =IF($A5="","",$B5+$B5+4) ->  | V5: =IF($A5="","",$T5-1) ->  | W5: =IF($A5="","",$U5) ->  | X5: =IF($A5="","",$T5-1) ->  | Y5: =IF($A5="","",$U5+1) ->  | Z5: =IF(AND($I5>=1,$I5<=17),INDEX(黒!$B$6:$E$39,MATCH($I5,黒!$B$6:$B$39,0),2),"") -> 
C6: =IF(ISERROR(INDEX(概要設定!$J$2:$K$51,MATCH($C7,概要設定!$J$2:$J$51,0),2)),"",INDEX(概要設定!$J$2:$K$51,MATCH($C7,概要設定!$J$2:$J$51,0),2)) -> さいとう だいすけ | H6: =IF(ISERROR(INDEX(概要設定!$J$2:$K$51,MATCH($H7,概要設定!$J$2:$J$51,0),2)),"",INDEX(概要設定!$J$2:$K$51,MATCH($H7,概要設定!$J$2:$J$51,0),2)) -> うえだ しんや
A7: 1 | B7: 4 | C7: =IF(AND($B7>=1,$B7<=17),INDEX(黒!$B$6:$E$39,MATCH($B7,黒!$B$6:$B$39,0),4),"") -> 斉藤 大輔 | D7: 163 | F7: w | H7: =IF(AND($I7>=1,$I7<=17),INDEX(黒!$B$6:$E$39,MATCH($I7,黒!$B$6:$B$39,0),4),"") -> 植田 慎也 | I7: 5 | M7: =IF($A7="","",$B7+$B7+5) -> 13 | N7: =IF($A7="","",$I7+$I7+4) -> 14 | O7: =IF($A7="","",$M7-1) -> 12 | P7: =IF($A7="","",$N7) -> 14 | Q7: =IF($A7="","",$M7-1) -> 12 | R7: =IF($A7="","",$N7+1) -> 15 | S7: =IF(AND($B7>=1,$B7<=17),INDEX(黒!$B$6:$E$39,MATCH($B7,黒!$B$6:$B$39,0),2),"") -> 180 | T7: =IF($A7="","",$I7+$I7+5) -> 15 | U7: =IF($A7="","",$B7+$B7+4) -> 12 | V7: =IF($A7="","",$T7-1) -> 14 | W7: =IF($A7="","",$U7) -> 12 | X7: =IF($A7="","",$T7-1) -> 14 | Y7: =IF($A7="","",$U7+1) -> 13 | Z7: =IF(AND($I7>=1,$I7<=17),INDEX(黒!$B$6:$E$39,MATCH($I7,黒!$B$6:$B$39,0),2),"") -> 180
C8: =IF(ISERROR(INDEX(概要設定!$J$2:$K$51,MATCH($C9,概要設定!$J$2:$J$51,0),2)),"",INDEX(概要設定!$J$2:$K$51,MATCH($C9,概要設定!$J$2:$J$51,0),2)) -> やまだ こうじ | H8: =IF(ISERROR(INDEX(概要設定!$J$2:$K$51,MATCH($H9,概要設定!$J$2:$J$51,0),2)),"",INDEX(概要設定!$J$2:$K$51,MATCH($H9,概要設定!$J$2:$J$51,0),2)) -> わしお りゅうと
A9: 2 | B9: 3 | C9: =IF(AND($B9>=1,$B9<=17),INDEX(黒!$B$6:$E$39,MATCH($B9,黒!$B$6:$B$39,0),4),"") -> 山田 晃司 | D9: w | F9: 93 | H9: =IF(AND($I9>=1,$I9<=17),INDEX(黒!$B$6:$E$39,MATCH($I9,黒!$B$6:$B$39,0),4),"") -> 鷲尾 隆杜 | I9: 6 | M9: =IF($A9="","",$B9+$B9+5) -> 11 | N9: =IF($A9="","",$I9+$I9+4) -> 16 | O9: =IF($A9="","",$M9-1) -> 10 | P9: =IF($A9="","",$N9) -> 16 | Q9: =IF($A9="","",$M9-1) -> 10 | R9: =IF($A9="","",$N9+1) -> 17 | S9: =IF(AND($B9>=1,$B9<=17),INDEX(黒!$B$6:$E$39,MATCH($B9,黒!$B$6:$B$39,0),2),"") -> 180 | T9: =IF($A9="","",$I9+$I9+5) -> 17 | U9: =IF($A9="","",$B9+$B9+4) -> 10 | V9: =IF($A9="","",$T9-1) -> 16 | W9: =IF($A9="","",$U9) -> 10 | X9: =IF($A9="","",$T9-1) -> 16 | Y9: =IF($A9="","",$U9+1) -> 11 | Z9: =IF(AND($I9>=1,$I9<=17),INDEX(黒!$B$6:$E$39,MATCH($I9,黒!$B$6:$B$39,0),2),"") -> 180
C10: =IF(ISERROR(INDEX(概要設定!$J$2:$K$51,MATCH($C11,概要設定!$J$2:$J$51,0),2)),"",INDEX(概要設定!$J$2:$K$51,MATCH($C11,概要設定!$J$2:$J$51,0),2)) -> さいとう ゆうじ | H10: =IF(ISERROR(INDEX(概要設定!$J$2:$K$51,MATCH($H11,概要設定!$J$2:$J$51,0),2)),"",INDEX(概要設定!$J$2:$K$51,MATCH($H11,概要設定!$J$2:$J$51,0),2)) -> はせがわ すすむ | AB10: 記入例 | AC10: A | AD10: 180 | AF10: B | AG10: 180 | AJ10: 110
A11: 3 | B11: 2 | C11: =IF(AND($B11>=1,$B11<=17),INDEX(黒!$B$6:$E$39,MATCH($B11,黒!$B$6:$B$39,0),4),"") -> 斉藤 裕児 | D11: w | F11: 26 | H11: =IF(AND($I11>=1,$I11<=17),INDEX(黒!$B$6:$E$39,MATCH($I11,黒!$B$6:$B$39,0),4),"") -> 長谷川 進 | I11: 7 | M11: =IF($A11="","",$B11+$B11+5) -> 9 | N11: =IF($A11="","",$I11+$I11+4) -> 18 | O11: =IF($A11="","",$M11-1) -> 8 | P11: =IF($A11="","",$N11) -> 18 | Q11: =IF($A11="","",$M11-1) -> 8 | R11: =IF($A11="","",$N11+1) -> 19 | S11: =IF(AND($B11>=1,$B11<=17),INDEX(黒!$B$6:$E$39,MATCH($B11,黒!$B$6:$B$39,0),2),"") -> 180 | T11: =IF($A11="","",$I11+$I11+5) -> 19 | U11: =IF($A11="","",$B11+$B11+4) -> 8 | V11: =IF($A11="","",$T11-1) -> 18 | W11: =IF($A11="","",$U11) -> 8 | X11: =IF($A11="","",$T11-1) -> 18 | Y11: =IF($A11="","",$U11+1) -> 9 | Z11: =IF(AND($I11>=1,$I11<=17),INDEX(黒!$B$6:$E$39,MATCH($I11,黒!$B$6:$B$39,0),2),"") -> 180 | AC11: w | AF11: w | AI11: 125
C12: =IF(ISERROR(INDEX(概要設定!$J$2:$K$51,MATCH($C13,概要設定!$J$2:$J$51,0),2)),"",INDEX(概要設定!$J$2:$K$51,MATCH($C13,概要設定!$J$2:$J$51,0),2)) -> しらと れいにん | G12: 103 | H12: =IF(ISERROR(INDEX(概要設定!$J$2:$K$51,MATCH($H13,概要設定!$J$2:$J$51,0),2)),"",INDEX(概要設定!$J$2:$K$51,MATCH($H13,概要設定!$J$2:$J$51,0),2)) -> しらと きょうこ
A13: 4 | B13: 1 | C13: =IF(AND($B13>=1,$B13<=17),INDEX(黒!$B$6:$E$39,MATCH($B13,黒!$B$6:$B$39,0),4),"") -> 白戸 玲人 | D13: 48 | F13: w | H13: =IF(AND($I13>=1,$I13<=17),INDEX(黒!$B$6:$E$39,MATCH($I13,黒!$B$6:$B$39,0),4),"") -> 白戸 恭子 | I13: 8 | M13: =IF($A13="","",$B13+$B13+5) -> 7 | N13: =IF($A13="","",$I13+$I13+4) -> 20 | O13: =IF($A13="","",$M13-1) -> 6 | P13: =IF($A13="","",$N13) -> 20 | Q13: =IF($A13="","",$M13-1) -> 6 | R13: =IF($A13="","",$N13+1) -> 21 | S13: =IF(AND($B13>=1,$B13<=17),INDEX(黒!$B$6:$E$39,MATCH($B13,黒!$B$6:$B$39,0),2),"") -> 180 | T13: =IF($A13="","",$I13+$I13+5) -> 21 | U13: =IF($A13="","",$B13+$B13+4) -> 6 | V13: =IF($A13="","",$T13-1) -> 20 | W13: =IF($A13="","",$U13) -> 6 | X13: =IF($A13="","",$T13-1) -> 20 | Y13: =IF($A13="","",$U13+1) -> 7 | Z13: =IF(AND($I13>=1,$I13<=17),INDEX(黒!$B$6:$E$39,MATCH($I13,黒!$B$6:$B$39,0),2),"") -> 140 | AC13: 勝者は"w"半角小文字で入力して下さい。
C14: =IF(ISERROR(INDEX(概要設定!$J$2:$K$51,MATCH($C15,概要設定!$J$2:$J$51,0),2)),"",INDEX(概要設定!$J$2:$K$51,MATCH($C15,概要設定!$J$2:$J$51,0),2)) ->  | H14: =IF(ISERROR(INDEX(概要設定!$J$2:$K$51,MATCH($H15,概要設定!$J$2:$J$51,0),2)),"",INDEX(概要設定!$J$2:$K$51,MATCH($H15,概要設定!$J$2:$J$51,0),2)) -> 
B15: 二節 | C15: =IF(AND($B15>=1,$B15<=17),INDEX(黒!$B$6:$E$39,MATCH($B15,黒!$B$6:$B$39,0),4),"") ->  | H15: =IF(AND($I15>=1,$I15<=17),INDEX(黒!$B$6:$E$39,MATCH($I15,黒!$B$6:$B$39,0),4),"") ->  | M15: =IF($A15="","",$B15+$B15+5) ->  | N15: =IF($A15="","",$I15+$I15+4) ->  | O15: =IF($A15="","",$M15-1) ->  | P15: =IF($A15="","",$N15) ->  | Q15: =IF($A15="","",$M15-1) ->  | R15: =IF($A15="","",$N15+1) ->  | S15: =IF(AND($B15>=1,$B15<=17),INDEX(黒!$B$6:$E$39,MATCH($B15,黒!$B$6:$B$39,0),2),"") ->  | T15: =IF($A15="","",$I15+$I15+5) ->  | U15: =IF($A15="","",$B15+$B15+4) ->  | V15: =IF($A15="","",$T15-1) ->  | W15: =IF($A15="","",$U15) ->  | X15: =IF($A15="","",$T15-1) ->  | Y15: =IF($A15="","",$U15+1) ->  | Z15: =IF(AND($I15>=1,$I15<=17),INDEX(黒!$B$6:$E$39,MATCH($I15,黒!$B$6:$B$39,0),2),"") ->  | AC15: 敗者側のスコアを入力すると相手側に”ｗ”が自動表示されます。
C16: =IF(ISERROR(INDEX(概要設定!$J$2:$K$51,MATCH($C17,概要設定!$J$2:$J$51,0),2)),"",INDEX(概要設定!$J$2:$K$51,MATCH($C17,概要設定!$J$2:$J$51,0),2)) -> やまだ こうじ | H16: =IF(ISERROR(INDEX(概要設定!$J$2:$K$51,MATCH($H17,概要設定!$J$2:$J$51,0),2)),"",INDEX(概要設定!$J$2:$K$51,MATCH($H17,概要設定!$J$2:$J$51,0),2)) -> さいとう だいすけ
A17: 5 | B17: 3 | C17: =IF(AND($B17>=1,$B17<=17),INDEX(黒!$B$6:$E$39,MATCH($B17,黒!$B$6:$B$39,0),4),"") -> 山田 晃司 | D17: w | F17: 160 | H17: =IF(AND($I17>=1,$I17<=17),INDEX(黒!$B$6:$E$39,MATCH($I17,黒!$B$6:$B$39,0),4),"") -> 斉藤 大輔 | I17: 4 | M17: =IF($A17="","",$B17+$B17+5) -> 11 | N17: =IF($A17="","",$I17+$I17+4) -> 12 | O17: =IF($A17="","",$M17-1) -> 10 | P17: =IF($A17="","",$N17) -> 12 | Q17: =IF($A17="","",$M17-1) -> 10 | R17: =IF($A17="","",$N17+1) -> 13 | S17: =IF(AND($B17>=1,$B17<=17),INDEX(黒!$B$6:$E$39,MATCH($B17,黒!$B$6:$B$39,0),2),"") -> 180 | T17: =IF($A17="","",$I17+$I17+5) -> 13 | U17: =IF($A17="","",$B17+$B17+4) -> 10 | V17: =IF($A17="","",$T17-1) -> 12 | W17: =IF($A17="","",$U17) -> 10 | X17: =IF($A17="","",$T17-1) -> 12 | Y17: =IF($A17="","",$U17+1) -> 11 | Z17: =IF(AND($I17>=1,$I17<=17),INDEX(黒!$B$6:$E$39,MATCH($I17,黒!$B$6:$B$39,0),2),"") -> 180
C18: =IF(ISERROR(INDEX(概要設定!$J$2:$K$51,MATCH($C19,概要設定!$J$2:$J$51,0),2)),"",INDEX(概要設定!$J$2:$K$51,MATCH($C19,概要設定!$J$2:$J$51,0),2)) -> さいとう ゆうじ | H18: =IF(ISERROR(INDEX(概要設定!$J$2:$K$51,MATCH($H19,概要設定!$J$2:$J$51,0),2)),"",INDEX(概要設定!$J$2:$K$51,MATCH($H19,概要設定!$J$2:$J$51,0),2)) -> うえだ しんや
A19: 6 | B19: 2 | C19: =IF(AND($B19>=1,$B19<=17),INDEX(黒!$B$6:$E$39,MATCH($B19,黒!$B$6:$B$39,0),4),"") -> 斉藤 裕児 | D19: w | F19: 28 | H19: =IF(AND($I19>=1,$I19<=17),INDEX(黒!$B$6:$E$39,MATCH($I19,黒!$B$6:$B$39,0),4),"") -> 植田 慎也 | I19: 5 | M19: =IF($A19="","",$B19+$B19+5) -> 9 | N19: =IF($A19="","",$I19+$I19+4) -> 14 | O19: =IF($A19="","",$M19-1) -> 8 | P19: =IF($A19="","",$N19) -> 14 | Q19: =IF($A19="","",$M19-1) -> 8 | R19: =IF($A19="","",$N19+1) -> 15 | S19: =IF(AND($B19>=1,$B19<=17),INDEX(黒!$B$6:$E$39,MATCH($B19,黒!$B$6:$B$39,0),2),"") -> 180 | T19: =IF($A19="","",$I19+$I19+5) -> 15 | U19: =IF($A19="","",$B19+$B19+4) -> 8 | V19: =IF($A19="","",$T19-1) -> 14 | W19: =IF($A19="","",$U19) -> 8 | X19: =IF($A19="","",$T19-1) -> 14 | Y19: =IF($A19="","",$U19+1) -> 9 | Z19: =IF(AND($I19>=1,$I19<=17),INDEX(黒!$B$6:$E$39,MATCH($I19,黒!$B$6:$B$39,0),2),"") -> 180
C20: =IF(ISERROR(INDEX(概要設定!$J$2:$K$51,MATCH($C21,概要設定!$J$2:$J$51,0),2)),"",INDEX(概要設定!$J$2:$K$51,MATCH($C21,概要設定!$J$2:$J$51,0),2)) -> しらと きょうこ | H20: =IF(ISERROR(INDEX(概要設定!$J$2:$K$51,MATCH($H21,概要設定!$J$2:$J$51,0),2)),"",INDEX(概要設定!$J$2:$K$51,MATCH($H21,概要設定!$J$2:$J$51,0),2)) -> わしお りゅうと
A21: 7 | B21: 8 | C21: =IF(AND($B21>=1,$B21<=17),INDEX(黒!$B$6:$E$39,MATCH($B21,黒!$B$6:$B$39,0),4),"") -> 白戸 恭子 | D21: w | F21: 32 | H21: =IF(AND($I21>=1,$I21<=17),INDEX(黒!$B$6:$E$39,MATCH($I21,黒!$B$6:$B$39,0),4),"") -> 鷲尾 隆杜 | I21: 6 | M21: =IF($A21="","",$B21+$B21+5) -> 21 | N21: =IF($A21="","",$I21+$I21+4) -> 16 | O21: =IF($A21="","",$M21-1) -> 20 | P21: =IF($A21="","",$N21) -> 16 | Q21: =IF($A21="","",$M21-1) -> 20 | R21: =IF($A21="","",$N21+1) -> 17 | S21: =IF(AND($B21>=1,$B21<=17),INDEX(黒!$B$6:$E$39,MATCH($B21,黒!$B$6:$B$39,0),2),"") -> 140 | T21: =IF($A21="","",$I21+$I21+5) -> 17 | U21: =IF($A21="","",$B21+$B21+4) -> 20 | V21: =IF($A21="","",$T21-1) -> 16 | W21: =IF($A21="","",$U21) -> 20 | X21: =IF($A21="","",$T21-1) -> 16 | Y21: =IF($A21="","",$U21+1) -> 21 | Z21: =IF(AND($I21>=1,$I21<=17),INDEX(黒!$B$6:$E$39,MATCH($I21,黒!$B$6:$B$39,0),2),"") -> 180
C22: =IF(ISERROR(INDEX(概要設定!$J$2:$K$51,MATCH($C23,概要設定!$J$2:$J$51,0),2)),"",INDEX(概要設定!$J$2:$K$51,MATCH($C23,概要設定!$J$2:$J$51,0),2)) -> しらと れいにん | H22: =IF(ISERROR(INDEX(概要設定!$J$2:$K$51,MATCH($H23,概要設定!$J$2:$J$51,0),2)),"",INDEX(概要設定!$J$2:$K$51,MATCH($H23,概要設定!$J$2:$J$51,0),2)) -> はせがわ すすむ
A23: 8 | B23: 1 | C23: =IF(AND($B23>=1,$B23<=17),INDEX(黒!$B$6:$E$39,MATCH($B23,黒!$B$6:$B$39,0),4),"") -> 白戸 玲人 | D23: w | F23: 38 | H23: =IF(AND($I23>=1,$I23<=17),INDEX(黒!$B$6:$E$39,MATCH($I23,黒!$B$6:$B$39,0),4),"") -> 長谷川 進 | I23: 7 | M23: =IF($A23="","",$B23+$B23+5) -> 7 | N23: =IF($A23="","",$I23+$I23+4) -> 18 | O23: =IF($A23="","",$M23-1) -> 6 | P23: =IF($A23="","",$N23) -> 18 | Q23: =IF($A23="","",$M23-1) -> 6 | R23: =IF($A23="","",$N23+1) -> 19 | S23: =IF(AND($B23>=1,$B23<=17),INDEX(黒!$B$6:$E$39,MATCH($B23,黒!$B$6:$B$39,0),2),"") -> 180 | T23: =IF($A23="","",$I23+$I23+5) -> 19 | U23: =IF($A23="","",$B23+$B23+4) -> 6 | V23: =IF($A23="","",$T23-1) -> 18 | W23: =IF($A23="","",$U23) -> 6 | X23: =IF($A23="","",$T23-1) -> 18 | Y23: =IF($A23="","",$U23+1) -> 7 | Z23: =IF(AND($I23>=1,$I23<=17),INDEX(黒!$B$6:$E$39,MATCH($I23,黒!$B$6:$B$39,0),2),"") -> 180
C24: =IF(ISERROR(INDEX(概要設定!$J$2:$K$51,MATCH($C25,概要設定!$J$2:$J$51,0),2)),"",INDEX(概要設定!$J$2:$K$51,MATCH($C25,概要設定!$J$2:$J$51,0),2)) ->  | H24: =IF(ISERROR(INDEX(概要設定!$J$2:$K$51,MATCH($H25,概要設定!$J$2:$J$51,0),2)),"",INDEX(概要設定!$J$2:$K$51,MATCH($H25,概要設定!$J$2:$J$51,0),2)) -> 
B25: 三節 | C25: =IF(AND($B25>=1,$B25<=17),INDEX(黒!$B$6:$E$39,MATCH($B25,黒!$B$6:$B$39,0),4),"") ->  | H25: =IF(AND($I25>=1,$I25<=17),INDEX(黒!$B$6:$E$39,MATCH($I25,黒!$B$6:$B$39,0),4),"") ->  | M25: =IF($A25="","",$B25+$B25+5) ->  | N25: =IF($A25="","",$I25+$I25+4) ->  | O25: =IF($A25="","",$M25-1) ->  | P25: =IF($A25="","",$N25) ->  | Q25: =IF($A25="","",$M25-1) ->  | R25: =IF($A25="","",$N25+1) ->  | S25: =IF(AND($B25>=1,$B25<=17),INDEX(黒!$B$6:$E$39,MATCH($B25,黒!$B$6:$B$39,0),2),"") ->  | T25: =IF($A25="","",$I25+$I25+5) ->  | U25: =IF($A25="","",$B25+$B25+4) ->  | V25: =IF($A25="","",$T25-1) ->  | W25: =IF($A25="","",$U25) ->  | X25: =IF($A25="","",$T25-1) ->  | Y25: =IF($A25="","",$U25+1) ->  | Z25: =IF(AND($I25>=1,$I25<=17),INDEX(黒!$B$6:$E$39,MATCH($I25,黒!$B$6:$B$39,0),2),"") -> 
C26: =IF(ISERROR(INDEX(概要設定!$J$2:$K$51,MATCH($C27,概要設定!$J$2:$J$51,0),2)),"",INDEX(概要設定!$J$2:$K$51,MATCH($C27,概要設定!$J$2:$J$51,0),2)) -> さいとう ゆうじ | H26: =IF(ISERROR(INDEX(概要設定!$J$2:$K$51,MATCH($H27,概要設定!$J$2:$J$51,0),2)),"",INDEX(概要設定!$J$2:$K$51,MATCH($H27,概要設定!$J$2:$J$51,0),2)) -> やまだ こうじ
A27: 9 | B27: 2 | C27: =IF(AND($B27>=1,$B27<=17),INDEX(黒!$B$6:$E$39,MATCH($B27,黒!$B$6:$B$39,0),4),"") -> 斉藤 裕児 | D27: 163 | F27: w | H27: =IF(AND($I27>=1,$I27<=17),INDEX(黒!$B$6:$E$39,MATCH($I27,黒!$B$6:$B$39,0),4),"") -> 山田 晃司 | I27: 3 | M27: =IF($A27="","",$B27+$B27+5) -> 9 | N27: =IF($A27="","",$I27+$I27+4) -> 10 | O27: =IF($A27="","",$M27-1) -> 8 | P27: =IF($A27="","",$N27) -> 10 | Q27: =IF($A27="","",$M27-1) -> 8 | R27: =IF($A27="","",$N27+1) -> 11 | S27: =IF(AND($B27>=1,$B27<=17),INDEX(黒!$B$6:$E$39,MATCH($B27,黒!$B$6:$B$39,0),2),"") -> 180 | T27: =IF($A27="","",$I27+$I27+5) -> 11 | U27: =IF($A27="","",$B27+$B27+4) -> 8 | V27: =IF($A27="","",$T27-1) -> 10 | W27: =IF($A27="","",$U27) -> 8 | X27: =IF($A27="","",$T27-1) -> 10 | Y27: =IF($A27="","",$U27+1) -> 9 | Z27: =IF(AND($I27>=1,$I27<=17),INDEX(黒!$B$6:$E$39,MATCH($I27,黒!$B$6:$B$39,0),2),"") -> 180
C28: =IF(ISERROR(INDEX(概要設定!$J$2:$K$51,MATCH($C29,概要設定!$J$2:$J$51,0),2)),"",INDEX(概要設定!$J$2:$K$51,MATCH($C29,概要設定!$J$2:$J$51,0),2)) -> しらと きょうこ | H28: =IF(ISERROR(INDEX(概要設定!$J$2:$K$51,MATCH($H29,概要設定!$J$2:$J$51,0),2)),"",INDEX(概要設定!$J$2:$K$51,MATCH($H29,概要設定!$J$2:$J$51,0),2)) -> さいとう だいすけ
A29: 10 | B29: 8 | C29: =IF(AND($B29>=1,$B29<=17),INDEX(黒!$B$6:$E$39,MATCH($B29,黒!$B$6:$B$39,0),4),"") -> 白戸 恭子 | D29: w | F29: 104 | H29: =IF(AND($I29>=1,$I29<=17),INDEX(黒!$B$6:$E$39,MATCH($I29,黒!$B$6:$B$39,0),4),"") -> 斉藤 大輔 | I29: 4 | M29: =IF($A29="","",$B29+$B29+5) -> 21 | N29: =IF($A29="","",$I29+$I29+4) -> 12 | O29: =IF($A29="","",$M29-1) -> 20 | P29: =IF($A29="","",$N29) -> 12 | Q29: =IF($A29="","",$M29-1) -> 20 | R29: =IF($A29="","",$N29+1) -> 13 | S29: =IF(AND($B29>=1,$B29<=17),INDEX(黒!$B$6:$E$39,MATCH($B29,黒!$B$6:$B$39,0),2),"") -> 140 | T29: =IF($A29="","",$I29+$I29+5) -> 13 | U29: =IF($A29="","",$B29+$B29+4) -> 20 | V29: =IF($A29="","",$T29-1) -> 12 | W29: =IF($A29="","",$U29) -> 20 | X29: =IF($A29="","",$T29-1) -> 12 | Y29: =IF($A29="","",$U29+1) -> 21 | Z29: =IF(AND($I29>=1,$I29<=17),INDEX(黒!$B$6:$E$39,MATCH($I29,黒!$B$6:$B$39,0),2),"") -> 180
C30: =IF(ISERROR(INDEX(概要設定!$J$2:$K$51,MATCH($C31,概要設定!$J$2:$J$51,0),2)),"",INDEX(概要設定!$J$2:$K$51,MATCH($C31,概要設定!$J$2:$J$51,0),2)) -> はせがわ すすむ | H30: =IF(ISERROR(INDEX(概要設定!$J$2:$K$51,MATCH($H31,概要設定!$J$2:$J$51,0),2)),"",INDEX(概要設定!$J$2:$K$51,MATCH($H31,概要設定!$J$2:$J$51,0),2)) -> うえだ しんや
A31: 11 | B31: 7 | C31: =IF(AND($B31>=1,$B31<=17),INDEX(黒!$B$6:$E$39,MATCH($B31,黒!$B$6:$B$39,0),4),"") -> 長谷川 進 | D31: 97 | F31: w | H31: =IF(AND($I31>=1,$I31<=17),INDEX(黒!$B$6:$E$39,MATCH($I31,黒!$B$6:$B$39,0),4),"") -> 植田 慎也 | I31: 5 | M31: =IF($A31="","",$B31+$B31+5) -> 19 | N31: =IF($A31="","",$I31+$I31+4) -> 14 | O31: =IF($A31="","",$M31-1) -> 18 | P31: =IF($A31="","",$N31) -> 14 | Q31: =IF($A31="","",$M31-1) -> 18 | R31: =IF($A31="","",$N31+1) -> 15 | S31: =IF(AND($B31>=1,$B31<=17),INDEX(黒!$B$6:$E$39,MATCH($B31,黒!$B$6:$B$39,0),2),"") -> 180 | T31: =IF($A31="","",$I31+$I31+5) -> 15 | U31: =IF($A31="","",$B31+$B31+4) -> 18 | V31: =IF($A31="","",$T31-1) -> 14 | W31: =IF($A31="","",$U31) -> 18 | X31: =IF($A31="","",$T31-1) -> 14 | Y31: =IF($A31="","",$U31+1) -> 19 | Z31: =IF(AND($I31>=1,$I31<=17),INDEX(黒!$B$6:$E$39,MATCH($I31,黒!$B$6:$B$39,0),2),"") -> 180
C32: =IF(ISERROR(INDEX(概要設定!$J$2:$K$51,MATCH($C33,概要設定!$J$2:$J$51,0),2)),"",INDEX(概要設定!$J$2:$K$51,MATCH($C33,概要設定!$J$2:$J$51,0),2)) -> しらと れいにん | H32: =IF(ISERROR(INDEX(概要設定!$J$2:$K$51,MATCH($H33,概要設定!$J$2:$J$51,0),2)),"",INDEX(概要設定!$J$2:$K$51,MATCH($H33,概要設定!$J$2:$J$51,0),2)) -> わしお りゅうと
A33: 12 | B33: 1 | C33: =IF(AND($B33>=1,$B33<=17),INDEX(黒!$B$6:$E$39,MATCH($B33,黒!$B$6:$B$39,0),4),"") -> 白戸 玲人 | D33: w | F33: 141 | H33: =IF(AND($I33>=1,$I33<=17),INDEX(黒!$B$6:$E$39,MATCH($I33,黒!$B$6:$B$39,0),4),"") -> 鷲尾 隆杜 | I33: 6 | M33: =IF($A33="","",$B33+$B33+5) -> 7 | N33: =IF($A33="","",$I33+$I33+4) -> 16 | O33: =IF($A33="","",$M33-1) -> 6 | P33: =IF($A33="","",$N33) -> 16 | Q33: =IF($A33="","",$M33-1) -> 6 | R33: =IF($A33="","",$N33+1) -> 17 | S33: =IF(AND($B33>=1,$B33<=17),INDEX(黒!$B$6:$E$39,MATCH($B33,黒!$B$6:$B$39,0),2),"") -> 180 | T33: =IF($A33="","",$I33+$I33+5) -> 17 | U33: =IF($A33="","",$B33+$B33+4) -> 6 | V33: =IF($A33="","",$T33-1) -> 16 | W33: =IF($A33="","",$U33) -> 6 | X33: =IF($A33="","",$T33-1) -> 16 | Y33: =IF($A33="","",$U33+1) -> 7 | Z33: =IF(AND($I33>=1,$I33<=17),INDEX(黒!$B$6:$E$39,MATCH($I33,黒!$B$6:$B$39,0),2),"") -> 180
C34: =IF(ISERROR(INDEX(概要設定!$J$2:$K$51,MATCH($C35,概要設定!$J$2:$J$51,0),2)),"",INDEX(概要設定!$J$2:$K$51,MATCH($C35,概要設定!$J$2:$J$51,0),2)) ->  | H34: =IF(ISERROR(INDEX(概要設定!$J$2:$K$51,MATCH($H35,概要設定!$J$2:$J$51,0),2)),"",INDEX(概要設定!$J$2:$K$51,MATCH($H35,概要設定!$J$2:$J$51,0),2)) -> 
B35: 四節 | C35: =IF(AND($B35>=1,$B35<=17),INDEX(黒!$B$6:$E$39,MATCH($B35,黒!$B$6:$B$39,0),4),"") ->  | H35: =IF(AND($I35>=1,$I35<=17),INDEX(黒!$B$6:$E$39,MATCH($I35,黒!$B$6:$B$39,0),4),"") ->  | M35: =IF($A35="","",$B35+$B35+5) ->  | N35: =IF($A35="","",$I35+$I35+4) ->  | O35: =IF($A35="","",$M35-1) ->  | P35: =IF($A35="","",$N35) ->  | Q35: =IF($A35="","",$M35-1) ->  | R35: =IF($A35="","",$N35+1) ->  | S35: =IF(AND($B35>=1,$B35<=17),INDEX(黒!$B$6:$E$39,MATCH($B35,黒!$B$6:$B$39,0),2),"") ->  | T35: =IF($A35="","",$I35+$I35+5) ->  | U35: =IF($A35="","",$B35+$B35+4) ->  | V35: =IF($A35="","",$T35-1) ->  | W35: =IF($A35="","",$U35) ->  | X35: =IF($A35="","",$T35-1) ->  | Y35: =IF($A35="","",$U35+1) ->  | Z35: =IF(AND($I35>=1,$I35<=17),INDEX(黒!$B$6:$E$39,MATCH($I35,黒!$B$6:$B$39,0),2),"") -> 
C36: =IF(ISERROR(INDEX(概要設定!$J$2:$K$51,MATCH($C37,概要設定!$J$2:$J$51,0),2)),"",INDEX(概要設定!$J$2:$K$51,MATCH($C37,概要設定!$J$2:$J$51,0),2)) -> しらと きょうこ | H36: =IF(ISERROR(INDEX(概要設定!$J$2:$K$51,MATCH($H37,概要設定!$J$2:$J$51,0),2)),"",INDEX(概要設定!$J$2:$K$51,MATCH($H37,概要設定!$J$2:$J$51,0),2)) -> さいとう ゆうじ
A37: 13 | B37: 8 | C37: =IF(AND($B37>=1,$B37<=17),INDEX(黒!$B$6:$E$39,MATCH($B37,黒!$B$6:$B$39,0),4),"") -> 白戸 恭子 | D37: w | F37: 13 | H37: =IF(AND($I37>=1,$I37<=17),INDEX(黒!$B$6:$E$39,MATCH($I37,黒!$B$6:$B$39,0),4),"") -> 斉藤 裕児 | I37: 2 | M37: =IF($A37="","",$B37+$B37+5) -> 21 | N37: =IF($A37="","",$I37+$I37+4) -> 8 | O37: =IF($A37="","",$M37-1) -> 20 | P37: =IF($A37="","",$N37) -> 8 | Q37: =IF($A37="","",$M37-1) -> 20 | R37: =IF($A37="","",$N37+1) -> 9 | S37: =IF(AND($B37>=1,$B37<=17),INDEX(黒!$B$6:$E$39,MATCH($B37,黒!$B$6:$B$39,0),2),"") -> 140 | T37: =IF($A37="","",$I37+$I37+5) -> 9 | U37: =IF($A37="","",$B37+$B37+4) -> 20 | V37: =IF($A37="","",$T37-1) -> 8 | W37: =IF($A37="","",$U37) -> 20 | X37: =IF($A37="","",$T37-1) -> 8 | Y37: =IF($A37="","",$U37+1) -> 21 | Z37: =IF(AND($I37>=1,$I37<=17),INDEX(黒!$B$6:$E$39,MATCH($I37,黒!$B$6:$B$39,0),2),"") -> 180
C38: =IF(ISERROR(INDEX(概要設定!$J$2:$K$51,MATCH($C39,概要設定!$J$2:$J$51,0),2)),"",INDEX(概要設定!$J$2:$K$51,MATCH($C39,概要設定!$J$2:$J$51,0),2)) -> はせがわ すすむ | H38: =IF(ISERROR(INDEX(概要設定!$J$2:$K$51,MATCH($H39,概要設定!$J$2:$J$51,0),2)),"",INDEX(概要設定!$J$2:$K$51,MATCH($H39,概要設定!$J$2:$J$51,0),2)) -> やまだ こうじ
A39: 14 | B39: 7 | C39: =IF(AND($B39>=1,$B39<=17),INDEX(黒!$B$6:$E$39,MATCH($B39,黒!$B$6:$B$39,0),4),"") -> 長谷川 進 | D39: 163 | F39: w | H39: =IF(AND($I39>=1,$I39<=17),INDEX(黒!$B$6:$E$39,MATCH($I39,黒!$B$6:$B$39,0),4),"") -> 山田 晃司 | I39: 3 | M39: =IF($A39="","",$B39+$B39+5) -> 19 | N39: =IF($A39="","",$I39+$I39+4) -> 10 | O39: =IF($A39="","",$M39-1) -> 18 | P39: =IF($A39="","",$N39) -> 10 | Q39: =IF($A39="","",$M39-1) -> 18 | R39: =IF($A39="","",$N39+1) -> 11 | S39: =IF(AND($B39>=1,$B39<=17),INDEX(黒!$B$6:$E$39,MATCH($B39,黒!$B$6:$B$39,0),2),"") -> 180 | T39: =IF($A39="","",$I39+$I39+5) -> 11 | U39: =IF($A39="","",$B39+$B39+4) -> 18 | V39: =IF($A39="","",$T39-1) -> 10 | W39: =IF($A39="","",$U39) -> 18 | X39: =IF($A39="","",$T39-1) -> 10 | Y39: =IF($A39="","",$U39+1) -> 19 | Z39: =IF(AND($I39>=1,$I39<=17),INDEX(黒!$B$6:$E$39,MATCH($I39,黒!$B$6:$B$39,0),2),"") -> 180
C40: =IF(ISERROR(INDEX(概要設定!$J$2:$K$51,MATCH($C41,概要設定!$J$2:$J$51,0),2)),"",INDEX(概要設定!$J$2:$K$51,MATCH($C41,概要設定!$J$2:$J$51,0),2)) -> わしお りゅうと | H40: =IF(ISERROR(INDEX(概要設定!$J$2:$K$51,MATCH($H41,概要設定!$J$2:$J$51,0),2)),"",INDEX(概要設定!$J$2:$K$51,MATCH($H41,概要設定!$J$2:$J$51,0),2)) -> さいとう だいすけ
A41: 15 | B41: 6 | C41: =IF(AND($B41>=1,$B41<=17),INDEX(黒!$B$6:$E$39,MATCH($B41,黒!$B$6:$B$39,0),4),"") -> 鷲尾 隆杜 | D41: w | F41: 140 | H41: =IF(AND($I41>=1,$I41<=17),INDEX(黒!$B$6:$E$39,MATCH($I41,黒!$B$6:$B$39,0),4),"") -> 斉藤 大輔 | I41: 4 | M41: =IF($A41="","",$B41+$B41+5) -> 17 | N41: =IF($A41="","",$I41+$I41+4) -> 12 | O41: =IF($A41="","",$M41-1) -> 16 | P41: =IF($A41="","",$N41) -> 12 | Q41: =IF($A41="","",$M41-1) -> 16 | R41: =IF($A41="","",$N41+1) -> 13 | S41: =IF(AND($B41>=1,$B41<=17),INDEX(黒!$B$6:$E$39,MATCH($B41,黒!$B$6:$B$39,0),2),"") -> 180 | T41: =IF($A41="","",$I41+$I41+5) -> 13 | U41: =IF($A41="","",$B41+$B41+4) -> 16 | V41: =IF($A41="","",$T41-1) -> 12 | W41: =IF($A41="","",$U41) -> 16 | X41: =IF($A41="","",$T41-1) -> 12 | Y41: =IF($A41="","",$U41+1) -> 17 | Z41: =IF(AND($I41>=1,$I41<=17),INDEX(黒!$B$6:$E$39,MATCH($I41,黒!$B$6:$B$39,0),2),"") -> 180
C42: =IF(ISERROR(INDEX(概要設定!$J$2:$K$51,MATCH($C43,概要設定!$J$2:$J$51,0),2)),"",INDEX(概要設定!$J$2:$K$51,MATCH($C43,概要設定!$J$2:$J$51,0),2)) -> しらと れいにん | E42: 114 | H42: =IF(ISERROR(INDEX(概要設定!$J$2:$K$51,MATCH($H43,概要設定!$J$2:$J$51,0),2)),"",INDEX(概要設定!$J$2:$K$51,MATCH($H43,概要設定!$J$2:$J$51,0),2)) -> うえだ しんや
A43: 16 | B43: 1 | C43: =IF(AND($B43>=1,$B43<=17),INDEX(黒!$B$6:$E$39,MATCH($B43,黒!$B$6:$B$39,0),4),"") -> 白戸 玲人 | D43: w | F43: 116 | H43: =IF(AND($I43>=1,$I43<=17),INDEX(黒!$B$6:$E$39,MATCH($I43,黒!$B$6:$B$39,0),4),"") -> 植田 慎也 | I43: 5 | M43: =IF($A43="","",$B43+$B43+5) -> 7 | N43: =IF($A43="","",$I43+$I43+4) -> 14 | O43: =IF($A43="","",$M43-1) -> 6 | P43: =IF($A43="","",$N43) -> 14 | Q43: =IF($A43="","",$M43-1) -> 6 | R43: =IF($A43="","",$N43+1) -> 15 | S43: =IF(AND($B43>=1,$B43<=17),INDEX(黒!$B$6:$E$39,MATCH($B43,黒!$B$6:$B$39,0),2),"") -> 180 | T43: =IF($A43="","",$I43+$I43+5) -> 15 | U43: =IF($A43="","",$B43+$B43+4) -> 6 | V43: =IF($A43="","",$T43-1) -> 14 | W43: =IF($A43="","",$U43) -> 6 | X43: =IF($A43="","",$T43-1) -> 14 | Y43: =IF($A43="","",$U43+1) -> 7 | Z43: =IF(AND($I43>=1,$I43<=17),INDEX(黒!$B$6:$E$39,MATCH($I43,黒!$B$6:$B$39,0),2),"") -> 180
C44: =IF(ISERROR(INDEX(概要設定!$J$2:$K$51,MATCH($C45,概要設定!$J$2:$J$51,0),2)),"",INDEX(概要設定!$J$2:$K$51,MATCH($C45,概要設定!$J$2:$J$51,0),2)) ->  | H44: =IF(ISERROR(INDEX(概要設定!$J$2:$K$51,MATCH($H45,概要設定!$J$2:$J$51,0),2)),"",INDEX(概要設定!$J$2:$K$51,MATCH($H45,概要設定!$J$2:$J$51,0),2)) -> 
B45: 五節 | C45: =IF(AND($B45>=1,$B45<=17),INDEX(黒!$B$6:$E$39,MATCH($B45,黒!$B$6:$B$39,0),4),"") ->  | H45: =IF(AND($I45>=1,$I45<=17),INDEX(黒!$B$6:$E$39,MATCH($I45,黒!$B$6:$B$39,0),4),"") ->  | M45: =IF($A45="","",$B45+$B45+5) ->  | N45: =IF($A45="","",$I45+$I45+4) ->  | O45: =IF($A45="","",$M45-1) ->  | P45: =IF($A45="","",$N45) ->  | Q45: =IF($A45="","",$M45-1) ->  | R45: =IF($A45="","",$N45+1) ->  | S45: =IF(AND($B45>=1,$B45<=17),INDEX(黒!$B$6:$E$39,MATCH($B45,黒!$B$6:$B$39,0),2),"") ->  | T45: =IF($A45="","",$I45+$I45+5) ->  | U45: =IF($A45="","",$B45+$B45+4) ->  | V45: =IF($A45="","",$T45-1) ->  | W45: =IF($A45="","",$U45) ->  | X45: =IF($A45="","",$T45-1) ->  | Y45: =IF($A45="","",$U45+1) ->  | Z45: =IF(AND($I45>=1,$I45<=17),INDEX(黒!$B$6:$E$39,MATCH($I45,黒!$B$6:$B$39,0),2),"") -> 
C46: =IF(ISERROR(INDEX(概要設定!$J$2:$K$51,MATCH($C47,概要設定!$J$2:$J$51,0),2)),"",INDEX(概要設定!$J$2:$K$51,MATCH($C47,概要設定!$J$2:$J$51,0),2)) -> はせがわ すすむ | H46: =IF(ISERROR(INDEX(概要設定!$J$2:$K$51,MATCH($H47,概要設定!$J$2:$J$51,0),2)),"",INDEX(概要設定!$J$2:$K$51,MATCH($H47,概要設定!$J$2:$J$51,0),2)) -> しらと きょうこ
A47: 17 | B47: 7 | C47: =IF(AND($B47>=1,$B47<=17),INDEX(黒!$B$6:$E$39,MATCH($B47,黒!$B$6:$B$39,0),4),"") -> 長谷川 進 | D47: 22 | F47: w | H47: =IF(AND($I47>=1,$I47<=17),INDEX(黒!$B$6:$E$39,MATCH($I47,黒!$B$6:$B$39,0),4),"") -> 白戸 恭子 | I47: 8 | M47: =IF($A47="","",$B47+$B47+5) -> 19 | N47: =IF($A47="","",$I47+$I47+4) -> 20 | O47: =IF($A47="","",$M47-1) -> 18 | P47: =IF($A47="","",$N47) -> 20 | Q47: =IF($A47="","",$M47-1) -> 18 | R47: =IF($A47="","",$N47+1) -> 21 | S47: =IF(AND($B47>=1,$B47<=17),INDEX(黒!$B$6:$E$39,MATCH($B47,黒!$B$6:$B$39,0),2),"") -> 180 | T47: =IF($A47="","",$I47+$I47+5) -> 21 | U47: =IF($A47="","",$B47+$B47+4) -> 18 | V47: =IF($A47="","",$T47-1) -> 20 | W47: =IF($A47="","",$U47) -> 18 | X47: =IF($A47="","",$T47-1) -> 20 | Y47: =IF($A47="","",$U47+1) -> 19 | Z47: =IF(AND($I47>=1,$I47<=17),INDEX(黒!$B$6:$E$39,MATCH($I47,黒!$B$6:$B$39,0),2),"") -> 140
C48: =IF(ISERROR(INDEX(概要設定!$J$2:$K$51,MATCH($C49,概要設定!$J$2:$J$51,0),2)),"",INDEX(概要設定!$J$2:$K$51,MATCH($C49,概要設定!$J$2:$J$51,0),2)) -> わしお りゅうと | G48: 109 | H48: =IF(ISERROR(INDEX(概要設定!$J$2:$K$51,MATCH($H49,概要設定!$J$2:$J$51,0),2)),"",INDEX(概要設定!$J$2:$K$51,MATCH($H49,概要設定!$J$2:$J$51,0),2)) -> さいとう ゆうじ
A49: 18 | B49: 6 | C49: =IF(AND($B49>=1,$B49<=17),INDEX(黒!$B$6:$E$39,MATCH($B49,黒!$B$6:$B$39,0),4),"") -> 鷲尾 隆杜 | D49: 112 | F49: w | H49: =IF(AND($I49>=1,$I49<=17),INDEX(黒!$B$6:$E$39,MATCH($I49,黒!$B$6:$B$39,0),4),"") -> 斉藤 裕児 | I49: 2 | M49: =IF($A49="","",$B49+$B49+5) -> 17 | N49: =IF($A49="","",$I49+$I49+4) -> 8 | O49: =IF($A49="","",$M49-1) -> 16 | P49: =IF($A49="","",$N49) -> 8 | Q49: =IF($A49="","",$M49-1) -> 16 | R49: =IF($A49="","",$N49+1) -> 9 | S49: =IF(AND($B49>=1,$B49<=17),INDEX(黒!$B$6:$E$39,MATCH($B49,黒!$B$6:$B$39,0),2),"") -> 180 | T49: =IF($A49="","",$I49+$I49+5) -> 9 | U49: =IF($A49="","",$B49+$B49+4) -> 16 | V49: =IF($A49="","",$T49-1) -> 8 | W49: =IF($A49="","",$U49) -> 16 | X49: =IF($A49="","",$T49-1) -> 8 | Y49: =IF($A49="","",$U49+1) -> 17 | Z49: =IF(AND($I49>=1,$I49<=17),INDEX(黒!$B$6:$E$39,MATCH($I49,黒!$B$6:$B$39,0),2),"") -> 180
C50: =IF(ISERROR(INDEX(概要設定!$J$2:$K$51,MATCH($C51,概要設定!$J$2:$J$51,0),2)),"",INDEX(概要設定!$J$2:$K$51,MATCH($C51,概要設定!$J$2:$J$51,0),2)) -> うえだ しんや | G50: 151 | H50: =IF(ISERROR(INDEX(概要設定!$J$2:$K$51,MATCH($H51,概要設定!$J$2:$J$51,0),2)),"",INDEX(概要設定!$J$2:$K$51,MATCH($H51,概要設定!$J$2:$J$51,0),2)) -> やまだ こうじ
A51: 19 | B51: 5 | C51: =IF(AND($B51>=1,$B51<=17),INDEX(黒!$B$6:$E$39,MATCH($B51,黒!$B$6:$B$39,0),4),"") -> 植田 慎也 | D51: w | F51: 164 | H51: =IF(AND($I51>=1,$I51<=17),INDEX(黒!$B$6:$E$39,MATCH($I51,黒!$B$6:$B$39,0),4),"") -> 山田 晃司 | I51: 3 | M51: =IF($A51="","",$B51+$B51+5) -> 15 | N51: =IF($A51="","",$I51+$I51+4) -> 10 | O51: =IF($A51="","",$M51-1) -> 14 | P51: =IF($A51="","",$N51) -> 10 | Q51: =IF($A51="","",$M51-1) -> 14 | R51: =IF($A51="","",$N51+1) -> 11 | S51: =IF(AND($B51>=1,$B51<=17),INDEX(黒!$B$6:$E$39,MATCH($B51,黒!$B$6:$B$39,0),2),"") -> 180 | T51: =IF($A51="","",$I51+$I51+5) -> 11 | U51: =IF($A51="","",$B51+$B51+4) -> 14 | V51: =IF($A51="","",$T51-1) -> 10 | W51: =IF($A51="","",$U51) -> 14 | X51: =IF($A51="","",$T51-1) -> 10 | Y51: =IF($A51="","",$U51+1) -> 15 | Z51: =IF(AND($I51>=1,$I51<=17),INDEX(黒!$B$6:$E$39,MATCH($I51,黒!$B$6:$B$39,0),2),"") -> 180
C52: =IF(ISERROR(INDEX(概要設定!$J$2:$K$51,MATCH($C53,概要設定!$J$2:$J$51,0),2)),"",INDEX(概要設定!$J$2:$K$51,MATCH($C53,概要設定!$J$2:$J$51,0),2)) -> しらと れいにん | H52: =IF(ISERROR(INDEX(概要設定!$J$2:$K$51,MATCH($H53,概要設定!$J$2:$J$51,0),2)),"",INDEX(概要設定!$J$2:$K$51,MATCH($H53,概要設定!$J$2:$J$51,0),2)) -> さいとう だいすけ
A53: 20 | B53: 1 | C53: =IF(AND($B53>=1,$B53<=17),INDEX(黒!$B$6:$E$39,MATCH($B53,黒!$B$6:$B$39,0),4),"") -> 白戸 玲人 | D53: w | F53: 81 | H53: =IF(AND($I53>=1,$I53<=17),INDEX(黒!$B$6:$E$39,MATCH($I53,黒!$B$6:$B$39,0),4),"") -> 斉藤 大輔 | I53: 4 | M53: =IF($A53="","",$B53+$B53+5) -> 7 | N53: =IF($A53="","",$I53+$I53+4) -> 12 | O53: =IF($A53="","",$M53-1) -> 6 | P53: =IF($A53="","",$N53) -> 12 | Q53: =IF($A53="","",$M53-1) -> 6 | R53: =IF($A53="","",$N53+1) -> 13 | S53: =IF(AND($B53>=1,$B53<=17),INDEX(黒!$B$6:$E$39,MATCH($B53,黒!$B$6:$B$39,0),2),"") -> 180 | T53: =IF($A53="","",$I53+$I53+5) -> 13 | U53: =IF($A53="","",$B53+$B53+4) -> 6 | V53: =IF($A53="","",$T53-1) -> 12 | W53: =IF($A53="","",$U53) -> 6 | X53: =IF($A53="","",$T53-1) -> 12 | Y53: =IF($A53="","",$U53+1) -> 7 | Z53: =IF(AND($I53>=1,$I53<=17),INDEX(黒!$B$6:$E$39,MATCH($I53,黒!$B$6:$B$39,0),2),"") -> 180
C54: =IF(ISERROR(INDEX(概要設定!$J$2:$K$51,MATCH($C55,概要設定!$J$2:$J$51,0),2)),"",INDEX(概要設定!$J$2:$K$51,MATCH($C55,概要設定!$J$2:$J$51,0),2)) ->  | H54: =IF(ISERROR(INDEX(概要設定!$J$2:$K$51,MATCH($H55,概要設定!$J$2:$J$51,0),2)),"",INDEX(概要設定!$J$2:$K$51,MATCH($H55,概要設定!$J$2:$J$51,0),2)) -> 
B55: 六節 | C55: =IF(AND($B55>=1,$B55<=17),INDEX(黒!$B$6:$E$39,MATCH($B55,黒!$B$6:$B$39,0),4),"") ->  | H55: =IF(AND($I55>=1,$I55<=17),INDEX(黒!$B$6:$E$39,MATCH($I55,黒!$B$6:$B$39,0),4),"") ->  | M55: =IF($A55="","",$B55+$B55+5) ->  | N55: =IF($A55="","",$I55+$I55+4) ->  | O55: =IF($A55="","",$M55-1) ->  | P55: =IF($A55="","",$N55) ->  | Q55: =IF($A55="","",$M55-1) ->  | R55: =IF($A55="","",$N55+1) ->  | S55: =IF(AND($B55>=1,$B55<=17),INDEX(黒!$B$6:$E$39,MATCH($B55,黒!$B$6:$B$39,0),2),"") ->  | T55: =IF($A55="","",$I55+$I55+5) ->  | U55: =IF($A55="","",$B55+$B55+4) ->  | V55: =IF($A55="","",$T55-1) ->  | W55: =IF($A55="","",$U55) ->  | X55: =IF($A55="","",$T55-1) ->  | Y55: =IF($A55="","",$U55+1) ->  | Z55: =IF(AND($I55>=1,$I55<=17),INDEX(黒!$B$6:$E$39,MATCH($I55,黒!$B$6:$B$39,0),2),"") -> 
C56: =IF(ISERROR(INDEX(概要設定!$J$2:$K$51,MATCH($C57,概要設定!$J$2:$J$51,0),2)),"",INDEX(概要設定!$J$2:$K$51,MATCH($C57,概要設定!$J$2:$J$51,0),2)) -> わしお りゅうと | H56: =IF(ISERROR(INDEX(概要設定!$J$2:$K$51,MATCH($H57,概要設定!$J$2:$J$51,0),2)),"",INDEX(概要設定!$J$2:$K$51,MATCH($H57,概要設定!$J$2:$J$51,0),2)) -> はせがわ すすむ
A57: 21 | B57: 6 | C57: =IF(AND($B57>=1,$B57<=17),INDEX(黒!$B$6:$E$39,MATCH($B57,黒!$B$6:$B$39,0),4),"") -> 鷲尾 隆杜 | D57: 67 | F57: w | H57: =IF(AND($I57>=1,$I57<=17),INDEX(黒!$B$6:$E$39,MATCH($I57,黒!$B$6:$B$39,0),4),"") -> 長谷川 進 | I57: 7 | M57: =IF($A57="","",$B57+$B57+5) -> 17 | N57: =IF($A57="","",$I57+$I57+4) -> 18 | O57: =IF($A57="","",$M57-1) -> 16 | P57: =IF($A57="","",$N57) -> 18 | Q57: =IF($A57="","",$M57-1) -> 16 | R57: =IF($A57="","",$N57+1) -> 19 | S57: =IF(AND($B57>=1,$B57<=17),INDEX(黒!$B$6:$E$39,MATCH($B57,黒!$B$6:$B$39,0),2),"") -> 180 | T57: =IF($A57="","",$I57+$I57+5) -> 19 | U57: =IF($A57="","",$B57+$B57+4) -> 16 | V57: =IF($A57="","",$T57-1) -> 18 | W57: =IF($A57="","",$U57) -> 16 | X57: =IF($A57="","",$T57-1) -> 18 | Y57: =IF($A57="","",$U57+1) -> 17 | Z57: =IF(AND($I57>=1,$I57<=17),INDEX(黒!$B$6:$E$39,MATCH($I57,黒!$B$6:$B$39,0),2),"") -> 180
C58: =IF(ISERROR(INDEX(概要設定!$J$2:$K$51,MATCH($C59,概要設定!$J$2:$J$51,0),2)),"",INDEX(概要設定!$J$2:$K$51,MATCH($C59,概要設定!$J$2:$J$51,0),2)) -> うえだ しんや | H58: =IF(ISERROR(INDEX(概要設定!$J$2:$K$51,MATCH($H59,概要設定!$J$2:$J$51,0),2)),"",INDEX(概要設定!$J$2:$K$51,MATCH($H59,概要設定!$J$2:$J$51,0),2)) -> しらと きょうこ
A59: 22 | B59: 5 | C59: =IF(AND($B59>=1,$B59<=17),INDEX(黒!$B$6:$E$39,MATCH($B59,黒!$B$6:$B$39,0),4),"") -> 植田 慎也 | D59: 105 | F59: w | H59: =IF(AND($I59>=1,$I59<=17),INDEX(黒!$B$6:$E$39,MATCH($I59,黒!$B$6:$B$39,0),4),"") -> 白戸 恭子 | I59: 8 | M59: =IF($A59="","",$B59+$B59+5) -> 15 | N59: =IF($A59="","",$I59+$I59+4) -> 20 | O59: =IF($A59="","",$M59-1) -> 14 | P59: =IF($A59="","",$N59) -> 20 | Q59: =IF($A59="","",$M59-1) -> 14 | R59: =IF($A59="","",$N59+1) -> 21 | S59: =IF(AND($B59>=1,$B59<=17),INDEX(黒!$B$6:$E$39,MATCH($B59,黒!$B$6:$B$39,0),2),"") -> 180 | T59: =IF($A59="","",$I59+$I59+5) -> 21 | U59: =IF($A59="","",$B59+$B59+4) -> 14 | V59: =IF($A59="","",$T59-1) -> 20 | W59: =IF($A59="","",$U59) -> 14 | X59: =IF($A59="","",$T59-1) -> 20 | Y59: =IF($A59="","",$U59+1) -> 15 | Z59: =IF(AND($I59>=1,$I59<=17),INDEX(黒!$B$6:$E$39,MATCH($I59,黒!$B$6:$B$39,0),2),"") -> 140
C60: =IF(ISERROR(INDEX(概要設定!$J$2:$K$51,MATCH($C61,概要設定!$J$2:$J$51,0),2)),"",INDEX(概要設定!$J$2:$K$51,MATCH($C61,概要設定!$J$2:$J$51,0),2)) -> さいとう だいすけ | H60: =IF(ISERROR(INDEX(概要設定!$J$2:$K$51,MATCH($H61,概要設定!$J$2:$J$51,0),2)),"",INDEX(概要設定!$J$2:$K$51,MATCH($H61,概要設定!$J$2:$J$51,0),2)) -> さいとう ゆうじ
A61: 23 | B61: 4 | C61: =IF(AND($B61>=1,$B61<=17),INDEX(黒!$B$6:$E$39,MATCH($B61,黒!$B$6:$B$39,0),4),"") -> 斉藤 大輔 | D61: w | F61: 101 | H61: =IF(AND($I61>=1,$I61<=17),INDEX(黒!$B$6:$E$39,MATCH($I61,黒!$B$6:$B$39,0),4),"") -> 斉藤 裕児 | I61: 2 | M61: =IF($A61="","",$B61+$B61+5) -> 13 | N61: =IF($A61="","",$I61+$I61+4) -> 8 | O61: =IF($A61="","",$M61-1) -> 12 | P61: =IF($A61="","",$N61) -> 8 | Q61: =IF($A61="","",$M61-1) -> 12 | R61: =IF($A61="","",$N61+1) -> 9 | S61: =IF(AND($B61>=1,$B61<=17),INDEX(黒!$B$6:$E$39,MATCH($B61,黒!$B$6:$B$39,0),2),"") -> 180 | T61: =IF($A61="","",$I61+$I61+5) -> 9 | U61: =IF($A61="","",$B61+$B61+4) -> 12 | V61: =IF($A61="","",$T61-1) -> 8 | W61: =IF($A61="","",$U61) -> 12 | X61: =IF($A61="","",$T61-1) -> 8 | Y61: =IF($A61="","",$U61+1) -> 13 | Z61: =IF(AND($I61>=1,$I61<=17),INDEX(黒!$B$6:$E$39,MATCH($I61,黒!$B$6:$B$39,0),2),"") -> 180
C62: =IF(ISERROR(INDEX(概要設定!$J$2:$K$51,MATCH($C63,概要設定!$J$2:$J$51,0),2)),"",INDEX(概要設定!$J$2:$K$51,MATCH($C63,概要設定!$J$2:$J$51,0),2)) -> しらと れいにん | H62: =IF(ISERROR(INDEX(概要設定!$J$2:$K$51,MATCH($H63,概要設定!$J$2:$J$51,0),2)),"",INDEX(概要設定!$J$2:$K$51,MATCH($H63,概要設定!$J$2:$J$51,0),2)) -> やまだ こうじ
A63: 24 | B63: 1 | C63: =IF(AND($B63>=1,$B63<=17),INDEX(黒!$B$6:$E$39,MATCH($B63,黒!$B$6:$B$39,0),4),"") -> 白戸 玲人 | D63: 92 | F63: w | H63: =IF(AND($I63>=1,$I63<=17),INDEX(黒!$B$6:$E$39,MATCH($I63,黒!$B$6:$B$39,0),4),"") -> 山田 晃司 | I63: 3 | M63: =IF($A63="","",$B63+$B63+5) -> 7 | N63: =IF($A63="","",$I63+$I63+4) -> 10 | O63: =IF($A63="","",$M63-1) -> 6 | P63: =IF($A63="","",$N63) -> 10 | Q63: =IF($A63="","",$M63-1) -> 6 | R63: =IF($A63="","",$N63+1) -> 11 | S63: =IF(AND($B63>=1,$B63<=17),INDEX(黒!$B$6:$E$39,MATCH($B63,黒!$B$6:$B$39,0),2),"") -> 180 | T63: =IF($A63="","",$I63+$I63+5) -> 11 | U63: =IF($A63="","",$B63+$B63+4) -> 6 | V63: =IF($A63="","",$T63-1) -> 10 | W63: =IF($A63="","",$U63) -> 6 | X63: =IF($A63="","",$T63-1) -> 10 | Y63: =IF($A63="","",$U63+1) -> 7 | Z63: =IF(AND($I63>=1,$I63<=17),INDEX(黒!$B$6:$E$39,MATCH($I63,黒!$B$6:$B$39,0),2),"") -> 180
C64: =IF(ISERROR(INDEX(概要設定!$J$2:$K$51,MATCH($C65,概要設定!$J$2:$J$51,0),2)),"",INDEX(概要設定!$J$2:$K$51,MATCH($C65,概要設定!$J$2:$J$51,0),2)) ->  | H64: =IF(ISERROR(INDEX(概要設定!$J$2:$K$51,MATCH($H65,概要設定!$J$2:$J$51,0),2)),"",INDEX(概要設定!$J$2:$K$51,MATCH($H65,概要設定!$J$2:$J$51,0),2)) -> 
B65: 七節 | C65: =IF(AND($B65>=1,$B65<=17),INDEX(黒!$B$6:$E$39,MATCH($B65,黒!$B$6:$B$39,0),4),"") ->  | H65: =IF(AND($I65>=1,$I65<=17),INDEX(黒!$B$6:$E$39,MATCH($I65,黒!$B$6:$B$39,0),4),"") ->  | M65: =IF($A65="","",$B65+$B65+5) ->  | N65: =IF($A65="","",$I65+$I65+4) ->  | O65: =IF($A65="","",$M65-1) ->  | P65: =IF($A65="","",$N65) ->  | Q65: =IF($A65="","",$M65-1) ->  | R65: =IF($A65="","",$N65+1) ->  | S65: =IF(AND($B65>=1,$B65<=17),INDEX(黒!$B$6:$E$39,MATCH($B65,黒!$B$6:$B$39,0),2),"") ->  | T65: =IF($A65="","",$I65+$I65+5) ->  | U65: =IF($A65="","",$B65+$B65+4) ->  | V65: =IF($A65="","",$T65-1) ->  | W65: =IF($A65="","",$U65) ->  | X65: =IF($A65="","",$T65-1) ->  | Y65: =IF($A65="","",$U65+1) ->  | Z65: =IF(AND($I65>=1,$I65<=17),INDEX(黒!$B$6:$E$39,MATCH($I65,黒!$B$6:$B$39,0),2),"") -> 
C66: =IF(ISERROR(INDEX(概要設定!$J$2:$K$51,MATCH($C67,概要設定!$J$2:$J$51,0),2)),"",INDEX(概要設定!$J$2:$K$51,MATCH($C67,概要設定!$J$2:$J$51,0),2)) -> うえだ しんや | H66: =IF(ISERROR(INDEX(概要設定!$J$2:$K$51,MATCH($H67,概要設定!$J$2:$J$51,0),2)),"",INDEX(概要設定!$J$2:$K$51,MATCH($H67,概要設定!$J$2:$J$51,0),2)) -> わしお りゅうと
A67: 25 | B67: 5 | C67: =IF(AND($B67>=1,$B67<=17),INDEX(黒!$B$6:$E$39,MATCH($B67,黒!$B$6:$B$39,0),4),"") -> 植田 慎也 | H67: =IF(AND($I67>=1,$I67<=17),INDEX(黒!$B$6:$E$39,MATCH($I67,黒!$B$6:$B$39,0),4),"") -> 鷲尾 隆杜 | I67: 6 | M67: =IF($A67="","",$B67+$B67+5) -> 15 | N67: =IF($A67="","",$I67+$I67+4) -> 16 | O67: =IF($A67="","",$M67-1) -> 14 | P67: =IF($A67="","",$N67) -> 16 | Q67: =IF($A67="","",$M67-1) -> 14 | R67: =IF($A67="","",$N67+1) -> 17 | S67: =IF(AND($B67>=1,$B67<=17),INDEX(黒!$B$6:$E$39,MATCH($B67,黒!$B$6:$B$39,0),2),"") -> 180 | T67: =IF($A67="","",$I67+$I67+5) -> 17 | U67: =IF($A67="","",$B67+$B67+4) -> 14 | V67: =IF($A67="","",$T67-1) -> 16 | W67: =IF($A67="","",$U67) -> 14 | X67: =IF($A67="","",$T67-1) -> 16 | Y67: =IF($A67="","",$U67+1) -> 15 | Z67: =IF(AND($I67>=1,$I67<=17),INDEX(黒!$B$6:$E$39,MATCH($I67,黒!$B$6:$B$39,0),2),"") -> 180
C68: =IF(ISERROR(INDEX(概要設定!$J$2:$K$51,MATCH($C69,概要設定!$J$2:$J$51,0),2)),"",INDEX(概要設定!$J$2:$K$51,MATCH($C69,概要設定!$J$2:$J$51,0),2)) -> さいとう だいすけ | H68: =IF(ISERROR(INDEX(概要設定!$J$2:$K$51,MATCH($H69,概要設定!$J$2:$J$51,0),2)),"",INDEX(概要設定!$J$2:$K$51,MATCH($H69,概要設定!$J$2:$J$51,0),2)) -> はせがわ すすむ
A69: 26 | B69: 4 | C69: =IF(AND($B69>=1,$B69<=17),INDEX(黒!$B$6:$E$39,MATCH($B69,黒!$B$6:$B$39,0),4),"") -> 斉藤 大輔 | H69: =IF(AND($I69>=1,$I69<=17),INDEX(黒!$B$6:$E$39,MATCH($I69,黒!$B$6:$B$39,0),4),"") -> 長谷川 進 | I69: 7 | M69: =IF($A69="","",$B69+$B69+5) -> 13 | N69: =IF($A69="","",$I69+$I69+4) -> 18 | O69: =IF($A69="","",$M69-1) -> 12 | P69: =IF($A69="","",$N69) -> 18 | Q69: =IF($A69="","",$M69-1) -> 12 | R69: =IF($A69="","",$N69+1) -> 19 | S69: =IF(AND($B69>=1,$B69<=17),INDEX(黒!$B$6:$E$39,MATCH($B69,黒!$B$6:$B$39,0),2),"") -> 180 | T69: =IF($A69="","",$I69+$I69+5) -> 19 | U69: =IF($A69="","",$B69+$B69+4) -> 12 | V69: =IF($A69="","",$T69-1) -> 18 | W69: =IF($A69="","",$U69) -> 12 | X69: =IF($A69="","",$T69-1) -> 18 | Y69: =IF($A69="","",$U69+1) -> 13 | Z69: =IF(AND($I69>=1,$I69<=17),INDEX(黒!$B$6:$E$39,MATCH($I69,黒!$B$6:$B$39,0),2),"") -> 180
C70: =IF(ISERROR(INDEX(概要設定!$J$2:$K$51,MATCH($C71,概要設定!$J$2:$J$51,0),2)),"",INDEX(概要設定!$J$2:$K$51,MATCH($C71,概要設定!$J$2:$J$51,0),2)) -> やまだ こうじ | H70: =IF(ISERROR(INDEX(概要設定!$J$2:$K$51,MATCH($H71,概要設定!$J$2:$J$51,0),2)),"",INDEX(概要設定!$J$2:$K$51,MATCH($H71,概要設定!$J$2:$J$51,0),2)) -> しらと きょうこ
A71: 27 | B71: 3 | C71: =IF(AND($B71>=1,$B71<=17),INDEX(黒!$B$6:$E$39,MATCH($B71,黒!$B$6:$B$39,0),4),"") -> 山田 晃司 | H71: =IF(AND($I71>=1,$I71<=17),INDEX(黒!$B$6:$E$39,MATCH($I71,黒!$B$6:$B$39,0),4),"") -> 白戸 恭子 | I71: 8 | M71: =IF($A71="","",$B71+$B71+5) -> 11 | N71: =IF($A71="","",$I71+$I71+4) -> 20 | O71: =IF($A71="","",$M71-1) -> 10 | P71: =IF($A71="","",$N71) -> 20 | Q71: =IF($A71="","",$M71-1) -> 10 | R71: =IF($A71="","",$N71+1) -> 21 | S71: =IF(AND($B71>=1,$B71<=17),INDEX(黒!$B$6:$E$39,MATCH($B71,黒!$B$6:$B$39,0),2),"") -> 180 | T71: =IF($A71="","",$I71+$I71+5) -> 21 | U71: =IF($A71="","",$B71+$B71+4) -> 10 | V71: =IF($A71="","",$T71-1) -> 20 | W71: =IF($A71="","",$U71) -> 10 | X71: =IF($A71="","",$T71-1) -> 20 | Y71: =IF($A71="","",$U71+1) -> 11 | Z71: =IF(AND($I71>=1,$I71<=17),INDEX(黒!$B$6:$E$39,MATCH($I71,黒!$B$6:$B$39,0),2),"") -> 140
C72: =IF(ISERROR(INDEX(概要設定!$J$2:$K$51,MATCH($C73,概要設定!$J$2:$J$51,0),2)),"",INDEX(概要設定!$J$2:$K$51,MATCH($C73,概要設定!$J$2:$J$51,0),2)) -> しらと れいにん | H72: =IF(ISERROR(INDEX(概要設定!$J$2:$K$51,MATCH($H73,概要設定!$J$2:$J$51,0),2)),"",INDEX(概要設定!$J$2:$K$51,MATCH($H73,概要設定!$J$2:$J$51,0),2)) -> さいとう ゆうじ
A73: 28 | B73: 1 | C73: =IF(AND($B73>=1,$B73<=17),INDEX(黒!$B$6:$E$39,MATCH($B73,黒!$B$6:$B$39,0),4),"") -> 白戸 玲人 | H73: =IF(AND($I73>=1,$I73<=17),INDEX(黒!$B$6:$E$39,MATCH($I73,黒!$B$6:$B$39,0),4),"") -> 斉藤 裕児 | I73: 2 | M73: =IF($A73="","",$B73+$B73+5) -> 7 | N73: =IF($A73="","",$I73+$I73+4) -> 8 | O73: =IF($A73="","",$M73-1) -> 6 | P73: =IF($A73="","",$N73) -> 8 | Q73: =IF($A73="","",$M73-1) -> 6 | R73: =IF($A73="","",$N73+1) -> 9 | S73: =IF(AND($B73>=1,$B73<=17),INDEX(黒!$B$6:$E$39,MATCH($B73,黒!$B$6:$B$39,0),2),"") -> 180 | T73: =IF($A73="","",$I73+$I73+5) -> 9 | U73: =IF($A73="","",$B73+$B73+4) -> 6 | V73: =IF($A73="","",$T73-1) -> 8 | W73: =IF($A73="","",$U73) -> 6 | X73: =IF($A73="","",$T73-1) -> 8 | Y73: =IF($A73="","",$U73+1) -> 7 | Z73: =IF(AND($I73>=1,$I73<=17),INDEX(黒!$B$6:$E$39,MATCH($I73,黒!$B$6:$B$39,0),2),"") -> 180
C74: =IF(ISERROR(INDEX(概要設定!$J$2:$K$51,MATCH($C75,概要設定!$J$2:$J$51,0),2)),"",INDEX(概要設定!$J$2:$K$51,MATCH($C75,概要設定!$J$2:$J$51,0),2)) ->  | H74: =IF(ISERROR(INDEX(概要設定!$J$2:$K$51,MATCH($H75,概要設定!$J$2:$J$51,0),2)),"",INDEX(概要設定!$J$2:$K$51,MATCH($H75,概要設定!$J$2:$J$51,0),2)) -> 
C75: =IF(AND($B75>=1,$B75<=17),INDEX(黒!$B$6:$E$39,MATCH($B75,黒!$B$6:$B$39,0),4),"") ->  | H75: =IF(AND($I75>=1,$I75<=17),INDEX(黒!$B$6:$E$39,MATCH($I75,黒!$B$6:$B$39,0),4),"") ->  | M75: =IF($A75="","",$B75+$B75+5) ->  | N75: =IF($A75="","",$I75+$I75+4) ->  | S75: =IF(AND($B75>=1,$B75<=17),INDEX(黒!$B$6:$E$39,MATCH($B75,黒!$B$6:$B$39,0),2),"") ->  | T75: =IF($A75="","",$I75+$I75+5) ->  | U75: =IF($A75="","",$B75+$B75+4) ->  | Z75: =IF(AND($I75>=1,$I75<=17),INDEX(黒!$B$6:$E$39,MATCH($I75,黒!$B$6:$B$39,0),2),"") -> 
C76: =IF(ISERROR(INDEX(概要設定!$J$2:$K$51,MATCH($C77,概要設定!$J$2:$J$51,0),2)),"",INDEX(概要設定!$J$2:$K$51,MATCH($C77,概要設定!$J$2:$J$51,0),2)) ->  | H76: =IF(ISERROR(INDEX(概要設定!$J$2:$K$51,MATCH($H77,概要設定!$J$2:$J$51,0),2)),"",INDEX(概要設定!$J$2:$K$51,MATCH($H77,概要設定!$J$2:$J$51,0),2)) -> 
C77: =IF(AND($B77>=1,$B77<=17),INDEX(黒!$B$6:$E$39,MATCH($B77,黒!$B$6:$B$39,0),4),"") ->  | H77: =IF(AND($I77>=1,$I77<=17),INDEX(黒!$B$6:$E$39,MATCH($I77,黒!$B$6:$B$39,0),4),"") ->  | M77: =IF($A77="","",$B77+$B77+5) ->  | N77: =IF($A77="","",$I77+$I77+4) ->  | S77: =IF(AND($B77>=1,$B77<=17),INDEX(黒!$B$6:$E$39,MATCH($B77,黒!$B$6:$B$39,0),2),"") ->  | T77: =IF($A77="","",$I77+$I77+5) ->  | U77: =IF($A77="","",$B77+$B77+4) ->  | Z77: =IF(AND($I77>=1,$I77<=17),INDEX(黒!$B$6:$E$39,MATCH($I77,黒!$B$6:$B$39,0),2),"") -> 
C78: =IF(ISERROR(INDEX(概要設定!$J$2:$K$51,MATCH($C79,概要設定!$J$2:$J$51,0),2)),"",INDEX(概要設定!$J$2:$K$51,MATCH($C79,概要設定!$J$2:$J$51,0),2)) ->  | H78: =IF(ISERROR(INDEX(概要設定!$J$2:$K$51,MATCH($H79,概要設定!$J$2:$J$51,0),2)),"",INDEX(概要設定!$J$2:$K$51,MATCH($H79,概要設定!$J$2:$J$51,0),2)) -> 
C79: =IF(AND($B79>=1,$B79<=17),INDEX(黒!$B$6:$E$39,MATCH($B79,黒!$B$6:$B$39,0),4),"") ->  | H79: =IF(AND($I79>=1,$I79<=17),INDEX(黒!$B$6:$E$39,MATCH($I79,黒!$B$6:$B$39,0),4),"") ->  | M79: =IF($A79="","",$B79+$B79+5) ->  | N79: =IF($A79="","",$I79+$I79+4) ->  | S79: =IF(AND($B79>=1,$B79<=17),INDEX(黒!$B$6:$E$39,MATCH($B79,黒!$B$6:$B$39,0),2),"") ->  | T79: =IF($A79="","",$I79+$I79+5) ->  | U79: =IF($A79="","",$B79+$B79+4) ->  | Z79: =IF(AND($I79>=1,$I79<=17),INDEX(黒!$B$6:$E$39,MATCH($I79,黒!$B$6:$B$39,0),2),"") -> 
C80: =IF(ISERROR(INDEX(概要設定!$J$2:$K$51,MATCH($C81,概要設定!$J$2:$J$51,0),2)),"",INDEX(概要設定!$J$2:$K$51,MATCH($C81,概要設定!$J$2:$J$51,0),2)) ->  | H80: =IF(ISERROR(INDEX(概要設定!$J$2:$K$51,MATCH($H81,概要設定!$J$2:$J$51,0),2)),"",INDEX(概要設定!$J$2:$K$51,MATCH($H81,概要設定!$J$2:$J$51,0),2)) -> 
C81: =IF(AND($B81>=1,$B81<=17),INDEX(黒!$B$6:$E$39,MATCH($B81,黒!$B$6:$B$39,0),4),"") ->  | H81: =IF(AND($I81>=1,$I81<=17),INDEX(黒!$B$6:$E$39,MATCH($I81,黒!$B$6:$B$39,0),4),"") ->  | M81: =IF($A81="","",$B81+$B81+5) ->  | N81: =IF($A81="","",$I81+$I81+4) ->  | S81: =IF(AND($B81>=1,$B81<=17),INDEX(黒!$B$6:$E$39,MATCH($B81,黒!$B$6:$B$39,0),2),"") ->  | T81: =IF($A81="","",$I81+$I81+5) ->  | U81: =IF($A81="","",$B81+$B81+4) ->  | Z81: =IF(AND($I81>=1,$I81<=17),INDEX(黒!$B$6:$E$39,MATCH($I81,黒!$B$6:$B$39,0),2),"") -> 
C82: =IF(ISERROR(INDEX(概要設定!$J$2:$K$51,MATCH($C83,概要設定!$J$2:$J$51,0),2)),"",INDEX(概要設定!$J$2:$K$51,MATCH($C83,概要設定!$J$2:$J$51,0),2)) ->  | H82: =IF(ISERROR(INDEX(概要設定!$J$2:$K$51,MATCH($H83,概要設定!$J$2:$J$51,0),2)),"",INDEX(概要設定!$J$2:$K$51,MATCH($H83,概要設定!$J$2:$J$51,0),2)) -> 
C83: =IF(AND($B83>=1,$B83<=17),INDEX(黒!$B$6:$E$39,MATCH($B83,黒!$B$6:$B$39,0),4),"") ->  | H83: =IF(AND($I83>=1,$I83<=17),INDEX(黒!$B$6:$E$39,MATCH($I83,黒!$B$6:$B$39,0),4),"") ->  | M83: =IF($A83="","",$B83+$B83+5) ->  | N83: =IF($A83="","",$I83+$I83+4) ->  | S83: =IF(AND($B83>=1,$B83<=17),INDEX(黒!$B$6:$E$39,MATCH($B83,黒!$B$6:$B$39,0),2),"") ->  | T83: =IF($A83="","",$I83+$I83+5) ->  | U83: =IF($A83="","",$B83+$B83+4) ->  | Z83: =IF(AND($I83>=1,$I83<=17),INDEX(黒!$B$6:$E$39,MATCH($I83,黒!$B$6:$B$39,0),2),"") -> 
C84: =IF(ISERROR(INDEX(概要設定!$J$2:$K$51,MATCH($C85,概要設定!$J$2:$J$51,0),2)),"",INDEX(概要設定!$J$2:$K$51,MATCH($C85,概要設定!$J$2:$J$51,0),2)) ->  | H84: =IF(ISERROR(INDEX(概要設定!$J$2:$K$51,MATCH($H85,概要設定!$J$2:$J$51,0),2)),"",INDEX(概要設定!$J$2:$K$51,MATCH($H85,概要設定!$J$2:$J$51,0),2)) -> 
C85: =IF(AND($B85>=1,$B85<=17),INDEX(黒!$B$6:$E$39,MATCH($B85,黒!$B$6:$B$39,0),4),"") ->  | H85: =IF(AND($I85>=1,$I85<=17),INDEX(黒!$B$6:$E$39,MATCH($I85,黒!$B$6:$B$39,0),4),"") ->  | M85: =IF($A85="","",$B85+$B85+5) ->  | N85: =IF($A85="","",$I85+$I85+4) ->  | S85: =IF(AND($B85>=1,$B85<=17),INDEX(黒!$B$6:$E$39,MATCH($B85,黒!$B$6:$B$39,0),2),"") ->  | T85: =IF($A85="","",$I85+$I85+5) ->  | U85: =IF($A85="","",$B85+$B85+4) ->  | Z85: =IF(AND($I85>=1,$I85<=17),INDEX(黒!$B$6:$E$39,MATCH($I85,黒!$B$6:$B$39,0),2),"") -> 
C86: =IF(ISERROR(INDEX(概要設定!$J$2:$K$51,MATCH($C87,概要設定!$J$2:$J$51,0),2)),"",INDEX(概要設定!$J$2:$K$51,MATCH($C87,概要設定!$J$2:$J$51,0),2)) ->  | H86: =IF(ISERROR(INDEX(概要設定!$J$2:$K$51,MATCH($H87,概要設定!$J$2:$J$51,0),2)),"",INDEX(概要設定!$J$2:$K$51,MATCH($H87,概要設定!$J$2:$J$51,0),2)) -> 
C87: =IF(AND($B87>=1,$B87<=17),INDEX(黒!$B$6:$E$39,MATCH($B87,黒!$B$6:$B$39,0),4),"") ->  | H87: =IF(AND($I87>=1,$I87<=17),INDEX(黒!$B$6:$E$39,MATCH($I87,黒!$B$6:$B$39,0),4),"") ->  | M87: =IF($A87="","",$B87+$B87+5) ->  | N87: =IF($A87="","",$I87+$I87+4) ->  | S87: =IF(AND($B87>=1,$B87<=17),INDEX(黒!$B$6:$E$39,MATCH($B87,黒!$B$6:$B$39,0),2),"") ->  | T87: =IF($A87="","",$I87+$I87+5) ->  | U87: =IF($A87="","",$B87+$B87+4) ->  | Z87: =IF(AND($I87>=1,$I87<=17),INDEX(黒!$B$6:$E$39,MATCH($I87,黒!$B$6:$B$39,0),2),"") -> 
C88: =IF(ISERROR(INDEX(概要設定!$J$2:$K$51,MATCH($C89,概要設定!$J$2:$J$51,0),2)),"",INDEX(概要設定!$J$2:$K$51,MATCH($C89,概要設定!$J$2:$J$51,0),2)) ->  | H88: =IF(ISERROR(INDEX(概要設定!$J$2:$K$51,MATCH($H89,概要設定!$J$2:$J$51,0),2)),"",INDEX(概要設定!$J$2:$K$51,MATCH($H89,概要設定!$J$2:$J$51,0),2)) -> 
C89: =IF(AND($B89>=1,$B89<=17),INDEX(黒!$B$6:$E$39,MATCH($B89,黒!$B$6:$B$39,0),4),"") ->  | H89: =IF(AND($I89>=1,$I89<=17),INDEX(黒!$B$6:$E$39,MATCH($I89,黒!$B$6:$B$39,0),4),"") ->  | M89: =IF($A89="","",$B89+$B89+5) ->  | N89: =IF($A89="","",$I89+$I89+4) ->  | S89: =IF(AND($B89>=1,$B89<=17),INDEX(黒!$B$6:$E$39,MATCH($B89,黒!$B$6:$B$39,0),2),"") ->  | T89: =IF($A89="","",$I89+$I89+5) ->  | U89: =IF($A89="","",$B89+$B89+4) ->  | Z89: =IF(AND($I89>=1,$I89<=17),INDEX(黒!$B$6:$E$39,MATCH($I89,黒!$B$6:$B$39,0),2),"") -> 
C90: =IF(ISERROR(INDEX(概要設定!$J$2:$K$51,MATCH($C91,概要設定!$J$2:$J$51,0),2)),"",INDEX(概要設定!$J$2:$K$51,MATCH($C91,概要設定!$J$2:$J$51,0),2)) ->  | H90: =IF(ISERROR(INDEX(概要設定!$J$2:$K$51,MATCH($H91,概要設定!$J$2:$J$51,0),2)),"",INDEX(概要設定!$J$2:$K$51,MATCH($H91,概要設定!$J$2:$J$51,0),2)) -> 
C91: =IF(AND($B91>=1,$B91<=17),INDEX(黒!$B$6:$E$39,MATCH($B91,黒!$B$6:$B$39,0),4),"") ->  | H91: =IF(AND($I91>=1,$I91<=17),INDEX(黒!$B$6:$E$39,MATCH($I91,黒!$B$6:$B$39,0),4),"") ->  | M91: =IF($A91="","",$B91+$B91+5) ->  | N91: =IF($A91="","",$I91+$I91+4) ->  | S91: =IF(AND($B91>=1,$B91<=17),INDEX(黒!$B$6:$E$39,MATCH($B91,黒!$B$6:$B$39,0),2),"") ->  | T91: =IF($A91="","",$I91+$I91+5) ->  | U91: =IF($A91="","",$B91+$B91+4) ->  | Z91: =IF(AND($I91>=1,$I91<=17),INDEX(黒!$B$6:$E$39,MATCH($I91,黒!$B$6:$B$39,0),2),"") -> 
C92: =IF(ISERROR(INDEX(概要設定!$J$2:$K$51,MATCH($C93,概要設定!$J$2:$J$51,0),2)),"",INDEX(概要設定!$J$2:$K$51,MATCH($C93,概要設定!$J$2:$J$51,0),2)) ->  | H92: =IF(ISERROR(INDEX(概要設定!$J$2:$K$51,MATCH($H93,概要設定!$J$2:$J$51,0),2)),"",INDEX(概要設定!$J$2:$K$51,MATCH($H93,概要設定!$J$2:$J$51,0),2)) -> 
C93: =IF(AND($B93>=1,$B93<=17),INDEX(黒!$B$6:$E$39,MATCH($B93,黒!$B$6:$B$39,0),4),"") ->  | H93: =IF(AND($I93>=1,$I93<=17),INDEX(黒!$B$6:$E$39,MATCH($I93,黒!$B$6:$B$39,0),4),"") ->  | M93: =IF($A93="","",$B93+$B93+5) ->  | N93: =IF($A93="","",$I93+$I93+4) ->  | S93: =IF(AND($B93>=1,$B93<=17),INDEX(黒!$B$6:$E$39,MATCH($B93,黒!$B$6:$B$39,0),2),"") ->  | T93: =IF($A93="","",$I93+$I93+5) ->  | U93: =IF($A93="","",$B93+$B93+4) ->  | Z93: =IF(AND($I93>=1,$I93<=17),INDEX(黒!$B$6:$E$39,MATCH($I93,黒!$B$6:$B$39,0),2),"") -> 
C94: =IF(ISERROR(INDEX(概要設定!$J$2:$K$51,MATCH($C95,概要設定!$J$2:$J$51,0),2)),"",INDEX(概要設定!$J$2:$K$51,MATCH($C95,概要設定!$J$2:$J$51,0),2)) ->  | H94: =IF(ISERROR(INDEX(概要設定!$J$2:$K$51,MATCH($H95,概要設定!$J$2:$J$51,0),2)),"",INDEX(概要設定!$J$2:$K$51,MATCH($H95,概要設定!$J$2:$J$51,0),2)) -> 
C95: =IF(AND($B95>=1,$B95<=17),INDEX(黒!$B$6:$E$39,MATCH($B95,黒!$B$6:$B$39,0),4),"") ->  | H95: =IF(AND($I95>=1,$I95<=17),INDEX(黒!$B$6:$E$39,MATCH($I95,黒!$B$6:$B$39,0),4),"") ->  | M95: =IF($A95="","",$B95+$B95+5) ->  | N95: =IF($A95="","",$I95+$I95+4) ->  | S95: =IF(AND($B95>=1,$B95<=17),INDEX(黒!$B$6:$E$39,MATCH($B95,黒!$B$6:$B$39,0),2),"") ->  | T95: =IF($A95="","",$I95+$I95+5) ->  | U95: =IF($A95="","",$B95+$B95+4) ->  | Z95: =IF(AND($I95>=1,$I95<=17),INDEX(黒!$B$6:$E$39,MATCH($I95,黒!$B$6:$B$39,0),2),"") -> 
C96: =IF(ISERROR(INDEX(概要設定!$J$2:$K$51,MATCH($C97,概要設定!$J$2:$J$51,0),2)),"",INDEX(概要設定!$J$2:$K$51,MATCH($C97,概要設定!$J$2:$J$51,0),2)) ->  | H96: =IF(ISERROR(INDEX(概要設定!$J$2:$K$51,MATCH($H97,概要設定!$J$2:$J$51,0),2)),"",INDEX(概要設定!$J$2:$K$51,MATCH($H97,概要設定!$J$2:$J$51,0),2)) -> 
C97: =IF(AND($B97>=1,$B97<=17),INDEX(黒!$B$6:$E$39,MATCH($B97,黒!$B$6:$B$39,0),4),"") ->  | H97: =IF(AND($I97>=1,$I97<=17),INDEX(黒!$B$6:$E$39,MATCH($I97,黒!$B$6:$B$39,0),4),"") ->  | M97: =IF($A97="","",$B97+$B97+5) ->  | N97: =IF($A97="","",$I97+$I97+4) ->  | S97: =IF(AND($B97>=1,$B97<=17),INDEX(黒!$B$6:$E$39,MATCH($B97,黒!$B$6:$B$39,0),2),"") ->  | T97: =IF($A97="","",$I97+$I97+5) ->  | U97: =IF($A97="","",$B97+$B97+4) ->  | Z97: =IF(AND($I97>=1,$I97<=17),INDEX(黒!$B$6:$E$39,MATCH($I97,黒!$B$6:$B$39,0),2),"") -> 
C98: =IF(ISERROR(INDEX(概要設定!$J$2:$K$51,MATCH($C99,概要設定!$J$2:$J$51,0),2)),"",INDEX(概要設定!$J$2:$K$51,MATCH($C99,概要設定!$J$2:$J$51,0),2)) ->  | H98: =IF(ISERROR(INDEX(概要設定!$J$2:$K$51,MATCH($H99,概要設定!$J$2:$J$51,0),2)),"",INDEX(概要設定!$J$2:$K$51,MATCH($H99,概要設定!$J$2:$J$51,0),2)) -> 
C99: =IF(AND($B99>=1,$B99<=17),INDEX(黒!$B$6:$E$39,MATCH($B99,黒!$B$6:$B$39,0),4),"") ->  | H99: =IF(AND($I99>=1,$I99<=17),INDEX(黒!$B$6:$E$39,MATCH($I99,黒!$B$6:$B$39,0),4),"") ->  | M99: =IF($A99="","",$B99+$B99+5) ->  | N99: =IF($A99="","",$I99+$I99+4) ->  | S99: =IF(AND($B99>=1,$B99<=17),INDEX(黒!$B$6:$E$39,MATCH($B99,黒!$B$6:$B$39,0),2),"") ->  | T99: =IF($A99="","",$I99+$I99+5) ->  | U99: =IF($A99="","",$B99+$B99+4) ->  | Z99: =IF(AND($I99>=1,$I99<=17),INDEX(黒!$B$6:$E$39,MATCH($I99,黒!$B$6:$B$39,0),2),"") -> 
C100: =IF(ISERROR(INDEX(概要設定!$J$2:$K$51,MATCH($C101,概要設定!$J$2:$J$51,0),2)),"",INDEX(概要設定!$J$2:$K$51,MATCH($C101,概要設定!$J$2:$J$51,0),2)) ->  | H100: =IF(ISERROR(INDEX(概要設定!$J$2:$K$51,MATCH($H101,概要設定!$J$2:$J$51,0),2)),"",INDEX(概要設定!$J$2:$K$51,MATCH($H101,概要設定!$J$2:$J$51,0),2)) -> 
C101: =IF(AND($B101>=1,$B101<=17),INDEX(黒!$B$6:$E$39,MATCH($B101,黒!$B$6:$B$39,0),4),"") ->  | H101: =IF(AND($I101>=1,$I101<=17),INDEX(黒!$B$6:$E$39,MATCH($I101,黒!$B$6:$B$39,0),4),"") ->  | M101: =IF($A101="","",$B101+$B101+5) ->  | N101: =IF($A101="","",$I101+$I101+4) ->  | S101: =IF(AND($B101>=1,$B101<=17),INDEX(黒!$B$6:$E$39,MATCH($B101,黒!$B$6:$B$39,0),2),"") ->  | T101: =IF($A101="","",$I101+$I101+5) ->  | U101: =IF($A101="","",$B101+$B101+4) ->  | Z101: =IF(AND($I101>=1,$I101<=17),INDEX(黒!$B$6:$E$39,MATCH($I101,黒!$B$6:$B$39,0),2),"") -> 
C102: =IF(ISERROR(INDEX(概要設定!$J$2:$K$51,MATCH($C103,概要設定!$J$2:$J$51,0),2)),"",INDEX(概要設定!$J$2:$K$51,MATCH($C103,概要設定!$J$2:$J$51,0),2)) ->  | H102: =IF(ISERROR(INDEX(概要設定!$J$2:$K$51,MATCH($H103,概要設定!$J$2:$J$51,0),2)),"",INDEX(概要設定!$J$2:$K$51,MATCH($H103,概要設定!$J$2:$J$51,0),2)) -> 
C103: =IF(AND($B103>=1,$B103<=17),INDEX(黒!$B$6:$E$39,MATCH($B103,黒!$B$6:$B$39,0),4),"") ->  | H103: =IF(AND($I103>=1,$I103<=17),INDEX(黒!$B$6:$E$39,MATCH($I103,黒!$B$6:$B$39,0),4),"") ->  | M103: =IF($A103="","",$B103+$B103+5) ->  | N103: =IF($A103="","",$I103+$I103+4) ->  | S103: =IF(AND($B103>=1,$B103<=17),INDEX(黒!$B$6:$E$39,MATCH($B103,黒!$B$6:$B$39,0),2),"") ->  | T103: =IF($A103="","",$I103+$I103+5) ->  | U103: =IF($A103="","",$B103+$B103+4) ->  | Z103: =IF(AND($I103>=1,$I103<=17),INDEX(黒!$B$6:$E$39,MATCH($I103,黒!$B$6:$B$39,0),2),"") -> 
C104: =IF(ISERROR(INDEX(概要設定!$J$2:$K$51,MATCH($C105,概要設定!$J$2:$J$51,0),2)),"",INDEX(概要設定!$J$2:$K$51,MATCH($C105,概要設定!$J$2:$J$51,0),2)) ->  | H104: =IF(ISERROR(INDEX(概要設定!$J$2:$K$51,MATCH($H105,概要設定!$J$2:$J$51,0),2)),"",INDEX(概要設定!$J$2:$K$51,MATCH($H105,概要設定!$J$2:$J$51,0),2)) -> 
C105: =IF(AND($B105>=1,$B105<=17),INDEX(黒!$B$6:$E$39,MATCH($B105,黒!$B$6:$B$39,0),4),"") ->  | H105: =IF(AND($I105>=1,$I105<=17),INDEX(黒!$B$6:$E$39,MATCH($I105,黒!$B$6:$B$39,0),4),"") ->  | M105: =IF($A105="","",$B105+$B105+5) ->  | N105: =IF($A105="","",$I105+$I105+4) ->  | S105: =IF(AND($B105>=1,$B105<=17),INDEX(黒!$B$6:$E$39,MATCH($B105,黒!$B$6:$B$39,0),2),"") ->  | T105: =IF($A105="","",$I105+$I105+5) ->  | U105: =IF($A105="","",$B105+$B105+4) ->  | Z105: =IF(AND($I105>=1,$I105<=17),INDEX(黒!$B$6:$E$39,MATCH($I105,黒!$B$6:$B$39,0),2),"") -> 
C106: =IF(ISERROR(INDEX(概要設定!$J$2:$K$51,MATCH($C107,概要設定!$J$2:$J$51,0),2)),"",INDEX(概要設定!$J$2:$K$51,MATCH($C107,概要設定!$J$2:$J$51,0),2)) ->  | H106: =IF(ISERROR(INDEX(概要設定!$J$2:$K$51,MATCH($H107,概要設定!$J$2:$J$51,0),2)),"",INDEX(概要設定!$J$2:$K$51,MATCH($H107,概要設定!$J$2:$J$51,0),2)) -> 
C107: =IF(AND($B107>=1,$B107<=17),INDEX(黒!$B$6:$E$39,MATCH($B107,黒!$B$6:$B$39,0),4),"") ->  | H107: =IF(AND($I107>=1,$I107<=17),INDEX(黒!$B$6:$E$39,MATCH($I107,黒!$B$6:$B$39,0),4),"") ->  | M107: =IF($A107="","",$B107+$B107+5) ->  | N107: =IF($A107="","",$I107+$I107+4) ->  | S107: =IF(AND($B107>=1,$B107<=17),INDEX(黒!$B$6:$E$39,MATCH($B107,黒!$B$6:$B$39,0),2),"") ->  | T107: =IF($A107="","",$I107+$I107+5) ->  | U107: =IF($A107="","",$B107+$B107+4) ->  | Z107: =IF(AND($I107>=1,$I107<=17),INDEX(黒!$B$6:$E$39,MATCH($I107,黒!$B$6:$B$39,0),2),"") -> 
C108: =IF(ISERROR(INDEX(概要設定!$J$2:$K$51,MATCH($C109,概要設定!$J$2:$J$51,0),2)),"",INDEX(概要設定!$J$2:$K$51,MATCH($C109,概要設定!$J$2:$J$51,0),2)) ->  | H108: =IF(ISERROR(INDEX(概要設定!$J$2:$K$51,MATCH($H109,概要設定!$J$2:$J$51,0),2)),"",INDEX(概要設定!$J$2:$K$51,MATCH($H109,概要設定!$J$2:$J$51,0),2)) -> 
C109: =IF(AND($B109>=1,$B109<=17),INDEX(黒!$B$6:$E$39,MATCH($B109,黒!$B$6:$B$39,0),4),"") ->  | H109: =IF(AND($I109>=1,$I109<=17),INDEX(黒!$B$6:$E$39,MATCH($I109,黒!$B$6:$B$39,0),4),"") ->  | M109: =IF($A109="","",$B109+$B109+5) ->  | N109: =IF($A109="","",$I109+$I109+4) ->  | S109: =IF(AND($B109>=1,$B109<=17),INDEX(黒!$B$6:$E$39,MATCH($B109,黒!$B$6:$B$39,0),2),"") ->  | T109: =IF($A109="","",$I109+$I109+5) ->  | U109: =IF($A109="","",$B109+$B109+4) ->  | Z109: =IF(AND($I109>=1,$I109<=17),INDEX(黒!$B$6:$E$39,MATCH($I109,黒!$B$6:$B$39,0),2),"") -> 
C110: =IF(ISERROR(INDEX(概要設定!$J$2:$K$51,MATCH($C111,概要設定!$J$2:$J$51,0),2)),"",INDEX(概要設定!$J$2:$K$51,MATCH($C111,概要設定!$J$2:$J$51,0),2)) ->  | H110: =IF(ISERROR(INDEX(概要設定!$J$2:$K$51,MATCH($H111,概要設定!$J$2:$J$51,0),2)),"",INDEX(概要設定!$J$2:$K$51,MATCH($H111,概要設定!$J$2:$J$51,0),2)) -> 
C111: =IF(AND($B111>=1,$B111<=17),INDEX(黒!$B$6:$E$39,MATCH($B111,黒!$B$6:$B$39,0),4),"") ->  | H111: =IF(AND($I111>=1,$I111<=17),INDEX(黒!$B$6:$E$39,MATCH($I111,黒!$B$6:$B$39,0),4),"") ->  | M111: =IF($A111="","",$B111+$B111+5) ->  | N111: =IF($A111="","",$I111+$I111+4) ->  | S111: =IF(AND($B111>=1,$B111<=17),INDEX(黒!$B$6:$E$39,MATCH($B111,黒!$B$6:$B$39,0),2),"") ->  | T111: =IF($A111="","",$I111+$I111+5) ->  | U111: =IF($A111="","",$B111+$B111+4) ->  | Z111: =IF(AND($I111>=1,$I111<=17),INDEX(黒!$B$6:$E$39,MATCH($I111,黒!$B$6:$B$39,0),2),"") -> 
C112: =IF(ISERROR(INDEX(概要設定!$J$2:$K$51,MATCH($C113,概要設定!$J$2:$J$51,0),2)),"",INDEX(概要設定!$J$2:$K$51,MATCH($C113,概要設定!$J$2:$J$51,0),2)) ->  | H112: =IF(ISERROR(INDEX(概要設定!$J$2:$K$51,MATCH($H113,概要設定!$J$2:$J$51,0),2)),"",INDEX(概要設定!$J$2:$K$51,MATCH($H113,概要設定!$J$2:$J$51,0),2)) -> 
C113: =IF(AND($B113>=1,$B113<=17),INDEX(黒!$B$6:$E$39,MATCH($B113,黒!$B$6:$B$39,0),4),"") ->  | H113: =IF(AND($I113>=1,$I113<=17),INDEX(黒!$B$6:$E$39,MATCH($I113,黒!$B$6:$B$39,0),4),"") ->  | M113: =IF($A113="","",$B113+$B113+5) ->  | N113: =IF($A113="","",$I113+$I113+4) ->  | S113: =IF(AND($B113>=1,$B113<=17),INDEX(黒!$B$6:$E$39,MATCH($B113,黒!$B$6:$B$39,0),2),"") ->  | T113: =IF($A113="","",$I113+$I113+5) ->  | U113: =IF($A113="","",$B113+$B113+4) ->  | Z113: =IF(AND($I113>=1,$I113<=17),INDEX(黒!$B$6:$E$39,MATCH($I113,黒!$B$6:$B$39,0),2),"") -> 
C114: =IF(ISERROR(INDEX(概要設定!$J$2:$K$51,MATCH($C115,概要設定!$J$2:$J$51,0),2)),"",INDEX(概要設定!$J$2:$K$51,MATCH($C115,概要設定!$J$2:$J$51,0),2)) ->  | H114: =IF(ISERROR(INDEX(概要設定!$J$2:$K$51,MATCH($H115,概要設定!$J$2:$J$51,0),2)),"",INDEX(概要設定!$J$2:$K$51,MATCH($H115,概要設定!$J$2:$J$51,0),2)) -> 
C115: =IF(AND($B115>=1,$B115<=17),INDEX(黒!$B$6:$E$39,MATCH($B115,黒!$B$6:$B$39,0),4),"") ->  | H115: =IF(AND($I115>=1,$I115<=17),INDEX(黒!$B$6:$E$39,MATCH($I115,黒!$B$6:$B$39,0),4),"") ->  | M115: =IF($A115="","",$B115+$B115+5) ->  | N115: =IF($A115="","",$I115+$I115+4) ->  | S115: =IF(AND($B115>=1,$B115<=17),INDEX(黒!$B$6:$E$39,MATCH($B115,黒!$B$6:$B$39,0),2),"") ->  | T115: =IF($A115="","",$I115+$I115+5) ->  | U115: =IF($A115="","",$B115+$B115+4) ->  | Z115: =IF(AND($I115>=1,$I115<=17),INDEX(黒!$B$6:$E$39,MATCH($I115,黒!$B$6:$B$39,0),2),"") -> 
C116: =IF(ISERROR(INDEX(概要設定!$J$2:$K$51,MATCH($C117,概要設定!$J$2:$J$51,0),2)),"",INDEX(概要設定!$J$2:$K$51,MATCH($C117,概要設定!$J$2:$J$51,0),2)) ->  | H116: =IF(ISERROR(INDEX(概要設定!$J$2:$K$51,MATCH($H117,概要設定!$J$2:$J$51,0),2)),"",INDEX(概要設定!$J$2:$K$51,MATCH($H117,概要設定!$J$2:$J$51,0),2)) -> 
C117: =IF(AND($B117>=1,$B117<=17),INDEX(黒!$B$6:$E$39,MATCH($B117,黒!$B$6:$B$39,0),4),"") ->  | H117: =IF(AND($I117>=1,$I117<=17),INDEX(黒!$B$6:$E$39,MATCH($I117,黒!$B$6:$B$39,0),4),"") ->  | M117: =IF($A117="","",$B117+$B117+5) ->  | N117: =IF($A117="","",$I117+$I117+4) ->  | S117: =IF(AND($B117>=1,$B117<=17),INDEX(黒!$B$6:$E$39,MATCH($B117,黒!$B$6:$B$39,0),2),"") ->  | T117: =IF($A117="","",$I117+$I117+5) ->  | U117: =IF($A117="","",$B117+$B117+4) ->  | Z117: =IF(AND($I117>=1,$I117<=17),INDEX(黒!$B$6:$E$39,MATCH($I117,黒!$B$6:$B$39,0),2),"") -> 
C118: =IF(ISERROR(INDEX(概要設定!$J$2:$K$51,MATCH($C119,概要設定!$J$2:$J$51,0),2)),"",INDEX(概要設定!$J$2:$K$51,MATCH($C119,概要設定!$J$2:$J$51,0),2)) ->  | H118: =IF(ISERROR(INDEX(概要設定!$J$2:$K$51,MATCH($H119,概要設定!$J$2:$J$51,0),2)),"",INDEX(概要設定!$J$2:$K$51,MATCH($H119,概要設定!$J$2:$J$51,0),2)) -> 
C119: =IF(AND($B119>=1,$B119<=17),INDEX(黒!$B$6:$E$39,MATCH($B119,黒!$B$6:$B$39,0),4),"") ->  | H119: =IF(AND($I119>=1,$I119<=17),INDEX(黒!$B$6:$E$39,MATCH($I119,黒!$B$6:$B$39,0),4),"") ->  | M119: =IF($A119="","",$B119+$B119+5) ->  | N119: =IF($A119="","",$I119+$I119+4) ->  | S119: =IF(AND($B119>=1,$B119<=17),INDEX(黒!$B$6:$E$39,MATCH($B119,黒!$B$6:$B$39,0),2),"") ->  | T119: =IF($A119="","",$I119+$I119+5) ->  | U119: =IF($A119="","",$B119+$B119+4) ->  | Z119: =IF(AND($I119>=1,$I119<=17),INDEX(黒!$B$6:$E$39,MATCH($I119,黒!$B$6:$B$39,0),2),"") -> 
C120: =IF(ISERROR(INDEX(概要設定!$J$2:$K$51,MATCH($C121,概要設定!$J$2:$J$51,0),2)),"",INDEX(概要設定!$J$2:$K$51,MATCH($C121,概要設定!$J$2:$J$51,0),2)) ->  | H120: =IF(ISERROR(INDEX(概要設定!$J$2:$K$51,MATCH($H121,概要設定!$J$2:$J$51,0),2)),"",INDEX(概要設定!$J$2:$K$51,MATCH($H121,概要設定!$J$2:$J$51,0),2)) -> 
C121: =IF(AND($B121>=1,$B121<=17),INDEX(黒!$B$6:$E$39,MATCH($B121,黒!$B$6:$B$39,0),4),"") ->  | H121: =IF(AND($I121>=1,$I121<=17),INDEX(黒!$B$6:$E$39,MATCH($I121,黒!$B$6:$B$39,0),4),"") ->  | M121: =IF($A121="","",$B121+$B121+5) ->  | N121: =IF($A121="","",$I121+$I121+4) ->  | S121: =IF(AND($B121>=1,$B121<=17),INDEX(黒!$B$6:$E$39,MATCH($B121,黒!$B$6:$B$39,0),2),"") ->  | T121: =IF($A121="","",$I121+$I121+5) ->  | U121: =IF($A121="","",$B121+$B121+4) ->  | Z121: =IF(AND($I121>=1,$I121<=17),INDEX(黒!$B$6:$E$39,MATCH($I121,黒!$B$6:$B$39,0),2),"") -> 
C122: =IF(ISERROR(INDEX(概要設定!$J$2:$K$51,MATCH($C123,概要設定!$J$2:$J$51,0),2)),"",INDEX(概要設定!$J$2:$K$51,MATCH($C123,概要設定!$J$2:$J$51,0),2)) ->  | H122: =IF(ISERROR(INDEX(概要設定!$J$2:$K$51,MATCH($H123,概要設定!$J$2:$J$51,0),2)),"",INDEX(概要設定!$J$2:$K$51,MATCH($H123,概要設定!$J$2:$J$51,0),2)) -> 
C123: =IF(AND($B123>=1,$B123<=17),INDEX(黒!$B$6:$E$39,MATCH($B123,黒!$B$6:$B$39,0),4),"") ->  | H123: =IF(AND($I123>=1,$I123<=17),INDEX(黒!$B$6:$E$39,MATCH($I123,黒!$B$6:$B$39,0),4),"") ->  | M123: =IF($A123="","",$B123+$B123+5) ->  | N123: =IF($A123="","",$I123+$I123+4) ->  | S123: =IF(AND($B123>=1,$B123<=17),INDEX(黒!$B$6:$E$39,MATCH($B123,黒!$B$6:$B$39,0),2),"") ->  | T123: =IF($A123="","",$I123+$I123+5) ->  | U123: =IF($A123="","",$B123+$B123+4) ->  | Z123: =IF(AND($I123>=1,$I123<=17),INDEX(黒!$B$6:$E$39,MATCH($I123,黒!$B$6:$B$39,0),2),"") -> 
C124: =IF(ISERROR(INDEX(概要設定!$J$2:$K$51,MATCH($C125,概要設定!$J$2:$J$51,0),2)),"",INDEX(概要設定!$J$2:$K$51,MATCH($C125,概要設定!$J$2:$J$51,0),2)) ->  | H124: =IF(ISERROR(INDEX(概要設定!$J$2:$K$51,MATCH($H125,概要設定!$J$2:$J$51,0),2)),"",INDEX(概要設定!$J$2:$K$51,MATCH($H125,概要設定!$J$2:$J$51,0),2)) -> 
C125: =IF(AND($B125>=1,$B125<=17),INDEX(黒!$B$6:$E$39,MATCH($B125,黒!$B$6:$B$39,0),4),"") ->  | H125: =IF(AND($I125>=1,$I125<=17),INDEX(黒!$B$6:$E$39,MATCH($I125,黒!$B$6:$B$39,0),4),"") ->  | M125: =IF($A125="","",$B125+$B125+5) ->  | N125: =IF($A125="","",$I125+$I125+4) ->  | S125: =IF(AND($B125>=1,$B125<=17),INDEX(黒!$B$6:$E$39,MATCH($B125,黒!$B$6:$B$39,0),2),"") ->  | T125: =IF($A125="","",$I125+$I125+5) ->  | U125: =IF($A125="","",$B125+$B125+4) ->  | Z125: =IF(AND($I125>=1,$I125<=17),INDEX(黒!$B$6:$E$39,MATCH($I125,黒!$B$6:$B$39,0),2),"") -> 
C126: =IF(ISERROR(INDEX(概要設定!$J$2:$K$51,MATCH($C127,概要設定!$J$2:$J$51,0),2)),"",INDEX(概要設定!$J$2:$K$51,MATCH($C127,概要設定!$J$2:$J$51,0),2)) ->  | H126: =IF(ISERROR(INDEX(概要設定!$J$2:$K$51,MATCH($H127,概要設定!$J$2:$J$51,0),2)),"",INDEX(概要設定!$J$2:$K$51,MATCH($H127,概要設定!$J$2:$J$51,0),2)) -> 
C127: =IF(AND($B127>=1,$B127<=17),INDEX(黒!$B$6:$E$39,MATCH($B127,黒!$B$6:$B$39,0),4),"") ->  | H127: =IF(AND($I127>=1,$I127<=17),INDEX(黒!$B$6:$E$39,MATCH($I127,黒!$B$6:$B$39,0),4),"") ->  | M127: =IF($A127="","",$B127+$B127+5) ->  | N127: =IF($A127="","",$I127+$I127+4) ->  | S127: =IF(AND($B127>=1,$B127<=17),INDEX(黒!$B$6:$E$39,MATCH($B127,黒!$B$6:$B$39,0),2),"") ->  | T127: =IF($A127="","",$I127+$I127+5) ->  | U127: =IF($A127="","",$B127+$B127+4) ->  | Z127: =IF(AND($I127>=1,$I127<=17),INDEX(黒!$B$6:$E$39,MATCH($I127,黒!$B$6:$B$39,0),2),"") -> 
C128: =IF(ISERROR(INDEX(概要設定!$J$2:$K$51,MATCH($C129,概要設定!$J$2:$J$51,0),2)),"",INDEX(概要設定!$J$2:$K$51,MATCH($C129,概要設定!$J$2:$J$51,0),2)) ->  | H128: =IF(ISERROR(INDEX(概要設定!$J$2:$K$51,MATCH($H129,概要設定!$J$2:$J$51,0),2)),"",INDEX(概要設定!$J$2:$K$51,MATCH($H129,概要設定!$J$2:$J$51,0),2)) -> 
C129: =IF(AND($B129>=1,$B129<=17),INDEX(黒!$B$6:$E$39,MATCH($B129,黒!$B$6:$B$39,0),4),"") ->  | H129: =IF(AND($I129>=1,$I129<=17),INDEX(黒!$B$6:$E$39,MATCH($I129,黒!$B$6:$B$39,0),4),"") ->  | M129: =IF($A129="","",$B129+$B129+5) ->  | N129: =IF($A129="","",$I129+$I129+4) ->  | S129: =IF(AND($B129>=1,$B129<=17),INDEX(黒!$B$6:$E$39,MATCH($B129,黒!$B$6:$B$39,0),2),"") ->  | T129: =IF($A129="","",$I129+$I129+5) ->  | U129: =IF($A129="","",$B129+$B129+4) ->  | Z129: =IF(AND($I129>=1,$I129<=17),INDEX(黒!$B$6:$E$39,MATCH($I129,黒!$B$6:$B$39,0),2),"") -> 
C130: =IF(ISERROR(INDEX(概要設定!$J$2:$K$51,MATCH($C131,概要設定!$J$2:$J$51,0),2)),"",INDEX(概要設定!$J$2:$K$51,MATCH($C131,概要設定!$J$2:$J$51,0),2)) ->  | H130: =IF(ISERROR(INDEX(概要設定!$J$2:$K$51,MATCH($H131,概要設定!$J$2:$J$51,0),2)),"",INDEX(概要設定!$J$2:$K$51,MATCH($H131,概要設定!$J$2:$J$51,0),2)) -> 
C131: =IF(AND($B131>=1,$B131<=17),INDEX(黒!$B$6:$E$39,MATCH($B131,黒!$B$6:$B$39,0),4),"") ->  | H131: =IF(AND($I131>=1,$I131<=17),INDEX(黒!$B$6:$E$39,MATCH($I131,黒!$B$6:$B$39,0),4),"") ->  | M131: =IF($A131="","",$B131+$B131+5) ->  | N131: =IF($A131="","",$I131+$I131+4) ->  | S131: =IF(AND($B131>=1,$B131<=17),INDEX(黒!$B$6:$E$39,MATCH($B131,黒!$B$6:$B$39,0),2),"") ->  | T131: =IF($A131="","",$I131+$I131+5) ->  | U131: =IF($A131="","",$B131+$B131+4) ->  | Z131: =IF(AND($I131>=1,$I131<=17),INDEX(黒!$B$6:$E$39,MATCH($I131,黒!$B$6:$B$39,0),2),"") -> 
C132: =IF(ISERROR(INDEX(概要設定!$J$2:$K$51,MATCH($C133,概要設定!$J$2:$J$51,0),2)),"",INDEX(概要設定!$J$2:$K$51,MATCH($C133,概要設定!$J$2:$J$51,0),2)) ->  | H132: =IF(ISERROR(INDEX(概要設定!$J$2:$K$51,MATCH($H133,概要設定!$J$2:$J$51,0),2)),"",INDEX(概要設定!$J$2:$K$51,MATCH($H133,概要設定!$J$2:$J$51,0),2)) -> 
C133: =IF(AND($B133>=1,$B133<=17),INDEX(黒!$B$6:$E$39,MATCH($B133,黒!$B$6:$B$39,0),4),"") ->  | H133: =IF(AND($I133>=1,$I133<=17),INDEX(黒!$B$6:$E$39,MATCH($I133,黒!$B$6:$B$39,0),4),"") ->  | M133: =IF($A133="","",$B133+$B133+5) ->  | N133: =IF($A133="","",$I133+$I133+4) ->  | S133: =IF(AND($B133>=1,$B133<=17),INDEX(黒!$B$6:$E$39,MATCH($B133,黒!$B$6:$B$39,0),2),"") ->  | T133: =IF($A133="","",$I133+$I133+5) ->  | U133: =IF($A133="","",$B133+$B133+4) ->  | Z133: =IF(AND($I133>=1,$I133<=17),INDEX(黒!$B$6:$E$39,MATCH($I133,黒!$B$6:$B$39,0),2),"") -> 
C134: =IF(ISERROR(INDEX(概要設定!$J$2:$K$51,MATCH($C135,概要設定!$J$2:$J$51,0),2)),"",INDEX(概要設定!$J$2:$K$51,MATCH($C135,概要設定!$J$2:$J$51,0),2)) ->  | H134: =IF(ISERROR(INDEX(概要設定!$J$2:$K$51,MATCH($H135,概要設定!$J$2:$J$51,0),2)),"",INDEX(概要設定!$J$2:$K$51,MATCH($H135,概要設定!$J$2:$J$51,0),2)) -> 
C135: =IF(AND($B135>=1,$B135<=17),INDEX(黒!$B$6:$E$39,MATCH($B135,黒!$B$6:$B$39,0),4),"") ->  | H135: =IF(AND($I135>=1,$I135<=17),INDEX(黒!$B$6:$E$39,MATCH($I135,黒!$B$6:$B$39,0),4),"") ->  | M135: =IF($A135="","",$B135+$B135+5) ->  | N135: =IF($A135="","",$I135+$I135+4) ->  | S135: =IF(AND($B135>=1,$B135<=17),INDEX(黒!$B$6:$E$39,MATCH($B135,黒!$B$6:$B$39,0),2),"") ->  | T135: =IF($A135="","",$I135+$I135+5) ->  | U135: =IF($A135="","",$B135+$B135+4) ->  | Z135: =IF(AND($I135>=1,$I135<=17),INDEX(黒!$B$6:$E$39,MATCH($I135,黒!$B$6:$B$39,0),2),"") -> 
C136: =IF(ISERROR(INDEX(概要設定!$J$2:$K$51,MATCH($C137,概要設定!$J$2:$J$51,0),2)),"",INDEX(概要設定!$J$2:$K$51,MATCH($C137,概要設定!$J$2:$J$51,0),2)) ->  | H136: =IF(ISERROR(INDEX(概要設定!$J$2:$K$51,MATCH($H137,概要設定!$J$2:$J$51,0),2)),"",INDEX(概要設定!$J$2:$K$51,MATCH($H137,概要設定!$J$2:$J$51,0),2)) -> 
C137: =IF(AND($B137>=1,$B137<=17),INDEX(黒!$B$6:$E$39,MATCH($B137,黒!$B$6:$B$39,0),4),"") ->  | H137: =IF(AND($I137>=1,$I137<=17),INDEX(黒!$B$6:$E$39,MATCH($I137,黒!$B$6:$B$39,0),4),"") ->  | M137: =IF($A137="","",$B137+$B137+5) ->  | N137: =IF($A137="","",$I137+$I137+4) ->  | O137: =IF($A137="","",$M137-1) ->  | P137: =IF($A137="","",$N137) ->  | Q137: =IF($A137="","",$M137-1) ->  | R137: =IF($A137="","",$N137+1) ->  | S137: =IF(AND($B137>=1,$B137<=17),INDEX(黒!$B$6:$E$39,MATCH($B137,黒!$B$6:$B$39,0),2),"") ->  | T137: =IF($A137="","",$I137+$I137+5) ->  | U137: =IF($A137="","",$B137+$B137+4) ->  | V137: =IF($A137="","",$T137-1) ->  | W137: =IF($A137="","",$U137) ->  | X137: =IF($A137="","",$T137-1) ->  | Y137: =IF($A137="","",$U137+1) ->  | Z137: =IF(AND($I137>=1,$I137<=17),INDEX(黒!$B$6:$E$39,MATCH($I137,黒!$B$6:$B$39,0),2),"") -> 
C138: =IF(ISERROR(INDEX(概要設定!$J$2:$K$51,MATCH($C139,概要設定!$J$2:$J$51,0),2)),"",INDEX(概要設定!$J$2:$K$51,MATCH($C139,概要設定!$J$2:$J$51,0),2)) ->  | H138: =IF(ISERROR(INDEX(概要設定!$J$2:$K$51,MATCH($H139,概要設定!$J$2:$J$51,0),2)),"",INDEX(概要設定!$J$2:$K$51,MATCH($H139,概要設定!$J$2:$J$51,0),2)) -> 
C139: =IF(AND($B139>=1,$B139<=17),INDEX(黒!$B$6:$E$39,MATCH($B139,黒!$B$6:$B$39,0),4),"") ->  | H139: =IF(AND($I139>=1,$I139<=17),INDEX(黒!$B$6:$E$39,MATCH($I139,黒!$B$6:$B$39,0),4),"") ->  | M139: =IF($A139="","",$B139+$B139+5) ->  | N139: =IF($A139="","",$I139+$I139+4) ->  | S139: =IF(AND($B139>=1,$B139<=17),INDEX(黒!$B$6:$E$39,MATCH($B139,黒!$B$6:$B$39,0),2),"") ->  | T139: =IF($A139="","",$I139+$I139+5) ->  | U139: =IF($A139="","",$B139+$B139+4) ->  | Z139: =IF(AND($I139>=1,$I139<=17),INDEX(黒!$B$6:$E$39,MATCH($I139,黒!$B$6:$B$39,0),2),"") -> 
C140: =IF(ISERROR(INDEX(概要設定!$J$2:$K$51,MATCH($C141,概要設定!$J$2:$J$51,0),2)),"",INDEX(概要設定!$J$2:$K$51,MATCH($C141,概要設定!$J$2:$J$51,0),2)) ->  | H140: =IF(ISERROR(INDEX(概要設定!$J$2:$K$51,MATCH($H141,概要設定!$J$2:$J$51,0),2)),"",INDEX(概要設定!$J$2:$K$51,MATCH($H141,概要設定!$J$2:$J$51,0),2)) -> 
C141: =IF(AND($B141>=1,$B141<=17),INDEX(黒!$B$6:$E$39,MATCH($B141,黒!$B$6:$B$39,0),4),"") ->  | H141: =IF(AND($I141>=1,$I141<=17),INDEX(黒!$B$6:$E$39,MATCH($I141,黒!$B$6:$B$39,0),4),"") ->  | M141: =IF($A141="","",$B141+$B141+5) ->  | N141: =IF($A141="","",$I141+$I141+4) ->  | S141: =IF(AND($B141>=1,$B141<=17),INDEX(黒!$B$6:$E$39,MATCH($B141,黒!$B$6:$B$39,0),2),"") ->  | T141: =IF($A141="","",$I141+$I141+5) ->  | U141: =IF($A141="","",$B141+$B141+4) ->  | Z141: =IF(AND($I141>=1,$I141<=17),INDEX(黒!$B$6:$E$39,MATCH($I141,黒!$B$6:$B$39,0),2),"") -> 
C142: =IF(ISERROR(INDEX(概要設定!$J$2:$K$51,MATCH($C143,概要設定!$J$2:$J$51,0),2)),"",INDEX(概要設定!$J$2:$K$51,MATCH($C143,概要設定!$J$2:$J$51,0),2)) ->  | H142: =IF(ISERROR(INDEX(概要設定!$J$2:$K$51,MATCH($H143,概要設定!$J$2:$J$51,0),2)),"",INDEX(概要設定!$J$2:$K$51,MATCH($H143,概要設定!$J$2:$J$51,0),2)) -> 
C143: =IF(AND($B143>=1,$B143<=17),INDEX(黒!$B$6:$E$39,MATCH($B143,黒!$B$6:$B$39,0),4),"") ->  | H143: =IF(AND($I143>=1,$I143<=17),INDEX(黒!$B$6:$E$39,MATCH($I143,黒!$B$6:$B$39,0),4),"") ->  | M143: =IF($A143="","",$B143+$B143+5) ->  | N143: =IF($A143="","",$I143+$I143+4) ->  | S143: =IF(AND($B143>=1,$B143<=17),INDEX(黒!$B$6:$E$39,MATCH($B143,黒!$B$6:$B$39,0),2),"") ->  | T143: =IF($A143="","",$I143+$I143+5) ->  | U143: =IF($A143="","",$B143+$B143+4) ->  | Z143: =IF(AND($I143>=1,$I143<=17),INDEX(黒!$B$6:$E$39,MATCH($I143,黒!$B$6:$B$39,0),2),"") -> 
C144: =IF(ISERROR(INDEX(概要設定!$J$2:$K$51,MATCH($C145,概要設定!$J$2:$J$51,0),2)),"",INDEX(概要設定!$J$2:$K$51,MATCH($C145,概要設定!$J$2:$J$51,0),2)) ->  | H144: =IF(ISERROR(INDEX(概要設定!$J$2:$K$51,MATCH($H145,概要設定!$J$2:$J$51,0),2)),"",INDEX(概要設定!$J$2:$K$51,MATCH($H145,概要設定!$J$2:$J$51,0),2)) -> 
C145: =IF(AND($B145>=1,$B145<=17),INDEX(黒!$B$6:$E$39,MATCH($B145,黒!$B$6:$B$39,0),4),"") ->  | H145: =IF(AND($I145>=1,$I145<=17),INDEX(黒!$B$6:$E$39,MATCH($I145,黒!$B$6:$B$39,0),4),"") ->  | M145: =IF($A145="","",$B145+$B145+5) ->  | N145: =IF($A145="","",$I145+$I145+4) ->  | S145: =IF(AND($B145>=1,$B145<=17),INDEX(黒!$B$6:$E$39,MATCH($B145,黒!$B$6:$B$39,0),2),"") ->  | T145: =IF($A145="","",$I145+$I145+5) ->  | U145: =IF($A145="","",$B145+$B145+4) ->  | Z145: =IF(AND($I145>=1,$I145<=17),INDEX(黒!$B$6:$E$39,MATCH($I145,黒!$B$6:$B$39,0),2),"") -> 
C146: =IF(ISERROR(INDEX(概要設定!$J$2:$K$51,MATCH($C147,概要設定!$J$2:$J$51,0),2)),"",INDEX(概要設定!$J$2:$K$51,MATCH($C147,概要設定!$J$2:$J$51,0),2)) ->  | H146: =IF(ISERROR(INDEX(概要設定!$J$2:$K$51,MATCH($H147,概要設定!$J$2:$J$51,0),2)),"",INDEX(概要設定!$J$2:$K$51,MATCH($H147,概要設定!$J$2:$J$51,0),2)) -> 
C147: =IF(AND($B147>=1,$B147<=17),INDEX(黒!$B$6:$E$39,MATCH($B147,黒!$B$6:$B$39,0),4),"") ->  | H147: =IF(AND($I147>=1,$I147<=17),INDEX(黒!$B$6:$E$39,MATCH($I147,黒!$B$6:$B$39,0),4),"") ->  | M147: =IF($A147="","",$B147+$B147+5) ->  | N147: =IF($A147="","",$I147+$I147+4) ->  | S147: =IF(AND($B147>=1,$B147<=17),INDEX(黒!$B$6:$E$39,MATCH($B147,黒!$B$6:$B$39,0),2),"") ->  | T147: =IF($A147="","",$I147+$I147+5) ->  | U147: =IF($A147="","",$B147+$B147+4) ->  | Z147: =IF(AND($I147>=1,$I147<=17),INDEX(黒!$B$6:$E$39,MATCH($I147,黒!$B$6:$B$39,0),2),"") -> 
C148: =IF(ISERROR(INDEX(概要設定!$J$2:$K$51,MATCH($C149,概要設定!$J$2:$J$51,0),2)),"",INDEX(概要設定!$J$2:$K$51,MATCH($C149,概要設定!$J$2:$J$51,0),2)) ->  | H148: =IF(ISERROR(INDEX(概要設定!$J$2:$K$51,MATCH($H149,概要設定!$J$2:$J$51,0),2)),"",INDEX(概要設定!$J$2:$K$51,MATCH($H149,概要設定!$J$2:$J$51,0),2)) -> 
C149: =IF(AND($B149>=1,$B149<=17),INDEX(黒!$B$6:$E$39,MATCH($B149,黒!$B$6:$B$39,0),4),"") ->  | H149: =IF(AND($I149>=1,$I149<=17),INDEX(黒!$B$6:$E$39,MATCH($I149,黒!$B$6:$B$39,0),4),"") ->  | M149: =IF($A149="","",$B149+$B149+5) ->  | N149: =IF($A149="","",$I149+$I149+4) ->  | S149: =IF(AND($B149>=1,$B149<=17),INDEX(黒!$B$6:$E$39,MATCH($B149,黒!$B$6:$B$39,0),2),"") ->  | T149: =IF($A149="","",$I149+$I149+5) ->  | U149: =IF($A149="","",$B149+$B149+4) ->  | Z149: =IF(AND($I149>=1,$I149<=17),INDEX(黒!$B$6:$E$39,MATCH($I149,黒!$B$6:$B$39,0),2),"") -> 
C150: =IF(ISERROR(INDEX(概要設定!$J$2:$K$51,MATCH($C151,概要設定!$J$2:$J$51,0),2)),"",INDEX(概要設定!$J$2:$K$51,MATCH($C151,概要設定!$J$2:$J$51,0),2)) ->  | H150: =IF(ISERROR(INDEX(概要設定!$J$2:$K$51,MATCH($H151,概要設定!$J$2:$J$51,0),2)),"",INDEX(概要設定!$J$2:$K$51,MATCH($H151,概要設定!$J$2:$J$51,0),2)) -> 
C151: =IF(AND($B151>=1,$B151<=17),INDEX(黒!$B$6:$E$39,MATCH($B151,黒!$B$6:$B$39,0),4),"") ->  | H151: =IF(AND($I151>=1,$I151<=17),INDEX(黒!$B$6:$E$39,MATCH($I151,黒!$B$6:$B$39,0),4),"") ->  | M151: =IF($A151="","",$B151+$B151+5) ->  | N151: =IF($A151="","",$I151+$I151+4) ->  | S151: =IF(AND($B151>=1,$B151<=17),INDEX(黒!$B$6:$E$39,MATCH($B151,黒!$B$6:$B$39,0),2),"") ->  | T151: =IF($A151="","",$I151+$I151+5) ->  | U151: =IF($A151="","",$B151+$B151+4) ->  | Z151: =IF(AND($I151>=1,$I151<=17),INDEX(黒!$B$6:$E$39,MATCH($I151,黒!$B$6:$B$39,0),2),"") -> 
C152: =IF(ISERROR(INDEX(概要設定!$J$2:$K$51,MATCH($C153,概要設定!$J$2:$J$51,0),2)),"",INDEX(概要設定!$J$2:$K$51,MATCH($C153,概要設定!$J$2:$J$51,0),2)) ->  | H152: =IF(ISERROR(INDEX(概要設定!$J$2:$K$51,MATCH($H153,概要設定!$J$2:$J$51,0),2)),"",INDEX(概要設定!$J$2:$K$51,MATCH($H153,概要設定!$J$2:$J$51,0),2)) -> 
C153: =IF(AND($B153>=1,$B153<=17),INDEX(黒!$B$6:$E$39,MATCH($B153,黒!$B$6:$B$39,0),4),"") ->  | H153: =IF(AND($I153>=1,$I153<=17),INDEX(黒!$B$6:$E$39,MATCH($I153,黒!$B$6:$B$39,0),4),"") ->  | M153: =IF($A153="","",$B153+$B153+5) ->  | N153: =IF($A153="","",$I153+$I153+4) ->  | S153: =IF(AND($B153>=1,$B153<=17),INDEX(黒!$B$6:$E$39,MATCH($B153,黒!$B$6:$B$39,0),2),"") ->  | T153: =IF($A153="","",$I153+$I153+5) ->  | U153: =IF($A153="","",$B153+$B153+4) ->  | Z153: =IF(AND($I153>=1,$I153<=17),INDEX(黒!$B$6:$E$39,MATCH($I153,黒!$B$6:$B$39,0),2),"") -> 
C154: =IF(ISERROR(INDEX(概要設定!$J$2:$K$51,MATCH($C155,概要設定!$J$2:$J$51,0),2)),"",INDEX(概要設定!$J$2:$K$51,MATCH($C155,概要設定!$J$2:$J$51,0),2)) ->  | H154: =IF(ISERROR(INDEX(概要設定!$J$2:$K$51,MATCH($H155,概要設定!$J$2:$J$51,0),2)),"",INDEX(概要設定!$J$2:$K$51,MATCH($H155,概要設定!$J$2:$J$51,0),2)) -> 
C155: =IF(AND($B155>=1,$B155<=17),INDEX(黒!$B$6:$E$39,MATCH($B155,黒!$B$6:$B$39,0),4),"") ->  | H155: =IF(AND($I155>=1,$I155<=17),INDEX(黒!$B$6:$E$39,MATCH($I155,黒!$B$6:$B$39,0),4),"") ->  | M155: =IF($A155="","",$B155+$B155+5) ->  | N155: =IF($A155="","",$I155+$I155+4) ->  | S155: =IF(AND($B155>=1,$B155<=17),INDEX(黒!$B$6:$E$39,MATCH($B155,黒!$B$6:$B$39,0),2),"") ->  | T155: =IF($A155="","",$I155+$I155+5) ->  | U155: =IF($A155="","",$B155+$B155+4) ->  | Z155: =IF(AND($I155>=1,$I155<=17),INDEX(黒!$B$6:$E$39,MATCH($I155,黒!$B$6:$B$39,0),2),"") -> 
C156: =IF(ISERROR(INDEX(概要設定!$J$2:$K$51,MATCH($C157,概要設定!$J$2:$J$51,0),2)),"",INDEX(概要設定!$J$2:$K$51,MATCH($C157,概要設定!$J$2:$J$51,0),2)) ->  | H156: =IF(ISERROR(INDEX(概要設定!$J$2:$K$51,MATCH($H157,概要設定!$J$2:$J$51,0),2)),"",INDEX(概要設定!$J$2:$K$51,MATCH($H157,概要設定!$J$2:$J$51,0),2)) -> 
C157: =IF(AND($B157>=1,$B157<=17),INDEX(黒!$B$6:$E$39,MATCH($B157,黒!$B$6:$B$39,0),4),"") ->  | H157: =IF(AND($I157>=1,$I157<=17),INDEX(黒!$B$6:$E$39,MATCH($I157,黒!$B$6:$B$39,0),4),"") ->  | M157: =IF($A157="","",$B157+$B157+5) ->  | N157: =IF($A157="","",$I157+$I157+4) ->  | S157: =IF(AND($B157>=1,$B157<=17),INDEX(黒!$B$6:$E$39,MATCH($B157,黒!$B$6:$B$39,0),2),"") ->  | T157: =IF($A157="","",$I157+$I157+5) ->  | U157: =IF($A157="","",$B157+$B157+4) ->  | Z157: =IF(AND($I157>=1,$I157<=17),INDEX(黒!$B$6:$E$39,MATCH($I157,黒!$B$6:$B$39,0),2),"") -> 
C158: =IF(ISERROR(INDEX(概要設定!$J$2:$K$51,MATCH($C159,概要設定!$J$2:$J$51,0),2)),"",INDEX(概要設定!$J$2:$K$51,MATCH($C159,概要設定!$J$2:$J$51,0),2)) ->  | H158: =IF(ISERROR(INDEX(概要設定!$J$2:$K$51,MATCH($H159,概要設定!$J$2:$J$51,0),2)),"",INDEX(概要設定!$J$2:$K$51,MATCH($H159,概要設定!$J$2:$J$51,0),2)) -> 
C159: =IF(AND($B159>=1,$B159<=17),INDEX(黒!$B$6:$E$39,MATCH($B159,黒!$B$6:$B$39,0),4),"") ->  | H159: =IF(AND($I159>=1,$I159<=17),INDEX(黒!$B$6:$E$39,MATCH($I159,黒!$B$6:$B$39,0),4),"") ->  | M159: =IF($A159="","",$B159+$B159+5) ->  | N159: =IF($A159="","",$I159+$I159+4) ->  | S159: =IF(AND($B159>=1,$B159<=17),INDEX(黒!$B$6:$E$39,MATCH($B159,黒!$B$6:$B$39,0),2),"") ->  | T159: =IF($A159="","",$I159+$I159+5) ->  | U159: =IF($A159="","",$B159+$B159+4) ->  | Z159: =IF(AND($I159>=1,$I159<=17),INDEX(黒!$B$6:$E$39,MATCH($I159,黒!$B$6:$B$39,0),2),"") -> 
C160: =IF(ISERROR(INDEX(概要設定!$J$2:$K$51,MATCH($C161,概要設定!$J$2:$J$51,0),2)),"",INDEX(概要設定!$J$2:$K$51,MATCH($C161,概要設定!$J$2:$J$51,0),2)) ->  | H160: =IF(ISERROR(INDEX(概要設定!$J$2:$K$51,MATCH($H161,概要設定!$J$2:$J$51,0),2)),"",INDEX(概要設定!$J$2:$K$51,MATCH($H161,概要設定!$J$2:$J$51,0),2)) -> 
C161: =IF(AND($B161>=1,$B161<=17),INDEX(黒!$B$6:$E$39,MATCH($B161,黒!$B$6:$B$39,0),4),"") ->  | H161: =IF(AND($I161>=1,$I161<=17),INDEX(黒!$B$6:$E$39,MATCH($I161,黒!$B$6:$B$39,0),4),"") ->  | M161: =IF($A161="","",$B161+$B161+5) ->  | N161: =IF($A161="","",$I161+$I161+4) ->  | S161: =IF(AND($B161>=1,$B161<=17),INDEX(黒!$B$6:$E$39,MATCH($B161,黒!$B$6:$B$39,0),2),"") ->  | T161: =IF($A161="","",$I161+$I161+5) ->  | U161: =IF($A161="","",$B161+$B161+4) ->  | Z161: =IF(AND($I161>=1,$I161<=17),INDEX(黒!$B$6:$E$39,MATCH($I161,黒!$B$6:$B$39,0),2),"") -> 
C162: =IF(ISERROR(INDEX(概要設定!$J$2:$K$51,MATCH($C163,概要設定!$J$2:$J$51,0),2)),"",INDEX(概要設定!$J$2:$K$51,MATCH($C163,概要設定!$J$2:$J$51,0),2)) ->  | H162: =IF(ISERROR(INDEX(概要設定!$J$2:$K$51,MATCH($H163,概要設定!$J$2:$J$51,0),2)),"",INDEX(概要設定!$J$2:$K$51,MATCH($H163,概要設定!$J$2:$J$51,0),2)) -> 
C163: =IF(AND($B163>=1,$B163<=17),INDEX(黒!$B$6:$E$39,MATCH($B163,黒!$B$6:$B$39,0),4),"") ->  | H163: =IF(AND($I163>=1,$I163<=17),INDEX(黒!$B$6:$E$39,MATCH($I163,黒!$B$6:$B$39,0),4),"") ->  | M163: =IF($A163="","",$B163+$B163+5) ->  | N163: =IF($A163="","",$I163+$I163+4) ->  | S163: =IF(AND($B163>=1,$B163<=17),INDEX(黒!$B$6:$E$39,MATCH($B163,黒!$B$6:$B$39,0),2),"") ->  | T163: =IF($A163="","",$I163+$I163+5) ->  | U163: =IF($A163="","",$B163+$B163+4) ->  | Z163: =IF(AND($I163>=1,$I163<=17),INDEX(黒!$B$6:$E$39,MATCH($I163,黒!$B$6:$B$39,0),2),"") -> 
C164: =IF(ISERROR(INDEX(概要設定!$J$2:$K$51,MATCH($C165,概要設定!$J$2:$J$51,0),2)),"",INDEX(概要設定!$J$2:$K$51,MATCH($C165,概要設定!$J$2:$J$51,0),2)) ->  | H164: =IF(ISERROR(INDEX(概要設定!$J$2:$K$51,MATCH($H165,概要設定!$J$2:$J$51,0),2)),"",INDEX(概要設定!$J$2:$K$51,MATCH($H165,概要設定!$J$2:$J$51,0),2)) -> 
C165: =IF(AND($B165>=1,$B165<=17),INDEX(黒!$B$6:$E$39,MATCH($B165,黒!$B$6:$B$39,0),4),"") ->  | H165: =IF(AND($I165>=1,$I165<=17),INDEX(黒!$B$6:$E$39,MATCH($I165,黒!$B$6:$B$39,0),4),"") ->  | M165: =IF($A165="","",$B165+$B165+5) ->  | N165: =IF($A165="","",$I165+$I165+4) ->  | S165: =IF(AND($B165>=1,$B165<=17),INDEX(黒!$B$6:$E$39,MATCH($B165,黒!$B$6:$B$39,0),2),"") ->  | T165: =IF($A165="","",$I165+$I165+5) ->  | U165: =IF($A165="","",$B165+$B165+4) ->  | Z165: =IF(AND($I165>=1,$I165<=17),INDEX(黒!$B$6:$E$39,MATCH($I165,黒!$B$6:$B$39,0),2),"") -> 
C166: =IF(ISERROR(INDEX(概要設定!$J$2:$K$51,MATCH($C167,概要設定!$J$2:$J$51,0),2)),"",INDEX(概要設定!$J$2:$K$51,MATCH($C167,概要設定!$J$2:$J$51,0),2)) ->  | H166: =IF(ISERROR(INDEX(概要設定!$J$2:$K$51,MATCH($H167,概要設定!$J$2:$J$51,0),2)),"",INDEX(概要設定!$J$2:$K$51,MATCH($H167,概要設定!$J$2:$J$51,0),2)) -> 
C167: =IF(AND($B167>=1,$B167<=17),INDEX(黒!$B$6:$E$39,MATCH($B167,黒!$B$6:$B$39,0),4),"") ->  | H167: =IF(AND($I167>=1,$I167<=17),INDEX(黒!$B$6:$E$39,MATCH($I167,黒!$B$6:$B$39,0),4),"") ->  | M167: =IF($A167="","",$B167+$B167+5) ->  | N167: =IF($A167="","",$I167+$I167+4) ->  | S167: =IF(AND($B167>=1,$B167<=17),INDEX(黒!$B$6:$E$39,MATCH($B167,黒!$B$6:$B$39,0),2),"") ->  | T167: =IF($A167="","",$I167+$I167+5) ->  | U167: =IF($A167="","",$B167+$B167+4) ->  | Z167: =IF(AND($I167>=1,$I167<=17),INDEX(黒!$B$6:$E$39,MATCH($I167,黒!$B$6:$B$39,0),2),"") -> 
C168: =IF(ISERROR(INDEX(概要設定!$J$2:$K$51,MATCH($C169,概要設定!$J$2:$J$51,0),2)),"",INDEX(概要設定!$J$2:$K$51,MATCH($C169,概要設定!$J$2:$J$51,0),2)) ->  | H168: =IF(ISERROR(INDEX(概要設定!$J$2:$K$51,MATCH($H169,概要設定!$J$2:$J$51,0),2)),"",INDEX(概要設定!$J$2:$K$51,MATCH($H169,概要設定!$J$2:$J$51,0),2)) -> 
C169: =IF(AND($B169>=1,$B169<=17),INDEX(黒!$B$6:$E$39,MATCH($B169,黒!$B$6:$B$39,0),4),"") ->  | H169: =IF(AND($I169>=1,$I169<=17),INDEX(黒!$B$6:$E$39,MATCH($I169,黒!$B$6:$B$39,0),4),"") ->  | M169: =IF($A169="","",$B169+$B169+5) ->  | N169: =IF($A169="","",$I169+$I169+4) ->  | S169: =IF(AND($B169>=1,$B169<=17),INDEX(黒!$B$6:$E$39,MATCH($B169,黒!$B$6:$B$39,0),2),"") ->  | T169: =IF($A169="","",$I169+$I169+5) ->  | U169: =IF($A169="","",$B169+$B169+4) ->  | Z169: =IF(AND($I169>=1,$I169<=17),INDEX(黒!$B$6:$E$39,MATCH($I169,黒!$B$6:$B$39,0),2),"") -> 
C170: =IF(ISERROR(INDEX(概要設定!$J$2:$K$51,MATCH($C171,概要設定!$J$2:$J$51,0),2)),"",INDEX(概要設定!$J$2:$K$51,MATCH($C171,概要設定!$J$2:$J$51,0),2)) ->  | H170: =IF(ISERROR(INDEX(概要設定!$J$2:$K$51,MATCH($H171,概要設定!$J$2:$J$51,0),2)),"",INDEX(概要設定!$J$2:$K$51,MATCH($H171,概要設定!$J$2:$J$51,0),2)) -> 
C171: =IF(AND($B171>=1,$B171<=17),INDEX(黒!$B$6:$E$39,MATCH($B171,黒!$B$6:$B$39,0),4),"") ->  | H171: =IF(AND($I171>=1,$I171<=17),INDEX(黒!$B$6:$E$39,MATCH($I171,黒!$B$6:$B$39,0),4),"") ->  | M171: =IF($A171="","",$B171+$B171+5) ->  | N171: =IF($A171="","",$I171+$I171+4) ->  | S171: =IF(AND($B171>=1,$B171<=17),INDEX(黒!$B$6:$E$39,MATCH($B171,黒!$B$6:$B$39,0),2),"") ->  | T171: =IF($A171="","",$I171+$I171+5) ->  | U171: =IF($A171="","",$B171+$B171+4) ->  | Z171: =IF(AND($I171>=1,$I171<=17),INDEX(黒!$B$6:$E$39,MATCH($I171,黒!$B$6:$B$39,0),2),"") -> 
C172: =IF(ISERROR(INDEX(概要設定!$J$2:$K$51,MATCH($C173,概要設定!$J$2:$J$51,0),2)),"",INDEX(概要設定!$J$2:$K$51,MATCH($C173,概要設定!$J$2:$J$51,0),2)) ->  | H172: =IF(ISERROR(INDEX(概要設定!$J$2:$K$51,MATCH($H173,概要設定!$J$2:$J$51,0),2)),"",INDEX(概要設定!$J$2:$K$51,MATCH($H173,概要設定!$J$2:$J$51,0),2)) -> 
C173: =IF(AND($B173>=1,$B173<=17),INDEX(黒!$B$6:$E$39,MATCH($B173,黒!$B$6:$B$39,0),4),"") ->  | H173: =IF(AND($I173>=1,$I173<=17),INDEX(黒!$B$6:$E$39,MATCH($I173,黒!$B$6:$B$39,0),4),"") ->  | M173: =IF($A173="","",$B173+$B173+5) ->  | N173: =IF($A173="","",$I173+$I173+4) ->  | S173: =IF(AND($B173>=1,$B173<=17),INDEX(黒!$B$6:$E$39,MATCH($B173,黒!$B$6:$B$39,0),2),"") ->  | T173: =IF($A173="","",$I173+$I173+5) ->  | U173: =IF($A173="","",$B173+$B173+4) ->  | Z173: =IF(AND($I173>=1,$I173<=17),INDEX(黒!$B$6:$E$39,MATCH($I173,黒!$B$6:$B$39,0),2),"") -> 
C174: =IF(ISERROR(INDEX(概要設定!$J$2:$K$51,MATCH($C175,概要設定!$J$2:$J$51,0),2)),"",INDEX(概要設定!$J$2:$K$51,MATCH($C175,概要設定!$J$2:$J$51,0),2)) ->  | H174: =IF(ISERROR(INDEX(概要設定!$J$2:$K$51,MATCH($H175,概要設定!$J$2:$J$51,0),2)),"",INDEX(概要設定!$J$2:$K$51,MATCH($H175,概要設定!$J$2:$J$51,0),2)) -> 
C175: =IF(AND($B175>=1,$B175<=17),INDEX(黒!$B$6:$E$39,MATCH($B175,黒!$B$6:$B$39,0),4),"") ->  | H175: =IF(AND($I175>=1,$I175<=17),INDEX(黒!$B$6:$E$39,MATCH($I175,黒!$B$6:$B$39,0),4),"") ->  | M175: =IF($A175="","",$B175+$B175+5) ->  | N175: =IF($A175="","",$I175+$I175+4) ->  | S175: =IF(AND($B175>=1,$B175<=17),INDEX(黒!$B$6:$E$39,MATCH($B175,黒!$B$6:$B$39,0),2),"") ->  | T175: =IF($A175="","",$I175+$I175+5) ->  | U175: =IF($A175="","",$B175+$B175+4) ->  | Z175: =IF(AND($I175>=1,$I175<=17),INDEX(黒!$B$6:$E$39,MATCH($I175,黒!$B$6:$B$39,0),2),"") -> 
C176: =IF(ISERROR(INDEX(概要設定!$J$2:$K$51,MATCH($C177,概要設定!$J$2:$J$51,0),2)),"",INDEX(概要設定!$J$2:$K$51,MATCH($C177,概要設定!$J$2:$J$51,0),2)) ->  | H176: =IF(ISERROR(INDEX(概要設定!$J$2:$K$51,MATCH($H177,概要設定!$J$2:$J$51,0),2)),"",INDEX(概要設定!$J$2:$K$51,MATCH($H177,概要設定!$J$2:$J$51,0),2)) -> 
C177: =IF(AND($B177>=1,$B177<=17),INDEX(黒!$B$6:$E$39,MATCH($B177,黒!$B$6:$B$39,0),4),"") ->  | H177: =IF(AND($I177>=1,$I177<=17),INDEX(黒!$B$6:$E$39,MATCH($I177,黒!$B$6:$B$39,0),4),"") ->  | M177: =IF($A177="","",$B177+$B177+5) ->  | N177: =IF($A177="","",$I177+$I177+4) ->  | S177: =IF(AND($B177>=1,$B177<=17),INDEX(黒!$B$6:$E$39,MATCH($B177,黒!$B$6:$B$39,0),2),"") ->  | T177: =IF($A177="","",$I177+$I177+5) ->  | U177: =IF($A177="","",$B177+$B177+4) ->  | Z177: =IF(AND($I177>=1,$I177<=17),INDEX(黒!$B$6:$E$39,MATCH($I177,黒!$B$6:$B$39,0),2),"") -> 
C178: =IF(ISERROR(INDEX(概要設定!$J$2:$K$51,MATCH($C179,概要設定!$J$2:$J$51,0),2)),"",INDEX(概要設定!$J$2:$K$51,MATCH($C179,概要設定!$J$2:$J$51,0),2)) ->  | H178: =IF(ISERROR(INDEX(概要設定!$J$2:$K$51,MATCH($H179,概要設定!$J$2:$J$51,0),2)),"",INDEX(概要設定!$J$2:$K$51,MATCH($H179,概要設定!$J$2:$J$51,0),2)) -> 
C179: =IF(AND($B179>=1,$B179<=17),INDEX(黒!$B$6:$E$39,MATCH($B179,黒!$B$6:$B$39,0),4),"") ->  | H179: =IF(AND($I179>=1,$I179<=17),INDEX(黒!$B$6:$E$39,MATCH($I179,黒!$B$6:$B$39,0),4),"") ->  | M179: =IF($A179="","",$B179+$B179+5) ->  | N179: =IF($A179="","",$I179+$I179+4) ->  | S179: =IF(AND($B179>=1,$B179<=17),INDEX(黒!$B$6:$E$39,MATCH($B179,黒!$B$6:$B$39,0),2),"") ->  | T179: =IF($A179="","",$I179+$I179+5) ->  | U179: =IF($A179="","",$B179+$B179+4) ->  | Z179: =IF(AND($I179>=1,$I179<=17),INDEX(黒!$B$6:$E$39,MATCH($I179,黒!$B$6:$B$39,0),2),"") -> 
C180: =IF(ISERROR(INDEX(概要設定!$J$2:$K$51,MATCH($C181,概要設定!$J$2:$J$51,0),2)),"",INDEX(概要設定!$J$2:$K$51,MATCH($C181,概要設定!$J$2:$J$51,0),2)) ->  | H180: =IF(ISERROR(INDEX(概要設定!$J$2:$K$51,MATCH($H181,概要設定!$J$2:$J$51,0),2)),"",INDEX(概要設定!$J$2:$K$51,MATCH($H181,概要設定!$J$2:$J$51,0),2)) -> 
C181: =IF(AND($B181>=1,$B181<=17),INDEX(黒!$B$6:$E$39,MATCH($B181,黒!$B$6:$B$39,0),4),"") ->  | H181: =IF(AND($I181>=1,$I181<=17),INDEX(黒!$B$6:$E$39,MATCH($I181,黒!$B$6:$B$39,0),4),"") ->  | M181: =IF($A181="","",$B181+$B181+5) ->  | N181: =IF($A181="","",$I181+$I181+4) ->  | S181: =IF(AND($B181>=1,$B181<=17),INDEX(黒!$B$6:$E$39,MATCH($B181,黒!$B$6:$B$39,0),2),"") ->  | T181: =IF($A181="","",$I181+$I181+5) ->  | U181: =IF($A181="","",$B181+$B181+4) ->  | Z181: =IF(AND($I181>=1,$I181<=17),INDEX(黒!$B$6:$E$39,MATCH($I181,黒!$B$6:$B$39,0),2),"") -> 
C182: =IF(ISERROR(INDEX(概要設定!$J$2:$K$51,MATCH($C183,概要設定!$J$2:$J$51,0),2)),"",INDEX(概要設定!$J$2:$K$51,MATCH($C183,概要設定!$J$2:$J$51,0),2)) ->  | H182: =IF(ISERROR(INDEX(概要設定!$J$2:$K$51,MATCH($H183,概要設定!$J$2:$J$51,0),2)),"",INDEX(概要設定!$J$2:$K$51,MATCH($H183,概要設定!$J$2:$J$51,0),2)) -> 
C183: =IF(AND($B183>=1,$B183<=17),INDEX(黒!$B$6:$E$39,MATCH($B183,黒!$B$6:$B$39,0),4),"") ->  | H183: =IF(AND($I183>=1,$I183<=17),INDEX(黒!$B$6:$E$39,MATCH($I183,黒!$B$6:$B$39,0),4),"") ->  | M183: =IF($A183="","",$B183+$B183+5) ->  | N183: =IF($A183="","",$I183+$I183+4) ->  | S183: =IF(AND($B183>=1,$B183<=17),INDEX(黒!$B$6:$E$39,MATCH($B183,黒!$B$6:$B$39,0),2),"") ->  | T183: =IF($A183="","",$I183+$I183+5) ->  | U183: =IF($A183="","",$B183+$B183+4) ->  | Z183: =IF(AND($I183>=1,$I183<=17),INDEX(黒!$B$6:$E$39,MATCH($I183,黒!$B$6:$B$39,0),2),"") -> 
C184: =IF(ISERROR(INDEX(概要設定!$J$2:$K$51,MATCH($C185,概要設定!$J$2:$J$51,0),2)),"",INDEX(概要設定!$J$2:$K$51,MATCH($C185,概要設定!$J$2:$J$51,0),2)) ->  | H184: =IF(ISERROR(INDEX(概要設定!$J$2:$K$51,MATCH($H185,概要設定!$J$2:$J$51,0),2)),"",INDEX(概要設定!$J$2:$K$51,MATCH($H185,概要設定!$J$2:$J$51,0),2)) -> 
C185: =IF(AND($B185>=1,$B185<=17),INDEX(黒!$B$6:$E$39,MATCH($B185,黒!$B$6:$B$39,0),4),"") ->  | H185: =IF(AND($I185>=1,$I185<=17),INDEX(黒!$B$6:$E$39,MATCH($I185,黒!$B$6:$B$39,0),4),"") ->  | M185: =IF($A185="","",$B185+$B185+5) ->  | N185: =IF($A185="","",$I185+$I185+4) ->  | S185: =IF(AND($B185>=1,$B185<=17),INDEX(黒!$B$6:$E$39,MATCH($B185,黒!$B$6:$B$39,0),2),"") ->  | T185: =IF($A185="","",$I185+$I185+5) ->  | U185: =IF($A185="","",$B185+$B185+4) ->  | Z185: =IF(AND($I185>=1,$I185<=17),INDEX(黒!$B$6:$E$39,MATCH($I185,黒!$B$6:$B$39,0),2),"") -> 
C186: =IF(ISERROR(INDEX(概要設定!$J$2:$K$51,MATCH($C187,概要設定!$J$2:$J$51,0),2)),"",INDEX(概要設定!$J$2:$K$51,MATCH($C187,概要設定!$J$2:$J$51,0),2)) ->  | H186: =IF(ISERROR(INDEX(概要設定!$J$2:$K$51,MATCH($H187,概要設定!$J$2:$J$51,0),2)),"",INDEX(概要設定!$J$2:$K$51,MATCH($H187,概要設定!$J$2:$J$51,0),2)) -> 
C187: =IF(AND($B187>=1,$B187<=17),INDEX(黒!$B$6:$E$39,MATCH($B187,黒!$B$6:$B$39,0),4),"") ->  | H187: =IF(AND($I187>=1,$I187<=17),INDEX(黒!$B$6:$E$39,MATCH($I187,黒!$B$6:$B$39,0),4),"") ->  | M187: =IF($A187="","",$B187+$B187+5) ->  | N187: =IF($A187="","",$I187+$I187+4) ->  | S187: =IF(AND($B187>=1,$B187<=17),INDEX(黒!$B$6:$E$39,MATCH($B187,黒!$B$6:$B$39,0),2),"") ->  | T187: =IF($A187="","",$I187+$I187+5) ->  | U187: =IF($A187="","",$B187+$B187+4) ->  | Z187: =IF(AND($I187>=1,$I187<=17),INDEX(黒!$B$6:$E$39,MATCH($I187,黒!$B$6:$B$39,0),2),"") -> 
C188: =IF(ISERROR(INDEX(概要設定!$J$2:$K$51,MATCH($C189,概要設定!$J$2:$J$51,0),2)),"",INDEX(概要設定!$J$2:$K$51,MATCH($C189,概要設定!$J$2:$J$51,0),2)) ->  | H188: =IF(ISERROR(INDEX(概要設定!$J$2:$K$51,MATCH($H189,概要設定!$J$2:$J$51,0),2)),"",INDEX(概要設定!$J$2:$K$51,MATCH($H189,概要設定!$J$2:$J$51,0),2)) -> 
C189: =IF(AND($B189>=1,$B189<=17),INDEX(黒!$B$6:$E$39,MATCH($B189,黒!$B$6:$B$39,0),4),"") ->  | H189: =IF(AND($I189>=1,$I189<=17),INDEX(黒!$B$6:$E$39,MATCH($I189,黒!$B$6:$B$39,0),4),"") ->  | M189: =IF($A189="","",$B189+$B189+5) ->  | N189: =IF($A189="","",$I189+$I189+4) ->  | S189: =IF(AND($B189>=1,$B189<=17),INDEX(黒!$B$6:$E$39,MATCH($B189,黒!$B$6:$B$39,0),2),"") ->  | T189: =IF($A189="","",$I189+$I189+5) ->  | U189: =IF($A189="","",$B189+$B189+4) ->  | Z189: =IF(AND($I189>=1,$I189<=17),INDEX(黒!$B$6:$E$39,MATCH($I189,黒!$B$6:$B$39,0),2),"") -> 
C190: =IF(ISERROR(INDEX(概要設定!$J$2:$K$51,MATCH($C191,概要設定!$J$2:$J$51,0),2)),"",INDEX(概要設定!$J$2:$K$51,MATCH($C191,概要設定!$J$2:$J$51,0),2)) ->  | H190: =IF(ISERROR(INDEX(概要設定!$J$2:$K$51,MATCH($H191,概要設定!$J$2:$J$51,0),2)),"",INDEX(概要設定!$J$2:$K$51,MATCH($H191,概要設定!$J$2:$J$51,0),2)) -> 
C191: =IF(AND($B191>=1,$B191<=17),INDEX(黒!$B$6:$E$39,MATCH($B191,黒!$B$6:$B$39,0),4),"") ->  | H191: =IF(AND($I191>=1,$I191<=17),INDEX(黒!$B$6:$E$39,MATCH($I191,黒!$B$6:$B$39,0),4),"") ->  | M191: =IF($A191="","",$B191+$B191+5) ->  | N191: =IF($A191="","",$I191+$I191+4) ->  | S191: =IF(AND($B191>=1,$B191<=17),INDEX(黒!$B$6:$E$39,MATCH($B191,黒!$B$6:$B$39,0),2),"") ->  | T191: =IF($A191="","",$I191+$I191+5) ->  | U191: =IF($A191="","",$B191+$B191+4) ->  | Z191: =IF(AND($I191>=1,$I191<=17),INDEX(黒!$B$6:$E$39,MATCH($I191,黒!$B$6:$B$39,0),2),"") -> 
C192: =IF(ISERROR(INDEX(概要設定!$J$2:$K$51,MATCH($C193,概要設定!$J$2:$J$51,0),2)),"",INDEX(概要設定!$J$2:$K$51,MATCH($C193,概要設定!$J$2:$J$51,0),2)) ->  | H192: =IF(ISERROR(INDEX(概要設定!$J$2:$K$51,MATCH($H193,概要設定!$J$2:$J$51,0),2)),"",INDEX(概要設定!$J$2:$K$51,MATCH($H193,概要設定!$J$2:$J$51,0),2)) -> 
C193: =IF(AND($B193>=1,$B193<=17),INDEX(黒!$B$6:$E$39,MATCH($B193,黒!$B$6:$B$39,0),4),"") ->  | H193: =IF(AND($I193>=1,$I193<=17),INDEX(黒!$B$6:$E$39,MATCH($I193,黒!$B$6:$B$39,0),4),"") ->  | M193: =IF($A193="","",$B193+$B193+5) ->  | N193: =IF($A193="","",$I193+$I193+4) ->  | S193: =IF(AND($B193>=1,$B193<=17),INDEX(黒!$B$6:$E$39,MATCH($B193,黒!$B$6:$B$39,0),2),"") ->  | T193: =IF($A193="","",$I193+$I193+5) ->  | U193: =IF($A193="","",$B193+$B193+4) ->  | Z193: =IF(AND($I193>=1,$I193<=17),INDEX(黒!$B$6:$E$39,MATCH($I193,黒!$B$6:$B$39,0),2),"") -> 
C194: =IF(ISERROR(INDEX(概要設定!$J$2:$K$51,MATCH($C195,概要設定!$J$2:$J$51,0),2)),"",INDEX(概要設定!$J$2:$K$51,MATCH($C195,概要設定!$J$2:$J$51,0),2)) ->  | H194: =IF(ISERROR(INDEX(概要設定!$J$2:$K$51,MATCH($H195,概要設定!$J$2:$J$51,0),2)),"",INDEX(概要設定!$J$2:$K$51,MATCH($H195,概要設定!$J$2:$J$51,0),2)) -> 
C195: =IF(AND($B195>=1,$B195<=17),INDEX(黒!$B$6:$E$39,MATCH($B195,黒!$B$6:$B$39,0),4),"") ->  | H195: =IF(AND($I195>=1,$I195<=17),INDEX(黒!$B$6:$E$39,MATCH($I195,黒!$B$6:$B$39,0),4),"") ->  | M195: =IF($A195="","",$B195+$B195+5) ->  | N195: =IF($A195="","",$I195+$I195+4) ->  | S195: =IF(AND($B195>=1,$B195<=17),INDEX(黒!$B$6:$E$39,MATCH($B195,黒!$B$6:$B$39,0),2),"") ->  | T195: =IF($A195="","",$I195+$I195+5) ->  | U195: =IF($A195="","",$B195+$B195+4) ->  | Z195: =IF(AND($I195>=1,$I195<=17),INDEX(黒!$B$6:$E$39,MATCH($I195,黒!$B$6:$B$39,0),2),"") -> 
C196: =IF(ISERROR(INDEX(概要設定!$J$2:$K$51,MATCH($C197,概要設定!$J$2:$J$51,0),2)),"",INDEX(概要設定!$J$2:$K$51,MATCH($C197,概要設定!$J$2:$J$51,0),2)) ->  | H196: =IF(ISERROR(INDEX(概要設定!$J$2:$K$51,MATCH($H197,概要設定!$J$2:$J$51,0),2)),"",INDEX(概要設定!$J$2:$K$51,MATCH($H197,概要設定!$J$2:$J$51,0),2)) -> 
C197: =IF(AND($B197>=1,$B197<=17),INDEX(黒!$B$6:$E$39,MATCH($B197,黒!$B$6:$B$39,0),4),"") ->  | H197: =IF(AND($I197>=1,$I197<=17),INDEX(黒!$B$6:$E$39,MATCH($I197,黒!$B$6:$B$39,0),4),"") ->  | M197: =IF($A197="","",$B197+$B197+5) ->  | N197: =IF($A197="","",$I197+$I197+4) ->  | S197: =IF(AND($B197>=1,$B197<=17),INDEX(黒!$B$6:$E$39,MATCH($B197,黒!$B$6:$B$39,0),2),"") ->  | T197: =IF($A197="","",$I197+$I197+5) ->  | U197: =IF($A197="","",$B197+$B197+4) ->  | Z197: =IF(AND($I197>=1,$I197<=17),INDEX(黒!$B$6:$E$39,MATCH($I197,黒!$B$6:$B$39,0),2),"") -> 
C198: =IF(ISERROR(INDEX(概要設定!$J$2:$K$51,MATCH($C199,概要設定!$J$2:$J$51,0),2)),"",INDEX(概要設定!$J$2:$K$51,MATCH($C199,概要設定!$J$2:$J$51,0),2)) ->  | H198: =IF(ISERROR(INDEX(概要設定!$J$2:$K$51,MATCH($H199,概要設定!$J$2:$J$51,0),2)),"",INDEX(概要設定!$J$2:$K$51,MATCH($H199,概要設定!$J$2:$J$51,0),2)) -> 
C199: =IF(AND($B199>=1,$B199<=17),INDEX(黒!$B$6:$E$39,MATCH($B199,黒!$B$6:$B$39,0),4),"") ->  | H199: =IF(AND($I199>=1,$I199<=17),INDEX(黒!$B$6:$E$39,MATCH($I199,黒!$B$6:$B$39,0),4),"") ->  | M199: =IF($A199="","",$B199+$B199+5) ->  | N199: =IF($A199="","",$I199+$I199+4) ->  | S199: =IF(AND($B199>=1,$B199<=17),INDEX(黒!$B$6:$E$39,MATCH($B199,黒!$B$6:$B$39,0),2),"") ->  | T199: =IF($A199="","",$I199+$I199+5) ->  | U199: =IF($A199="","",$B199+$B199+4) ->  | Z199: =IF(AND($I199>=1,$I199<=17),INDEX(黒!$B$6:$E$39,MATCH($I199,黒!$B$6:$B$39,0),2),"") -> 
C200: =IF(ISERROR(INDEX(概要設定!$J$2:$K$51,MATCH($C201,概要設定!$J$2:$J$51,0),2)),"",INDEX(概要設定!$J$2:$K$51,MATCH($C201,概要設定!$J$2:$J$51,0),2)) ->  | H200: =IF(ISERROR(INDEX(概要設定!$J$2:$K$51,MATCH($H201,概要設定!$J$2:$J$51,0),2)),"",INDEX(概要設定!$J$2:$K$51,MATCH($H201,概要設定!$J$2:$J$51,0),2)) -> 
... 129 more rows

Sheet 黒ラベル
B2: 黒組 4 - 5 持ち点：180 | C2: 第1節 (1) 持ち点：180 | F2: 黒組 3 - 6 持ち点：180 | G2: 第1節 (2) 持ち点：180 | J2: 黒組 2 - 7 持ち点：180 | K2: 第1節 (3) 持ち点：180 | N2: 黒組 1 - 8 持ち点：180 | O2: 第1節 (4) 持ち点：140
B3: 斉藤 大輔 | C3: 植田 慎也 | F3: 山田 晃司 | G3: 鷲尾 隆杜 | J3: 斉藤 裕児 | K3: 長谷川 進 | N3: 白戸 玲人 | O3: 白戸 恭子
B4: さいとう だいすけ | C4: うえだ しんや | F4: やまだ こうじ | G4: わしお りゅうと | J4: さいとう ゆうじ | K4: はせがわ すすむ | N4: しらと れいにん | O4: しらと きょうこ
B6: HR | C6: HR | F6: HR | G6: HR | J6: HR | K6: HR | N6: HR | O6: HR
B7: レフリー | F7: レフリー | J7: レフリー | N7: レフリー
B10: 黒組 3 - 4 持ち点：180 | C10: 第2節 (5) 持ち点：180 | F10: 黒組 2 - 5 持ち点：180 | G10: 第2節 (6) 持ち点：180 | J10: 黒組 8 - 6 持ち点：140 | K10: 第2節 (7) 持ち点：180 | N10: 黒組 1 - 7 持ち点：180 | O10: 第2節 (8) 持ち点：180
B11: 山田 晃司 | C11: 斉藤 大輔 | F11: 斉藤 裕児 | G11: 植田 慎也 | J11: 白戸 恭子 | K11: 鷲尾 隆杜 | N11: 白戸 玲人 | O11: 長谷川 進
B12: やまだ こうじ | C12: さいとう だいすけ | F12: さいとう ゆうじ | G12: うえだ しんや | J12: しらと きょうこ | K12: わしお りゅうと | N12: しらと れいにん | O12: はせがわ すすむ
B14: HR | C14: HR | F14: HR | G14: HR | J14: HR | K14: HR | N14: HR | O14: HR
B15: レフリー | F15: レフリー | J15: レフリー | N15: レフリー
B18: 黒組 2 - 3 持ち点：180 | C18: 第3節 (9) 持ち点：180 | F18: 黒組 8 - 4 持ち点：140 | G18: 第3節 (10) 持ち点：180 | J18: 黒組 7 - 5 持ち点：180 | K18: 第3節 (11) 持ち点：180 | N18: 黒組 1 - 6 持ち点：180 | O18: 第3節 (12) 持ち点：180
B19: 斉藤 裕児 | C19: 山田 晃司 | F19: 白戸 恭子 | G19: 斉藤 大輔 | J19: 長谷川 進 | K19: 植田 慎也 | N19: 白戸 玲人 | O19: 鷲尾 隆杜
B20: さいとう ゆうじ | C20: やまだ こうじ | F20: しらと きょうこ | G20: さいとう だいすけ | J20: はせがわ すすむ | K20: うえだ しんや | N20: しらと れいにん | O20: わしお りゅうと
B22: HR | C22: HR | F22: HR | G22: HR | J22: HR | K22: HR | N22: HR | O22: HR
B23: レフリー | F23: レフリー | J23: レフリー | N23: レフリー
B26: 黒組 8 - 2 持ち点：140 | C26: 第4節 (13) 持ち点：180 | F26: 黒組 7 - 3 持ち点：180 | G26: 第4節 (14) 持ち点：180 | J26: 黒組 6 - 4 持ち点：180 | K26: 第4節 (15) 持ち点：180 | N26: 黒組 1 - 5 持ち点：180 | O26: 第4節 (16) 持ち点：180
B27: 白戸 恭子 | C27: 斉藤 裕児 | F27: 長谷川 進 | G27: 山田 晃司 | J27: 鷲尾 隆杜 | K27: 斉藤 大輔 | N27: 白戸 玲人 | O27: 植田 慎也
B28: しらと きょうこ | C28: さいとう ゆうじ | F28: はせがわ すすむ | G28: やまだ こうじ | J28: わしお りゅうと | K28: さいとう だいすけ | N28: しらと れいにん | O28: うえだ しんや
B30: HR | C30: HR | F30: HR | G30: HR | J30: HR | K30: HR | N30: HR | O30: HR
B31: レフリー | F31: レフリー | J31: レフリー | N31: レフリー
B34: 黒組 7 - 8 持ち点：180 | C34: 第5節 (17) 持ち点：140 | F34: 黒組 6 - 2 持ち点：180 | G34: 第5節 (18) 持ち点：180 | J34: 黒組 5 - 3 持ち点：180 | K34: 第5節 (19) 持ち点：180 | N34: 黒組 1 - 4 持ち点：180 | O34: 第5節 (20) 持ち点：180
B35: 長谷川 進 | C35: 白戸 恭子 | F35: 鷲尾 隆杜 | G35: 斉藤 裕児 | J35: 植田 慎也 | K35: 山田 晃司 | N35: 白戸 玲人 | O35: 斉藤 大輔
B36: はせがわ すすむ | C36: しらと きょうこ | F36: わしお りゅうと | G36: さいとう ゆうじ | J36: うえだ しんや | K36: やまだ こうじ | N36: しらと れいにん | O36: さいとう だいすけ
B38: HR | C38: HR | F38: HR | G38: HR | J38: HR | K38: HR | N38: HR | O38: HR
B39: レフリー | F39: レフリー | J39: レフリー | N39: レフリー
